Workbook

Sheet 作成手順
B2: ●送電事業者における基本的な作成手順
B3: ① 供給計画届出書様式の「表紙」シートに住所・事業者名・代表者名・事業者コード等を記載
B4: 事業者名については、事業者リスト一覧から検索し選択すること。なお、事業者名がない場合は、
B5: 最新の事業者リスト一覧を広域機関HPよりダウンロードし、「表紙」シートの「事業者リスト一覧最新化」ボタンを押下し、
B6: 事業者リスト一覧を最新化すること。
B8: ② 特定エリアにおける最上位電圧の送電線路および変電所の整備計画がある場合は様式第３２第６表を記載
B9: ③ 様式第３８表（電力系統の状況）を記載
B11: ④ チェックシートにて、×がないことを確認。また、△項目について確認内容を記載。
B12: （×項目があっても、正当な理由がある場合はそれを記載すること）
B14: ⑤ 「表紙」シート右上部の「保存」ボタンを押下してファイルを保存し、電子メールにより供給計画案を提出する。
C17: 初回提出時はメール件名の先頭に【提出_ ＋（※供計用 事業者コード）_貴社名】と記載頂くようお願いします。 ※供計用 事業者コード＝表紙シートのＡＢ18セル
C18: メール件名の例：【提出_S○○○_貴社名】○○○○○・・・・・○○
C20: お問い合わせ先：
C21: ○初回お問い合わせ時はメール件名の先頭に【問合せ_ ＋（※供計用 事業者コード）＋_貴社名】と記載頂くようお願いします。 ※供計用 事業者コード＝表紙シートのＡＢ18セル
C22: メール件名の例：【問合せ_S○○○_貴社名】○○○○○・・・・・○○
B25: ●各作成手順における注意事項
B26: ＜共通＞
B27: ・記載対象でないシートは、帳票表示切替シートにてシートの表示／非表示を切り替えると作成が容易となる。

Sheet チェックシート
B1: 提出前に、下記チェックシートにて「×」がないことを確認すること。また、「△」については確認内容について記載すること。
B2: （「×」項目でも正当な理由がある場合はその内容を記載すること。例：前年度に事業を開始していない等、その旨を記載）
B3: なお、不整合箇所の詳細については、各帳票シートの印刷範囲外の右側に記載あり。
B5: シート名 | C5: 確認項目 | D5: チェック | E5: カテゴリ | F5: 内容 | G5: △or×の確認内容を記載
B6: 表紙 | C6: 表紙の記載 | D6: =表紙!$AC$26 -> × | F6: =IF(D6="×","住所・代表者名・供計用事業者コード・事業者コードを記入ください。変更供計の場合は、変更の内容も記載ください。","") -> 住所・代表者名・供計用事業者コード・事業者コードを記入ください。変更供計の場合は、変更の内容も記載ください。
B7: 様式第３２第１表 (指定１) | C7: 持続的需要変動対応の予備力を確保しているか | D7: ○ | F7: =IF(D7="×","供給予備率が1%以上になるよう、供給電力の修正をお願いいたします。","") -> 
C8: 年度末電源構成（設備容量） に対する 供給電力（保有電源欄）の割合 | D8: ○ | E8: 水力発電所 | F8: =IF(D8="×","供給電力＞年度末電源構成となっているエリア・年度がありますので、修正してください。","") -> 
D9: ○ | E9: 火力発電所 | F9: =IF(D9="×","供給電力＞年度末電源構成となっているエリア・年度がありますので、修正してください。","") -> 
D10: ○ | E10: 原子力発電所 | F10: =IF(D10="×","供給電力＞年度末電源構成となっているエリア・年度がありますので、修正してください。","") -> 
D11: ○ | E11: 新エネルギー等発電所 | F11: =IF(D11="×","供給電力＞年度末電源構成となっているエリア・年度がありますので、修正してください。","") -> 
C12: 前年度の記載 | D12: ○ | F12: =IF(D12="△","当年度に記載がありますが、前年度に記載がありませんので、前年度の実績について再度ご確認ください。前年度８月に事業を実施していない場合はその旨を右の欄に記載ください。","") -> 
B13: 様式第３２第１表 (指定２) | C13: 指定２帳票の記載要否 | D13: ○ | F13: =IF(D13="×","指定２の記載が抜けているエリア・年度がありますので、記載をお願いいたします。","") -> 
C14: 持続的需要変動対応の予備力を確保しているか | D14: ○ | F14: =IF(D14="×","供給予備率が1%以上になるよう、供給電力の修正をお願いいたします。","") -> 
C15: 年度末電源構成（設備容量） に対する 供給電力（保有電源欄）の割合 | D15: ○ | E15: 水力発電所 | F15: =IF(D15="×","供給電力＞年度末電源構成となっているエリア・年度がありますので、修正してください。","") -> 
D16: ○ | E16: 火力発電所 | F16: =IF(D16="×","供給電力＞年度末電源構成となっているエリア・年度がありますので、修正してください。","") -> 
D17: ○ | E17: 原子力発電所 | F17: =IF(D17="×","供給電力＞年度末電源構成となっているエリア・年度がありますので、修正してください。","") -> 
D18: ○ | E18: 新エネルギー等発電所 | F18: =IF(D18="×","供給電力＞年度末電源構成となっているエリア・年度がありますので、修正してください。","") -> 
C19: 前々年度の記載 | D19: ○ | F19: =IF(D19="△","当年度に記載がありますが、前々年度に記載がありませんので、前々年度の実績について再度ご確認ください。なお、前々年度１月に事業を実施していない場合はその旨を右の欄に記載ください。","") -> 
B20: 様式第３２第２表 | C20: 調達先未定（その他）の記載 | D20: ○ | F20: =IF(D20="△","調達先未定（その他）に記載がありますが、間違いないか確認をお願いいたします。","") -> 
C21: 送電端電力量=供給電力量 となっているか | D21: ○ | F21: =IF(D21="×","供給電力量＝送電端電力量となっていないエリア・年度がありますので、修正してください。","") -> 
C22: 非化石電源比率の記載 | D22: ○ | F22: =IF(D22="×","前年度供給実績が5億kWh以上の場合は、非化石電源比率を記載してください。","") -> 
C23: 前年度の記載 | D23: ○ | F23: =IF(D23="△","当年度に記載がありますが、前年度に記載がありませんので、前年度の実績について再度ご確認ください。なお、前年度に事業を実施していない場合はその旨を右の欄に記載ください。","") -> 
B24: 様式第３２第１表 (指定１) と 第２表 | C24: ８月の需要電力の値で 通年販売するとした場合の年間負荷率 （全エリア・年度の中での最大値） | D24: ○ | F24: =IF(D24="○","",IF(D24="×","需要電力に記載があり、需要電力量に記載がないエリア・年度がありますので、修正してください。",IF(D24>1,"負荷率が100%を超えていますが、単位等誤りがないか再度確認をお願いいたします。",""))) -> 
C25: ８月の供給電力（保有電源欄）の値で 通年運転するとした場合の年間利用率 （全エリア・年度の中での最大値） | D25: ○ | E25: 水力発電所 | F25: =IF(D25="○","",IF(D25="×","供給電力に記載があり、供給電力量に記載がないエリア・年度がありますので、修正してください。",IF(D25>1,"利用率が100%を超えていますが、単位等誤りがないか再度確認をお願いいたします。",""))) -> 
D26: ○ | E26: 火力発電所 | F26: =IF(D26="○","",IF(D26="×","供給電力に記載があり、供給電力量に記載がないエリア・年度がありますので、修正してください。",IF(D26>1,"利用率が100%を超えていますが、単位等誤りがないか再度確認をお願いいたします。",""))) -> 
D27: ○ | E27: 原子力発電所 | F27: =IF(D27="○","",IF(D27="×","供給電力に記載があり、供給電力量に記載がないエリア・年度がありますので、修正してください。",IF(D27>1,"利用率が100%を超えていますが、単位等誤りがないか再度確認をお願いいたします。",""))) -> 
D28: ○ | E28: 新エネルギー等発電所 | F28: =IF(D28="○","",IF(D28="×","供給電力に記載があり、供給電力量に記載がないエリア・年度がありますので、修正してください。",IF(D28>1,"利用率が100%を超えていますが、単位等誤りがないか再度確認をお願いいたします。",""))) -> 
B29: 様式第３２第３表(指定) | C29: 持続的需要変動対応の予備力を確保しているか | D29: ○ | F29: =IF(D29="×","供給予備率が1%以上になるよう、供給電力の修正をお願いいたします。","") -> 
B30: 様式第３２第３表(指定)（２年度目） | C30: 持続的需要変動対応の予備力を確保しているか | D30: ○ | F30: =IF(D30="×","供給予備率が1%以上になるよう、供給電力の修正をお願いいたします。","") -> 
B31: 様式第３２第４表 | C31: 調達先未定（その他）の記載 | D31: ○ | F31: =IF(D31="△","調達先未定（その他）に記載がありますが、間違いないか確認をお願いいたします。","") -> 
B32: 様式第３２第３表 と第４表 | C32: 各月の需要電力の値で 月内全時間帯運転するとした場合 の年間負荷率 （全エリア・月の中での最大値） | D32: ○ | F32: =IF(D32="○","",IF(D32="×","需要電力に記載があり、需要電力量に記載がないエリア・月がありますので、修正してください。",IF(D32>1,"負荷率が100%を超えていますが、単位等誤りがないか再度確認をお願いいたします。",""))) -> 
C33: 各月の供給電力（保有電源欄）の値で 月内全時間帯運転するとした場合 の年間負荷率 （全エリア・月の中での最大値） | D33: ○ | E33: 水力発電所 | F33: =IF(D33="○","",IF(D33="×","供給電力に記載があり、供給電力量に記載がないエリア・月がありますので、修正してください。",IF(D33>1,"利用率が100%を超えていますが、単位等誤りがないか再度確認をお願いいたします。",""))) -> 
D34: ○ | E34: 火力発電所 | F34: =IF(D34="○","",IF(D34="×","供給電力に記載があり、供給電力量に記載がないエリア・月がありますので、修正してください。",IF(D34>1,"利用率が100%を超えていますが、単位等誤りがないか再度確認をお願いいたします。",""))) -> 
D35: ○ | E35: 原子力発電所 | F35: =IF(D35="○","",IF(D35="×","供給電力に記載があり、供給電力量に記載がないエリア・月がありますので、修正してください。",IF(D35>1,"利用率が100%を超えていますが、単位等誤りがないか再度確認をお願いいたします。",""))) -> 
D36: ○ | E36: 新エネルギー等発電所 | F36: =IF(D36="○","",IF(D36="×","供給電力に記載があり、供給電力量に記載がないエリア・月がありますので、修正してください。",IF(D36>1,"利用率が100%を超えていますが、単位等誤りがないか再度確認をお願いいたします。",""))) -> 
B37: 受電取引帳票 | C37: 備考欄に種別が選択されているか | D37: ○ | F37: =IF(D37="×","備考欄にプルダウンより種別を選択してください。","") -> 
B38: 送電取引帳票 | C38: 備考欄に種別が選択されているか | D38: ○ | F38: =IF(D38="×","備考欄にプルダウンより種別を選択してください。","") -> 
B51: ●更新履歴
C52: 日付 | E52: バージョン | F52: 更新内容

Sheet 事業者リスト一覧
B1: 電力広域的運営推進機関
B2: 計画年度選択 | D2: 発電事業者 | G2: 一般送配電事業者 | J2: 小売電気事業者 | M2: 配電事業者 | P2: 特定卸供給事業者 | S2: 送電事業者 | V2: 特定送配電事業者 | Y2: 登録特定送配電事業者
B3: 2024
D4: H001 | E4: 北海道電力株式会社 | G4: I01 | H4: 北海道電力ネットワーク株式会社 | J4: K001 | K4: 北海道電力株式会社 | M4: D001 | P4: A001 | Q4: 株式会社エナリス | S4: S01 | T4: 電源開発送変電ネットワーク株式会社 | V4: TT01 | W4: 欠番 | Y4: TR01 | Z4: Ｄａｉｇａｓエナジー株式会社
B5: ライセンス区分 | D5: H002 | E5: 東北電力株式会社 | G5: I02 | H5: 東北電力ネットワーク株式会社 | J5: K002 | K5: 東北電力株式会社 | M5: D002 | P5: A002 | Q5: 株式会社タクマエナジー | S5: S02 | T5: 北海道北部風力送電株式会社 | V5: TT02 | W5: 欠番 | Y5: TR02 | Z5: ＪＦＥスチール株式会社
D6: H003 | E6: 東京電力ホールディングス株式会社 | G6: I03 | H6: 東京電力パワーグリッド株式会社 | J6: K003 | K6: 東京電力エナジーパートナー株式会社 | M6: D003 | P6: A003 | Q6: 積水化学工業株式会社 | S6: S03 | T6: 福島送電株式会社 | V6: TT03 | W6: 欠番 | Y6: TR03 | Z6: 住友共同電力株式会社
B7: 一般送配電事業者 | D7: H004 | E7: 株式会社ＪＥＲＡ | G7: I04 | H7: 中部電力パワーグリッド株式会社 | J7: K004 | K7: 中部電力ミライズ株式会社 | M7: D004 | P7: A004 | Q7: オリックス株式会社 | S7: S04 | V7: TT04 | W7: 日本ファシリティ・ソリューション株式会社 | Y7: TR04 | Z7: 東日本旅客鉄道株式会社
B8: 配電事業者 | D8: H005 | E8: 東京電力パワーグリッド株式会社 | G8: I05 | H8: 北陸電力送配電株式会社 | J8: K005 | K8: 北陸電力株式会社 | M8: D005 | P8: A005 | Q8: パシフィックパワー株式会社 | S8: S05 | V8: TT05 | W8: 浦添分散型エネルギー株式会社 | Y8: TR05 | Z8: 六本木エネルギーサービス株式会社
B9: 発電事業者 | D9: H006 | E9: 中部電力株式会社 | G9: I06 | H9: 関西電力送配電株式会社 | J9: K006 | K9: 関西電力株式会社 | M9: D006 | P9: A006 | Q9: アズビル株式会社 | S9: S06 | V9: TT06 | W9: 欠番 | Y9: TR06 | Z9: 株式会社ＪＮＣパワー
B10: 特定卸供給事業者 | D10: H007 | E10: 北陸電力株式会社 | G10: I07 | H10: 中国電力ネットワーク株式会社 | J10: K007 | K10: 中国電力株式会社 | M10: D007 | P10: A007 | Q10: 東北電力株式会社 | S10: S07 | V10: TT07 | W10: 欠番 | Y10: TR07 | Z10: 王子製紙株式会社
B11: 小売電気事業者 | D11: H008 | E11: 関西電力株式会社 | G11: I08 | H11: 四国電力送配電株式会社 | J11: K008 | K11: 四国電力株式会社 | M11: D008 | P11: A008 | Q11: 大阪瓦斯株式会社 | S11: S08 | V11: TT08 | W11: 欠番 | Y11: TR08 | Z11: 株式会社グリーンサークル
B12: 登録特定送配電事業者 | D12: H009 | E12: 中国電力株式会社 | G12: I09 | H12: 九州電力送配電株式会社 | J12: K009 | K12: 九州電力株式会社 | M12: D009 | P12: A009 | Q12: 欠番 | S12: S09 | V12: TT09 | W12: 利久株式会社 | Y12: TR09 | Z12: 欠番
B13: 送電事業者 | D13: H010 | E13: 四国電力株式会社 | G13: I10 | H13: 沖縄電力株式会社 | J13: K010 | K13: 沖縄電力株式会社 | M13: D010 | P13: A010 | Q13: Ｇｏａｌ Ｃｏｎｎｅｃｔ株式会社 | S13: S10 | V13: TT10 | W13: 欠番 | Y13: TR10 | Z13: 欠番
B14: 特定送配電事業者 | D14: H011 | E14: 九州電力株式会社 | J14: K011 | K14: 欠番 | M14: D011 | P14: A011 | Q14: 株式会社グローバルエンジニアリング | S14: S11 | V14: TT11 | W14: 欠番 | Y14: TR11 | Z14: 株式会社フォレストパワー
B15: その他事業者 | D15: H012 | E15: 沖縄電力株式会社 | G15: その他事業者 | J15: K012 | K15: イーレックス株式会社 | M15: D012 | P15: A012 | Q15: 欠番 | S15: S12 | V15: TT12 | W15: ヤクデン商事株式会社 | Y15: TR12 | Z15: 宮崎パワーライン株式会社
D16: H013 | E16: 電源開発株式会社 | J16: K013 | K16: リエスパワー株式会社 | M16: D013 | P16: A013 | Q16: 九州電力株式会社 | S16: S13 | V16: TT13 | W16: 株式会社祥和コーポレーション | Y16: TR13 | Z16: 欠番
B17: エリア | D17: H014 | E17: 日本原子力発電株式会社 | G17: ST01 | H17: 風力 | J17: K014 | K17: エバーグリーン・リテイリング株式会社 | M17: D014 | P17: A014 | Q17: 電源開発株式会社 | S17: S14 | V17: TT14 | W17: 欠番 | Y17: TR14 | Z17: 丸紅株式会社
D18: H015 | E18: 日本テクノ株式会社 | G18: ST02 | H18: 太陽光（全量買取） | J18: K015 | K18: 欠番 | M18: D015 | P18: A015 | Q18: テス・エンジニアリング株式会社 | S18: S15 | V18: TT15 | W18: 欠番 | Y18: TR15 | Z18: イーレックス株式会社
B19: 北海道 | D19: H016 | E19: ＳＯＬＡＲ ＥＮＥＲＧＹ 真壁合同会社 | G19: ST03 | H19: 太陽光（余剰買取） | J19: K016 | K19: エバーグリーン・マーケティング株式会社 | M19: D016 | P19: A016 | Q19: アーバンエナジー株式会社 | S19: S16 | V19: TT16 | W19: 株式会社シーエナジー | Y19: TR16 | Z19: 一般社団法人東松島みらいとし機構
B20: 東北 | D20: H017 | E20: 大牟田リサイクル発電株式会社 | G20: ST04 | H20: 日本卸電力取引所（約定分） | J20: K017 | K20: 株式会社ＳＥウイングズ | M20: D017 | P20: A017 | Q20: ＭＣリテールエナジー株式会社 | S20: S17 | V20: TT17 | W20: 欠番 | Y20: TR17 | Z20: 森の電力株式会社
B21: 東京 | D21: H018 | E21: サミット明星パワー株式会社 | G21: ST05 | H21: 非電気事業者 | J21: K018 | K21: 株式会社イーセル | M21: D018 | P21: A018 | Q21: エネルエックス・ジャパン株式会社 | S21: S18 | V21: TT18 | W21: 三井不動産ＴＥＰＣＯエナジー株式会社 | Y21: TR18 | Z21: 欠番
B22: 中部 | D22: H019 | E22: 欠番 | G22: ST06 | H22: 非電気事業者（10万kW以下事業者） | J22: K019 | K22: 株式会社エネット | M22: D019 | P22: A019 | Q22: 株式会社ＵＰＤＡＴＥＲ | S22: S19 | V22: TT19 | W22: ＥＮＥＯＳ株式会社 | Y22: TR19 | Z22: ジェーシーパワーサプライ株式会社
B23: 北陸 | D23: H020 | E23: 西つがる風力発電株式会社 | G23: ST07 | J23: K020 | K23: 欠番 | M23: D020 | P23: A020 | Q23: 東邦ガス株式会社 | S23: S20 | V23: TT20 | W23: ウーブン・バイ・トヨタ株式会社 | Y23: TR20 | Z23: そうまＩグリッド合同会社
B24: 関西 | D24: H021 | E24: まほろば風力発電株式会社 | G24: ST08 | J24: K021 | K24: 須賀川瓦斯株式会社 | M24: D021 | P24: A021 | Q24: カスタマイズドエナジーソリューションズジャパン株式会社 | S24: S21 | V24: TT21 | Y24: TR21 | Z24: 三井不動産ＴＧスマートエナジー株式会社
B25: 中国 | D25: H022 | E25: エイブルエナジー合同会社 | G25: ST09 | J25: K022 | K25: 出光興産株式会社 | M25: D022 | P25: A022 | Q25: 東京電力エナジーパートナー株式会社 | S25: S22 | V25: TT22 | Y25: TR22 | Z25: MCPD合同会社
B26: 四国 | D26: H023 | E26: 欠番 | G26: ST10 | J26: K023 | K26: 株式会社オプテージ | M26: D023 | P26: A023 | Q26: 北陸電力株式会社 | S26: S23 | V26: TT23 | Y26: TR23 | Z26: ひおき地域エネルギー株式会社
B27: 九州 | D27: H024 | E27: 株式会社ＩＨＩ原動機 | J27: K024 | K27: エネサーブ株式会社 | M27: D024 | P27: A024 | Q27: 三菱重工業株式会社 | S27: S24 | V27: TT24 | Y27: TR24 | Z27: パナソニックホームズ株式会社
B28: 沖縄 | D28: H025 | E28: 株式会社新中袖発電所 | J28: K025 | K28: 株式会社エネワンでんき | M28: D025 | P28: A025 | Q28: 北海道電力株式会社 | S28: S25 | V28: TT25 | Y28: TR25 | Z28: 株式会社タクマエナジー
D29: H026 | E29: 株式会社那須南エコファーム | J29: K026 | K29: ミツウロコグリーンエネルギー株式会社 | M29: D026 | P29: A026 | Q29: 四国電力株式会社 | S29: S26 | V29: TT26 | Y29: TR26 | Z29: デジタルグリッド株式会社
B30: チェック用 | D30: H027 | E30: 株式会社ＡＣエナジー | J30: K027 | K30: 株式会社リエネ | M30: D027 | P30: A027 | Q30: 中部電力ミライズ株式会社 | S30: S27 | V30: TT27 | Y30: TR27 | Z30: 株式会社トラストバンク
D31: H028 | E31: 株式会社イースクエア | J31: K028 | K31: ネクストパワーやまと株式会社 | M31: D028 | P31: A028 | Q31: 東京瓦斯株式会社 | S31: S28 | V31: TT28 | Y31: TR28 | Z31: 虎ノ門エネルギーネットワーク株式会社
B32: 1 | D32: H029 | E32: 合同会社ノーバル・ソーラー | J32: K029 | K32: 日本テクノ株式会社 | M32: D029 | P32: A029 | Q32: 株式会社工営エナジー | S32: S29 | V32: TT29 | Y32: TR29 | Z32: 旭化成水力テクノサービス株式会社
D33: H030 | E33: 住友共同電力株式会社 | J33: K030 | K33: 中央電力エナジー株式会社 | M33: D030 | P33: A030 | Q33: ＮＴＴアノードエナジー株式会社 | S33: S30 | V33: TT30 | Y33: TR30 | Z33: 株式会社ウッドエナジー
B34: 提出区分 | D34: H031 | E34: 六本木エネルギーサービス株式会社 | J34: K031 | K34: 株式会社Ｌｏｏｏｐ | M34: D031 | P34: A031 | Q34: ＥＮＥＯＳ株式会社 | S34: S31 | V34: TT31 | Y34: TR31 | Z34: 真庭バイオエネルギー株式会社
B35: 新規 | D35: H032 | E35: 東日本旅客鉄道株式会社 | J35: K032 | K35: 欠番 | M35: D032 | P35: A032 | Q35: 東京電力ホールディングス株式会社 | S35: S32 | V35: TT32 | Y35: TR32 | Z35: 葛尾創生電力株式会社
B36: 変更1 | D36: H033 | E36: 鴨川みらいソーラー合同会社 | J36: K033 | K36: 株式会社ナンワエナジー | M36: D033 | P36: A033 | Q36: 日立造船株式会社 | S36: S33 | V36: TT33 | Y36: TR33 | Z36: 株式会社Ｌｏｏｏｐ
B37: 変更2 | D37: H034 | E37: 東北自然エネルギー株式会社 | J37: K034 | K37: 静岡ガス＆パワー株式会社 | M37: D034 | P37: A034 | Q37: 中国電力株式会社 | S37: S34 | V37: TT34 | Y37: TR34 | Z37: 株式会社ＦＰＳ
B38: 変更3 | D38: H035 | E38: 川崎市役所 | J38: K035 | K38: 荏原環境プラント株式会社 | M38: D035 | P38: A035 | Q38: デジタルグリッド株式会社 | S38: S35 | V38: TT35 | Y38: TR35 | Z38: 関西電力株式会社
B39: 変更4 | D39: H036 | E39: ＢＳＲＡ Ａｌｐｈａ１ 合同会社 | J39: K036 | K39: 東京エコサービス株式会社 | M39: D036 | P39: A036 | Q39: 伊藤忠商事株式会社 | S39: S36 | V39: TT36 | Y39: TR36 | Z39: 広島ガス株式会社
B40: 変更5 | D40: H037 | E40: 五井コーストエナジー株式会社 | J40: K037 | K40: ダイヤモンドパワー株式会社 | M40: D037 | P40: A037 | Q40: Ｇｒｅｅｎｅｓｔ Ｅｎｅｒｇｙ株式会社 | S40: S37 | V40: TT37 | Y40: TR37
B41: 変更6 | D41: H038 | E41: 秋田県 | J41: K038 | K41: 出光グリーンパワー株式会社 | M41: D038 | P41: A038 | Q41: リニューアブル・ジャパン株式会社 | S41: S38 | V41: TT38 | Y41: TR38
B42: 変更7 | D42: H039 | E42: 東埼玉資源環境組合 | J42: K039 | K42: 欠番 | M42: D039 | P42: A039 | Q42: Ｑ．ＥＮＥＳＴでんき株式会社 | S42: S39 | V42: TT39 | Y42: TR39
D43: H040 | E43: 頴娃風力発電株式会社 | J43: K040 | K43: 欠番 | M43: D040 | P43: A040 | Q43: カワサキグリーンエナジー株式会社 | S43: S40 | V43: TT40 | Y43: TR40
B44: 種別 | D44: H041 | E44: パシフィコ・エナジー山形合同会社 | J44: K041 | K44: 株式会社新出光 | M44: D041 | P44: A041 | Q44: ＨＳＥ株式会社 | S44: S41 | V44: TT41 | Y44: TR41
D45: H042 | E45: 三菱製紙株式会社 | J45: K042 | K45: セントラル石油瓦斯株式会社 | M45: D042 | P45: A042 | Q45: 株式会社再生可能エネルギー推進機構 | S45: S42 | V45: TT42 | Y45: TR42
B46: 常時バックアップ | D46: H043 | E46: 明海発電株式会社 | J46: K043 | K46: にちほクラウド電力株式会社 | M46: D043 | P46: A043 | Q46: ダイヤモンドパワー株式会社 | S46: S43 | V46: TT43 | Y46: TR43
B47: 水力 | D47: H044 | E47: 欠番 | J47: K044 | K47: 一般財団法人泉佐野電力 | M47: D044 | P47: A044 | Q47: イーレックス株式会社 | S47: S44 | V47: TT44 | Y47: TR44
B48: 火力 | D48: H045 | E48: 株式会社フジックス | J48: K045 | K48: コスモエネルギーソリューションズ株式会社 | M48: D045 | P48: A045 | Q48: 株式会社シムックスイニシアティブ | S48: S45 | V48: TT45 | Y48: TR45
B49: 原子力 | D49: H046 | E49: Ｄａｉｇａｓ大分みらいソーラー株式会社 | J49: K046 | K49: 株式会社グリーンサークル | M49: D046 | P49: A046 | Q49: 東芝エネルギーシステムズ株式会社 | S49: S46 | V49: TT46 | Y49: TR46
B50: 風力 | D50: H047 | E50: 京葉ガスエナジーソリューション株式会社 | J50: K047 | K50: 株式会社ウエスト電力 | M50: D047 | P50: A047 | Q50: ElectroRoute Japan株式会社 | S50: S47 | V50: TT47 | Y50: TR47
B51: 太陽光（全量） | D51: H048 | E51: 株式会社グリーンエナジー津 | J51: K048 | K51: 欠番 | M51: D048 | P51: A048 | Q51: 豊田通商株式会社 | S51: S48 | V51: TT48 | Y51: TR48
B52: 太陽光（余剰） | D52: H049 | E52: パシフィコ・エナジー細江合同会社 | J52: K049 | K52: 北海道瓦斯株式会社 | M52: D049 | P52: A049 | Q52: JREトレーディング株式会社 | S52: S49 | V52: TT49 | Y52: TR49
B53: 地熱 | D53: H050 | E53: 九州おひさま発電株式会社 | J53: K050 | K53: アルカナエナジー株式会社 | M53: D050 | P53: A050 | Q53: ＵＮＩＶＥＲＧＹ株式会社 | S53: S50 | V53: TT50 | Y53: TR50
B54: バイオマス | D54: H051 | E54: 富山県企業局 | J54: K051 | K54: 株式会社日本エナジーバンク | M54: D051 | P54: A051 | Q54: 株式会社まち未来製作所 | S54: S51 | V54: TT51 | Y54: TR51
B55: 廃棄物 | D55: H052 | E55: 欠番 | J55: K052 | K55: 新エネルギー開発株式会社 | M55: D052 | P55: A052 | Q55: エナジープールジャパン株式会社 | S55: S52 | V55: TT52 | Y55: TR52
B56: その他（電源種別混同等） | D56: H053 | E56: 株式会社高田屋 | J56: K053 | K56: 伊藤忠エネクス株式会社 | M56: D053 | P56: A053 | Q56: Ｅ－Ｆｌｏｗ合同会社 | S56: S53 | V56: TT53 | Y56: TR53
B57: ネガワット | D57: H054 | E57: 住友大阪セメント株式会社 | J57: K054 | K57: 欠番 | M57: D054 | P57: A054 | Q57: ＧｒｉｄＢｅｙｏｎｄ合同会社 | S57: S54 | V57: TT54 | Y57: TR54
B58: 蓄電池 | D58: H055 | E58: 京都府電気事業 | J58: K055 | K58: 株式会社Ｖ－Ｐｏｗｅｒ | M58: D055 | P58: A055 | Q58: 丸紅新電力株式会社 | S58: S55 | V58: TT55 | Y58: TR55
D59: H056 | E59: 株式会社アサヒコーポレーション | J59: K056 | K59: 大和エネルギー株式会社 | M59: D056 | P59: A056 | Q59: ＲＥ１００電力株式会社 | S59: S56 | V59: TT56 | Y59: TR56
B60: 桁数設定 | D60: H057 | E60: パシフィコ・エナジー美作武蔵合同会社 | J60: K057 | K60: 欠番 | M60: D057 | P60: A057 | Q60: Ｖａｌｈａｌｌ合同会社 | S60: S57 | V60: TT57 | Y60: TR57
B61: 1 | D61: H058 | E61: パシフィコ・エナジー久米南合同会社 | J61: K058 | K61: 大阪瓦斯株式会社 | M61: D058 | P61: A058 | Q61: 株式会社ユーラスグリーンエナジー | S61: S58 | V61: TT58 | Y61: TR58
D62: H059 | E62: サミット美浜パワー株式会社 | J62: K059 | K62: エフビットコミュニケーションズ株式会社 | M62: D059 | P62: A059 | Q62: ハイパワー合同会社 | S62: S59 | V62: TT59 | Y62: TR59
B63: 桁数設定（新エネ供給力） | D63: H060 | E63: 金沢エナジー株式会社 | J63: K060 | K63: ＥＮＥＯＳ株式会社 | M63: D060 | P63: A060 | Q63: 株式会社Ｓｈｉｚｅｎ Ｃｏｎｎｅｃｔ | S63: S60 | V63: TT60 | Y63: TR60
B64: 1 | D64: H061 | E64: 鹿児島メガソーラー発電株式会社 | J64: K061 | K64: 真庭バイオエネルギー株式会社 | M64: D061 | P64: A061 | Q64: 株式会社サンヴィレッジ | S64: S61 | V64: TT61 | Y64: TR61
D65: H062 | E65: 出光興産株式会社 | J65: K062 | K65: 三井物産株式会社 | M65: D062 | P65: A062 | Q65: 株式会社ａｆｔｅｒＦＩＴ | S65: S62 | V65: TT62 | Y65: TR62
D66: H063 | E66: ＭＩＲＡＲＴＨホールディングス株式会社 | J66: K063 | K66: オリックス株式会社 | M66: D063 | P66: A063 | S66: S63 | V66: TT63 | Y66: TR63
D67: H064 | E67: 株式会社バイテックエネスタ | J67: K064 | K67: 株式会社エネサンス関東 | M67: D064 | P67: A064 | S67: S64 | V67: TT64 | Y67: TR64
D68: H065 | E68: サミット小名浜エスパワー株式会社 | J68: K065 | K68: 株式会社ＵＰＤＡＴＥＲ | M68: D065 | P68: A065 | S68: S65 | V68: TT65 | Y68: TR65
D69: H066 | E69: 徳島県企業局 | J69: K066 | K69: シン・エナジー株式会社 | M69: D066 | P69: A066 | S69: S66 | V69: TT66 | Y69: TR66
D70: H067 | E70: 欠番 | J70: K067 | K70: 株式会社サニックス | M70: D067 | P70: A067 | S70: S67 | V70: TT67 | Y70: TR67
D71: H068 | E71: 高知県公営企業局 | J71: K068 | K71: 株式会社コンシェルジュ | M71: D068 | P71: A068 | S71: S68 | V71: TT68 | Y71: TR68
D72: H069 | E72: 王子マテリア株式会社 | J72: K069 | K72: 欠番 | M72: D069 | P72: A069 | S72: S69 | V72: TT69 | Y72: TR69
D73: H070 | E73: 沖縄新エネ開発株式会社 | J73: K070 | K73: 株式会社アイ・グリッド・ソリューションズ | M73: D070 | P73: A070 | S73: S70 | V73: TT70 | Y73: TR70
D74: H071 | E74: 株式会社福岡クリーンエナジー | J74: K071 | K74: サミットエナジー株式会社 | M74: D071 | P74: A071 | S74: S71 | V74: TT71 | Y74: TR71
D75: H072 | E75: 株式会社関電工 | J75: K072 | K75: リコージャパン株式会社 | M75: D072 | P75: A072 | S75: S72 | V75: TT72 | Y75: TR72
D76: H073 | E76: 丸住製紙株式会社 | J76: K073 | K76: 株式会社エネルギア・ソリューション・アンド・サービス | M76: D073 | P76: A073 | S76: S73 | V76: TT73 | Y76: TR73
D77: H074 | E77: 長野県企業局 | J77: K074 | K77: 東京ガス株式会社 | M77: D074 | P77: A074 | S77: S74 | V77: TT74 | Y77: TR74
D78: H075 | E78: 白馬ウインドファーム株式会社 | J78: K075 | K78: テス・エンジニアリング株式会社 | M78: D075 | P78: A075 | S78: S75 | V78: TT75 | Y78: TR75
D79: H076 | E79: 白滝山ウインドファーム株式会社 | J79: K076 | K79: 青梅ガス株式会社 | M79: D076 | P79: A076 | S79: S76 | V79: TT76 | Y79: TR76
D80: H077 | E80: 合同会社バイテック・漁火館滝沢市メガソーラー | J80: K077 | K80: 株式会社イーネットワークシステムズ | M80: D077 | P80: A077 | S80: S77 | V80: TT77 | Y80: TR77
D81: H078 | E81: 鈴川エネルギーセンター株式会社 | J81: K078 | K81: 株式会社エネアーク関東 | M81: D078 | P81: A078 | S81: S78 | V81: TT78 | Y81: TR78
D82: H079 | E82: 日立造船株式会社 | J82: K079 | K82: 株式会社東急パワーサプライ | M82: D079 | P82: A079 | S82: S79 | V82: TT79 | Y82: TR79
D83: H080 | E83: 江津ウィンドパワー株式会社 | J83: K080 | K83: 王子・伊藤忠エネクス電力販売株式会社 | M83: D080 | P83: A080 | S83: S80 | V83: TT80 | Y83: TR80
D84: H081 | E84: 株式会社野田バイオパワーＪＰ | J84: K081 | K84: 伊藤忠商事株式会社 | M84: D081 | P84: A081 | S84: S81 | V84: TT81 | Y84: TR81
D85: H082 | E85: 株式会社南九 | J85: K082 | K85: 株式会社エコスタイル | M85: D082 | P85: A082 | S85: S82 | V85: TT82 | Y85: TR82
D86: H083 | E86: 株式会社ＳＪソーラーつくば | J86: K083 | K86: 入間ガス株式会社 | M86: D083 | P86: A083 | S86: S83 | V86: TT83 | Y86: TR83
D87: H084 | E87: 中国木材株式会社 | J87: K084 | K87: テプコカスタマーサービス株式会社 | M87: D084 | P87: A084 | S87: S84 | V87: TT84 | Y87: TR84
D88: H085 | E88: 北越コーポレーション株式会社 | J88: K085 | K88: 株式会社とんでんホールディングス | M88: D085 | P88: A085 | S88: S85 | V88: TT85 | Y88: TR85
D89: H086 | E89: ほくでんエコエナジー株式会社 | J89: K086 | K89: 日鉄エンジニアリング株式会社 | M89: D086 | P89: A086 | S89: S86 | V89: TT86 | Y89: TR86
D90: H087 | E90: 欠番 | J90: K087 | K90: ａｕエネルギー＆ライフ株式会社 | M90: D087 | P90: A087 | S90: S87 | V90: TT87 | Y90: TR87
D91: H088 | E91: 大分県企業局 | J91: K088 | K91: 欠番 | M91: D088 | P91: A088 | S91: S88 | V91: TT88 | Y91: TR88
D92: H089 | E92: 多可町安田郷メガソーラ―発電合同会社 | J92: K089 | K92: イワタニ関東株式会社 | M92: D089 | P92: A089 | S92: S89 | V92: TT89 | Y92: TR89
D93: H090 | E93: 長崎ソーラーエナジー合同会社 | J93: K090 | K93: イワタニ首都圏株式会社 | M93: D090 | P93: A090 | S93: S90 | V93: TT90 | Y93: TR90
D94: H091 | E94: ＪＦＥソーラーパワー株式会社 | J94: K091 | K94: サーラｅエナジー株式会社 | M94: D091 | P94: A091 | S94: S91 | V94: TT91 | Y94: TR91
D95: H092 | E95: 株式会社カネカ | J95: K092 | K95: 株式会社地球クラブ | M95: D092 | P95: A092 | S95: S92 | V95: TT92 | Y95: TR92
D96: H093 | E96: 親和開発株式会社 | J96: K093 | K96: 株式会社エコア | M96: D093 | P96: A093 | S96: S93 | V96: TT93 | Y96: TR93
D97: H094 | E97: 株式会社エナリス | J97: K094 | K97: 西部瓦斯株式会社 | M97: D094 | P97: A094 | S97: S94 | V97: TT94 | Y97: TR94
D98: H095 | E98: ＪＦＥスチール株式会社 | J98: K095 | K98: 東邦ガス株式会社 | M98: D095 | P98: A095 | S98: S95 | V98: TT95 | Y98: TR95
D99: H096 | E99: 酒田共同火力発電株式会社 | J99: K096 | K99: シナネン株式会社 | M99: D096 | P99: A096 | S99: S96 | V99: TT96 | Y99: TR96
D100: H097 | E100: 岩手県企業局 | J100: K097 | K100: 欠番 | M100: D097 | P100: A097 | S100: S97 | V100: TT97 | Y100: TR97
D101: H098 | E101: 新潟県企業局 | J101: K098 | K101: カワサキグリーンエナジー株式会社 | M101: D098 | P101: A098 | S101: S98 | V101: TT98 | Y101: TR98
D102: H099 | E102: 仙台市 | J102: K099 | K102: 大一ガス株式会社 | M102: D099 | P102: A099 | S102: S99 | V102: TT99 | Y102: TR99
D103: H100 | E103: 愛媛県公営企業管理局 | J103: K100 | K103: 株式会社リミックスポイント | M103: D100 | P103: A100 | S103: S100 | V103: TT100 | Y103: TR100
D104: H101 | E104: 株式会社グリーンパワー浜田 | J104: K101 | K104: 大阪いずみ市民生活協同組合 | M104: D101 | P104: A101
D105: H102 | E105: 三菱重工業株式会社 | J105: K102 | K105: 株式会社中海テレビ放送 | M105: D102 | P105: A102
D106: H103 | E106: 欠番 | J106: K103 | K106: パシフィックパワー株式会社 | M106: D103 | P106: A103
D107: H104 | E107: ユナイテッドリニューアブルエナジー株式会社 | J107: K104 | K107: 欠番 | M107: D104 | P107: A104
D108: H105 | E108: 合同会社茂原ソーラーパーク | J108: K105 | K108: 欠番 | M108: D105 | P108: A105
D109: H106 | E109: 福山リサイクル発電株式会社 | J109: K106 | K109: 欠番 | M109: D106 | P109: A106
D110: H107 | E110: 紋別バイオマス発電株式会社 | J110: K107 | K110: 欠番 | M110: D107 | P110: A107
D111: H108 | E111: 市原グリーン電力株式会社 | J111: K108 | K111: 株式会社ジェイコムウエスト | M111: D108 | P111: A108
D112: H109 | E112: プロロジス・グリーン有限会社 | J112: K109 | K112: 欠番 | M112: D109 | P112: A109
D113: H110 | E113: 合同会社ＪＲＥ酒田風力 | J113: K110 | K113: 欠番 | M113: D110 | P113: A110
D114: H111 | E114: 合同会社新潟島見ソーラーパーク | J114: K111 | K114: 欠番 | M114: D111 | P114: A111
D115: H112 | E115: 戸畑共同火力株式会社 | J115: K112 | K115: 欠番 | M115: D112 | P115: A112
D116: H113 | E116: 日本軽金属株式会社 | J116: K113 | K116: 株式会社ジェイコム埼玉・東日本 | M116: D113 | P116: A113
D117: H114 | E117: 株式会社ＩＮＰＥＸ | J117: K114 | K117: 株式会社ジェイコム札幌 | M117: D114 | P117: A114
D118: H115 | E118: 川崎バイオマス発電株式会社 | J118: K115 | K118: 株式会社ジェイコム湘南・神奈川 | M118: D115 | P118: A115
D119: H116 | E119: 常磐共同火力株式会社 | J119: K116 | K119: 欠番 | M119: D116 | P119: A116
D120: H117 | E120: 合同会社DMM.com | J120: K117 | K120: 株式会社ジェイコム千葉 | M120: D117 | P120: A117
D121: H118 | E121: 堺市 | J121: K118 | K121: 欠番 | M121: D118 | P121: A118
D122: H119 | E122: 大阪瓦斯株式会社 | J122: K119 | K122: 欠番 | M122: D119 | P122: A119
D123: H120 | E123: 株式会社ヨンコーソーラー | J123: K120 | K123: 株式会社ジェイコム東京 | M123: D120 | P123: A120
D124: H121 | E124: 相馬共同火力発電株式会社 | J124: K121 | K124: 欠番 | M124: D121 | P124: A121
D125: H122 | E125: 福岡都市圏南部環境事業組合 | J125: K122 | K125: 欠番 | M125: D122 | P125: A122
D126: H123 | E126: 株式会社チョープロ | J126: K123 | K126: 欠番 | M126: D123 | P126: A123
D127: H124 | E127: エネ・シードひびき株式会社 | J127: K124 | K127: 欠番 | M127: D124 | P127: A124
D128: H125 | E128: 欠番 | J128: K125 | K128: 欠番 | M128: D125 | P128: A125
D129: H126 | E129: ＥＮＥＯＳ株式会社 | J129: K126 | K129: 欠番 | M129: D126 | P129: A126
D130: H127 | E130: 大分共同火力株式会社 | J130: K127 | K130: 欠番 | M130: D127 | P130: A127
D131: H128 | E131: 欠番 | J131: K128 | K131: 欠番 | M131: D128 | P131: A128
D132: H129 | E132: 御船ホールディングス株式会社 | J132: K129 | K132: 土浦ケーブルテレビ株式会社 | M132: D129 | P132: A129
D133: H130 | E133: 幌延風力発電株式会社 | J133: K130 | K133: 鹿児島電力株式会社 | M133: D130 | P133: A130
D134: H131 | E134: 三交不動産株式会社 | J134: K131 | K134: 太陽ガス株式会社 | M134: D131 | P134: A131
D135: H132 | E135: 東京発電株式会社 | J135: K132 | K135: アーバンエナジー株式会社 | M135: D132 | P135: A132
D136: H133 | E136: 株式会社エフビット横須賀パワー | J136: K133 | K136: パワーネクスト株式会社 | M136: D133 | P136: A133
D137: H134 | E137: 有限責任事業組合テックエナジー | J137: K134 | K137: 合同会社北上新電力 | M137: D134 | P137: A134
D138: H135 | E138: 王子グリーンエナジー日南株式会社 | J138: K135 | K138: パーパススマートパワー株式会社 | M138: D135 | P138: A135
D139: H136 | E139: 王子グリーンエナジー江別株式会社 | J139: K136 | K139: 株式会社タクマエナジー | M139: D136 | P139: A136
D140: H137 | E140: サミット酒田パワー株式会社 | J140: K137 | K140: 株式会社スマートテック | M140: D137 | P140: A137
D141: H138 | E141: 株式会社神戸物産 | J141: K138 | K141: 水戸電力株式会社 | M141: D138 | P141: A138
D142: H139 | E142: 合同会社グリーンパワー富津 | J142: K139 | K142: 欠番 | M142: D139 | P142: A139
D143: H140 | E143: 合同会社大月ウィンドパワー | J143: K140 | K143: 丸紅新電力株式会社 | M143: D140 | P143: A140
D144: H141 | E144: 三崎ウィンド・パワー株式会社 | J144: K141 | K144: 欠番 | M144: D141 | P144: A141
D145: H142 | E145: ジャパンメガソーラー合同会社 | J145: K142 | K145: ダイネン株式会社 | M145: D142 | P145: A142
D146: H143 | E146: 山梨県企業局 | J146: K143 | K146: 奈良電力株式会社 | M146: D143 | P146: A143
D147: H144 | E147: 黒部川電力株式会社 | J147: K144 | K147: 日立造船株式会社 | M147: D144 | P147: A144
D148: H145 | E148: ＪＮＣ株式会社 | J148: K145 | K148: 大東ガス株式会社 | M148: D145 | P148: A145
D149: H146 | E149: 株式会社エコパワーＪＰ | J149: K146 | K149: パナソニックオペレーショナルエクセレンス株式会社 | M149: D146 | P149: A146
D150: H147 | E150: 王子製紙株式会社 | J150: K147 | K150: アストモスエネルギー株式会社 | M150: D147 | P150: A147
D151: H148 | E151: 株式会社共栄エナジー | J151: K148 | K151: 株式会社関電エネルギーソリューション | M151: D148 | P151: A148
D152: H149 | E152: 神奈川電力株式会社 | J152: K149 | K152: マッコーリーエナジージャパン株式会社 | M152: D149 | P152: A149
D153: H150 | E153: ユーエスパワー株式会社 | J153: K150 | K153: ＭＣリテールエナジー株式会社 | M153: D150 | P153: A150
D154: H151 | E154: 合同会社ＢＨ志生木 | J154: K151 | K154: 株式会社北九州パワー | M154: D151 | P154: A151
D155: H152 | E155: 株式会社サニックスエナジー | J155: K152 | K155: 武州瓦斯株式会社 | M155: D152 | P155: A152
D156: H153 | E156: 株式会社レゾナック | J156: K153 | K156: リニューアブル・ジャパン株式会社 | M156: D153 | P156: A153
D157: H154 | E157: 山口県企業局 | J157: K154 | K157: 大垣ガス株式会社 | M157: D154 | P157: A154
D158: H155 | E158: サミットウインドパワー株式会社 | J158: K155 | K158: 株式会社藤田商店 | M158: D155 | P158: A155
D159: H156 | E159: グリーンパワーつがる合同会社 | J159: K156 | K159: 株式会社ケーブルネット下関 | M159: D156 | P159: A156
D160: H157 | E160: 北海道パワーエンジニアリング株式会社 | J160: K157 | K160: 株式会社ジェイコム九州 | M160: D157 | P160: A157
D161: H158 | E161: 男鹿風力発電株式会社 | J161: K158 | K161: 欠番 | M161: D158 | P161: A158
D162: H159 | E162: 市原パワー株式会社 | J162: K159 | K162: 株式会社グローバルエンジニアリング | M162: D159 | P162: A159
D163: H160 | E163: 泉北天然ガス発電株式会社 | J163: K160 | K163: 九州エナジー株式会社 | M163: D160 | P163: A160
D164: H161 | E164: 鳥取県 | J164: K161 | K164: 株式会社トヨタエナジーソリューションズ | M164: D161 | P164: A161
D165: H162 | E165: 富山地区広域圏事務組合 | J165: K162 | K165: 欠番 | M165: D162 | P165: A162
D166: H163 | E166: 株式会社シーテック | J166: K163 | K166: 株式会社エナリス・パワー・マーケティング | M166: D163 | P166: A163
D167: H164 | E167: 株式会社シグマパワー有明 | J167: K164 | K167: 歌舞伎エナジー株式会社 | M167: D164 | P167: A164
D168: H165 | E168: コスモエコパワー株式会社 | J168: K165 | K168: みやまスマートエネルギー株式会社 | M168: D165 | P168: A165
D169: H166 | E169: 神奈川県企業庁 | J169: K166 | K169: エフィシエント株式会社 | M169: D166 | P169: A166
D170: H167 | E170: コスモ石油株式会社 | J170: K167 | K170: 株式会社生活クラブエナジー | M170: D167 | P170: A167
D171: H168 | E171: 北陸パワーステーション株式会社 | J171: K168 | K171: 生活協同組合コープこうべ | M171: D168 | P171: A168
D172: H169 | E172: 九電みらいエナジー株式会社 | J172: K169 | K172: 株式会社シーエナジー | M172: D169 | P172: A169
D173: H170 | E173: 静岡ガス＆パワー株式会社 | J173: K170 | K173: 角栄ガス株式会社 | M173: D170 | P173: A170
D174: H171 | E174: 島根県企業局 | J174: K171 | K174: 京葉瓦斯株式会社 | M174: D171 | P174: A171
D175: H172 | E175: 熊本県企業局 | J175: K172 | K175: ＴＯＰＰＡＮホールディングス株式会社 | M175: D172 | P175: A172
D176: H173 | E176: 欠番 | J176: K173 | K176: 伊勢崎ガス株式会社 | M176: D173 | P176: A173
D177: H174 | E177: 欠番 | J177: K174 | K177: キヤノンマーケティングジャパン株式会社 | M177: D174 | P177: A174
D178: H175 | E178: 株式会社淡路貴船太陽光発電所 | J178: K175 | K178: 株式会社とっとり市民電力 | M178: D175 | P178: A175
D179: H176 | E179: 株式会社トーエネック | J179: K176 | K179: 株式会社イーエムアイ | M179: D176 | P179: A176
D180: H177 | E180: 山形県企業局 | J180: K177 | K180: 佐野瓦斯株式会社 | M180: D177 | P180: A177
D181: H178 | E181: 欠番 | J181: K178 | K181: 桐生瓦斯株式会社 | M181: D178 | P181: A178
D182: H179 | E182: 株式会社青山高原ウインドファーム | J182: K179 | K182: 森の電力株式会社 | M182: D179 | P182: A179
D183: H180 | E183: 楢葉新電力合同会社 | J183: K180 | K183: 大和ハウス工業株式会社 | M183: D180 | P183: A180
D184: H181 | E184: 合同会社大津ソーラー | J184: K181 | K184: 欠番 | M184: D181 | P184: A181
D185: H182 | E185: 鷲尾岳風力発電株式会社 | J185: K182 | K185: ＨＴＢエナジー株式会社 | M185: D182 | P185: A182
D186: H183 | E186: 大阪広域環境施設組合 | J186: K183 | K186: 株式会社アシストワンエナジー | M186: D183 | P186: A183
D187: H184 | E187: 欠番 | J187: K184 | K187: 欠番 | M187: D184 | P187: A184
D188: H185 | E188: 東京二十三区清掃一部事務組合 | J188: K185 | K188: 株式会社フソウ・エナジー | M188: D185 | P188: A185
D189: H186 | E189: 日本太陽光発電２０１３合同会社 | J189: K186 | K189: 株式会社日本エコシステム | M189: D186 | P189: A186
D190: H187 | E190: 日本太陽光発電２０１４合同会社 | J190: K187 | K190: 湘南電力株式会社 | M190: D187 | P190: A187
D191: H188 | E191: 合同会社クリスタル・クリア・ソーラー | J191: K188 | K191: 大東建託パートナーズ株式会社 | M191: D188 | P191: A188
D192: H189 | E192: 欠番 | J192: K189 | K192: Ｊａｐａｎ電力株式会社 | M192: D189 | P192: A189
D193: H190 | E193: 石狩バイオエナジー合同会社 | J193: K190 | K193: 電源開発株式会社 | M193: D190 | P193: A190
D194: H191 | E194: 日本再生可能エネルギー株式会社 | J194: K191 | K194: 鈴与商事株式会社 | M194: D191 | P194: A191
D195: H192 | E195: 株式会社広川明神山風力発電所 | J195: K192 | K195: 欠番 | M195: D192 | P195: A192
D196: H193 | E196: 株式会社葉山風力発電所 | J196: K193 | K196: 株式会社バランスハーツ | M196: D193 | P196: A193
D197: H194 | E197: 肥前風力発電株式会社 | J197: K194 | K197: ワタミエナジー株式会社 | M197: D194 | P197: A194
D198: H195 | E198: エルエムサンパワー株式会社 | J198: K195 | K198: 株式会社パルシステム電力 | M198: D195 | P198: A195
D199: H196 | E199: 日本海発電株式会社 | J199: K196 | K199: ＳＢパワー株式会社 | M199: D196 | P199: A196
D200: H197 | E200: シグマパワージャネックス株式会社 | J200: K197 | K200: ＮＦパワーサービス株式会社 | M200: D197 | P200: A197
... 925 more rows

Sheet シート保護解除事業者リスト (hidden)
A1: ●一般送配電事業者+旧一般電気事業者 | E1: ●シート保護設定
A2: 供計用事業者コード | B2: 事業者名 | C2: 区分 | E2: フォーマット | G2: 送電事業者用 | I2: 一般送配電事業者用はシート保護解除版のみ作成
A3: 対象なし | B3: 対象なし | C3: ― | E3: NO | F3: シート一覧 | G3: シート表示/非表示 | H3: シートの保護 | R3: ●シート保護設定パターン
I4: セルの書式設定 | J4: 列の書式設定 | K4: 行の書式設定 | L4: 列の挿入 | M4: 行の挿入 | N4: 列の削除 | O4: 行の削除 | P4: 設定パターン （オブジェクトの編集DrawingObjectsについてはすべて編集可=False） | R4: セルの書式設定 | S4: 列の書式設定 | T4: 行の書式設定 | U4: 列の挿入 | V4: 行の挿入 | W4: 列の削除 | X4: 行の削除
G6: xlSheetVisible | H6: Protect | I6: AllowFormattingCells | J6: AllowFormattingColumns | K6: AllowFormattingRows | L6: AllowInsertingColumns | M6: AllowInsertingRows | N6: AllowDeletingColumns | O6: AllowDeletingRows | R6: AllowFormattingCells | S6: AllowFormattingColumns | T6: AllowFormattingRows | U6: AllowInsertingColumns | V6: AllowInsertingRows | W6: AllowDeletingColumns | X6: AllowDeletingRows
E8: 1 | F8: 作成手順 | G8: xlSheetVisible | H8: True | I8: False | J8: False | K8: False | L8: False | M8: False | N8: False | O8: False | P8: =IF(ISERROR(VLOOKUP(I8&J8&K8&L8&M8&N8&O8,$Y$8:$Z$15,2,FALSE)),"",VLOOKUP(I8&J8&K8&L8&M8&N8&O8,$Y$8:$Z$15,2,FALSE)) -> 全て不可 | R8: False | S8: False | T8: False | U8: False | V8: False | W8: False | X8: False | Y8: =R8&S8&T8&U8&V8&W8&X8 -> FalseFalseFalseFalseFalseFalseFalse | Z8: 全て不可
E9: 2 | F9: チェックシート | G9: xlSheetVisible | H9: True | I9: True | J9: True | K9: True | L9: False | M9: False | N9: False | O9: False | P9: =IF(ISERROR(VLOOKUP(I9&J9&K9&L9&M9&N9&O9,$Y$8:$Z$15,2,FALSE)),"",VLOOKUP(I9&J9&K9&L9&M9&N9&O9,$Y$8:$Z$15,2,FALSE)) -> 行、列書式設定可 | R9: True | S9: False | T9: False | U9: False | V9: False | W9: False | X9: False | Y9: TrueFalseFalseFalseFalseFalseFalse | Z9: 行高さ、列幅変更不可
E10: 3 | F10: 事業者リスト一覧 | G10: xlSheetVisible | H10: True | I10: True | J10: False | K10: False | L10: False | M10: False | N10: False | O10: False | P10: 行高さ、列幅変更不可 | R10: True | S10: False | T10: False | U10: False | V10: True | W10: False | X10: True | Y10: TrueFalseFalseFalseTrueFalseTrue | Z10: 行挿入、削除可
E11: 4 | F11: シート保護解除事業者リスト | G11: xlSheetHidden | H11: True | I11: True | J11: True | K11: True | L11: True | M11: True | N11: True | O11: True | P11: 全て可 | R11: True | S11: False | T11: True | U11: False | V11: False | W11: False | X11: False | Y11: TrueFalseTrueFalseFalseFalseFalse | Z11: 行書式設定可
E12: 5 | F12: 帳票表示切替 | G12: xlSheetVisible | H12: True | I12: False | J12: False | K12: False | L12: False | M12: False | N12: False | O12: False | P12: 全て不可 | R12: True | S12: False | T12: True | U12: False | V12: True | W12: False | X12: True | Y12: TrueFalseTrueFalseTrueFalseTrue | Z12: 行挿入、削除可、書式設定可
E13: 6 | F13: エリア表示切替 | G13: xlSheetVisible | H13: True | I13: False | J13: False | K13: False | L13: False | M13: False | N13: False | O13: False | P13: 全て不可 | R13: True | S13: True | T13: True | U13: False | V13: False | W13: False | X13: False | Y13: TrueTrueTrueFalseFalseFalseFalse | Z13: 行、列書式設定可
E14: 7 | F14: 入力支援シート→ | G14: xlSheetHidden | H14: True | I14: False | J14: False | K14: False | L14: False | M14: False | N14: False | O14: False | P14: 全て不可 | R14: True | S14: True | T14: True | U14: False | V14: True | W14: False | X14: True | Y14: TrueTrueTrueFalseTrueFalseTrue | Z14: 行挿入、削除可、行列書式設定可
E15: 8 | F15: ①風力 | G15: － | R15: True | S15: True | T15: True | U15: True | V15: True | W15: True | X15: True | Y15: TrueTrueTrueTrueTrueTrueTrue | Z15: 全て可
E16: 9 | F16: ②太陽光（全量） | G16: －
E17: 10 | F17: ③太陽光（余剰） | G17: －
E18: 11 | F18: 風力 | G18: xlSheetHidden | H18: True | I18: True | J18: False | K18: False | L18: False | M18: False | N18: False | O18: False | P18: 行高さ、列幅変更不可
E19: 12 | F19: 太陽光（全量） | G19: xlSheetHidden | H19: True | I19: True | J19: False | K19: False | L19: False | M19: False | N19: False | O19: False | P19: 行高さ、列幅変更不可
E20: 13 | F20: 太陽光（余剰） | G20: xlSheetHidden | H20: True | I20: True | J20: False | K20: False | L20: False | M20: False | N20: False | O20: False | P20: 行高さ、列幅変更不可
E21: 14 | F21: 水力保有電源 | G21: xlSheetHidden | H21: True | I21: True | J21: False | K21: False | L21: False | M21: False | N21: False | O21: False | P21: 行高さ、列幅変更不可
E22: 15 | F22: 火力保有電源 | G22: xlSheetHidden | H22: True | I22: True | J22: False | K22: False | L22: False | M22: False | N22: False | O22: False | P22: 行高さ、列幅変更不可
E23: 16 | F23: 原子力保有電源 | G23: xlSheetHidden | H23: True | I23: True | J23: False | K23: False | L23: False | M23: False | N23: False | O23: False | P23: 行高さ、列幅変更不可
E24: 17 | F24: 新エネルギー等保有電源 | G24: xlSheetHidden | H24: True | I24: True | J24: False | K24: False | L24: False | M24: False | N24: False | O24: False | P24: 行高さ、列幅変更不可
E25: 18 | F25: 調整力 | G25: xlSheetHidden | H25: True | I25: False | J25: False | K25: False | L25: False | M25: False | N25: False | O25: False | P25: 全て不可
E26: 19 | F26: 保有電源電力量 | G26: xlSheetHidden | H26: True | I26: False | J26: False | K26: False | L26: False | M26: False | N26: False | O26: False | P26: 全て不可
E27: 20 | F27: 受電取引帳票 | G27: xlSheetHidden | H27: True | I27: False | J27: False | K27: False | L27: False | M27: False | N27: False | O27: False | P27: 全て不可
E28: 21 | F28: 送電取引帳票 | G28: xlSheetHidden | H28: True | I28: False | J28: False | K28: False | L28: False | M28: False | N28: False | O28: False | P28: 全て不可
E29: 22 | F29: 自者間取引帳票 | G29: xlSheetHidden | H29: True | I29: False | J29: False | K29: False | L29: False | M29: False | N29: False | O29: False | P29: 全て不可
E30: 23 | F30: 補正シート→ | G30: －
E31: 24 | F31: 補正（ｋW）指定１ | G31: －
E32: 25 | F32: 補正（ｋW）指定２ | G32: －
E33: 26 | F33: 補正（ｋWｈ） | G33: －
E34: 27 | F34: 補正（太陽光）指定１ | G34: －
E35: 28 | F35: 補正（太陽光）指定２ | G35: －
E36: 29 | F36: 補正（風力）指定１ | G36: －
E37: 30 | F37: 補正（風力）指定２ | G37: －
E38: 31 | F38: 時間帯別供給力（１５ｈ） | G38: －
E39: 32 | F39: 供給計画届出書様式→ | G39: xlSheetVisible | H39: True | I39: False | J39: False | K39: False | L39: False | M39: False | N39: False | O39: False | P39: 全て不可
E40: 33 | F40: 表紙 | G40: xlSheetVisible | H40: True | I40: True | J40: False | K40: False | L40: False | M40: False | N40: False | O40: False | P40: 行高さ、列幅変更不可
E41: 34 | F41: 別紙（変更供計用） | G41: xlSheetHidden | H41: True | I41: True | J41: False | K41: False | L41: False | M41: False | N41: False | O41: False | P41: 行高さ、列幅変更不可
E42: 35 | F42: 目次 | G42: xlSheetVisible | H42: True | I42: False | J42: False | K42: False | L42: False | M42: False | N42: False | O42: False | P42: 全て不可
E43: 36 | F43: 様式第32第1表（指定１） | G43: xlSheetHidden | H43: True | I43: True | J43: False | K43: False | L43: False | M43: False | N43: False | O43: False | P43: 行高さ、列幅変更不可
E44: 37 | F44: 様式第32第1表（指定２） | G44: xlSheetHidden | H44: True | I44: True | J44: False | K44: False | L44: False | M44: False | N44: False | O44: False | P44: 行高さ、列幅変更不可
E45: 38 | F45: 様式第32第2表 | G45: xlSheetHidden | H45: True | I45: True | J45: False | K45: False | L45: False | M45: False | N45: False | O45: False | P45: 行高さ、列幅変更不可
E46: 39 | F46: 様式第32第3表（指定） | G46: xlSheetHidden | H46: True | I46: True | J46: False | K46: False | L46: False | M46: False | N46: False | O46: False | P46: 行高さ、列幅変更不可
E47: 40 | F47: 様式第32第3表（指定） (2年度目) | G47: xlSheetHidden | H47: True | I47: True | J47: False | K47: False | L47: False | M47: False | N47: False | O47: False | P47: 行高さ、列幅変更不可
E48: 41 | F48: 様式第32第4表 | G48: xlSheetHidden | H48: True | I48: True | J48: False | K48: False | L48: False | M48: False | N48: False | O48: False | P48: 行高さ、列幅変更不可
E49: 42 | F49: 様式第32第5表（水力） | G49: xlSheetHidden | H49: True | I49: True | J49: False | K49: False | L49: False | M49: False | N49: False | O49: False | P49: 行高さ、列幅変更不可
E50: 43 | F50: 様式第32第5表（火力） | G50: xlSheetHidden | H50: True | I50: True | J50: False | K50: False | L50: False | M50: False | N50: False | O50: False | P50: =IF(ISERROR(VLOOKUP(I50&J50&K50&L50&M50&N50&O50,$Y$8:$Z$15,2,FALSE)),"",VLOOKUP(I50&J50&K50&L50&M50&N50&O50,$Y$8:$Z$15,2,FALSE)) -> 行高さ、列幅変更不可
E51: 44 | F51: 様式第32第5表（原子力） | G51: xlSheetHidden | H51: True | I51: True | J51: False | K51: False | L51: False | M51: False | N51: False | O51: False | P51: 行高さ、列幅変更不可
E52: 45 | F52: 様式第32第5表（新エネ） | G52: xlSheetHidden | H52: True | I52: True | J52: False | K52: False | L52: False | M52: False | N52: False | O52: False | P52: 行高さ、列幅変更不可
E53: 46 | F53: 様式第32第6の1表 | G53: xlSheetVisible | H53: True | I53: True | J53: False | K53: False | L53: False | M53: False | N53: False | O53: False | P53: 行高さ、列幅変更不可
E54: 47 | F54: 様式第32第6の2表 | G54: xlSheetVisible | H54: True | I54: True | J54: False | K54: False | L54: False | M54: False | N54: False | O54: False | P54: 行高さ、列幅変更不可
E55: 48 | F55: 様式第32第6の3表 | G55: xlSheetVisible | H55: True | I55: True | J55: False | K55: False | L55: False | M55: False | N55: False | O55: False | P55: 行高さ、列幅変更不可
E56: 49 | F56: 様式第32第7表（水力） | G56: xlSheetHidden | H56: True | I56: True | J56: False | K56: False | L56: False | M56: True | N56: False | O56: True | P56: 行挿入、削除可
E57: 50 | F57: 様式第32第7表（火力） | G57: xlSheetHidden | H57: True | I57: True | J57: False | K57: False | L57: False | M57: True | N57: False | O57: True | P57: 行挿入、削除可
E58: 51 | F58: 様式第32第7表（原子力） | G58: xlSheetHidden | H58: True | I58: True | J58: False | K58: False | L58: False | M58: True | N58: False | O58: True | P58: 行挿入、削除可
E59: 52 | F59: 様式第32第7表（新エネ） | G59: xlSheetHidden | H59: True | I59: True | J59: False | K59: False | L59: False | M59: True | N59: False | O59: True | P59: 行挿入、削除可
E60: 53 | F60: 様式第32第8表（指定１）_受電 | G60: xlSheetHidden | H60: True | I60: True | J60: False | K60: False | L60: False | M60: False | N60: False | O60: False | P60: 行高さ、列幅変更不可
E61: 54 | F61: 様式第32第8表（指定１）_送電 | G61: xlSheetHidden | H61: True | I61: True | J61: False | K61: False | L61: False | M61: False | N61: False | O61: False | P61: 行高さ、列幅変更不可
E62: 55 | F62: 様式第32第8表（指定２）_受電 | G62: xlSheetHidden | H62: True | I62: True | J62: False | K62: False | L62: False | M62: False | N62: False | O62: False | P62: 行高さ、列幅変更不可
E63: 56 | F63: 様式第32第8表（指定２）_送電 | G63: xlSheetHidden | H63: True | I63: True | J63: False | K63: False | L63: False | M63: False | N63: False | O63: False | P63: 行高さ、列幅変更不可
E64: 57 | F64: 添付書類 | G64: xlSheetVisible | H64: True | I64: False | J64: False | K64: False | L64: False | M64: False | N64: False | O64: False | P64: 全て不可
E65: 58 | F65: 様式第33表（指定１） | G65: xlSheetHidden | H65: True | I65: True | J65: False | K65: False | L65: False | M65: False | N65: False | O65: False | P65: 行高さ、列幅変更不可
E66: 59 | F66: 様式第33表（指定２） | G66: xlSheetHidden | H66: True | I66: True | J66: False | K66: False | L66: False | M66: False | N66: False | O66: False | P66: 行高さ、列幅変更不可
E67: 60 | F67: 様式第33の2（指定１） | G67: xlSheetHidden | H67: True | I67: True | J67: False | K67: False | L67: False | M67: False | N67: False | O67: False | P67: 行高さ、列幅変更不可
E68: 61 | F68: 様式第33の2（指定２） | G68: xlSheetHidden | H68: True | I68: True | J68: False | K68: False | L68: False | M68: False | N68: False | O68: False | P68: 行高さ、列幅変更不可
E69: 62 | F69: 様式第33の3第1表（指定１） | G69: xlSheetHidden | H69: True | I69: True | J69: False | K69: False | L69: False | M69: False | N69: False | O69: False | P69: 行高さ、列幅変更不可
E70: 63 | F70: 様式第33の3第1表（指定２） | G70: xlSheetHidden | H70: True | I70: True | J70: False | K70: False | L70: False | M70: False | N70: False | O70: False | P70: 行高さ、列幅変更不可
E71: 64 | F71: 様式第33の3第2表 | G71: xlSheetHidden | H71: True | I71: True | J71: False | K71: False | L71: False | M71: False | N71: False | O71: False | P71: 行高さ、列幅変更不可
E72: 65 | F72: 様式第33の3第2表 (2年度目) | G72: xlSheetHidden | H72: True | I72: True | J72: False | K72: False | L72: False | M72: False | N72: False | O72: False | P72: 行高さ、列幅変更不可
E73: 66 | F73: 様式第34第1表 | G73: xlSheetHidden | H73: True | I73: True | J73: False | K73: False | L73: False | M73: False | N73: False | O73: False | P73: 行高さ、列幅変更不可
E74: 67 | F74: 様式第34第1表 (2年度目) | G74: xlSheetHidden | H74: True | I74: True | J74: False | K74: False | L74: False | M74: False | N74: False | O74: False | P74: 行高さ、列幅変更不可
E75: 68 | F75: 様式第34第2表 | G75: xlSheetHidden | H75: True | I75: True | J75: False | K75: False | L75: False | M75: False | N75: False | O75: False | P75: 行高さ、列幅変更不可
E76: 69 | F76: 様式第34第2表 (2年度目) | G76: xlSheetHidden | H76: True | I76: True | J76: False | K76: False | L76: False | M76: False | N76: False | O76: False | P76: 行高さ、列幅変更不可
E77: 70 | F77: 様式第34第3表 | G77: xlSheetHidden | H77: True | I77: True | J77: False | K77: False | L77: False | M77: False | N77: False | O77: False | P77: 行高さ、列幅変更不可
E78: 71 | F78: 様式第34第3表 (2年度目) | G78: xlSheetHidden | H78: True | I78: True | J78: False | K78: False | L78: False | M78: False | N78: False | O78: False | P78: 行高さ、列幅変更不可
E79: 72 | F79: 様式第34第4表 | G79: xlSheetHidden | H79: True | I79: True | J79: False | K79: False | L79: False | M79: False | N79: False | O79: False | P79: 行高さ、列幅変更不可
E80: 73 | F80: 様式第34第4表 (2年度目) | G80: xlSheetHidden | H80: True | I80: True | J80: False | K80: False | L80: False | M80: False | N80: False | O80: False | P80: 行高さ、列幅変更不可
E81: 74 | F81: 様式第35第1表 | G81: xlSheetHidden | H81: True | I81: True | J81: False | K81: False | L81: False | M81: False | N81: False | O81: False | P81: 行高さ、列幅変更不可
E82: 75 | F82: 様式第35第2表 | G82: xlSheetHidden | H82: True | I82: True | J82: False | K82: False | L82: False | M82: False | N82: False | O82: False | P82: 行高さ、列幅変更不可
E83: 76 | F83: 様式第35第3表 | G83: xlSheetHidden | H83: True | I83: True | J83: False | K83: False | L83: False | M83: False | N83: False | O83: False | P83: 行高さ、列幅変更不可
E84: 77 | F84: 様式第36表（指定）_受電 | G84: xlSheetHidden | H84: True | I84: True | J84: False | K84: False | L84: False | M84: False | N84: False | O84: False | P84: 行高さ、列幅変更不可
E85: 78 | F85: 様式第36表（指定）_受電 (2年度目) | G85: xlSheetHidden | H85: True | I85: True | J85: False | K85: False | L85: False | M85: False | N85: False | O85: False | P85: 行高さ、列幅変更不可
E86: 79 | F86: 様式第36表（指定）_送電 | G86: xlSheetHidden | H86: True | I86: True | J86: False | K86: False | L86: False | M86: False | N86: False | O86: False | P86: =IF(ISERROR(VLOOKUP(I86&J86&K86&L86&M86&N86&O86,$Y$8:$Z$15,2,FALSE)),"",VLOOKUP(I86&J86&K86&L86&M86&N86&O86,$Y$8:$Z$15,2,FALSE)) -> 行高さ、列幅変更不可
E87: 80 | F87: 様式第36表（指定）_送電 (2年度目) | G87: xlSheetHidden | H87: True | I87: True | J87: False | K87: False | L87: False | M87: False | N87: False | O87: False | P87: 行高さ、列幅変更不可
E88: 81 | F88: 様式第37表 | G88: xlSheetHidden | H88: True | I88: True | J88: False | K88: False | L88: False | M88: False | N88: False | O88: False | P88: =IF(ISERROR(VLOOKUP(I88&J88&K88&L88&M88&N88&O88,$Y$8:$Z$15,2,FALSE)),"",VLOOKUP(I88&J88&K88&L88&M88&N88&O88,$Y$8:$Z$15,2,FALSE)) -> 行高さ、列幅変更不可
E89: 82 | F89: 様式第38表（電力系統の状況） | G89: xlSheetVisible | H89: False | I89: False | J89: False | K89: False | L89: False | M89: False | N89: False | O89: False | P89: 全て不可
E90: 83 | F90: 様式第38表（電力潮流の状況） | G90: xlSheetHidden | H90: True | I90: False | J90: False | K90: False | L90: False | M90: False | N90: False | O90: False | P90: 全て不可
E91: 84 | F91: 様式第38の2表（指定１） | G91: xlSheetHidden | H91: True | I91: True | J91: False | K91: False | L91: False | M91: True | N91: False | O91: True | P91: 行挿入、削除可
E92: 85 | F92: 様式第38の2表（指定２） | G92: xlSheetHidden | H92: True | I92: True | J92: False | K92: False | L92: False | M92: True | N92: False | O92: True | P92: 行挿入、削除可
E93: 86 | F93: 見え消し版用表紙（変更供計用） | G93: xlSheetHidden | H93: True | I93: False | J93: False | K93: False | L93: False | M93: False | N93: False | O93: False | P93: 全て不可

Sheet 帳票表示切替
G1: 供給計画の各様式及びエリアの記載状況確認表
G2: （○印が入っている箇所が記載のある表） | AT2: 届出書 | AV2: 発 | AW2: 卸 | AX2: 小 | AY2: 登 | AZ2: 送 | BA2: 一 | BB2: 配 | BF2: 発 | BG2: 卸 | BH2: 小 | BI2: 登 | BJ2: 送 | BK2: 一 | BL2: 配
B3: 表示切替フラグ | C3: 1 | O3: 1 | P3: 1 | Q3: 1 | Z3: 1 | AT3: ① | AU3: 表紙 | AV3: ◎ | AW3: ◎ | AX3: ◎ | AY3: ◎ | AZ3: ◎ | BA3: ◎ | BB3: ◎ | BD3: ㊶ | BE3: 様式第35第1表 | BF3: ○
C4: ① | D4: ② | E4: ③ | F4: ④ | G4: ⑤ | H4: ⑥ | I4: ⑦ | J4: ⑧ | K4: ⑨ | L4: ⑩ | M4: ⑪ | N4: ⑫ | O4: ⑬ | P4: ⑭ | Q4: ⑮ | R4: ⑯ | S4: ⑰ | T4: ⑱ | U4: ⑲ | V4: ⑳ | W4: ㉑ | X4: ㉒ | Y4: ㉓ | Z4: ㉔ | AA4: ㉕ | AB4: ㉖ | AC4: ㉗ | AD4: ㉘ | AE4: ㉙ | AF4: ㉚ | AG4: ㉛ | AH4: ㉜ | AI4: ㉝ | AJ4: ㉞ | AK4: ㉟ | AL4: ㊱ | AM4: ㊲ | AN4: ㊳ | AO4: ㊴ | AP4: ㊵ | AT4: ② | AU4: 別紙（変更供計用） | AV4: △ | AW4: △ | AX4: △ | AY4: △ | AZ4: △ | BA4: △ | BB4: △ | BD4: ㊷ | BE4: 様式第35第2表 | BF4: ○
B5: 共通 | C5: =表紙!AC27 ->  | D5: ='別紙（変更供計用）'!AP16 ->  | O5: =様式第32第6の1表!Q7 ->  | P5: =様式第32第6の2表!S7 ->  | Q5: =様式第32第6の3表!K7 ->  | Z5: =IF(COUNTIF(AB5:AJ15,"○")+COUNTIF(C19:O29,"○")>0,"○","") -> ○ | AT5: ③ | AU5: 様式第32第1表（指定１） | AV5: ◎ | AW5: ◎ | AX5: ◎ | AY5: ◎ | BA5: ◎ | BB5: ◎ | BD5: ㊸ | BE5: 様式第35第3表 | BF5: ○
B6: 北海道 | V6: ='様式第32第8表（指定１）_受電'!Z9 ->  | W6: ='様式第32第8表（指定１）_送電'!Z9 ->  | X6: ='様式第32第8表（指定２）_受電'!Z9 ->  | Y6: ='様式第32第8表（指定２）_送電'!Z9 ->  | AA6: ='様式第33表（指定１）'!W20 ->  | AB6: ='様式第33表（指定２）'!W20 ->  | AC6: ='様式第33の2（指定１）'!T9 ->  | AD6: ='様式第33の2（指定２）'!T9 ->  | AE6: ='様式第33の3第1表（指定１）'!AL11 ->  | AF6: ='様式第33の3第1表（指定２）'!AL11 ->  | AG6: =様式第33の3第2表!AM11 ->  | AH6: ='様式第33の3第2表 (2年度目)'!AM11 ->  | AT6: ④ | AU6: 様式第32第1表（指定２） | AV6: ○ | AW6: ○ | AX6: ○ | AY6: ○ | BA6: ○ | BB6: ○ | BD6: ㊹ | BE6: 様式第36表（指定）_受電 | BF6: ○ | BG6: ○ | BH6: ○ | BI6: ○ | BK6: ○ | BL6: ○
B7: 東北 | V7: ='様式第32第8表（指定１）_受電'!Z10 ->  | W7: ='様式第32第8表（指定１）_送電'!Z10 ->  | X7: ='様式第32第8表（指定２）_受電'!Z10 ->  | Y7: ='様式第32第8表（指定２）_送電'!Z10 ->  | AA7: ='様式第33表（指定１）'!W21 ->  | AB7: ='様式第33表（指定２）'!W21 ->  | AC7: ='様式第33の2（指定１）'!T10 ->  | AD7: ='様式第33の2（指定２）'!T10 ->  | AE7: ='様式第33の3第1表（指定１）'!AL12 ->  | AF7: ='様式第33の3第1表（指定２）'!AL12 ->  | AG7: =様式第33の3第2表!AM12 ->  | AH7: ='様式第33の3第2表 (2年度目)'!AM12 ->  | AT7: ⑤ | AU7: 様式第32第2表 | AV7: ◎ | AW7: ◎ | AX7: ◎ | AY7: ◎ | BA7: ◎ | BB7: ◎ | BD7: ㊺ | BE7: 様式第36表（指定）_受電 (2年度目) | BF7: ○ | BG7: ○ | BH7: ○ | BI7: ○ | BK7: ○ | BL7: ○
B8: 東京 | V8: ='様式第32第8表（指定１）_受電'!Z11 ->  | W8: ='様式第32第8表（指定１）_送電'!Z11 ->  | AA8: ='様式第33表（指定１）'!W22 ->  | AC8: ='様式第33の2（指定１）'!T11 ->  | AE8: ='様式第33の3第1表（指定１）'!AL13 ->  | AG8: =様式第33の3第2表!AM13 ->  | AH8: ='様式第33の3第2表 (2年度目)'!AM13 ->  | AT8: ⑥ | AU8: 様式第32第3表（指定） | AV8: ◎ | AW8: ◎ | AX8: ◎ | AY8: ◎ | BA8: ◎ | BB8: ◎ | BD8: ㊻ | BE8: 様式第36表（指定）_送電 | BF8: ○ | BG8: ○ | BH8: ○ | BI8: ○ | BK8: ○ | BL8: ○
B9: 中部 | V9: ='様式第32第8表（指定１）_受電'!Z12 ->  | W9: ='様式第32第8表（指定１）_送電'!Z12 ->  | AA9: ='様式第33表（指定１）'!W23 ->  | AC9: ='様式第33の2（指定１）'!T12 ->  | AE9: ='様式第33の3第1表（指定１）'!AL14 ->  | AG9: =様式第33の3第2表!AM14 ->  | AH9: ='様式第33の3第2表 (2年度目)'!AM14 ->  | AT9: ⑦ | AU9: 様式第32第3表（指定） (2年度目) | AV9: ◎ | AW9: ◎ | AX9: ◎ | AY9: ◎ | BA9: ◎ | BB9: ◎ | BD9: ㊼ | BE9: 様式第36表（指定）_送電 (2年度目) | BF9: ○ | BG9: ○ | BH9: ○ | BI9: ○ | BK9: ○ | BL9: ○
B10: 北陸 | V10: ='様式第32第8表（指定１）_受電'!Z13 ->  | W10: ='様式第32第8表（指定１）_送電'!Z13 ->  | X10: ='様式第32第8表（指定２）_受電'!Z13 ->  | Y10: ='様式第32第8表（指定２）_送電'!Z13 ->  | AA10: ='様式第33表（指定１）'!W24 ->  | AB10: ='様式第33表（指定２）'!W24 ->  | AC10: ='様式第33の2（指定１）'!T13 ->  | AD10: ='様式第33の2（指定２）'!T13 ->  | AE10: ='様式第33の3第1表（指定１）'!AL15 ->  | AF10: ='様式第33の3第1表（指定２）'!AL15 ->  | AG10: =様式第33の3第2表!AM15 ->  | AH10: ='様式第33の3第2表 (2年度目)'!AM15 ->  | AT10: ⑧ | AU10: 様式第32第4表 | AV10: ◎ | AW10: ◎ | AX10: ◎ | AY10: ◎ | BA10: ◎ | BB10: ◎ | BD10: ㊽ | BE10: 様式第37表 | BK10: ◎ | BL10: ◎
B11: 関西 | V11: ='様式第32第8表（指定１）_受電'!Z14 ->  | W11: ='様式第32第8表（指定１）_送電'!Z14 ->  | AA11: ='様式第33表（指定１）'!W25 ->  | AC11: ='様式第33の2（指定１）'!T14 ->  | AE11: ='様式第33の3第1表（指定１）'!AL16 ->  | AG11: =様式第33の3第2表!AM16 ->  | AH11: ='様式第33の3第2表 (2年度目)'!AM16 ->  | AT11: ⑨ | AU11: 様式第32第5表（水力） | AV11: ○ | BD11: ㊾ | BE11: 様式第38表（電力系統の状況） | BI11: ◎ | BJ11: ◎ | BK11: ◎ | BL11: ◎
B12: 中国 | V12: ='様式第32第8表（指定１）_受電'!Z15 ->  | W12: ='様式第32第8表（指定１）_送電'!Z15 ->  | AA12: ='様式第33表（指定１）'!W26 ->  | AC12: ='様式第33の2（指定１）'!T15 ->  | AE12: ='様式第33の3第1表（指定１）'!AL17 ->  | AG12: =様式第33の3第2表!AM17 ->  | AH12: ='様式第33の3第2表 (2年度目)'!AM17 ->  | AT12: ⑩ | AU12: 様式第32第5表（火力） | AV12: ○ | BD12: ㊿ | BE12: 様式第38表（電力潮流の状況） | BK12: ◎
B13: 四国 | V13: ='様式第32第8表（指定１）_受電'!Z16 ->  | W13: ='様式第32第8表（指定１）_送電'!Z16 ->  | AA13: ='様式第33表（指定１）'!W27 ->  | AC13: ='様式第33の2（指定１）'!T16 ->  | AE13: ='様式第33の3第1表（指定１）'!AL18 ->  | AG13: =様式第33の3第2表!AM18 ->  | AH13: ='様式第33の3第2表 (2年度目)'!AM18 ->  | AT13: ⑪ | AU13: 様式第32第5表（原子力） | AV13: ○ | BD13: 51 | BE13: 様式第38の2表（指定１） | BK13: ◎
B14: 九州 | V14: ='様式第32第8表（指定１）_受電'!Z17 ->  | W14: ='様式第32第8表（指定１）_送電'!Z17 ->  | AA14: ='様式第33表（指定１）'!W28 ->  | AC14: ='様式第33の2（指定１）'!T17 ->  | AE14: ='様式第33の3第1表（指定１）'!AL19 ->  | AG14: =様式第33の3第2表!AM19 ->  | AH14: ='様式第33の3第2表 (2年度目)'!AM19 ->  | AT14: ⑫ | AU14: 様式第32第5表（新エネ） | AV14: ○ | BD14: 52 | BE14: 様式第38の2表（指定２） | BK14: ◎
B15: 沖縄 | V15: ='様式第32第8表（指定１）_受電'!Z18 ->  | W15: ='様式第32第8表（指定１）_送電'!Z18 ->  | AA15: ='様式第33表（指定１）'!W29 ->  | AC15: ='様式第33の2（指定１）'!T18 ->  | AT15: ⑬ | AU15: 様式第32第6の1表 | AY15: ○ | AZ15: ○ | BA15: ○ | BB15: ○ | BD15: 53 | BE15: 見え消し版用表紙（変更供計用） | BF15: △ | BG15: △ | BH15: △ | BI15: △ | BJ15: △ | BK15: △ | BL15: △
AT16: ⑭ | AU16: 様式第32第6の2表 | AY16: ○ | AZ16: ○ | BA16: ○ | BB16: ○
B17: 表示切替フラグ | K17: 1 | AT17: ⑮ | AU17: 様式第32第6の3表 | AZ17: ○ | BA17: ○ | BD17: 入力支援シート
C18: ㊶ | D18: ㊷ | E18: ㊸ | F18: ㊹ | G18: ㊺ | H18: ㊻ | I18: ㊼ | J18: ㊽ | K18: ㊾ | L18: ㊿ | M18: 51 | N18: 52 | O18: 53 | R18: ⑴ | S18: ⑵ | T18: ⑶ | U18: ⑷ | V18: ⑸ | W18: ⑹ | X18: ⑺ | Y18: ⑻ | Z18: ⑼ | AA18: ⑽ | AB18: ⑾ | AC18: ⑿ | AT18: ⑯ | AU18: 様式第32第7表（水力） | AV18: ○ | BD18: ⑴ | BE18: 風力 | BF18: ○ | BG18: ○ | BH18: ○ | BI18: ○
B19: 共通 | C19: =様式第35第1表!M11 ->  | D19: =様式第35第2表!U12 ->  | E19: =様式第35第3表!S6 ->  | J19: =様式第37表!W3 ->  | K19: =IF(AND(表紙!W20<>"小売電気事業者",表紙!W20<>"発電事業者",表紙!W20<>"特定卸供給事業者"),"○","") -> ○ | L19: =IF(表紙!W20="一般送配電事業者","○","") ->  | M19: ='様式第38の2表（指定１）'!M6 ->  | N19: ='様式第38の2表（指定２）'!M6 ->  | O19: =IF(表紙!AB24<>"新規","○","") ->  | AC19: =自者間取引帳票!AT541 ->  | AT19: ⑰ | AU19: 様式第32第7表（火力） | AV19: ○ | BD19: ⑵ | BE19: 太陽光（全量） | BF19: ○ | BG19: ○ | BH19: ○ | BI19: ○
B20: 北海道 | F20: ='様式第36表（指定）_受電'!AE9 ->  | G20: ='様式第36表（指定）_受電 (2年度目)'!AE9 ->  | H20: ='様式第36表（指定）_送電'!AE9 ->  | I20: ='様式第36表（指定）_送電 (2年度目)'!AE9 ->  | Y20: =調整力!HK7 ->  | Z20: =保有電源電力量!AO13 ->  | AA20: =受電取引帳票!BB30 ->  | AB20: =送電取引帳票!BB30 ->  | AT20: ⑱ | AU20: 様式第32第7表（原子力） | AV20: ○ | BD20: ⑶ | BE20: 太陽光（余剰） | BF20: ○ | BG20: ○ | BH20: ○ | BI20: ○
B21: 東北 | F21: ='様式第36表（指定）_受電'!AE10 ->  | G21: ='様式第36表（指定）_受電 (2年度目)'!AE10 ->  | H21: ='様式第36表（指定）_送電'!AE10 ->  | I21: ='様式第36表（指定）_送電 (2年度目)'!AE10 ->  | Y21: =調整力!HK8 ->  | Z21: =保有電源電力量!AO14 ->  | AA21: =受電取引帳票!BB31 ->  | AB21: =送電取引帳票!BB31 ->  | AT21: ⑲ | AU21: 様式第32第7表（新エネ） | AV21: ○ | BD21: ⑷ | BE21: 水力保有電源 | BF21: ○
B22: 東京 | F22: ='様式第36表（指定）_受電'!AE11 ->  | G22: ='様式第36表（指定）_受電 (2年度目)'!AE11 ->  | H22: ='様式第36表（指定）_送電'!AE11 ->  | I22: ='様式第36表（指定）_送電 (2年度目)'!AE11 ->  | Y22: =調整力!HK9 ->  | Z22: =保有電源電力量!AO15 ->  | AA22: =受電取引帳票!BB32 ->  | AB22: =送電取引帳票!BB32 ->  | AT22: ⑳ | AU22: 様式第32第8表（指定１）_受電 | AV22: ○ | AW22: ○ | AX22: ○ | AY22: ○ | BA22: ○ | BB22: ○ | BD22: ⑸ | BE22: 火力保有電源 | BF22: ○
B23: 中部 | F23: ='様式第36表（指定）_受電'!AE12 ->  | G23: ='様式第36表（指定）_受電 (2年度目)'!AE12 ->  | H23: ='様式第36表（指定）_送電'!AE12 ->  | I23: ='様式第36表（指定）_送電 (2年度目)'!AE12 ->  | Y23: =調整力!HK10 ->  | Z23: =保有電源電力量!AO16 ->  | AA23: =受電取引帳票!BB33 ->  | AB23: =送電取引帳票!BB33 ->  | AT23: ㉑ | AU23: 様式第32第8表（指定１）_送電 | AV23: ○ | AW23: ○ | AX23: ○ | AY23: ○ | BA23: ○ | BB23: ○ | BD23: ⑹ | BE23: 原子力保有電源 | BF23: ○
B24: 北陸 | F24: ='様式第36表（指定）_受電'!AE13 ->  | G24: ='様式第36表（指定）_受電 (2年度目)'!AE13 ->  | H24: ='様式第36表（指定）_送電'!AE13 ->  | I24: ='様式第36表（指定）_送電 (2年度目)'!AE13 ->  | Y24: =調整力!HK11 ->  | Z24: =保有電源電力量!AO17 ->  | AA24: =受電取引帳票!BB34 ->  | AB24: =送電取引帳票!BB34 ->  | AT24: ㉒ | AU24: 様式第32第8表（指定２）_受電 | AV24: ○ | AW24: ○ | AX24: ○ | AY24: ○ | BA24: ○ | BB24: ○ | BD24: ⑺ | BE24: 新エネルギー等保有電源 | BF24: ○
B25: 関西 | F25: ='様式第36表（指定）_受電'!AE14 ->  | G25: ='様式第36表（指定）_受電 (2年度目)'!AE14 ->  | H25: ='様式第36表（指定）_送電'!AE14 ->  | I25: ='様式第36表（指定）_送電 (2年度目)'!AE14 ->  | Y25: =調整力!HK12 ->  | Z25: =保有電源電力量!AO18 ->  | AA25: =受電取引帳票!BB35 ->  | AB25: =送電取引帳票!BB35 ->  | AT25: ㉓ | AU25: 様式第32第8表（指定２）_送電 | AV25: ○ | AW25: ○ | AX25: ○ | AY25: ○ | BA25: ○ | BB25: ○ | BD25: ⑻ | BE25: 調整力 | BF25: ○
B26: 中国 | F26: ='様式第36表（指定）_受電'!AE15 ->  | G26: ='様式第36表（指定）_受電 (2年度目)'!AE15 ->  | H26: ='様式第36表（指定）_送電'!AE15 ->  | I26: ='様式第36表（指定）_送電 (2年度目)'!AE15 ->  | Y26: =調整力!HK13 ->  | Z26: =保有電源電力量!AO19 ->  | AA26: =受電取引帳票!BB36 ->  | AB26: =送電取引帳票!BB36 ->  | AT26: ㉔ | AU26: 添付書類 | AV26: － | AW26: － | AX26: － | AY26: － | AZ26: － | BA26: － | BB26: － | BD26: ⑼ | BE26: 保有電源電力量 | BF26: ○
B27: 四国 | F27: ='様式第36表（指定）_受電'!AE16 ->  | G27: ='様式第36表（指定）_受電 (2年度目)'!AE16 ->  | H27: ='様式第36表（指定）_送電'!AE16 ->  | I27: ='様式第36表（指定）_送電 (2年度目)'!AE16 ->  | Y27: =調整力!HK14 ->  | Z27: =保有電源電力量!AO20 ->  | AA27: =受電取引帳票!BB37 ->  | AB27: =送電取引帳票!BB37 ->  | AT27: ㉕ | AU27: 様式第33表（指定１） | BA27: ◎ | BB27: ◎ | BD27: ⑽ | BE27: 受電取引帳票 | BF27: ○ | BG27: ○ | BH27: ○ | BI27: ○ | BK27: ○ | BL27: ○
B28: 九州 | F28: ='様式第36表（指定）_受電'!AE17 ->  | G28: ='様式第36表（指定）_受電 (2年度目)'!AE17 ->  | H28: ='様式第36表（指定）_送電'!AE17 ->  | I28: ='様式第36表（指定）_送電 (2年度目)'!AE17 ->  | Y28: =調整力!HK15 ->  | Z28: =保有電源電力量!AO21 ->  | AA28: =受電取引帳票!BB38 ->  | AB28: =送電取引帳票!BB38 ->  | AT28: ㉖ | AU28: 様式第33表（指定２） | BA28: ○ | BB28: ○ | BD28: ⑾ | BE28: 送電取引帳票 | BF28: ○ | BG28: ○ | BH28: ○ | BI28: ○ | BK28: ○ | BL28: ○
B29: 沖縄 | F29: ='様式第36表（指定）_受電'!AE18 ->  | G29: ='様式第36表（指定）_受電 (2年度目)'!AE18 ->  | H29: ='様式第36表（指定）_送電'!AE18 ->  | I29: ='様式第36表（指定）_送電 (2年度目)'!AE18 ->  | Z29: =保有電源電力量!AO22 ->  | AA29: =受電取引帳票!BB39 ->  | AB29: =送電取引帳票!BB39 ->  | AT29: ㉗ | AU29: 様式第33の2（指定１） | BA29: ○ | BB29: ○ | BD29: ⑿ | BE29: 自者間取引帳票 | BH29: ○
AT30: ㉘ | AU30: 様式第33の2（指定２） | BA30: ○ | BB30: ○
AT31: ㉙ | AU31: 様式第33の3第1表（指定１） | AV31: ○ | AW31: ○ | AX31: ○ | AY31: ○ | BA31: ○ | BB31: ○ | BD31: 凡例
AT32: ㉚ | AU32: 様式第33の3第1表（指定２） | AV32: ○ | AW32: ○ | AX32: ○ | AY32: ○ | BA32: ○ | BB32: ○ | BD32: ◎：記載必須 ○：場合により記載必要
AT33: ㉛ | AU33: 様式第33の3第2表 | AV33: ○ | AW33: ○ | AX33: ○ | AY33: ○ | BA33: ○ | BB33: ○ | BD33: △：変更供計時に記載必須 空白：記載不要
AT34: ㉜ | AU34: 様式第33の3第2表 (2年度目) | AV34: ○ | AW34: ○ | AX34: ○ | AY34: ○ | BA34: ○ | BB34: ○ | BD34: 発：発電事業者 卸：特定卸供給事業者 小：小売電気事業者
AT35: ㉝ | AU35: 様式第34第1表 | AV35: ○ | BD35: 登：登録特定送配電事業者 送：特定送配電事業者、送電事業者
AT36: ㉞ | AU36: 様式第34第1表 (2年度目) | AV36: ○ | BD36: 一：一般送配電事業者 配：配電事業者
AT37: ㉟ | AU37: 様式第34第2表 | AV37: ○
AT38: ㊱ | AU38: 様式第34第2表 (2年度目) | AV38: ○
AT39: ㊲ | AU39: 様式第34第3表 | AV39: ○
AT40: ㊳ | AU40: 様式第34第3表 (2年度目) | AV40: ○
AT41: ㊴ | AU41: 様式第34第4表 | AV41: ○
AT42: ㊵ | AU42: 様式第34第4表 (2年度目) | AV42: ○

Sheet エリア表示切替
H2: エリア表示切替対象帳票
C3: 表示切替フラグ | H3: 供給計画 | I3: 様式第32第1表（指定１） | J3: 入力支援 シート | K3: 風力
B4: 北海道 | C4: 1 | I4: 様式第32第1表（指定２） | K4: 太陽光（全量）
B5: 東北 | C5: 1 | I5: 様式第32第2表 | K5: 太陽光（余剰）
B6: 東京 | C6: 1 | I6: 様式第32第3表（指定） | K6: 保有電源電力量
B7: 中部 | C7: 1 | I7: 様式第32第3表（指定） (2年度目)
B8: 北陸 | C8: 1 | I8: 様式第32第4表
B9: 関西 | C9: 1 | I9: 様式第32第8表（指定１）_受電
B10: 中国 | C10: 1 | I10: 様式第32第8表（指定１）_送電
B11: 四国 | C11: 1 | I11: 様式第32第8表（指定２）_受電
B12: 九州 | C12: 1 | I12: 様式第32第8表（指定２）_送電
B13: 沖縄 | C13: 1 | I13: 様式第33表（指定１）
I14: 様式第33表（指定２）
I15: 様式第33の3第1表（指定１）
I16: 様式第33の3第1表（指定２）
I17: 様式第33の3第2表
I18: 様式第33の3第2表 (2年度目)
I19: 様式第34第1表
I20: 様式第34第1表 (2年度目)
I21: 様式第34第2表
I22: 様式第34第2表 (2年度目)
I23: 様式第34第3表
I24: 様式第34第3表 (2年度目)
I25: 様式第34第4表
I26: 様式第34第4表 (2年度目)
I27: 様式第36表（指定）_受電
I28: 様式第36表（指定）_受電 (2年度目)
I29: 様式第36表（指定）_送電
I30: 様式第36表（指定）_送電 (2年度目)

Sheet 補正シート→ (hidden)

Sheet 補正（ｋW）指定１ (hidden)
A2: 供給区域 | D2: エリア | E2: =IF(C2="北海道",1,IF(C2="東北",2,IF(C2="東京",3,IF(C2="中部",4,IF(C2="北陸",5,IF(C2="関西",6,IF(C2="中国",7,IF(C2="四国",8,IF(C2="九州",9,IF(C2="沖縄",10,IF(C2="","","正しいエリア名を入力してください"))))))))))) -> 
F3: 入力箇所 | I3: リンク箇所 | L3: 自動計算 | N3: 記載要領 | O3: 各項目については、至近２ヶ年分は各月で、第３～１０年度分は最大発生月分を記載すること。
O4: 一般送配電事業者（補正）欄には、一般送配電事業者供給力補正項目に入力することで自動的に転記される。
A5: 補正前供給力 | AM5: 【ＭＷ】
A6: 項目 | E6: =DATE(事業者リスト一覧!$B$3,1,1) -> 2024-01-01 | F6: =DATE(#REF!,1,1) ->  | G6: =DATE(#REF!,1,1) ->  | H6: =DATE(#REF!,1,1) ->  | I6: =DATE(#REF!,1,1) ->  | J6: =DATE(#REF!,1,1) ->  | K6: =DATE(#REF!,1,1) ->  | L6: =DATE(#REF!,1,1) ->  | M6: =DATE(#REF!,1,1) ->  | N6: =DATE(#REF!,1,1) ->  | O6: =DATE(#REF!,1,1) ->  | P6: =DATE(#REF!,1,1) ->  | Q6: =E6+366 -> 2025-01-01 | R6: =DATE(#REF!,1,1) ->  | S6: =DATE(#REF!,1,1) ->  | T6: =DATE(#REF!,1,1) ->  | U6: =DATE(#REF!,1,1) ->  | V6: =DATE(#REF!,1,1) ->  | W6: =DATE(#REF!,1,1) ->  | X6: =DATE(#REF!,1,1) ->  | Y6: =DATE(#REF!,1,1) ->  | Z6: =DATE(#REF!,1,1) ->  | AA6: =DATE(#REF!,1,1) ->  | AB6: =DATE(#REF!,1,1) ->  | AC6: =E6-365 -> 2023-01-01 | AD6: =E6 -> 2024-01-01 | AE6: =Q6 -> 2025-01-01 | AF6: =AE6+366 -> 2026-01-02 | AG6: =AF6+366 -> 2027-01-03 | AH6: 2028-01-04 | AI6: 2029-01-04 | AJ6: 2030-01-05 | AK6: 2031-01-06 | AL6: 2032-01-07 | AM6: 2033-01-07
E7: 4月 | F7: 5月 | G7: 6月 | H7: 7月 | I7: 8月 | J7: 9月 | K7: 10月 | L7: 11月 | M7: 12月 | N7: 1月 | O7: 2月 | P7: 3月 | Q7: 4月 | R7: 5月 | S7: 6月 | T7: 7月 | U7: 8月 | V7: 9月 | W7: 10月 | X7: 11月 | Y7: 12月 | Z7: 1月 | AA7: 2月 | AB7: 3月 | AC7: 実績
A8: 供給力 | B8: 保有 電力 | C8: 水力発電所（送電端） | AD8: =IF(I8="","",I8) ->  | AE8: =IF(U8="","",U8) -> 
C9: 火力発電所（送電端） | AD9: =IF(I9="","",I9) ->  | AE9: =IF(U9="","",U9) -> 
C10: 原子力発電所（送電端） | AD10: =IF(I10="","",I10) ->  | AE10: =IF(U10="","",U10) -> 
C11: 新エネルギー発電所（送電端） | AD11: =IF(I11="","",I11) ->  | AE11: =IF(U11="","",U11) -> 
C12: 合計（送電端） | E12: =IF(COUNT(E8:E11)=0,"",SUM(E8:E11)) ->  | F12: =IF(COUNT(F8:F11)=0,"",SUM(F8:F11)) ->  | Q12: =IF(COUNT(Q8:Q11)=0,"",SUM(Q8:Q11)) ->  | AG12: =IF(COUNT(AG8:AG11)=0,"",SUM(AG8:AG11)) -> 
B13: 調達分 | C13: 発電事業者 | AD13: =IF(I13="","",I13) ->  | AE13: =IF(U13="","",U13) -> 
C14: 特定卸供給事業者
C15: 一般送配電事業者 | AE15: =IF(U15="","",U15) -> 
C16: 配電事業者
C17: 小売電気事業者
C18: その他 | D18: 取引所
D19: その他
B20: 調達先未定
B21: （上段：取引所、下段：その他）
B22: 【送配電】合計（送電端） | E22: =IF(COUNT(E12:E21)=0,"",SUM(E12:E21)) ->  | F22: =IF(COUNT(F12:F21)=0,"",SUM(F12:F21)) ->  | AC22: =IF(COUNT(AC12:AC21)=0,"",SUM(AC12:AC21)) ->  | AD22: =IF(COUNT(AD12:AD21)=0,"",SUM(AD12:AD21)) ->  | AE22: =IF(COUNT(AE12:AE21)=0,"",SUM(AE12:AE21)) ->  | AF22: =IF(COUNT(AF12:AF21)=0,"",SUM(AF12:AF21)) ->  | AG22: =IF(COUNT(AG12:AG21)=0,"",SUM(AG12:AG21)) -> 
B23: 【ｴﾘｱ】小売電気事業者（供給力合計） | AE23: =IF(U23="","",U23) -> 
B24: 【ｴﾘｱ】発電事業者（余力合計） | AE24: =IF(U24="","",U24) -> 
B25: 【ｴﾘｱ】特定卸供給事業者（余力合計）
B26: 一般送配電事業者（補正）
B27: エリア外供給力（再掲） | AD27: =IF(I27="","",I27) ->  | AE27: =IF(U27="","",U27) -> 
B28: 発動指令電源供給力（再掲） | AE28: =IF(U28="","",U28) -> 
B29: 【ｴﾘｱ】合計（送電端） | E29: =IF(COUNT(E12:E19,E23,E24)=0,"",SUM(E12:E19,E23,E24)) ->  | F29: =IF(COUNT(F12:F19,F23,F24)=0,"",SUM(F12:F19,F23,F24)) ->  | AC29: =IF(COUNT(AC12:AC19,AC23,AC24)=0,"",SUM(AC12:AC19,AC23,AC24)) ->  | AD29: =IF(COUNT(AD12:AD19,AD23,AD24)=0,"",SUM(AD12:AD19,AD23,AD24)) ->  | AE29: =IF(COUNT(AE12:AE19,AE23,AE24)=0,"",SUM(AE12:AE19,AE23,AE24)) ->  | AF29: =IF(COUNT(AF12:AF19,AF23,AF24)=0,"",SUM(AF12:AF19,AF23,AF24)) ->  | AG29: =IF(COUNT(AG12:AG19,AG23,AG24)=0,"",SUM(AG12:AG19,AG23,AG24)) -> 
A30: 需要電力（送電端） | D30: エリア全体 | I30: =IF($E$2="","",CHOOSE($E$2,'様式第33表（指定１）'!H14,'様式第33表（指定１）'!H44,'様式第33表（指定１）'!H74,'様式第33表（指定１）'!H104,'様式第33表（指定１）'!H134,'様式第33表（指定１）'!H164,'様式第33表（指定１）'!H194,'様式第33表（指定１）'!H224,'様式第33表（指定１）'!H254,'様式第33表（指定１）'!H284)) ->  | U30: =IF($E$2="","",CHOOSE($E$2,'様式第33表（指定１）'!I14,'様式第33表（指定１）'!I44,'様式第33表（指定１）'!I74,'様式第33表（指定１）'!I104,'様式第33表（指定１）'!I134,'様式第33表（指定１）'!I164,'様式第33表（指定１）'!I194,'様式第33表（指定１）'!I224,'様式第33表（指定１）'!I254,'様式第33表（指定１）'!I284)) ->  | AE30: =IF(U30="","",U30) ->  | AF30: =IF($E$2="","",CHOOSE($E$2,'様式第33表（指定１）'!J14,'様式第33表（指定１）'!J44,'様式第33表（指定１）'!J74,'様式第33表（指定１）'!J104,'様式第33表（指定１）'!J134,'様式第33表（指定１）'!J164,'様式第33表（指定１）'!J194,'様式第33表（指定１）'!J224,'様式第33表（指定１）'!J254,'様式第33表（指定１）'!J284)) ->  | AG30: =IF($E$2="","",CHOOSE($E$2,'様式第33表（指定１）'!K14,'様式第33表（指定１）'!K44,'様式第33表（指定１）'!K74,'様式第33表（指定１）'!K104,'様式第33表（指定１）'!K134,'様式第33表（指定１）'!K164,'様式第33表（指定１）'!K194,'様式第33表（指定１）'!K224,'様式第33表（指定１）'!K254,'様式第33表（指定１）'!K284)) ->  | AH30: =IF($E$2="","",CHOOSE($E$2,'様式第33表（指定１）'!L14,'様式第33表（指定１）'!L44,'様式第33表（指定１）'!L74,'様式第33表（指定１）'!L104,'様式第33表（指定１）'!L134,'様式第33表（指定１）'!L164,'様式第33表（指定１）'!L194,'様式第33表（指定１）'!L224,'様式第33表（指定１）'!L254,'様式第33表（指定１）'!L284)) ->  | AI30: =IF($E$2="","",CHOOSE($E$2,'様式第33表（指定１）'!M14,'様式第33表（指定１）'!M44,'様式第33表（指定１）'!M74,'様式第33表（指定１）'!M104,'様式第33表（指定１）'!M134,'様式第33表（指定１）'!M164,'様式第33表（指定１）'!M194,'様式第33表（指定１）'!M224,'様式第33表（指定１）'!M254,'様式第33表（指定１）'!M284)) ->  | AJ30: =IF($E$2="","",CHOOSE($E$2,'様式第33表（指定１）'!N14,'様式第33表（指定１）'!N44,'様式第33表（指定１）'!N74,'様式第33表（指定１）'!N104,'様式第33表（指定１）'!N134,'様式第33表（指定１）'!N164,'様式第33表（指定１）'!N194,'様式第33表（指定１）'!N224,'様式第33表（指定１）'!N254,'様式第33表（指定１）'!N284)) ->  | AK30: =IF($E$2="","",CHOOSE($E$2,'様式第33表（指定１）'!O14,'様式第33表（指定１）'!O44,'様式第33表（指定１）'!O74,'様式第33表（指定１）'!O104,'様式第33表（指定１）'!O134,'様式第33表（指定１）'!O164,'様式第33表（指定１）'!O194,'様式第33表（指定１）'!O224,'様式第33表（指定１）'!O254,'様式第33表（指定１）'!O284)) ->  | AL30: =IF($E$2="","",CHOOSE($E$2,'様式第33表（指定１）'!P14,'様式第33表（指定１）'!P44,'様式第33表（指定１）'!P74,'様式第33表（指定１）'!P104,'様式第33表（指定１）'!P134,'様式第33表（指定１）'!P164,'様式第33表（指定１）'!P194,'様式第33表（指定１）'!P224,'様式第33表（指定１）'!P254,'様式第33表（指定１）'!P284)) ->  | AM30: =IF($E$2="","",CHOOSE($E$2,'様式第33表（指定１）'!Q14,'様式第33表（指定１）'!Q44,'様式第33表（指定１）'!Q74,'様式第33表（指定１）'!Q104,'様式第33表（指定１）'!Q134,'様式第33表（指定１）'!Q164,'様式第33表（指定１）'!Q194,'様式第33表（指定１）'!Q224,'様式第33表（指定１）'!Q254,'様式第33表（指定１）'!Q284)) -> 
D31: （内訳）本土分 | E31: =IF(E30="","",E30-E32) ->  | F31: =IF(F30="","",F30-F32) ->  | AF31: =IF(AF30="","",AF30-AF32) -> 
D32: （内訳）離島分
A33: ひっ迫時需要抑制電力 （送電端） | D33: 小売電気事業者
D34: 一般送配電事業者
A35: 供給予備力送電端 | E35: =IF(E29="","",IF(E30="","",E29-E30)) ->  | F35: =IF(F29="","",IF(F30="","",F29-F30)) ->  | G35: =IF(G29="","",IF(G30="","",G29-G30)) ->  | Q35: =IF(Q29="","",IF(Q30="","",Q29-Q30)) ->  | AC35: =IF(AC29="","",IF(AC30="","",AC29-AC30)) ->  | AD35: =IF(I35="","",I35) -> 
A36: 下段：ひっ迫時需要抑制電力反映時 | E36: =IF(E29="","",IF(E30="","",E29-(E30-SUM(E33:E34)))) ->  | F36: =IF(F29="","",IF(F30="","",F29-(F30-SUM(F33:F34)))) ->  | Q36: =IF(Q29="","",IF(Q30="","",Q29-(Q30-SUM(Q33:Q34)))) ->  | AC36: =IF(AC29="","",IF(AC30="","",AC29-(AC30-SUM(AC33:AC34)))) -> 
A37: 供給予備率（％） | E37: =IF(E35="","",E35/E30*100) ->  | F37: =IF(F35="","",F35/F30*100) ->  | Q37: =IF(Q35="","",Q35/Q30*100) ->  | AC37: =IF(AC35="","",AC35/AC30*100) -> 
A38: 下段：ひっ迫時需要抑制電力反映時 | E38: =IF(E36="","",E36/(E30)*100) ->  | F38: =IF(F36="","",F36/(F30)*100) ->  | AC38: =IF(AC36="","",AC36/(AC30)*100) ->  | AD38: =IF(I38="","",I38) -> 
A39: 調整力確保量
A40: 調整力（％） | E40: =IF(E31="","",IF(E39="","",E39/E31*100)) ->  | F40: =IF(F31="","",IF(F39="","",F39/F31*100)) ->  | AC40: =IF(AC31="","",IF(AC39="","",AC39/AC31*100)) -> 
A41: 年度末電源構成 | B41: 水力発電所 | AC41: =IF(COUNT(AC42:AC43)=0,"",SUM(AC42:AC43)) ->  | AD41: =IF(COUNT(AD42:AD43)=0,"",SUM(AD42:AD43)) ->  | AE41: =IF(AE42="",IF(AE43="","",SUM(AE42:AE43)),SUM(AE42:AE43)) ->  | AH41: =IF(COUNT(AH42:AH43)=0,"",SUM(AH42:AH43)) ->  | AI41: =IF(AI42="",IF(AI43="","",SUM(AI42:AI43)),SUM(AI42:AI43)) ->  | AM41: =IF(COUNT(AM42:AM43)=0,"",SUM(AM42:AM43)) -> 
D42: 一般
D43: 揚水
B44: 火力発電所 | AC44: =IF(COUNT(AC45:AC50)=0,"",SUM(AC45:AC50)) ->  | AD44: =IF(COUNT(AD45:AD50)=0,"",SUM(AD45:AD50)) ->  | AH44: =IF(COUNT(AH45:AH50)=0,"",SUM(AH45:AH50)) ->  | AM44: =IF(COUNT(AM45:AM50)=0,"",SUM(AM45:AM50)) -> 
D45: 石炭
D46: ＬＮＧ
D47: 石油
D48: ＬＰＧ
D49: その他ガス
D50: 瀝青質混合物
B51: 原子力発電所
B52: 新エネルギー等発電所 | AC52: =IF(COUNT(AC53:AC57)=0,"",SUM(AC53:AC57)) ->  | AD52: =IF(COUNT(AD53:AD57)=0,"",SUM(AD53:AD57)) ->  | AH52: =IF(COUNT(AH53:AH57)=0,"",SUM(AH53:AH57)) ->  | AM52: =IF(COUNT(AM53:AM57)=0,"",SUM(AM53:AM57)) -> 
D53: 風力
D54: 太陽光
D55: 地熱
D56: バイオマス
D57: 廃棄物
D58: 蓄電池
B59: その他
B60: 合計 | AC60: =IF(COUNT(AC41,AC44,AC51,AC52,AC59)=0,"",SUM(AC41,AC44,AC51,AC52,AC59)) ->  | AD60: =IF(COUNT(AD41,AD44,AD51,AD52,AD59)=0,"",SUM(AD41,AD44,AD51,AD52,AD59)) ->  | AH60: =IF(COUNT(AH41,AH44,AH51,AH52,AH59)=0,"",SUM(AH41,AH44,AH51,AH52,AH59)) ->  | AM60: =IF(COUNT(AM41,AM44,AM51,AM52,AM59)=0,"",SUM(AM41,AM44,AM51,AM52,AM59)) -> 
A63: 供給力補正 | E63: 記載要領 | F63: ・常備BUは、小売送電分はプラス、小売受電分をマイナスで表示（送配電からみると小売送電分は供給力からマイナスされており、小売送電分が受電分を上回ることで供給力が増加したこととなるため）
F64: ・ダブルカウント（突合せ確認）分は、突合せ確認漏れ等の修正として使用すること
F65: ・連系線超過分は、送電超過分はプラス、受電超過分はマイナスで表示
A66: 一般送配電事業者供給力補正 | F66: ・その他補正については、供給計画内容の誤り（供給力の二重計上や誤記等）の修正として使用すること。 | AM66: 【ＭＷ】
A67: =A6 -> 項目 | E67: =E6 -> 2024-01-01 | Q67: =Q6 -> 2025-01-01 | AC67: =AC6 -> 2023-01-01 | AD67: 2024-01-01 | AE67: 2025-01-01 | AF67: 2026-01-02 | AG67: 2027-01-03 | AH67: 2028-01-04 | AI67: 2029-01-04 | AJ67: 2030-01-05 | AK67: 2031-01-06 | AL67: 2032-01-07 | AM67: 2033-01-07
E68: =E7 -> 4月 | F68: =F7 -> 5月 | G68: 6月 | H68: 7月 | I68: 8月 | J68: 9月 | K68: 10月 | L68: 11月 | M68: 12月 | N68: 1月 | O68: 2月 | P68: 3月 | Q68: =Q7 -> 4月 | R68: =R7 -> 5月 | S68: 6月 | T68: 7月 | U68: 8月 | V68: 9月 | W68: 10月 | X68: 11月 | Y68: 12月 | Z68: 1月 | AA68: 2月 | AB68: 3月 | AC68: 実績
A69: 補正 | B69: 常時ＢＵ分 | D69: 小売送電分 | AD69: =IF(I69="","",I69) ->  | AE69: =IF(U69="","",U69) -> 
D70: 小売受電分
D71: 差 | E71: =IF(COUNT(E69:E70)=0,"",SUM(E69)-SUM(E70)) ->  | F71: =IF(COUNT(F69:F70)=0,"",SUM(F69)-SUM(F70)) ->  | AF71: =IF(COUNT(AF69:AF70)=0,"",SUM(AF69)-SUM(AF70)) -> 
B72: ダブルカウント（突合せ確認）分 （内訳： ）
B73: 連系線超過分 | D73: 広域より指示
B74: 補修調整分 | D74: 広域より指示 | AD74: =IF(I74="","",I74) ->  | AE74: =IF(U74="","",U74) -> 
B75: その他補正 （補正内容： ）
B76: 合計 | E76: =IF(COUNT(E71,E72:E75)=0,"",SUM(E71,E72,E73,E74,E75)) ->  | F76: =IF(COUNT(F71,F72:F75)=0,"",SUM(F71,F72,F73,F74,F75)) ->  | AC76: =IF(AC75="","",SUM(AC75)) ->  | AF76: =IF(COUNT(AF71,AF72:AF75)=0,"",SUM(AF71,AF72,AF73,AF74,AF75)) -> 
A78: 補正後供給力 | AM78: 【ＭＷ】
A79: =A6 -> 項目 | E79: =E6 -> 2024-01-01 | Q79: =Q6 -> 2025-01-01 | AC79: =AC6 -> 2023-01-01 | AD79: 2024-01-01 | AE79: 2025-01-01 | AF79: 2026-01-02 | AG79: 2027-01-03 | AH79: 2028-01-04 | AI79: 2029-01-04 | AJ79: 2030-01-05 | AK79: 2031-01-06 | AL79: 2032-01-07 | AM79: 2033-01-07
E80: =E7 -> 4月 | F80: =F7 -> 5月 | G80: 6月 | H80: 7月 | I80: 8月 | J80: 9月 | K80: 10月 | L80: 11月 | M80: 12月 | N80: 1月 | O80: 2月 | P80: 3月 | Q80: =Q7 -> 4月 | R80: =R7 -> 5月 | S80: 6月 | T80: 7月 | U80: 8月 | V80: 9月 | W80: 10月 | X80: 11月 | Y80: 12月 | Z80: 1月 | AA80: 2月 | AB80: 3月 | AC80: 実績
A81: =A8 -> 供給力 | B81: =B8 -> 保有 電力 | C81: =C8 -> 水力発電所（送電端） | E81: =IF(E8="","",E8) -> 
C82: =C9 -> 火力発電所（送電端） | E82: =IF(E9="","",E9) -> 
C83: =C10 -> 原子力発電所（送電端） | E83: =IF(E10="","",E10) -> 
C84: =C11 -> 新エネルギー発電所（送電端） | E84: =IF(E11="","",E11) -> 
C85: =C12 -> 合計（送電端） | E85: =IF(E12="","",E12) -> 
B86: =B13 -> 調達分 | C86: =C13 -> 発電事業者 | E86: =IF(E13="","",E13) -> 
C87: 特定卸供給事業者 | E87: =IF(E14="","",E14) -> 
C88: =C15 -> 一般送配電事業者 | E88: =IF(E15="","",E15) -> 
C89: 配電事業者 | E89: =IF(E16="","",E16) -> 
C90: =C17 -> 小売電気事業者 | E90: =IF(E17="","",E17) -> 
C91: =C18 -> その他 | D91: =D18 -> 取引所 | E91: =IF(E18="","",E18) ->  | J91: =IF(J18="","",J18) -> 
D92: =D19 -> その他 | J92: =IF(J19="","",J19) -> 
B93: =B20 -> 調達先未定 | J93: =IF(J20="","",J20) -> 
B94: =B21 -> （上段：取引所、下段：その他） | J94: =IF(J21="","",J21) -> 
B95: =B22 -> 【送配電】合計（送電端） | J95: =IF(J22="","",J22) -> 
B96: =B23 -> 【ｴﾘｱ】小売電気事業者（供給力合計） | J96: =IF(J23="","",J23) -> 
B97: =B24 -> 【ｴﾘｱ】発電事業者（余力合計） | J97: =IF(J24="","",J24) -> 
B98: 【ｴﾘｱ】特定卸供給事業者（余力合計） | J98: =IF(J25="","",J25) -> 
B99: =B26 -> 一般送配電事業者（補正） | E99: =IF(E76="","",E76) -> 
B100: =B28 -> 発動指令電源供給力（再掲） | E100: =IF(E28="","",E28) -> 
B101: =B29 -> 【ｴﾘｱ】合計（送電端） | E101: =IF(E29="","",E29) -> 
B102: =B29 -> 【ｴﾘｱ】合計（送電端） | E102: =IF(COUNT(E85:E92,E96,E97,E99)=0,"",SUM(E85:E92,E96,E97,E99)) -> 
A103: 需要電力（送電端） | D103: エリア全体 | E103: =IF(E30="","",E30) -> 
D104: （内訳）本土分 | E104: =IF(E31="","",E31) -> 
D105: （内訳）離島分 | E105: =IF(E32="","",E32) -> 
A106: =A33 -> ひっ迫時需要抑制電力 （送電端） | D106: =D33 -> 小売電気事業者 | E106: =IF(E33="","",E33) -> 
D107: =D34 -> 一般送配電事業者 | E107: =IF(E34="","",E34) -> 
A108: =A35 -> 供給予備力送電端 | E108: =IF(E102=0,"",IF(E103="","",E102-E103)) ->  | F108: =IF(F102=0,"",IF(F103="","",F102-F103)) ->  | Q108: =IF(Q102=0,"",IF(Q103="","",Q102-Q103)) ->  | AD108: =IF(I108="","",I108) ->  | AE108: =IF(U108="","",U108) -> 
A109: 下段：ひっ迫時需要抑制電力反映時 | E109: =IF(E102="","",IF(E103="","",E102-(E103-SUM(E106:E107)))) ->  | F109: =IF(F102="","",IF(F103="","",F102-(F103-SUM(F106:F107)))) ->  | Q109: =IF(Q102="","",IF(Q103="","",Q102-(Q103-SUM(Q106:Q107)))) -> 
A110: 供給予備率（％） | E110: =IF(E108="","",E108/E103*100) ->  | F110: =IF(F108="","",F108/F103*100) ->  | Q110: =IF(Q108="","",Q108/Q103*100) -> 
A111: 下段：ひっ迫時需要抑制電力反映時 | E111: =IF(E109="","",E109/(E103)*100) ->  | F111: =IF(F109="","",F109/(F103)*100) ->  | AF111: =IF(AF109="","",AF109/(AF103)*100) -> 
A112: 調整力確保量 | E112: =IF(E39="","",E39) ->  | AF112: =IF(AF39="","",AF39) -> 
A113: 調整力（％） | E113: =IF(E104="","",IF(E112="","",E112/E104*100)) ->  | F113: =IF(F104="","",IF(F112="","",F112/F104*100)) ->  | Q113: =IF(Q104="","",IF(Q112="","",Q112/Q104*100)) ->  | AC113: =IF(AC104="","",IF(AC112="","",AC112/AC104*100)) ->  | AF113: =IF(AF40="","",AF40) -> 
A114: 年度末電源構成 | B114: =B41 -> 水力発電所 | AC114: =IF(AC41="","",AC41) ->  | AD114: =IF(AD41="","",AD41) ->  | AE114: =IF(AE41="","",AE41) ->  | AH114: =IF(AH41="","",AH41) ->  | AI114: =IF(AI41="","",AI41) ->  | AM114: =IF(AM41="","",AM41) -> 
D115: =D42 -> 一般 | AC115: =IF(AC42="","",AC42) ->  | AH115: =IF(AH42="","",AH42) -> 
D116: =D43 -> 揚水
B117: =B44 -> 火力発電所
D118: =D45 -> 石炭
D119: ＬＮＧ
D120: 石油
D121: ＬＰＧ
D122: その他ガス
B123: =B51 -> 原子力発電所 | D123: 瀝青質混合物
B124: 原子力発電所
B125: =B52 -> 新エネルギー等発電所
D126: =D53 -> 風力
D127: =D54 -> 太陽光
D128: =D55 -> 地熱
D129: =D56 -> バイオマス
D130: =D57 -> 廃棄物
D131: 蓄電池
B132: =B59 -> その他 | AC132: =IF(AC59="","",AC59) ->  | AH132: =IF(AH59="","",AH59) ->  | AM132: =IF(AM59="","",AM59) -> 
B133: =B60 -> 合計

Sheet 補正（ｋW）指定２ (hidden)
A2: 供給区域 | C2: =IF('補正（ｋW）指定１'!$C$2="","",'補正（ｋW）指定１'!$C$2) ->  | D2: エリア | E2: =IF(C2="北海道",1,IF(C2="東北",2,IF(C2="","","作成不要"))) -> 
F3: 入力箇所 | I3: リンク箇所 | L3: 自動計算
A5: 補正前供給力 | AM5: 【ＭＷ】
A6: 項目 | E6: ='補正（ｋW）指定１'!E6 -> 2024-01-01 | Q6: ='補正（ｋW）指定１'!Q6 -> 2025-01-01 | AC6: ='補正（ｋW）指定１'!AC6 -> 2023-01-01 | AD6: =E6 -> 2024-01-01 | AE6: =Q6 -> 2025-01-01 | AF6: ='補正（ｋW）指定１'!AF6:AF7 -> 2026-01-02 | AG6: ='補正（ｋW）指定１'!AG6:AG7 -> 2027-01-03 | AH6: ='補正（ｋW）指定１'!AH6:AH7 -> 2028-01-04 | AI6: ='補正（ｋW）指定１'!AI6:AI7 -> 2029-01-04 | AJ6: ='補正（ｋW）指定１'!AJ6:AJ7 -> 2030-01-05 | AK6: ='補正（ｋW）指定１'!AK6:AK7 -> 2031-01-06 | AL6: ='補正（ｋW）指定１'!AL6:AL7 -> 2032-01-07 | AM6: ='補正（ｋW）指定１'!AM6:AM7 -> 2033-01-07
E7: 4月 | F7: 5月 | G7: 6月 | H7: 7月 | I7: 8月 | J7: 9月 | K7: 10月 | L7: 11月 | M7: 12月 | N7: 1月 | O7: 2月 | P7: 3月 | Q7: 4月 | R7: 5月 | S7: 6月 | T7: 7月 | U7: 8月 | V7: 9月 | W7: 10月 | X7: 11月 | Y7: 12月 | Z7: 1月 | AA7: 2月 | AB7: 3月 | AC7: 実績
A8: 供給力 | B8: 保有 電力 | C8: 水力発電所（送電端） | E8: =IF('補正（ｋW）指定１'!E8="","",IF($E$2="作成不要","",'補正（ｋW）指定１'!E8)) ->  | F8: =IF('補正（ｋW）指定１'!F8="","",IF($E$2="作成不要","",'補正（ｋW）指定１'!F8)) ->  | G8: =IF('補正（ｋW）指定１'!G8="","",IF($E$2="作成不要","",'補正（ｋW）指定１'!G8)) ->  | H8: =IF('補正（ｋW）指定１'!H8="","",IF($E$2="作成不要","",'補正（ｋW）指定１'!H8)) ->  | I8: =IF('補正（ｋW）指定１'!I8="","",IF($E$2="作成不要","",'補正（ｋW）指定１'!I8)) ->  | J8: =IF('補正（ｋW）指定１'!J8="","",IF($E$2="作成不要","",'補正（ｋW）指定１'!J8)) ->  | K8: =IF('補正（ｋW）指定１'!K8="","",IF($E$2="作成不要","",'補正（ｋW）指定１'!K8)) ->  | L8: =IF('補正（ｋW）指定１'!L8="","",IF($E$2="作成不要","",'補正（ｋW）指定１'!L8)) ->  | M8: =IF('補正（ｋW）指定１'!M8="","",IF($E$2="作成不要","",'補正（ｋW）指定１'!M8)) ->  | N8: =IF('補正（ｋW）指定１'!N8="","",IF($E$2="作成不要","",'補正（ｋW）指定１'!N8)) ->  | O8: =IF('補正（ｋW）指定１'!O8="","",IF($E$2="作成不要","",'補正（ｋW）指定１'!O8)) ->  | P8: =IF('補正（ｋW）指定１'!P8="","",IF($E$2="作成不要","",'補正（ｋW）指定１'!P8)) ->  | Q8: =IF('補正（ｋW）指定１'!Q8="","",IF($E$2="作成不要","",'補正（ｋW）指定１'!Q8)) ->  | R8: =IF('補正（ｋW）指定１'!R8="","",IF($E$2="作成不要","",'補正（ｋW）指定１'!R8)) ->  | S8: =IF('補正（ｋW）指定１'!S8="","",IF($E$2="作成不要","",'補正（ｋW）指定１'!S8)) ->  | T8: =IF('補正（ｋW）指定１'!T8="","",IF($E$2="作成不要","",'補正（ｋW）指定１'!T8)) ->  | U8: =IF('補正（ｋW）指定１'!U8="","",IF($E$2="作成不要","",'補正（ｋW）指定１'!U8)) ->  | V8: =IF('補正（ｋW）指定１'!V8="","",IF($E$2="作成不要","",'補正（ｋW）指定１'!V8)) ->  | W8: =IF('補正（ｋW）指定１'!W8="","",IF($E$2="作成不要","",'補正（ｋW）指定１'!W8)) ->  | X8: =IF('補正（ｋW）指定１'!X8="","",IF($E$2="作成不要","",'補正（ｋW）指定１'!X8)) ->  | Y8: =IF('補正（ｋW）指定１'!Y8="","",IF($E$2="作成不要","",'補正（ｋW）指定１'!Y8)) ->  | Z8: =IF('補正（ｋW）指定１'!Z8="","",IF($E$2="作成不要","",'補正（ｋW）指定１'!Z8)) ->  | AA8: =IF('補正（ｋW）指定１'!AA8="","",IF($E$2="作成不要","",'補正（ｋW）指定１'!AA8)) ->  | AB8: =IF('補正（ｋW）指定１'!AB8="","",IF($E$2="作成不要","",'補正（ｋW）指定１'!AB8)) ->  | AD8: =IF(N8="","",N8) ->  | AE8: =IF(Z8="","",Z8) -> 
C9: 火力発電所（送電端） | E9: =IF('補正（ｋW）指定１'!E9="","",IF($E$2="作成不要","",'補正（ｋW）指定１'!E9)) ->  | F9: =IF('補正（ｋW）指定１'!F9="","",IF($E$2="作成不要","",'補正（ｋW）指定１'!F9)) ->  | G9: =IF('補正（ｋW）指定１'!G9="","",IF($E$2="作成不要","",'補正（ｋW）指定１'!G9)) ->  | H9: =IF('補正（ｋW）指定１'!H9="","",IF($E$2="作成不要","",'補正（ｋW）指定１'!H9)) ->  | I9: =IF('補正（ｋW）指定１'!I9="","",IF($E$2="作成不要","",'補正（ｋW）指定１'!I9)) ->  | J9: =IF('補正（ｋW）指定１'!J9="","",IF($E$2="作成不要","",'補正（ｋW）指定１'!J9)) ->  | K9: =IF('補正（ｋW）指定１'!K9="","",IF($E$2="作成不要","",'補正（ｋW）指定１'!K9)) ->  | L9: =IF('補正（ｋW）指定１'!L9="","",IF($E$2="作成不要","",'補正（ｋW）指定１'!L9)) ->  | M9: =IF('補正（ｋW）指定１'!M9="","",IF($E$2="作成不要","",'補正（ｋW）指定１'!M9)) ->  | N9: =IF('補正（ｋW）指定１'!N9="","",IF($E$2="作成不要","",'補正（ｋW）指定１'!N9)) ->  | O9: =IF('補正（ｋW）指定１'!O9="","",IF($E$2="作成不要","",'補正（ｋW）指定１'!O9)) ->  | P9: =IF('補正（ｋW）指定１'!P9="","",IF($E$2="作成不要","",'補正（ｋW）指定１'!P9)) ->  | Q9: =IF('補正（ｋW）指定１'!Q9="","",IF($E$2="作成不要","",'補正（ｋW）指定１'!Q9)) ->  | R9: =IF('補正（ｋW）指定１'!R9="","",IF($E$2="作成不要","",'補正（ｋW）指定１'!R9)) ->  | S9: =IF('補正（ｋW）指定１'!S9="","",IF($E$2="作成不要","",'補正（ｋW）指定１'!S9)) ->  | T9: =IF('補正（ｋW）指定１'!T9="","",IF($E$2="作成不要","",'補正（ｋW）指定１'!T9)) ->  | U9: =IF('補正（ｋW）指定１'!U9="","",IF($E$2="作成不要","",'補正（ｋW）指定１'!U9)) ->  | V9: =IF('補正（ｋW）指定１'!V9="","",IF($E$2="作成不要","",'補正（ｋW）指定１'!V9)) ->  | W9: =IF('補正（ｋW）指定１'!W9="","",IF($E$2="作成不要","",'補正（ｋW）指定１'!W9)) ->  | X9: =IF('補正（ｋW）指定１'!X9="","",IF($E$2="作成不要","",'補正（ｋW）指定１'!X9)) ->  | Y9: =IF('補正（ｋW）指定１'!Y9="","",IF($E$2="作成不要","",'補正（ｋW）指定１'!Y9)) ->  | Z9: =IF('補正（ｋW）指定１'!Z9="","",IF($E$2="作成不要","",'補正（ｋW）指定１'!Z9)) ->  | AA9: =IF('補正（ｋW）指定１'!AA9="","",IF($E$2="作成不要","",'補正（ｋW）指定１'!AA9)) ->  | AB9: =IF('補正（ｋW）指定１'!AB9="","",IF($E$2="作成不要","",'補正（ｋW）指定１'!AB9)) ->  | AD9: =IF(N9="","",N9) ->  | AE9: =IF(Z9="","",Z9) -> 
C10: 原子力発電所（送電端） | E10: =IF('補正（ｋW）指定１'!E10="","",IF($E$2="作成不要","",'補正（ｋW）指定１'!E10)) ->  | F10: =IF('補正（ｋW）指定１'!F10="","",IF($E$2="作成不要","",'補正（ｋW）指定１'!F10)) ->  | G10: =IF('補正（ｋW）指定１'!G10="","",IF($E$2="作成不要","",'補正（ｋW）指定１'!G10)) ->  | H10: =IF('補正（ｋW）指定１'!H10="","",IF($E$2="作成不要","",'補正（ｋW）指定１'!H10)) ->  | I10: =IF('補正（ｋW）指定１'!I10="","",IF($E$2="作成不要","",'補正（ｋW）指定１'!I10)) ->  | J10: =IF('補正（ｋW）指定１'!J10="","",IF($E$2="作成不要","",'補正（ｋW）指定１'!J10)) ->  | K10: =IF('補正（ｋW）指定１'!K10="","",IF($E$2="作成不要","",'補正（ｋW）指定１'!K10)) ->  | L10: =IF('補正（ｋW）指定１'!L10="","",IF($E$2="作成不要","",'補正（ｋW）指定１'!L10)) ->  | M10: =IF('補正（ｋW）指定１'!M10="","",IF($E$2="作成不要","",'補正（ｋW）指定１'!M10)) ->  | N10: =IF('補正（ｋW）指定１'!N10="","",IF($E$2="作成不要","",'補正（ｋW）指定１'!N10)) ->  | O10: =IF('補正（ｋW）指定１'!O10="","",IF($E$2="作成不要","",'補正（ｋW）指定１'!O10)) ->  | P10: =IF('補正（ｋW）指定１'!P10="","",IF($E$2="作成不要","",'補正（ｋW）指定１'!P10)) ->  | Q10: =IF('補正（ｋW）指定１'!Q10="","",IF($E$2="作成不要","",'補正（ｋW）指定１'!Q10)) ->  | R10: =IF('補正（ｋW）指定１'!R10="","",IF($E$2="作成不要","",'補正（ｋW）指定１'!R10)) ->  | S10: =IF('補正（ｋW）指定１'!S10="","",IF($E$2="作成不要","",'補正（ｋW）指定１'!S10)) ->  | T10: =IF('補正（ｋW）指定１'!T10="","",IF($E$2="作成不要","",'補正（ｋW）指定１'!T10)) ->  | U10: =IF('補正（ｋW）指定１'!U10="","",IF($E$2="作成不要","",'補正（ｋW）指定１'!U10)) ->  | V10: =IF('補正（ｋW）指定１'!V10="","",IF($E$2="作成不要","",'補正（ｋW）指定１'!V10)) ->  | W10: =IF('補正（ｋW）指定１'!W10="","",IF($E$2="作成不要","",'補正（ｋW）指定１'!W10)) ->  | X10: =IF('補正（ｋW）指定１'!X10="","",IF($E$2="作成不要","",'補正（ｋW）指定１'!X10)) ->  | Y10: =IF('補正（ｋW）指定１'!Y10="","",IF($E$2="作成不要","",'補正（ｋW）指定１'!Y10)) ->  | Z10: =IF('補正（ｋW）指定１'!Z10="","",IF($E$2="作成不要","",'補正（ｋW）指定１'!Z10)) ->  | AA10: =IF('補正（ｋW）指定１'!AA10="","",IF($E$2="作成不要","",'補正（ｋW）指定１'!AA10)) ->  | AB10: =IF('補正（ｋW）指定１'!AB10="","",IF($E$2="作成不要","",'補正（ｋW）指定１'!AB10)) ->  | AD10: =IF(N10="","",N10) ->  | AE10: =IF(Z10="","",Z10) -> 
C11: 新エネルギー発電所（送電端） | E11: =IF('補正（ｋW）指定１'!E11="","",IF($E$2="作成不要","",'補正（ｋW）指定１'!E11)) ->  | F11: =IF('補正（ｋW）指定１'!F11="","",IF($E$2="作成不要","",'補正（ｋW）指定１'!F11)) ->  | G11: =IF('補正（ｋW）指定１'!G11="","",IF($E$2="作成不要","",'補正（ｋW）指定１'!G11)) ->  | H11: =IF('補正（ｋW）指定１'!H11="","",IF($E$2="作成不要","",'補正（ｋW）指定１'!H11)) ->  | I11: =IF('補正（ｋW）指定１'!I11="","",IF($E$2="作成不要","",'補正（ｋW）指定１'!I11)) ->  | J11: =IF('補正（ｋW）指定１'!J11="","",IF($E$2="作成不要","",'補正（ｋW）指定１'!J11)) ->  | K11: =IF('補正（ｋW）指定１'!K11="","",IF($E$2="作成不要","",'補正（ｋW）指定１'!K11)) ->  | L11: =IF('補正（ｋW）指定１'!L11="","",IF($E$2="作成不要","",'補正（ｋW）指定１'!L11)) ->  | M11: =IF('補正（ｋW）指定１'!M11="","",IF($E$2="作成不要","",'補正（ｋW）指定１'!M11)) ->  | N11: =IF('補正（ｋW）指定１'!N11="","",IF($E$2="作成不要","",'補正（ｋW）指定１'!N11)) ->  | O11: =IF('補正（ｋW）指定１'!O11="","",IF($E$2="作成不要","",'補正（ｋW）指定１'!O11)) ->  | P11: =IF('補正（ｋW）指定１'!P11="","",IF($E$2="作成不要","",'補正（ｋW）指定１'!P11)) ->  | Q11: =IF('補正（ｋW）指定１'!Q11="","",IF($E$2="作成不要","",'補正（ｋW）指定１'!Q11)) ->  | R11: =IF('補正（ｋW）指定１'!R11="","",IF($E$2="作成不要","",'補正（ｋW）指定１'!R11)) ->  | S11: =IF('補正（ｋW）指定１'!S11="","",IF($E$2="作成不要","",'補正（ｋW）指定１'!S11)) ->  | T11: =IF('補正（ｋW）指定１'!T11="","",IF($E$2="作成不要","",'補正（ｋW）指定１'!T11)) ->  | U11: =IF('補正（ｋW）指定１'!U11="","",IF($E$2="作成不要","",'補正（ｋW）指定１'!U11)) ->  | V11: =IF('補正（ｋW）指定１'!V11="","",IF($E$2="作成不要","",'補正（ｋW）指定１'!V11)) ->  | W11: =IF('補正（ｋW）指定１'!W11="","",IF($E$2="作成不要","",'補正（ｋW）指定１'!W11)) ->  | X11: =IF('補正（ｋW）指定１'!X11="","",IF($E$2="作成不要","",'補正（ｋW）指定１'!X11)) ->  | Y11: =IF('補正（ｋW）指定１'!Y11="","",IF($E$2="作成不要","",'補正（ｋW）指定１'!Y11)) ->  | Z11: =IF('補正（ｋW）指定１'!Z11="","",IF($E$2="作成不要","",'補正（ｋW）指定１'!Z11)) ->  | AA11: =IF('補正（ｋW）指定１'!AA11="","",IF($E$2="作成不要","",'補正（ｋW）指定１'!AA11)) ->  | AB11: =IF('補正（ｋW）指定１'!AB11="","",IF($E$2="作成不要","",'補正（ｋW）指定１'!AB11)) ->  | AD11: =IF(N11="","",N11) ->  | AE11: =IF(Z11="","",Z11) -> 
C12: 合計（送電端） | E12: =IF('補正（ｋW）指定１'!E12="","",IF($E$2="作成不要","",'補正（ｋW）指定１'!E12)) ->  | F12: =IF('補正（ｋW）指定１'!F12="","",IF($E$2="作成不要","",'補正（ｋW）指定１'!F12)) ->  | G12: =IF('補正（ｋW）指定１'!G12="","",IF($E$2="作成不要","",'補正（ｋW）指定１'!G12)) ->  | H12: =IF('補正（ｋW）指定１'!H12="","",IF($E$2="作成不要","",'補正（ｋW）指定１'!H12)) ->  | I12: =IF('補正（ｋW）指定１'!I12="","",IF($E$2="作成不要","",'補正（ｋW）指定１'!I12)) ->  | J12: =IF('補正（ｋW）指定１'!J12="","",IF($E$2="作成不要","",'補正（ｋW）指定１'!J12)) ->  | K12: =IF('補正（ｋW）指定１'!K12="","",IF($E$2="作成不要","",'補正（ｋW）指定１'!K12)) ->  | L12: =IF('補正（ｋW）指定１'!L12="","",IF($E$2="作成不要","",'補正（ｋW）指定１'!L12)) ->  | M12: =IF('補正（ｋW）指定１'!M12="","",IF($E$2="作成不要","",'補正（ｋW）指定１'!M12)) ->  | N12: =IF('補正（ｋW）指定１'!N12="","",IF($E$2="作成不要","",'補正（ｋW）指定１'!N12)) ->  | O12: =IF('補正（ｋW）指定１'!O12="","",IF($E$2="作成不要","",'補正（ｋW）指定１'!O12)) ->  | P12: =IF('補正（ｋW）指定１'!P12="","",IF($E$2="作成不要","",'補正（ｋW）指定１'!P12)) ->  | Q12: =IF('補正（ｋW）指定１'!Q12="","",IF($E$2="作成不要","",'補正（ｋW）指定１'!Q12)) ->  | R12: =IF('補正（ｋW）指定１'!R12="","",IF($E$2="作成不要","",'補正（ｋW）指定１'!R12)) ->  | S12: =IF('補正（ｋW）指定１'!S12="","",IF($E$2="作成不要","",'補正（ｋW）指定１'!S12)) ->  | T12: =IF('補正（ｋW）指定１'!T12="","",IF($E$2="作成不要","",'補正（ｋW）指定１'!T12)) ->  | U12: =IF('補正（ｋW）指定１'!U12="","",IF($E$2="作成不要","",'補正（ｋW）指定１'!U12)) ->  | V12: =IF('補正（ｋW）指定１'!V12="","",IF($E$2="作成不要","",'補正（ｋW）指定１'!V12)) ->  | W12: =IF('補正（ｋW）指定１'!W12="","",IF($E$2="作成不要","",'補正（ｋW）指定１'!W12)) ->  | X12: =IF('補正（ｋW）指定１'!X12="","",IF($E$2="作成不要","",'補正（ｋW）指定１'!X12)) ->  | Y12: =IF('補正（ｋW）指定１'!Y12="","",IF($E$2="作成不要","",'補正（ｋW）指定１'!Y12)) ->  | Z12: =IF('補正（ｋW）指定１'!Z12="","",IF($E$2="作成不要","",'補正（ｋW）指定１'!Z12)) ->  | AA12: =IF('補正（ｋW）指定１'!AA12="","",IF($E$2="作成不要","",'補正（ｋW）指定１'!AA12)) ->  | AB12: =IF('補正（ｋW）指定１'!AB12="","",IF($E$2="作成不要","",'補正（ｋW）指定１'!AB12)) ->  | AC12: =IF(COUNT(AC8:AC11)=0,"",SUM(AC8:AC11)) ->  | AD12: =IF(COUNT(AD8:AD11)=0,"",SUM(AD8:AD11)) -> 
B13: 調達分 | C13: 発電事業者 | E13: =IF('補正（ｋW）指定１'!E13="","",IF($E$2="作成不要","",'補正（ｋW）指定１'!E13)) ->  | F13: =IF('補正（ｋW）指定１'!F13="","",IF($E$2="作成不要","",'補正（ｋW）指定１'!F13)) ->  | G13: =IF('補正（ｋW）指定１'!G13="","",IF($E$2="作成不要","",'補正（ｋW）指定１'!G13)) ->  | H13: =IF('補正（ｋW）指定１'!H13="","",IF($E$2="作成不要","",'補正（ｋW）指定１'!H13)) ->  | I13: =IF('補正（ｋW）指定１'!I13="","",IF($E$2="作成不要","",'補正（ｋW）指定１'!I13)) ->  | J13: =IF('補正（ｋW）指定１'!J13="","",IF($E$2="作成不要","",'補正（ｋW）指定１'!J13)) ->  | K13: =IF('補正（ｋW）指定１'!K13="","",IF($E$2="作成不要","",'補正（ｋW）指定１'!K13)) ->  | L13: =IF('補正（ｋW）指定１'!L13="","",IF($E$2="作成不要","",'補正（ｋW）指定１'!L13)) ->  | M13: =IF('補正（ｋW）指定１'!M13="","",IF($E$2="作成不要","",'補正（ｋW）指定１'!M13)) ->  | N13: =IF('補正（ｋW）指定１'!N13="","",IF($E$2="作成不要","",'補正（ｋW）指定１'!N13)) ->  | O13: =IF('補正（ｋW）指定１'!O13="","",IF($E$2="作成不要","",'補正（ｋW）指定１'!O13)) ->  | P13: =IF('補正（ｋW）指定１'!P13="","",IF($E$2="作成不要","",'補正（ｋW）指定１'!P13)) ->  | Q13: =IF('補正（ｋW）指定１'!Q13="","",IF($E$2="作成不要","",'補正（ｋW）指定１'!Q13)) ->  | R13: =IF('補正（ｋW）指定１'!R13="","",IF($E$2="作成不要","",'補正（ｋW）指定１'!R13)) ->  | S13: =IF('補正（ｋW）指定１'!S13="","",IF($E$2="作成不要","",'補正（ｋW）指定１'!S13)) ->  | T13: =IF('補正（ｋW）指定１'!T13="","",IF($E$2="作成不要","",'補正（ｋW）指定１'!T13)) ->  | U13: =IF('補正（ｋW）指定１'!U13="","",IF($E$2="作成不要","",'補正（ｋW）指定１'!U13)) ->  | V13: =IF('補正（ｋW）指定１'!V13="","",IF($E$2="作成不要","",'補正（ｋW）指定１'!V13)) ->  | W13: =IF('補正（ｋW）指定１'!W13="","",IF($E$2="作成不要","",'補正（ｋW）指定１'!W13)) ->  | X13: =IF('補正（ｋW）指定１'!X13="","",IF($E$2="作成不要","",'補正（ｋW）指定１'!X13)) ->  | Y13: =IF('補正（ｋW）指定１'!Y13="","",IF($E$2="作成不要","",'補正（ｋW）指定１'!Y13)) ->  | Z13: =IF('補正（ｋW）指定１'!Z13="","",IF($E$2="作成不要","",'補正（ｋW）指定１'!Z13)) ->  | AA13: =IF('補正（ｋW）指定１'!AA13="","",IF($E$2="作成不要","",'補正（ｋW）指定１'!AA13)) ->  | AB13: =IF('補正（ｋW）指定１'!AB13="","",IF($E$2="作成不要","",'補正（ｋW）指定１'!AB13)) ->  | AD13: =IF(N13="","",N13) ->  | AE13: =IF(Z13="","",Z13) -> 
C14: 特定卸供給事業者 | E14: =IF('補正（ｋW）指定１'!E14="","",IF($E$2="作成不要","",'補正（ｋW）指定１'!E14)) ->  | F14: =IF('補正（ｋW）指定１'!F14="","",IF($E$2="作成不要","",'補正（ｋW）指定１'!F14)) ->  | G14: =IF('補正（ｋW）指定１'!G14="","",IF($E$2="作成不要","",'補正（ｋW）指定１'!G14)) ->  | H14: =IF('補正（ｋW）指定１'!H14="","",IF($E$2="作成不要","",'補正（ｋW）指定１'!H14)) ->  | I14: =IF('補正（ｋW）指定１'!I14="","",IF($E$2="作成不要","",'補正（ｋW）指定１'!I14)) ->  | J14: =IF('補正（ｋW）指定１'!J14="","",IF($E$2="作成不要","",'補正（ｋW）指定１'!J14)) ->  | K14: =IF('補正（ｋW）指定１'!K14="","",IF($E$2="作成不要","",'補正（ｋW）指定１'!K14)) ->  | L14: =IF('補正（ｋW）指定１'!L14="","",IF($E$2="作成不要","",'補正（ｋW）指定１'!L14)) ->  | M14: =IF('補正（ｋW）指定１'!M14="","",IF($E$2="作成不要","",'補正（ｋW）指定１'!M14)) ->  | N14: =IF('補正（ｋW）指定１'!N14="","",IF($E$2="作成不要","",'補正（ｋW）指定１'!N14)) ->  | O14: =IF('補正（ｋW）指定１'!O14="","",IF($E$2="作成不要","",'補正（ｋW）指定１'!O14)) ->  | P14: =IF('補正（ｋW）指定１'!P14="","",IF($E$2="作成不要","",'補正（ｋW）指定１'!P14)) ->  | Q14: =IF('補正（ｋW）指定１'!Q14="","",IF($E$2="作成不要","",'補正（ｋW）指定１'!Q14)) ->  | R14: =IF('補正（ｋW）指定１'!R14="","",IF($E$2="作成不要","",'補正（ｋW）指定１'!R14)) ->  | S14: =IF('補正（ｋW）指定１'!S14="","",IF($E$2="作成不要","",'補正（ｋW）指定１'!S14)) ->  | T14: =IF('補正（ｋW）指定１'!T14="","",IF($E$2="作成不要","",'補正（ｋW）指定１'!T14)) ->  | U14: =IF('補正（ｋW）指定１'!U14="","",IF($E$2="作成不要","",'補正（ｋW）指定１'!U14)) ->  | V14: =IF('補正（ｋW）指定１'!V14="","",IF($E$2="作成不要","",'補正（ｋW）指定１'!V14)) ->  | W14: =IF('補正（ｋW）指定１'!W14="","",IF($E$2="作成不要","",'補正（ｋW）指定１'!W14)) ->  | X14: =IF('補正（ｋW）指定１'!X14="","",IF($E$2="作成不要","",'補正（ｋW）指定１'!X14)) ->  | Y14: =IF('補正（ｋW）指定１'!Y14="","",IF($E$2="作成不要","",'補正（ｋW）指定１'!Y14)) ->  | Z14: =IF('補正（ｋW）指定１'!Z14="","",IF($E$2="作成不要","",'補正（ｋW）指定１'!Z14)) ->  | AA14: =IF('補正（ｋW）指定１'!AA14="","",IF($E$2="作成不要","",'補正（ｋW）指定１'!AA14)) ->  | AB14: =IF('補正（ｋW）指定１'!AB14="","",IF($E$2="作成不要","",'補正（ｋW）指定１'!AB14)) ->  | AD14: =IF(N14="","",N14) -> 
C15: 一般送配電事業者 | E15: =IF('補正（ｋW）指定１'!E15="","",IF($E$2="作成不要","",'補正（ｋW）指定１'!E15)) ->  | F15: =IF('補正（ｋW）指定１'!F15="","",IF($E$2="作成不要","",'補正（ｋW）指定１'!F15)) ->  | G15: =IF('補正（ｋW）指定１'!G15="","",IF($E$2="作成不要","",'補正（ｋW）指定１'!G15)) ->  | H15: =IF('補正（ｋW）指定１'!H15="","",IF($E$2="作成不要","",'補正（ｋW）指定１'!H15)) ->  | I15: =IF('補正（ｋW）指定１'!I15="","",IF($E$2="作成不要","",'補正（ｋW）指定１'!I15)) ->  | J15: =IF('補正（ｋW）指定１'!J15="","",IF($E$2="作成不要","",'補正（ｋW）指定１'!J15)) ->  | K15: =IF('補正（ｋW）指定１'!K15="","",IF($E$2="作成不要","",'補正（ｋW）指定１'!K15)) ->  | L15: =IF('補正（ｋW）指定１'!L15="","",IF($E$2="作成不要","",'補正（ｋW）指定１'!L15)) ->  | M15: =IF('補正（ｋW）指定１'!M15="","",IF($E$2="作成不要","",'補正（ｋW）指定１'!M15)) ->  | N15: =IF('補正（ｋW）指定１'!N15="","",IF($E$2="作成不要","",'補正（ｋW）指定１'!N15)) ->  | O15: =IF('補正（ｋW）指定１'!O15="","",IF($E$2="作成不要","",'補正（ｋW）指定１'!O15)) ->  | P15: =IF('補正（ｋW）指定１'!P15="","",IF($E$2="作成不要","",'補正（ｋW）指定１'!P15)) ->  | Q15: =IF('補正（ｋW）指定１'!Q15="","",IF($E$2="作成不要","",'補正（ｋW）指定１'!Q15)) ->  | R15: =IF('補正（ｋW）指定１'!R15="","",IF($E$2="作成不要","",'補正（ｋW）指定１'!R15)) ->  | S15: =IF('補正（ｋW）指定１'!S15="","",IF($E$2="作成不要","",'補正（ｋW）指定１'!S15)) ->  | T15: =IF('補正（ｋW）指定１'!T15="","",IF($E$2="作成不要","",'補正（ｋW）指定１'!T15)) ->  | U15: =IF('補正（ｋW）指定１'!U15="","",IF($E$2="作成不要","",'補正（ｋW）指定１'!U15)) ->  | V15: =IF('補正（ｋW）指定１'!V15="","",IF($E$2="作成不要","",'補正（ｋW）指定１'!V15)) ->  | W15: =IF('補正（ｋW）指定１'!W15="","",IF($E$2="作成不要","",'補正（ｋW）指定１'!W15)) ->  | X15: =IF('補正（ｋW）指定１'!X15="","",IF($E$2="作成不要","",'補正（ｋW）指定１'!X15)) ->  | Y15: =IF('補正（ｋW）指定１'!Y15="","",IF($E$2="作成不要","",'補正（ｋW）指定１'!Y15)) ->  | Z15: =IF('補正（ｋW）指定１'!Z15="","",IF($E$2="作成不要","",'補正（ｋW）指定１'!Z15)) ->  | AA15: =IF('補正（ｋW）指定１'!AA15="","",IF($E$2="作成不要","",'補正（ｋW）指定１'!AA15)) ->  | AB15: =IF('補正（ｋW）指定１'!AB15="","",IF($E$2="作成不要","",'補正（ｋW）指定１'!AB15)) ->  | AD15: =IF(N15="","",N15) -> 
C16: 配電事業者 | E16: =IF('補正（ｋW）指定１'!E16="","",IF($E$2="作成不要","",'補正（ｋW）指定１'!E16)) ->  | F16: =IF('補正（ｋW）指定１'!F16="","",IF($E$2="作成不要","",'補正（ｋW）指定１'!F16)) ->  | G16: =IF('補正（ｋW）指定１'!G16="","",IF($E$2="作成不要","",'補正（ｋW）指定１'!G16)) ->  | H16: =IF('補正（ｋW）指定１'!H16="","",IF($E$2="作成不要","",'補正（ｋW）指定１'!H16)) ->  | I16: =IF('補正（ｋW）指定１'!I16="","",IF($E$2="作成不要","",'補正（ｋW）指定１'!I16)) ->  | J16: =IF('補正（ｋW）指定１'!J16="","",IF($E$2="作成不要","",'補正（ｋW）指定１'!J16)) ->  | K16: =IF('補正（ｋW）指定１'!K16="","",IF($E$2="作成不要","",'補正（ｋW）指定１'!K16)) ->  | L16: =IF('補正（ｋW）指定１'!L16="","",IF($E$2="作成不要","",'補正（ｋW）指定１'!L16)) ->  | M16: =IF('補正（ｋW）指定１'!M16="","",IF($E$2="作成不要","",'補正（ｋW）指定１'!M16)) ->  | N16: =IF('補正（ｋW）指定１'!N16="","",IF($E$2="作成不要","",'補正（ｋW）指定１'!N16)) ->  | O16: =IF('補正（ｋW）指定１'!O16="","",IF($E$2="作成不要","",'補正（ｋW）指定１'!O16)) ->  | P16: =IF('補正（ｋW）指定１'!P16="","",IF($E$2="作成不要","",'補正（ｋW）指定１'!P16)) ->  | Q16: =IF('補正（ｋW）指定１'!Q16="","",IF($E$2="作成不要","",'補正（ｋW）指定１'!Q16)) ->  | R16: =IF('補正（ｋW）指定１'!R16="","",IF($E$2="作成不要","",'補正（ｋW）指定１'!R16)) ->  | S16: =IF('補正（ｋW）指定１'!S16="","",IF($E$2="作成不要","",'補正（ｋW）指定１'!S16)) ->  | T16: =IF('補正（ｋW）指定１'!T16="","",IF($E$2="作成不要","",'補正（ｋW）指定１'!T16)) ->  | U16: =IF('補正（ｋW）指定１'!U16="","",IF($E$2="作成不要","",'補正（ｋW）指定１'!U16)) ->  | V16: =IF('補正（ｋW）指定１'!V16="","",IF($E$2="作成不要","",'補正（ｋW）指定１'!V16)) ->  | W16: =IF('補正（ｋW）指定１'!W16="","",IF($E$2="作成不要","",'補正（ｋW）指定１'!W16)) ->  | X16: =IF('補正（ｋW）指定１'!X16="","",IF($E$2="作成不要","",'補正（ｋW）指定１'!X16)) ->  | Y16: =IF('補正（ｋW）指定１'!Y16="","",IF($E$2="作成不要","",'補正（ｋW）指定１'!Y16)) ->  | Z16: =IF('補正（ｋW）指定１'!Z16="","",IF($E$2="作成不要","",'補正（ｋW）指定１'!Z16)) ->  | AA16: =IF('補正（ｋW）指定１'!AA16="","",IF($E$2="作成不要","",'補正（ｋW）指定１'!AA16)) ->  | AB16: =IF('補正（ｋW）指定１'!AB16="","",IF($E$2="作成不要","",'補正（ｋW）指定１'!AB16)) ->  | AD16: =IF(N16="","",N16) -> 
C17: 小売電気事業者 | E17: =IF('補正（ｋW）指定１'!E17="","",IF($E$2="作成不要","",'補正（ｋW）指定１'!E17)) ->  | F17: =IF('補正（ｋW）指定１'!F17="","",IF($E$2="作成不要","",'補正（ｋW）指定１'!F17)) ->  | G17: =IF('補正（ｋW）指定１'!G17="","",IF($E$2="作成不要","",'補正（ｋW）指定１'!G17)) ->  | H17: =IF('補正（ｋW）指定１'!H17="","",IF($E$2="作成不要","",'補正（ｋW）指定１'!H17)) ->  | I17: =IF('補正（ｋW）指定１'!I17="","",IF($E$2="作成不要","",'補正（ｋW）指定１'!I17)) ->  | J17: =IF('補正（ｋW）指定１'!J17="","",IF($E$2="作成不要","",'補正（ｋW）指定１'!J17)) ->  | K17: =IF('補正（ｋW）指定１'!K17="","",IF($E$2="作成不要","",'補正（ｋW）指定１'!K17)) ->  | L17: =IF('補正（ｋW）指定１'!L17="","",IF($E$2="作成不要","",'補正（ｋW）指定１'!L17)) ->  | M17: =IF('補正（ｋW）指定１'!M17="","",IF($E$2="作成不要","",'補正（ｋW）指定１'!M17)) ->  | N17: =IF('補正（ｋW）指定１'!N17="","",IF($E$2="作成不要","",'補正（ｋW）指定１'!N17)) ->  | O17: =IF('補正（ｋW）指定１'!O17="","",IF($E$2="作成不要","",'補正（ｋW）指定１'!O17)) ->  | P17: =IF('補正（ｋW）指定１'!P17="","",IF($E$2="作成不要","",'補正（ｋW）指定１'!P17)) ->  | Q17: =IF('補正（ｋW）指定１'!Q17="","",IF($E$2="作成不要","",'補正（ｋW）指定１'!Q17)) ->  | R17: =IF('補正（ｋW）指定１'!R17="","",IF($E$2="作成不要","",'補正（ｋW）指定１'!R17)) ->  | S17: =IF('補正（ｋW）指定１'!S17="","",IF($E$2="作成不要","",'補正（ｋW）指定１'!S17)) ->  | T17: =IF('補正（ｋW）指定１'!T17="","",IF($E$2="作成不要","",'補正（ｋW）指定１'!T17)) ->  | U17: =IF('補正（ｋW）指定１'!U17="","",IF($E$2="作成不要","",'補正（ｋW）指定１'!U17)) ->  | V17: =IF('補正（ｋW）指定１'!V17="","",IF($E$2="作成不要","",'補正（ｋW）指定１'!V17)) ->  | W17: =IF('補正（ｋW）指定１'!W17="","",IF($E$2="作成不要","",'補正（ｋW）指定１'!W17)) ->  | X17: =IF('補正（ｋW）指定１'!X17="","",IF($E$2="作成不要","",'補正（ｋW）指定１'!X17)) ->  | Y17: =IF('補正（ｋW）指定１'!Y17="","",IF($E$2="作成不要","",'補正（ｋW）指定１'!Y17)) ->  | Z17: =IF('補正（ｋW）指定１'!Z17="","",IF($E$2="作成不要","",'補正（ｋW）指定１'!Z17)) ->  | AA17: =IF('補正（ｋW）指定１'!AA17="","",IF($E$2="作成不要","",'補正（ｋW）指定１'!AA17)) ->  | AB17: =IF('補正（ｋW）指定１'!AB17="","",IF($E$2="作成不要","",'補正（ｋW）指定１'!AB17)) -> 
C18: その他 | D18: 取引所 | E18: =IF('補正（ｋW）指定１'!E18="","",IF($E$2="作成不要","",'補正（ｋW）指定１'!E18)) ->  | F18: =IF('補正（ｋW）指定１'!F18="","",IF($E$2="作成不要","",'補正（ｋW）指定１'!F18)) ->  | G18: =IF('補正（ｋW）指定１'!G18="","",IF($E$2="作成不要","",'補正（ｋW）指定１'!G18)) ->  | H18: =IF('補正（ｋW）指定１'!H18="","",IF($E$2="作成不要","",'補正（ｋW）指定１'!H18)) ->  | I18: =IF('補正（ｋW）指定１'!I18="","",IF($E$2="作成不要","",'補正（ｋW）指定１'!I18)) ->  | J18: =IF('補正（ｋW）指定１'!J18="","",IF($E$2="作成不要","",'補正（ｋW）指定１'!J18)) ->  | K18: =IF('補正（ｋW）指定１'!K18="","",IF($E$2="作成不要","",'補正（ｋW）指定１'!K18)) ->  | L18: =IF('補正（ｋW）指定１'!L18="","",IF($E$2="作成不要","",'補正（ｋW）指定１'!L18)) ->  | M18: =IF('補正（ｋW）指定１'!M18="","",IF($E$2="作成不要","",'補正（ｋW）指定１'!M18)) ->  | N18: =IF('補正（ｋW）指定１'!N18="","",IF($E$2="作成不要","",'補正（ｋW）指定１'!N18)) ->  | O18: =IF('補正（ｋW）指定１'!O18="","",IF($E$2="作成不要","",'補正（ｋW）指定１'!O18)) ->  | P18: =IF('補正（ｋW）指定１'!P18="","",IF($E$2="作成不要","",'補正（ｋW）指定１'!P18)) ->  | Q18: =IF('補正（ｋW）指定１'!Q18="","",IF($E$2="作成不要","",'補正（ｋW）指定１'!Q18)) ->  | R18: =IF('補正（ｋW）指定１'!R18="","",IF($E$2="作成不要","",'補正（ｋW）指定１'!R18)) ->  | S18: =IF('補正（ｋW）指定１'!S18="","",IF($E$2="作成不要","",'補正（ｋW）指定１'!S18)) ->  | T18: =IF('補正（ｋW）指定１'!T18="","",IF($E$2="作成不要","",'補正（ｋW）指定１'!T18)) ->  | U18: =IF('補正（ｋW）指定１'!U18="","",IF($E$2="作成不要","",'補正（ｋW）指定１'!U18)) ->  | V18: =IF('補正（ｋW）指定１'!V18="","",IF($E$2="作成不要","",'補正（ｋW）指定１'!V18)) ->  | W18: =IF('補正（ｋW）指定１'!W18="","",IF($E$2="作成不要","",'補正（ｋW）指定１'!W18)) ->  | X18: =IF('補正（ｋW）指定１'!X18="","",IF($E$2="作成不要","",'補正（ｋW）指定１'!X18)) ->  | Y18: =IF('補正（ｋW）指定１'!Y18="","",IF($E$2="作成不要","",'補正（ｋW）指定１'!Y18)) ->  | Z18: =IF('補正（ｋW）指定１'!Z18="","",IF($E$2="作成不要","",'補正（ｋW）指定１'!Z18)) ->  | AA18: =IF('補正（ｋW）指定１'!AA18="","",IF($E$2="作成不要","",'補正（ｋW）指定１'!AA18)) ->  | AB18: =IF('補正（ｋW）指定１'!AB18="","",IF($E$2="作成不要","",'補正（ｋW）指定１'!AB18)) -> 
D19: その他 | E19: =IF('補正（ｋW）指定１'!E19="","",IF($E$2="作成不要","",'補正（ｋW）指定１'!E19)) ->  | F19: =IF('補正（ｋW）指定１'!F19="","",IF($E$2="作成不要","",'補正（ｋW）指定１'!F19)) ->  | G19: =IF('補正（ｋW）指定１'!G19="","",IF($E$2="作成不要","",'補正（ｋW）指定１'!G19)) ->  | H19: =IF('補正（ｋW）指定１'!H19="","",IF($E$2="作成不要","",'補正（ｋW）指定１'!H19)) ->  | I19: =IF('補正（ｋW）指定１'!I19="","",IF($E$2="作成不要","",'補正（ｋW）指定１'!I19)) ->  | J19: =IF('補正（ｋW）指定１'!J19="","",IF($E$2="作成不要","",'補正（ｋW）指定１'!J19)) ->  | K19: =IF('補正（ｋW）指定１'!K19="","",IF($E$2="作成不要","",'補正（ｋW）指定１'!K19)) ->  | L19: =IF('補正（ｋW）指定１'!L19="","",IF($E$2="作成不要","",'補正（ｋW）指定１'!L19)) ->  | M19: =IF('補正（ｋW）指定１'!M19="","",IF($E$2="作成不要","",'補正（ｋW）指定１'!M19)) ->  | N19: =IF('補正（ｋW）指定１'!N19="","",IF($E$2="作成不要","",'補正（ｋW）指定１'!N19)) ->  | O19: =IF('補正（ｋW）指定１'!O19="","",IF($E$2="作成不要","",'補正（ｋW）指定１'!O19)) ->  | P19: =IF('補正（ｋW）指定１'!P19="","",IF($E$2="作成不要","",'補正（ｋW）指定１'!P19)) ->  | Q19: =IF('補正（ｋW）指定１'!Q19="","",IF($E$2="作成不要","",'補正（ｋW）指定１'!Q19)) ->  | R19: =IF('補正（ｋW）指定１'!R19="","",IF($E$2="作成不要","",'補正（ｋW）指定１'!R19)) ->  | S19: =IF('補正（ｋW）指定１'!S19="","",IF($E$2="作成不要","",'補正（ｋW）指定１'!S19)) ->  | T19: =IF('補正（ｋW）指定１'!T19="","",IF($E$2="作成不要","",'補正（ｋW）指定１'!T19)) ->  | U19: =IF('補正（ｋW）指定１'!U19="","",IF($E$2="作成不要","",'補正（ｋW）指定１'!U19)) ->  | V19: =IF('補正（ｋW）指定１'!V19="","",IF($E$2="作成不要","",'補正（ｋW）指定１'!V19)) ->  | W19: =IF('補正（ｋW）指定１'!W19="","",IF($E$2="作成不要","",'補正（ｋW）指定１'!W19)) ->  | X19: =IF('補正（ｋW）指定１'!X19="","",IF($E$2="作成不要","",'補正（ｋW）指定１'!X19)) ->  | Y19: =IF('補正（ｋW）指定１'!Y19="","",IF($E$2="作成不要","",'補正（ｋW）指定１'!Y19)) ->  | Z19: =IF('補正（ｋW）指定１'!Z19="","",IF($E$2="作成不要","",'補正（ｋW）指定１'!Z19)) ->  | AA19: =IF('補正（ｋW）指定１'!AA19="","",IF($E$2="作成不要","",'補正（ｋW）指定１'!AA19)) ->  | AB19: =IF('補正（ｋW）指定１'!AB19="","",IF($E$2="作成不要","",'補正（ｋW）指定１'!AB19)) -> 
B20: 調達先未定 | E20: =IF('補正（ｋW）指定１'!E20="","",IF($E$2="作成不要","",'補正（ｋW）指定１'!E20)) ->  | F20: =IF('補正（ｋW）指定１'!F20="","",IF($E$2="作成不要","",'補正（ｋW）指定１'!F20)) ->  | G20: =IF('補正（ｋW）指定１'!G20="","",IF($E$2="作成不要","",'補正（ｋW）指定１'!G20)) ->  | H20: =IF('補正（ｋW）指定１'!H20="","",IF($E$2="作成不要","",'補正（ｋW）指定１'!H20)) ->  | I20: =IF('補正（ｋW）指定１'!I20="","",IF($E$2="作成不要","",'補正（ｋW）指定１'!I20)) ->  | J20: =IF('補正（ｋW）指定１'!J20="","",IF($E$2="作成不要","",'補正（ｋW）指定１'!J20)) ->  | K20: =IF('補正（ｋW）指定１'!K20="","",IF($E$2="作成不要","",'補正（ｋW）指定１'!K20)) ->  | L20: =IF('補正（ｋW）指定１'!L20="","",IF($E$2="作成不要","",'補正（ｋW）指定１'!L20)) ->  | M20: =IF('補正（ｋW）指定１'!M20="","",IF($E$2="作成不要","",'補正（ｋW）指定１'!M20)) ->  | N20: =IF('補正（ｋW）指定１'!N20="","",IF($E$2="作成不要","",'補正（ｋW）指定１'!N20)) ->  | O20: =IF('補正（ｋW）指定１'!O20="","",IF($E$2="作成不要","",'補正（ｋW）指定１'!O20)) ->  | P20: =IF('補正（ｋW）指定１'!P20="","",IF($E$2="作成不要","",'補正（ｋW）指定１'!P20)) ->  | Q20: =IF('補正（ｋW）指定１'!Q20="","",IF($E$2="作成不要","",'補正（ｋW）指定１'!Q20)) ->  | R20: =IF('補正（ｋW）指定１'!R20="","",IF($E$2="作成不要","",'補正（ｋW）指定１'!R20)) ->  | S20: =IF('補正（ｋW）指定１'!S20="","",IF($E$2="作成不要","",'補正（ｋW）指定１'!S20)) ->  | T20: =IF('補正（ｋW）指定１'!T20="","",IF($E$2="作成不要","",'補正（ｋW）指定１'!T20)) ->  | U20: =IF('補正（ｋW）指定１'!U20="","",IF($E$2="作成不要","",'補正（ｋW）指定１'!U20)) ->  | V20: =IF('補正（ｋW）指定１'!V20="","",IF($E$2="作成不要","",'補正（ｋW）指定１'!V20)) ->  | W20: =IF('補正（ｋW）指定１'!W20="","",IF($E$2="作成不要","",'補正（ｋW）指定１'!W20)) ->  | X20: =IF('補正（ｋW）指定１'!X20="","",IF($E$2="作成不要","",'補正（ｋW）指定１'!X20)) ->  | Y20: =IF('補正（ｋW）指定１'!Y20="","",IF($E$2="作成不要","",'補正（ｋW）指定１'!Y20)) ->  | Z20: =IF('補正（ｋW）指定１'!Z20="","",IF($E$2="作成不要","",'補正（ｋW）指定１'!Z20)) ->  | AA20: =IF('補正（ｋW）指定１'!AA20="","",IF($E$2="作成不要","",'補正（ｋW）指定１'!AA20)) ->  | AB20: =IF('補正（ｋW）指定１'!AB20="","",IF($E$2="作成不要","",'補正（ｋW）指定１'!AB20)) -> 
B21: （上段：取引所、下段：その他） | E21: =IF('補正（ｋW）指定１'!E21="","",IF($E$2="作成不要","",'補正（ｋW）指定１'!E21)) ->  | F21: =IF('補正（ｋW）指定１'!F21="","",IF($E$2="作成不要","",'補正（ｋW）指定１'!F21)) ->  | G21: =IF('補正（ｋW）指定１'!G21="","",IF($E$2="作成不要","",'補正（ｋW）指定１'!G21)) ->  | H21: =IF('補正（ｋW）指定１'!H21="","",IF($E$2="作成不要","",'補正（ｋW）指定１'!H21)) ->  | I21: =IF('補正（ｋW）指定１'!I21="","",IF($E$2="作成不要","",'補正（ｋW）指定１'!I21)) ->  | J21: =IF('補正（ｋW）指定１'!J21="","",IF($E$2="作成不要","",'補正（ｋW）指定１'!J21)) ->  | K21: =IF('補正（ｋW）指定１'!K21="","",IF($E$2="作成不要","",'補正（ｋW）指定１'!K21)) ->  | L21: =IF('補正（ｋW）指定１'!L21="","",IF($E$2="作成不要","",'補正（ｋW）指定１'!L21)) ->  | M21: =IF('補正（ｋW）指定１'!M21="","",IF($E$2="作成不要","",'補正（ｋW）指定１'!M21)) ->  | N21: =IF('補正（ｋW）指定１'!N21="","",IF($E$2="作成不要","",'補正（ｋW）指定１'!N21)) ->  | O21: =IF('補正（ｋW）指定１'!O21="","",IF($E$2="作成不要","",'補正（ｋW）指定１'!O21)) ->  | P21: =IF('補正（ｋW）指定１'!P21="","",IF($E$2="作成不要","",'補正（ｋW）指定１'!P21)) ->  | Q21: =IF('補正（ｋW）指定１'!Q21="","",IF($E$2="作成不要","",'補正（ｋW）指定１'!Q21)) ->  | R21: =IF('補正（ｋW）指定１'!R21="","",IF($E$2="作成不要","",'補正（ｋW）指定１'!R21)) ->  | S21: =IF('補正（ｋW）指定１'!S21="","",IF($E$2="作成不要","",'補正（ｋW）指定１'!S21)) ->  | T21: =IF('補正（ｋW）指定１'!T21="","",IF($E$2="作成不要","",'補正（ｋW）指定１'!T21)) ->  | U21: =IF('補正（ｋW）指定１'!U21="","",IF($E$2="作成不要","",'補正（ｋW）指定１'!U21)) ->  | V21: =IF('補正（ｋW）指定１'!V21="","",IF($E$2="作成不要","",'補正（ｋW）指定１'!V21)) ->  | W21: =IF('補正（ｋW）指定１'!W21="","",IF($E$2="作成不要","",'補正（ｋW）指定１'!W21)) ->  | X21: =IF('補正（ｋW）指定１'!X21="","",IF($E$2="作成不要","",'補正（ｋW）指定１'!X21)) ->  | Y21: =IF('補正（ｋW）指定１'!Y21="","",IF($E$2="作成不要","",'補正（ｋW）指定１'!Y21)) ->  | Z21: =IF('補正（ｋW）指定１'!Z21="","",IF($E$2="作成不要","",'補正（ｋW）指定１'!Z21)) ->  | AA21: =IF('補正（ｋW）指定１'!AA21="","",IF($E$2="作成不要","",'補正（ｋW）指定１'!AA21)) ->  | AB21: =IF('補正（ｋW）指定１'!AB21="","",IF($E$2="作成不要","",'補正（ｋW）指定１'!AB21)) -> 
B22: 【送配電】合計（送電端） | E22: =IF('補正（ｋW）指定１'!E22="","",IF($E$2="作成不要","",'補正（ｋW）指定１'!E22)) ->  | F22: =IF('補正（ｋW）指定１'!F22="","",IF($E$2="作成不要","",'補正（ｋW）指定１'!F22)) ->  | G22: =IF('補正（ｋW）指定１'!G22="","",IF($E$2="作成不要","",'補正（ｋW）指定１'!G22)) ->  | H22: =IF('補正（ｋW）指定１'!H22="","",IF($E$2="作成不要","",'補正（ｋW）指定１'!H22)) ->  | I22: =IF('補正（ｋW）指定１'!I22="","",IF($E$2="作成不要","",'補正（ｋW）指定１'!I22)) ->  | J22: =IF('補正（ｋW）指定１'!J22="","",IF($E$2="作成不要","",'補正（ｋW）指定１'!J22)) ->  | K22: =IF('補正（ｋW）指定１'!K22="","",IF($E$2="作成不要","",'補正（ｋW）指定１'!K22)) ->  | L22: =IF('補正（ｋW）指定１'!L22="","",IF($E$2="作成不要","",'補正（ｋW）指定１'!L22)) ->  | M22: =IF('補正（ｋW）指定１'!M22="","",IF($E$2="作成不要","",'補正（ｋW）指定１'!M22)) ->  | N22: =IF('補正（ｋW）指定１'!N22="","",IF($E$2="作成不要","",'補正（ｋW）指定１'!N22)) ->  | O22: =IF('補正（ｋW）指定１'!O22="","",IF($E$2="作成不要","",'補正（ｋW）指定１'!O22)) ->  | P22: =IF('補正（ｋW）指定１'!P22="","",IF($E$2="作成不要","",'補正（ｋW）指定１'!P22)) ->  | Q22: =IF('補正（ｋW）指定１'!Q22="","",IF($E$2="作成不要","",'補正（ｋW）指定１'!Q22)) ->  | R22: =IF('補正（ｋW）指定１'!R22="","",IF($E$2="作成不要","",'補正（ｋW）指定１'!R22)) ->  | S22: =IF('補正（ｋW）指定１'!S22="","",IF($E$2="作成不要","",'補正（ｋW）指定１'!S22)) ->  | T22: =IF('補正（ｋW）指定１'!T22="","",IF($E$2="作成不要","",'補正（ｋW）指定１'!T22)) ->  | U22: =IF('補正（ｋW）指定１'!U22="","",IF($E$2="作成不要","",'補正（ｋW）指定１'!U22)) ->  | V22: =IF('補正（ｋW）指定１'!V22="","",IF($E$2="作成不要","",'補正（ｋW）指定１'!V22)) ->  | W22: =IF('補正（ｋW）指定１'!W22="","",IF($E$2="作成不要","",'補正（ｋW）指定１'!W22)) ->  | X22: =IF('補正（ｋW）指定１'!X22="","",IF($E$2="作成不要","",'補正（ｋW）指定１'!X22)) ->  | Y22: =IF('補正（ｋW）指定１'!Y22="","",IF($E$2="作成不要","",'補正（ｋW）指定１'!Y22)) ->  | Z22: =IF('補正（ｋW）指定１'!Z22="","",IF($E$2="作成不要","",'補正（ｋW）指定１'!Z22)) ->  | AA22: =IF('補正（ｋW）指定１'!AA22="","",IF($E$2="作成不要","",'補正（ｋW）指定１'!AA22)) ->  | AB22: =IF('補正（ｋW）指定１'!AB22="","",IF($E$2="作成不要","",'補正（ｋW）指定１'!AB22)) ->  | AC22: =IF(COUNT(AC12:AC21)=0,"",SUM(AC12:AC21)) -> 
B23: 【ｴﾘｱ】小売電気事業者（供給力合計） | E23: =IF('補正（ｋW）指定１'!E23="","",IF($E$2="作成不要","",'補正（ｋW）指定１'!E23)) ->  | F23: =IF('補正（ｋW）指定１'!F23="","",IF($E$2="作成不要","",'補正（ｋW）指定１'!F23)) ->  | G23: =IF('補正（ｋW）指定１'!G23="","",IF($E$2="作成不要","",'補正（ｋW）指定１'!G23)) ->  | H23: =IF('補正（ｋW）指定１'!H23="","",IF($E$2="作成不要","",'補正（ｋW）指定１'!H23)) ->  | I23: =IF('補正（ｋW）指定１'!I23="","",IF($E$2="作成不要","",'補正（ｋW）指定１'!I23)) ->  | J23: =IF('補正（ｋW）指定１'!J23="","",IF($E$2="作成不要","",'補正（ｋW）指定１'!J23)) ->  | K23: =IF('補正（ｋW）指定１'!K23="","",IF($E$2="作成不要","",'補正（ｋW）指定１'!K23)) ->  | L23: =IF('補正（ｋW）指定１'!L23="","",IF($E$2="作成不要","",'補正（ｋW）指定１'!L23)) ->  | M23: =IF('補正（ｋW）指定１'!M23="","",IF($E$2="作成不要","",'補正（ｋW）指定１'!M23)) ->  | N23: =IF('補正（ｋW）指定１'!N23="","",IF($E$2="作成不要","",'補正（ｋW）指定１'!N23)) ->  | O23: =IF('補正（ｋW）指定１'!O23="","",IF($E$2="作成不要","",'補正（ｋW）指定１'!O23)) ->  | P23: =IF('補正（ｋW）指定１'!P23="","",IF($E$2="作成不要","",'補正（ｋW）指定１'!P23)) ->  | Q23: =IF('補正（ｋW）指定１'!Q23="","",IF($E$2="作成不要","",'補正（ｋW）指定１'!Q23)) ->  | R23: =IF('補正（ｋW）指定１'!R23="","",IF($E$2="作成不要","",'補正（ｋW）指定１'!R23)) ->  | S23: =IF('補正（ｋW）指定１'!S23="","",IF($E$2="作成不要","",'補正（ｋW）指定１'!S23)) ->  | T23: =IF('補正（ｋW）指定１'!T23="","",IF($E$2="作成不要","",'補正（ｋW）指定１'!T23)) ->  | U23: =IF('補正（ｋW）指定１'!U23="","",IF($E$2="作成不要","",'補正（ｋW）指定１'!U23)) ->  | V23: =IF('補正（ｋW）指定１'!V23="","",IF($E$2="作成不要","",'補正（ｋW）指定１'!V23)) ->  | W23: =IF('補正（ｋW）指定１'!W23="","",IF($E$2="作成不要","",'補正（ｋW）指定１'!W23)) ->  | X23: =IF('補正（ｋW）指定１'!X23="","",IF($E$2="作成不要","",'補正（ｋW）指定１'!X23)) ->  | Y23: =IF('補正（ｋW）指定１'!Y23="","",IF($E$2="作成不要","",'補正（ｋW）指定１'!Y23)) ->  | Z23: =IF('補正（ｋW）指定１'!Z23="","",IF($E$2="作成不要","",'補正（ｋW）指定１'!Z23)) ->  | AA23: =IF('補正（ｋW）指定１'!AA23="","",IF($E$2="作成不要","",'補正（ｋW）指定１'!AA23)) ->  | AB23: =IF('補正（ｋW）指定１'!AB23="","",IF($E$2="作成不要","",'補正（ｋW）指定１'!AB23)) ->  | AD23: =IF(N23="","",N23) ->  | AE23: =IF(Z23="","",Z23) -> 
B24: 【ｴﾘｱ】発電事業者（余力合計） | E24: =IF('補正（ｋW）指定１'!E24="","",IF($E$2="作成不要","",'補正（ｋW）指定１'!E24)) ->  | F24: =IF('補正（ｋW）指定１'!F24="","",IF($E$2="作成不要","",'補正（ｋW）指定１'!F24)) ->  | G24: =IF('補正（ｋW）指定１'!G24="","",IF($E$2="作成不要","",'補正（ｋW）指定１'!G24)) ->  | H24: =IF('補正（ｋW）指定１'!H24="","",IF($E$2="作成不要","",'補正（ｋW）指定１'!H24)) ->  | I24: =IF('補正（ｋW）指定１'!I24="","",IF($E$2="作成不要","",'補正（ｋW）指定１'!I24)) ->  | J24: =IF('補正（ｋW）指定１'!J24="","",IF($E$2="作成不要","",'補正（ｋW）指定１'!J24)) ->  | K24: =IF('補正（ｋW）指定１'!K24="","",IF($E$2="作成不要","",'補正（ｋW）指定１'!K24)) ->  | L24: =IF('補正（ｋW）指定１'!L24="","",IF($E$2="作成不要","",'補正（ｋW）指定１'!L24)) ->  | M24: =IF('補正（ｋW）指定１'!M24="","",IF($E$2="作成不要","",'補正（ｋW）指定１'!M24)) ->  | N24: =IF('補正（ｋW）指定１'!N24="","",IF($E$2="作成不要","",'補正（ｋW）指定１'!N24)) ->  | O24: =IF('補正（ｋW）指定１'!O24="","",IF($E$2="作成不要","",'補正（ｋW）指定１'!O24)) ->  | P24: =IF('補正（ｋW）指定１'!P24="","",IF($E$2="作成不要","",'補正（ｋW）指定１'!P24)) ->  | Q24: =IF('補正（ｋW）指定１'!Q24="","",IF($E$2="作成不要","",'補正（ｋW）指定１'!Q24)) ->  | R24: =IF('補正（ｋW）指定１'!R24="","",IF($E$2="作成不要","",'補正（ｋW）指定１'!R24)) ->  | S24: =IF('補正（ｋW）指定１'!S24="","",IF($E$2="作成不要","",'補正（ｋW）指定１'!S24)) ->  | T24: =IF('補正（ｋW）指定１'!T24="","",IF($E$2="作成不要","",'補正（ｋW）指定１'!T24)) ->  | U24: =IF('補正（ｋW）指定１'!U24="","",IF($E$2="作成不要","",'補正（ｋW）指定１'!U24)) ->  | V24: =IF('補正（ｋW）指定１'!V24="","",IF($E$2="作成不要","",'補正（ｋW）指定１'!V24)) ->  | W24: =IF('補正（ｋW）指定１'!W24="","",IF($E$2="作成不要","",'補正（ｋW）指定１'!W24)) ->  | X24: =IF('補正（ｋW）指定１'!X24="","",IF($E$2="作成不要","",'補正（ｋW）指定１'!X24)) ->  | Y24: =IF('補正（ｋW）指定１'!Y24="","",IF($E$2="作成不要","",'補正（ｋW）指定１'!Y24)) ->  | Z24: =IF('補正（ｋW）指定１'!Z24="","",IF($E$2="作成不要","",'補正（ｋW）指定１'!Z24)) ->  | AA24: =IF('補正（ｋW）指定１'!AA24="","",IF($E$2="作成不要","",'補正（ｋW）指定１'!AA24)) ->  | AB24: =IF('補正（ｋW）指定１'!AB24="","",IF($E$2="作成不要","",'補正（ｋW）指定１'!AB24)) ->  | AD24: =IF(N24="","",N24) ->  | AE24: =IF(Z24="","",Z24) -> 
B25: 【ｴﾘｱ】特定卸供給事業者（余力合計） | E25: =IF('補正（ｋW）指定１'!E25="","",IF($E$2="作成不要","",'補正（ｋW）指定１'!E25)) ->  | F25: =IF('補正（ｋW）指定１'!F25="","",IF($E$2="作成不要","",'補正（ｋW）指定１'!F25)) ->  | G25: =IF('補正（ｋW）指定１'!G25="","",IF($E$2="作成不要","",'補正（ｋW）指定１'!G25)) ->  | H25: =IF('補正（ｋW）指定１'!H25="","",IF($E$2="作成不要","",'補正（ｋW）指定１'!H25)) ->  | I25: =IF('補正（ｋW）指定１'!I25="","",IF($E$2="作成不要","",'補正（ｋW）指定１'!I25)) ->  | J25: =IF('補正（ｋW）指定１'!J25="","",IF($E$2="作成不要","",'補正（ｋW）指定１'!J25)) ->  | K25: =IF('補正（ｋW）指定１'!K25="","",IF($E$2="作成不要","",'補正（ｋW）指定１'!K25)) ->  | L25: =IF('補正（ｋW）指定１'!L25="","",IF($E$2="作成不要","",'補正（ｋW）指定１'!L25)) ->  | M25: =IF('補正（ｋW）指定１'!M25="","",IF($E$2="作成不要","",'補正（ｋW）指定１'!M25)) ->  | N25: =IF('補正（ｋW）指定１'!N25="","",IF($E$2="作成不要","",'補正（ｋW）指定１'!N25)) ->  | O25: =IF('補正（ｋW）指定１'!O25="","",IF($E$2="作成不要","",'補正（ｋW）指定１'!O25)) ->  | P25: =IF('補正（ｋW）指定１'!P25="","",IF($E$2="作成不要","",'補正（ｋW）指定１'!P25)) ->  | Q25: =IF('補正（ｋW）指定１'!Q25="","",IF($E$2="作成不要","",'補正（ｋW）指定１'!Q25)) ->  | R25: =IF('補正（ｋW）指定１'!R25="","",IF($E$2="作成不要","",'補正（ｋW）指定１'!R25)) ->  | S25: =IF('補正（ｋW）指定１'!S25="","",IF($E$2="作成不要","",'補正（ｋW）指定１'!S25)) ->  | T25: =IF('補正（ｋW）指定１'!T25="","",IF($E$2="作成不要","",'補正（ｋW）指定１'!T25)) ->  | U25: =IF('補正（ｋW）指定１'!U25="","",IF($E$2="作成不要","",'補正（ｋW）指定１'!U25)) ->  | V25: =IF('補正（ｋW）指定１'!V25="","",IF($E$2="作成不要","",'補正（ｋW）指定１'!V25)) ->  | W25: =IF('補正（ｋW）指定１'!W25="","",IF($E$2="作成不要","",'補正（ｋW）指定１'!W25)) ->  | X25: =IF('補正（ｋW）指定１'!X25="","",IF($E$2="作成不要","",'補正（ｋW）指定１'!X25)) ->  | Y25: =IF('補正（ｋW）指定１'!Y25="","",IF($E$2="作成不要","",'補正（ｋW）指定１'!Y25)) ->  | Z25: =IF('補正（ｋW）指定１'!Z25="","",IF($E$2="作成不要","",'補正（ｋW）指定１'!Z25)) ->  | AA25: =IF('補正（ｋW）指定１'!AA25="","",IF($E$2="作成不要","",'補正（ｋW）指定１'!AA25)) ->  | AB25: =IF('補正（ｋW）指定１'!AB25="","",IF($E$2="作成不要","",'補正（ｋW）指定１'!AB25)) ->  | AD25: =IF(N25="","",N25) ->  | AE25: =IF(Z25="","",Z25) -> 
B26: 一般送配電事業者（補正）
B27: エリア外供給力（再掲） | E27: =IF('補正（ｋW）指定１'!E28="","",IF($E$2="作成不要","",'補正（ｋW）指定１'!E28)) ->  | F27: =IF('補正（ｋW）指定１'!F28="","",IF($E$2="作成不要","",'補正（ｋW）指定１'!F28)) ->  | G27: =IF('補正（ｋW）指定１'!G28="","",IF($E$2="作成不要","",'補正（ｋW）指定１'!G28)) ->  | H27: =IF('補正（ｋW）指定１'!H28="","",IF($E$2="作成不要","",'補正（ｋW）指定１'!H28)) ->  | I27: =IF('補正（ｋW）指定１'!I28="","",IF($E$2="作成不要","",'補正（ｋW）指定１'!I28)) ->  | J27: =IF('補正（ｋW）指定１'!J28="","",IF($E$2="作成不要","",'補正（ｋW）指定１'!J28)) ->  | K27: =IF('補正（ｋW）指定１'!K28="","",IF($E$2="作成不要","",'補正（ｋW）指定１'!K28)) ->  | L27: =IF('補正（ｋW）指定１'!L28="","",IF($E$2="作成不要","",'補正（ｋW）指定１'!L28)) ->  | M27: =IF('補正（ｋW）指定１'!M28="","",IF($E$2="作成不要","",'補正（ｋW）指定１'!M28)) ->  | N27: =IF('補正（ｋW）指定１'!N28="","",IF($E$2="作成不要","",'補正（ｋW）指定１'!N28)) ->  | O27: =IF('補正（ｋW）指定１'!O28="","",IF($E$2="作成不要","",'補正（ｋW）指定１'!O28)) ->  | P27: =IF('補正（ｋW）指定１'!P28="","",IF($E$2="作成不要","",'補正（ｋW）指定１'!P28)) ->  | Q27: =IF('補正（ｋW）指定１'!Q28="","",IF($E$2="作成不要","",'補正（ｋW）指定１'!Q28)) ->  | R27: =IF('補正（ｋW）指定１'!R28="","",IF($E$2="作成不要","",'補正（ｋW）指定１'!R28)) ->  | S27: =IF('補正（ｋW）指定１'!S28="","",IF($E$2="作成不要","",'補正（ｋW）指定１'!S28)) ->  | T27: =IF('補正（ｋW）指定１'!T28="","",IF($E$2="作成不要","",'補正（ｋW）指定１'!T28)) ->  | U27: =IF('補正（ｋW）指定１'!U28="","",IF($E$2="作成不要","",'補正（ｋW）指定１'!U28)) ->  | V27: =IF('補正（ｋW）指定１'!V28="","",IF($E$2="作成不要","",'補正（ｋW）指定１'!V28)) ->  | W27: =IF('補正（ｋW）指定１'!W28="","",IF($E$2="作成不要","",'補正（ｋW）指定１'!W28)) ->  | X27: =IF('補正（ｋW）指定１'!X28="","",IF($E$2="作成不要","",'補正（ｋW）指定１'!X28)) ->  | Y27: =IF('補正（ｋW）指定１'!Y28="","",IF($E$2="作成不要","",'補正（ｋW）指定１'!Y28)) ->  | Z27: =IF('補正（ｋW）指定１'!Z28="","",IF($E$2="作成不要","",'補正（ｋW）指定１'!Z28)) ->  | AA27: =IF('補正（ｋW）指定１'!AA28="","",IF($E$2="作成不要","",'補正（ｋW）指定１'!AA28)) ->  | AB27: =IF('補正（ｋW）指定１'!AB28="","",IF($E$2="作成不要","",'補正（ｋW）指定１'!AB28)) ->  | AD27: =IF(N27="","",N27) ->  | AE27: =IF(Z27="","",Z27) -> 
B28: 発動指令電源供給力（再掲） | E28: =IF('補正（ｋW）指定１'!E29="","",IF($E$2="作成不要","",'補正（ｋW）指定１'!E29)) ->  | F28: =IF('補正（ｋW）指定１'!F29="","",IF($E$2="作成不要","",'補正（ｋW）指定１'!F29)) ->  | G28: =IF('補正（ｋW）指定１'!G29="","",IF($E$2="作成不要","",'補正（ｋW）指定１'!G29)) ->  | H28: =IF('補正（ｋW）指定１'!H29="","",IF($E$2="作成不要","",'補正（ｋW）指定１'!H29)) ->  | I28: =IF('補正（ｋW）指定１'!I29="","",IF($E$2="作成不要","",'補正（ｋW）指定１'!I29)) ->  | J28: =IF('補正（ｋW）指定１'!J29="","",IF($E$2="作成不要","",'補正（ｋW）指定１'!J29)) ->  | K28: =IF('補正（ｋW）指定１'!K29="","",IF($E$2="作成不要","",'補正（ｋW）指定１'!K29)) ->  | L28: =IF('補正（ｋW）指定１'!L29="","",IF($E$2="作成不要","",'補正（ｋW）指定１'!L29)) ->  | M28: =IF('補正（ｋW）指定１'!M29="","",IF($E$2="作成不要","",'補正（ｋW）指定１'!M29)) ->  | N28: =IF('補正（ｋW）指定１'!N29="","",IF($E$2="作成不要","",'補正（ｋW）指定１'!N29)) ->  | O28: =IF('補正（ｋW）指定１'!O29="","",IF($E$2="作成不要","",'補正（ｋW）指定１'!O29)) ->  | P28: =IF('補正（ｋW）指定１'!P29="","",IF($E$2="作成不要","",'補正（ｋW）指定１'!P29)) ->  | Q28: =IF('補正（ｋW）指定１'!Q29="","",IF($E$2="作成不要","",'補正（ｋW）指定１'!Q29)) ->  | R28: =IF('補正（ｋW）指定１'!R29="","",IF($E$2="作成不要","",'補正（ｋW）指定１'!R29)) ->  | S28: =IF('補正（ｋW）指定１'!S29="","",IF($E$2="作成不要","",'補正（ｋW）指定１'!S29)) ->  | T28: =IF('補正（ｋW）指定１'!T29="","",IF($E$2="作成不要","",'補正（ｋW）指定１'!T29)) ->  | U28: =IF('補正（ｋW）指定１'!U29="","",IF($E$2="作成不要","",'補正（ｋW）指定１'!U29)) ->  | V28: =IF('補正（ｋW）指定１'!V29="","",IF($E$2="作成不要","",'補正（ｋW）指定１'!V29)) ->  | W28: =IF('補正（ｋW）指定１'!W29="","",IF($E$2="作成不要","",'補正（ｋW）指定１'!W29)) ->  | X28: =IF('補正（ｋW）指定１'!X29="","",IF($E$2="作成不要","",'補正（ｋW）指定１'!X29)) ->  | Y28: =IF('補正（ｋW）指定１'!Y29="","",IF($E$2="作成不要","",'補正（ｋW）指定１'!Y29)) ->  | Z28: =IF('補正（ｋW）指定１'!Z29="","",IF($E$2="作成不要","",'補正（ｋW）指定１'!Z29)) ->  | AA28: =IF('補正（ｋW）指定１'!AA29="","",IF($E$2="作成不要","",'補正（ｋW）指定１'!AA29)) ->  | AB28: =IF('補正（ｋW）指定１'!AB29="","",IF($E$2="作成不要","",'補正（ｋW）指定１'!AB29)) ->  | AD28: =IF(N28="","",N28) ->  | AE28: =IF(Z28="","",Z28) -> 
B29: 【ｴﾘｱ】合計（送電端） | E29: =IF('補正（ｋW）指定１'!E29="","",IF($E$2="作成不要","",'補正（ｋW）指定１'!E29)) ->  | F29: =IF('補正（ｋW）指定１'!F29="","",IF($E$2="作成不要","",'補正（ｋW）指定１'!F29)) ->  | G29: =IF('補正（ｋW）指定１'!G29="","",IF($E$2="作成不要","",'補正（ｋW）指定１'!G29)) ->  | H29: =IF('補正（ｋW）指定１'!H29="","",IF($E$2="作成不要","",'補正（ｋW）指定１'!H29)) ->  | I29: =IF('補正（ｋW）指定１'!I29="","",IF($E$2="作成不要","",'補正（ｋW）指定１'!I29)) ->  | J29: =IF('補正（ｋW）指定１'!J29="","",IF($E$2="作成不要","",'補正（ｋW）指定１'!J29)) ->  | K29: =IF('補正（ｋW）指定１'!K29="","",IF($E$2="作成不要","",'補正（ｋW）指定１'!K29)) ->  | L29: =IF('補正（ｋW）指定１'!L29="","",IF($E$2="作成不要","",'補正（ｋW）指定１'!L29)) ->  | M29: =IF('補正（ｋW）指定１'!M29="","",IF($E$2="作成不要","",'補正（ｋW）指定１'!M29)) ->  | N29: =IF('補正（ｋW）指定１'!N29="","",IF($E$2="作成不要","",'補正（ｋW）指定１'!N29)) ->  | O29: =IF('補正（ｋW）指定１'!O29="","",IF($E$2="作成不要","",'補正（ｋW）指定１'!O29)) ->  | P29: =IF('補正（ｋW）指定１'!P29="","",IF($E$2="作成不要","",'補正（ｋW）指定１'!P29)) ->  | Q29: =IF('補正（ｋW）指定１'!Q29="","",IF($E$2="作成不要","",'補正（ｋW）指定１'!Q29)) ->  | R29: =IF('補正（ｋW）指定１'!R29="","",IF($E$2="作成不要","",'補正（ｋW）指定１'!R29)) ->  | S29: =IF('補正（ｋW）指定１'!S29="","",IF($E$2="作成不要","",'補正（ｋW）指定１'!S29)) ->  | T29: =IF('補正（ｋW）指定１'!T29="","",IF($E$2="作成不要","",'補正（ｋW）指定１'!T29)) ->  | U29: =IF('補正（ｋW）指定１'!U29="","",IF($E$2="作成不要","",'補正（ｋW）指定１'!U29)) ->  | V29: =IF('補正（ｋW）指定１'!V29="","",IF($E$2="作成不要","",'補正（ｋW）指定１'!V29)) ->  | W29: =IF('補正（ｋW）指定１'!W29="","",IF($E$2="作成不要","",'補正（ｋW）指定１'!W29)) ->  | X29: =IF('補正（ｋW）指定１'!X29="","",IF($E$2="作成不要","",'補正（ｋW）指定１'!X29)) ->  | Y29: =IF('補正（ｋW）指定１'!Y29="","",IF($E$2="作成不要","",'補正（ｋW）指定１'!Y29)) ->  | Z29: =IF('補正（ｋW）指定１'!Z29="","",IF($E$2="作成不要","",'補正（ｋW）指定１'!Z29)) ->  | AA29: =IF('補正（ｋW）指定１'!AA29="","",IF($E$2="作成不要","",'補正（ｋW）指定１'!AA29)) ->  | AB29: =IF('補正（ｋW）指定１'!AB29="","",IF($E$2="作成不要","",'補正（ｋW）指定１'!AB29)) ->  | AC29: =IF(COUNT(AC12:AC19,AC23,AC24)=0,"",SUM(AC12:AC19,AC23,AC24)) -> 
A30: 需要電力（送電端） | D30: エリア全体 | E30: =IF('補正（ｋW）指定１'!E30="","",IF($E$2="作成不要","",'補正（ｋW）指定１'!E30)) ->  | F30: =IF('補正（ｋW）指定１'!F30="","",IF($E$2="作成不要","",'補正（ｋW）指定１'!F30)) ->  | G30: =IF('補正（ｋW）指定１'!G30="","",IF($E$2="作成不要","",'補正（ｋW）指定１'!G30)) ->  | H30: =IF('補正（ｋW）指定１'!H30="","",IF($E$2="作成不要","",'補正（ｋW）指定１'!H30)) ->  | I30: =IF('補正（ｋW）指定１'!I30="","",IF($E$2="作成不要","",'補正（ｋW）指定１'!I30)) ->  | J30: =IF('補正（ｋW）指定１'!J30="","",IF($E$2="作成不要","",'補正（ｋW）指定１'!J30)) ->  | K30: =IF('補正（ｋW）指定１'!K30="","",IF($E$2="作成不要","",'補正（ｋW）指定１'!K30)) ->  | L30: =IF('補正（ｋW）指定１'!L30="","",IF($E$2="作成不要","",'補正（ｋW）指定１'!L30)) ->  | M30: =IF('補正（ｋW）指定１'!M30="","",IF($E$2="作成不要","",'補正（ｋW）指定１'!M30)) ->  | N30: =IF('補正（ｋW）指定１'!N30="","",IF($E$2="作成不要","",'補正（ｋW）指定１'!N30)) ->  | O30: =IF('補正（ｋW）指定１'!O30="","",IF($E$2="作成不要","",'補正（ｋW）指定１'!O30)) ->  | P30: =IF('補正（ｋW）指定１'!P30="","",IF($E$2="作成不要","",'補正（ｋW）指定１'!P30)) ->  | Q30: =IF('補正（ｋW）指定１'!Q30="","",IF($E$2="作成不要","",'補正（ｋW）指定１'!Q30)) ->  | R30: =IF('補正（ｋW）指定１'!R30="","",IF($E$2="作成不要","",'補正（ｋW）指定１'!R30)) ->  | S30: =IF('補正（ｋW）指定１'!S30="","",IF($E$2="作成不要","",'補正（ｋW）指定１'!S30)) ->  | T30: =IF('補正（ｋW）指定１'!T30="","",IF($E$2="作成不要","",'補正（ｋW）指定１'!T30)) ->  | U30: =IF('補正（ｋW）指定１'!U30="","",IF($E$2="作成不要","",'補正（ｋW）指定１'!U30)) ->  | V30: =IF('補正（ｋW）指定１'!V30="","",IF($E$2="作成不要","",'補正（ｋW）指定１'!V30)) ->  | W30: =IF('補正（ｋW）指定１'!W30="","",IF($E$2="作成不要","",'補正（ｋW）指定１'!W30)) ->  | X30: =IF('補正（ｋW）指定１'!X30="","",IF($E$2="作成不要","",'補正（ｋW）指定１'!X30)) ->  | Y30: =IF('補正（ｋW）指定１'!Y30="","",IF($E$2="作成不要","",'補正（ｋW）指定１'!Y30)) ->  | Z30: =IF('補正（ｋW）指定１'!Z30="","",IF($E$2="作成不要","",'補正（ｋW）指定１'!Z30)) ->  | AA30: =IF('補正（ｋW）指定１'!AA30="","",IF($E$2="作成不要","",'補正（ｋW）指定１'!AA30)) ->  | AB30: =IF('補正（ｋW）指定１'!AB30="","",IF($E$2="作成不要","",'補正（ｋW）指定１'!AB30)) ->  | AD30: =IF(N30="","",N30) ->  | AE30: =IF(Z30="","",Z30) ->  | AF30: =IF($E$2="","",IF($E$2="作成不要","",CHOOSE($E$2,'様式第33表（指定２）'!J14,'様式第33表（指定２）'!J44))) ->  | AG30: =IF($E$2="","",IF($E$2="作成不要","",CHOOSE($E$2,'様式第33表（指定２）'!K14,'様式第33表（指定２）'!K44))) ->  | AH30: =IF($E$2="","",IF($E$2="作成不要","",CHOOSE($E$2,'様式第33表（指定２）'!L14,'様式第33表（指定２）'!L44))) ->  | AI30: =IF($E$2="","",IF($E$2="作成不要","",CHOOSE($E$2,'様式第33表（指定２）'!M14,'様式第33表（指定２）'!M44))) ->  | AJ30: =IF($E$2="","",IF($E$2="作成不要","",CHOOSE($E$2,'様式第33表（指定２）'!N14,'様式第33表（指定２）'!N44))) ->  | AK30: =IF($E$2="","",IF($E$2="作成不要","",CHOOSE($E$2,'様式第33表（指定２）'!O14,'様式第33表（指定２）'!O44))) ->  | AL30: =IF($E$2="","",IF($E$2="作成不要","",CHOOSE($E$2,'様式第33表（指定２）'!P14,'様式第33表（指定２）'!P44))) ->  | AM30: =IF($E$2="","",IF($E$2="作成不要","",CHOOSE($E$2,'様式第33表（指定２）'!Q14,'様式第33表（指定２）'!Q44))) -> 
D31: （内訳）本土分 | E31: =IF('補正（ｋW）指定１'!E31="","",IF($E$2="作成不要","",'補正（ｋW）指定１'!E31)) ->  | F31: =IF('補正（ｋW）指定１'!F31="","",IF($E$2="作成不要","",'補正（ｋW）指定１'!F31)) ->  | G31: =IF('補正（ｋW）指定１'!G31="","",IF($E$2="作成不要","",'補正（ｋW）指定１'!G31)) ->  | H31: =IF('補正（ｋW）指定１'!H31="","",IF($E$2="作成不要","",'補正（ｋW）指定１'!H31)) ->  | I31: =IF('補正（ｋW）指定１'!I31="","",IF($E$2="作成不要","",'補正（ｋW）指定１'!I31)) ->  | J31: =IF('補正（ｋW）指定１'!J31="","",IF($E$2="作成不要","",'補正（ｋW）指定１'!J31)) ->  | K31: =IF('補正（ｋW）指定１'!K31="","",IF($E$2="作成不要","",'補正（ｋW）指定１'!K31)) ->  | L31: =IF('補正（ｋW）指定１'!L31="","",IF($E$2="作成不要","",'補正（ｋW）指定１'!L31)) ->  | M31: =IF('補正（ｋW）指定１'!M31="","",IF($E$2="作成不要","",'補正（ｋW）指定１'!M31)) ->  | N31: =IF('補正（ｋW）指定１'!N31="","",IF($E$2="作成不要","",'補正（ｋW）指定１'!N31)) ->  | O31: =IF('補正（ｋW）指定１'!O31="","",IF($E$2="作成不要","",'補正（ｋW）指定１'!O31)) ->  | P31: =IF('補正（ｋW）指定１'!P31="","",IF($E$2="作成不要","",'補正（ｋW）指定１'!P31)) ->  | Q31: =IF('補正（ｋW）指定１'!Q31="","",IF($E$2="作成不要","",'補正（ｋW）指定１'!Q31)) ->  | R31: =IF('補正（ｋW）指定１'!R31="","",IF($E$2="作成不要","",'補正（ｋW）指定１'!R31)) ->  | S31: =IF('補正（ｋW）指定１'!S31="","",IF($E$2="作成不要","",'補正（ｋW）指定１'!S31)) ->  | T31: =IF('補正（ｋW）指定１'!T31="","",IF($E$2="作成不要","",'補正（ｋW）指定１'!T31)) ->  | U31: =IF('補正（ｋW）指定１'!U31="","",IF($E$2="作成不要","",'補正（ｋW）指定１'!U31)) ->  | V31: =IF('補正（ｋW）指定１'!V31="","",IF($E$2="作成不要","",'補正（ｋW）指定１'!V31)) ->  | W31: =IF('補正（ｋW）指定１'!W31="","",IF($E$2="作成不要","",'補正（ｋW）指定１'!W31)) ->  | X31: =IF('補正（ｋW）指定１'!X31="","",IF($E$2="作成不要","",'補正（ｋW）指定１'!X31)) ->  | Y31: =IF('補正（ｋW）指定１'!Y31="","",IF($E$2="作成不要","",'補正（ｋW）指定１'!Y31)) ->  | Z31: =IF('補正（ｋW）指定１'!Z31="","",IF($E$2="作成不要","",'補正（ｋW）指定１'!Z31)) ->  | AA31: =IF('補正（ｋW）指定１'!AA31="","",IF($E$2="作成不要","",'補正（ｋW）指定１'!AA31)) ->  | AB31: =IF('補正（ｋW）指定１'!AB31="","",IF($E$2="作成不要","",'補正（ｋW）指定１'!AB31)) ->  | AE31: =IF(Z31="","",Z31) ->  | AF31: =IF(AF30="","",AF30-AF32) -> 
D32: （内訳）離島分 | E32: =IF('補正（ｋW）指定１'!E32="","",IF($E$2="作成不要","",'補正（ｋW）指定１'!E32)) ->  | F32: =IF('補正（ｋW）指定１'!F32="","",IF($E$2="作成不要","",'補正（ｋW）指定１'!F32)) ->  | G32: =IF('補正（ｋW）指定１'!G32="","",IF($E$2="作成不要","",'補正（ｋW）指定１'!G32)) ->  | H32: =IF('補正（ｋW）指定１'!H32="","",IF($E$2="作成不要","",'補正（ｋW）指定１'!H32)) ->  | I32: =IF('補正（ｋW）指定１'!I32="","",IF($E$2="作成不要","",'補正（ｋW）指定１'!I32)) ->  | J32: =IF('補正（ｋW）指定１'!J32="","",IF($E$2="作成不要","",'補正（ｋW）指定１'!J32)) ->  | K32: =IF('補正（ｋW）指定１'!K32="","",IF($E$2="作成不要","",'補正（ｋW）指定１'!K32)) ->  | L32: =IF('補正（ｋW）指定１'!L32="","",IF($E$2="作成不要","",'補正（ｋW）指定１'!L32)) ->  | M32: =IF('補正（ｋW）指定１'!M32="","",IF($E$2="作成不要","",'補正（ｋW）指定１'!M32)) ->  | N32: =IF('補正（ｋW）指定１'!N32="","",IF($E$2="作成不要","",'補正（ｋW）指定１'!N32)) ->  | O32: =IF('補正（ｋW）指定１'!O32="","",IF($E$2="作成不要","",'補正（ｋW）指定１'!O32)) ->  | P32: =IF('補正（ｋW）指定１'!P32="","",IF($E$2="作成不要","",'補正（ｋW）指定１'!P32)) ->  | Q32: =IF('補正（ｋW）指定１'!Q32="","",IF($E$2="作成不要","",'補正（ｋW）指定１'!Q32)) ->  | R32: =IF('補正（ｋW）指定１'!R32="","",IF($E$2="作成不要","",'補正（ｋW）指定１'!R32)) ->  | S32: =IF('補正（ｋW）指定１'!S32="","",IF($E$2="作成不要","",'補正（ｋW）指定１'!S32)) ->  | T32: =IF('補正（ｋW）指定１'!T32="","",IF($E$2="作成不要","",'補正（ｋW）指定１'!T32)) ->  | U32: =IF('補正（ｋW）指定１'!U32="","",IF($E$2="作成不要","",'補正（ｋW）指定１'!U32)) ->  | V32: =IF('補正（ｋW）指定１'!V32="","",IF($E$2="作成不要","",'補正（ｋW）指定１'!V32)) ->  | W32: =IF('補正（ｋW）指定１'!W32="","",IF($E$2="作成不要","",'補正（ｋW）指定１'!W32)) ->  | X32: =IF('補正（ｋW）指定１'!X32="","",IF($E$2="作成不要","",'補正（ｋW）指定１'!X32)) ->  | Y32: =IF('補正（ｋW）指定１'!Y32="","",IF($E$2="作成不要","",'補正（ｋW）指定１'!Y32)) ->  | Z32: =IF('補正（ｋW）指定１'!Z32="","",IF($E$2="作成不要","",'補正（ｋW）指定１'!Z32)) ->  | AA32: =IF('補正（ｋW）指定１'!AA32="","",IF($E$2="作成不要","",'補正（ｋW）指定１'!AA32)) ->  | AB32: =IF('補正（ｋW）指定１'!AB32="","",IF($E$2="作成不要","",'補正（ｋW）指定１'!AB32)) ->  | AE32: =IF(Z32="","",Z32) -> 
A33: ひっ迫時需要抑制電力 （送電端） | D33: 小売電気事業者 | E33: =IF('補正（ｋW）指定１'!E33="","",IF($E$2="作成不要","",'補正（ｋW）指定１'!E33)) ->  | F33: =IF('補正（ｋW）指定１'!F33="","",IF($E$2="作成不要","",'補正（ｋW）指定１'!F33)) ->  | G33: =IF('補正（ｋW）指定１'!G33="","",IF($E$2="作成不要","",'補正（ｋW）指定１'!G33)) ->  | H33: =IF('補正（ｋW）指定１'!H33="","",IF($E$2="作成不要","",'補正（ｋW）指定１'!H33)) ->  | I33: =IF('補正（ｋW）指定１'!I33="","",IF($E$2="作成不要","",'補正（ｋW）指定１'!I33)) ->  | J33: =IF('補正（ｋW）指定１'!J33="","",IF($E$2="作成不要","",'補正（ｋW）指定１'!J33)) ->  | K33: =IF('補正（ｋW）指定１'!K33="","",IF($E$2="作成不要","",'補正（ｋW）指定１'!K33)) ->  | L33: =IF('補正（ｋW）指定１'!L33="","",IF($E$2="作成不要","",'補正（ｋW）指定１'!L33)) ->  | M33: =IF('補正（ｋW）指定１'!M33="","",IF($E$2="作成不要","",'補正（ｋW）指定１'!M33)) ->  | N33: =IF('補正（ｋW）指定１'!N33="","",IF($E$2="作成不要","",'補正（ｋW）指定１'!N33)) ->  | O33: =IF('補正（ｋW）指定１'!O33="","",IF($E$2="作成不要","",'補正（ｋW）指定１'!O33)) ->  | P33: =IF('補正（ｋW）指定１'!P33="","",IF($E$2="作成不要","",'補正（ｋW）指定１'!P33)) ->  | Q33: =IF('補正（ｋW）指定１'!Q33="","",IF($E$2="作成不要","",'補正（ｋW）指定１'!Q33)) ->  | R33: =IF('補正（ｋW）指定１'!R33="","",IF($E$2="作成不要","",'補正（ｋW）指定１'!R33)) ->  | S33: =IF('補正（ｋW）指定１'!S33="","",IF($E$2="作成不要","",'補正（ｋW）指定１'!S33)) ->  | T33: =IF('補正（ｋW）指定１'!T33="","",IF($E$2="作成不要","",'補正（ｋW）指定１'!T33)) ->  | U33: =IF('補正（ｋW）指定１'!U33="","",IF($E$2="作成不要","",'補正（ｋW）指定１'!U33)) ->  | V33: =IF('補正（ｋW）指定１'!V33="","",IF($E$2="作成不要","",'補正（ｋW）指定１'!V33)) ->  | W33: =IF('補正（ｋW）指定１'!W33="","",IF($E$2="作成不要","",'補正（ｋW）指定１'!W33)) ->  | X33: =IF('補正（ｋW）指定１'!X33="","",IF($E$2="作成不要","",'補正（ｋW）指定１'!X33)) ->  | Y33: =IF('補正（ｋW）指定１'!Y33="","",IF($E$2="作成不要","",'補正（ｋW）指定１'!Y33)) ->  | Z33: =IF('補正（ｋW）指定１'!Z33="","",IF($E$2="作成不要","",'補正（ｋW）指定１'!Z33)) ->  | AA33: =IF('補正（ｋW）指定１'!AA33="","",IF($E$2="作成不要","",'補正（ｋW）指定１'!AA33)) ->  | AB33: =IF('補正（ｋW）指定１'!AB33="","",IF($E$2="作成不要","",'補正（ｋW）指定１'!AB33)) ->  | AE33: =IF(Z33="","",Z33) -> 
D34: 一般送配電事業者 | E34: =IF('補正（ｋW）指定１'!E34="","",IF($E$2="作成不要","",'補正（ｋW）指定１'!E34)) ->  | F34: =IF('補正（ｋW）指定１'!F34="","",IF($E$2="作成不要","",'補正（ｋW）指定１'!F34)) ->  | G34: =IF('補正（ｋW）指定１'!G34="","",IF($E$2="作成不要","",'補正（ｋW）指定１'!G34)) ->  | H34: =IF('補正（ｋW）指定１'!H34="","",IF($E$2="作成不要","",'補正（ｋW）指定１'!H34)) ->  | I34: =IF('補正（ｋW）指定１'!I34="","",IF($E$2="作成不要","",'補正（ｋW）指定１'!I34)) ->  | J34: =IF('補正（ｋW）指定１'!J34="","",IF($E$2="作成不要","",'補正（ｋW）指定１'!J34)) ->  | K34: =IF('補正（ｋW）指定１'!K34="","",IF($E$2="作成不要","",'補正（ｋW）指定１'!K34)) ->  | L34: =IF('補正（ｋW）指定１'!L34="","",IF($E$2="作成不要","",'補正（ｋW）指定１'!L34)) ->  | M34: =IF('補正（ｋW）指定１'!M34="","",IF($E$2="作成不要","",'補正（ｋW）指定１'!M34)) ->  | N34: =IF('補正（ｋW）指定１'!N34="","",IF($E$2="作成不要","",'補正（ｋW）指定１'!N34)) ->  | O34: =IF('補正（ｋW）指定１'!O34="","",IF($E$2="作成不要","",'補正（ｋW）指定１'!O34)) ->  | P34: =IF('補正（ｋW）指定１'!P34="","",IF($E$2="作成不要","",'補正（ｋW）指定１'!P34)) ->  | Q34: =IF('補正（ｋW）指定１'!Q34="","",IF($E$2="作成不要","",'補正（ｋW）指定１'!Q34)) ->  | R34: =IF('補正（ｋW）指定１'!R34="","",IF($E$2="作成不要","",'補正（ｋW）指定１'!R34)) ->  | S34: =IF('補正（ｋW）指定１'!S34="","",IF($E$2="作成不要","",'補正（ｋW）指定１'!S34)) ->  | T34: =IF('補正（ｋW）指定１'!T34="","",IF($E$2="作成不要","",'補正（ｋW）指定１'!T34)) ->  | U34: =IF('補正（ｋW）指定１'!U34="","",IF($E$2="作成不要","",'補正（ｋW）指定１'!U34)) ->  | V34: =IF('補正（ｋW）指定１'!V34="","",IF($E$2="作成不要","",'補正（ｋW）指定１'!V34)) ->  | W34: =IF('補正（ｋW）指定１'!W34="","",IF($E$2="作成不要","",'補正（ｋW）指定１'!W34)) ->  | X34: =IF('補正（ｋW）指定１'!X34="","",IF($E$2="作成不要","",'補正（ｋW）指定１'!X34)) ->  | Y34: =IF('補正（ｋW）指定１'!Y34="","",IF($E$2="作成不要","",'補正（ｋW）指定１'!Y34)) ->  | Z34: =IF('補正（ｋW）指定１'!Z34="","",IF($E$2="作成不要","",'補正（ｋW）指定１'!Z34)) ->  | AA34: =IF('補正（ｋW）指定１'!AA34="","",IF($E$2="作成不要","",'補正（ｋW）指定１'!AA34)) ->  | AB34: =IF('補正（ｋW）指定１'!AB34="","",IF($E$2="作成不要","",'補正（ｋW）指定１'!AB34)) -> 
A35: 供給予備力送電端 | E35: =IF('補正（ｋW）指定１'!E35="","",IF($E$2="作成不要","",'補正（ｋW）指定１'!E35)) ->  | F35: =IF('補正（ｋW）指定１'!F35="","",IF($E$2="作成不要","",'補正（ｋW）指定１'!F35)) ->  | G35: =IF('補正（ｋW）指定１'!G35="","",IF($E$2="作成不要","",'補正（ｋW）指定１'!G35)) ->  | H35: =IF('補正（ｋW）指定１'!H35="","",IF($E$2="作成不要","",'補正（ｋW）指定１'!H35)) ->  | I35: =IF('補正（ｋW）指定１'!I35="","",IF($E$2="作成不要","",'補正（ｋW）指定１'!I35)) ->  | J35: =IF('補正（ｋW）指定１'!J35="","",IF($E$2="作成不要","",'補正（ｋW）指定１'!J35)) ->  | K35: =IF('補正（ｋW）指定１'!K35="","",IF($E$2="作成不要","",'補正（ｋW）指定１'!K35)) ->  | L35: =IF('補正（ｋW）指定１'!L35="","",IF($E$2="作成不要","",'補正（ｋW）指定１'!L35)) ->  | M35: =IF('補正（ｋW）指定１'!M35="","",IF($E$2="作成不要","",'補正（ｋW）指定１'!M35)) ->  | N35: =IF('補正（ｋW）指定１'!N35="","",IF($E$2="作成不要","",'補正（ｋW）指定１'!N35)) ->  | O35: =IF('補正（ｋW）指定１'!O35="","",IF($E$2="作成不要","",'補正（ｋW）指定１'!O35)) ->  | P35: =IF('補正（ｋW）指定１'!P35="","",IF($E$2="作成不要","",'補正（ｋW）指定１'!P35)) ->  | Q35: =IF('補正（ｋW）指定１'!Q35="","",IF($E$2="作成不要","",'補正（ｋW）指定１'!Q35)) ->  | R35: =IF('補正（ｋW）指定１'!R35="","",IF($E$2="作成不要","",'補正（ｋW）指定１'!R35)) ->  | S35: =IF('補正（ｋW）指定１'!S35="","",IF($E$2="作成不要","",'補正（ｋW）指定１'!S35)) ->  | T35: =IF('補正（ｋW）指定１'!T35="","",IF($E$2="作成不要","",'補正（ｋW）指定１'!T35)) ->  | U35: =IF('補正（ｋW）指定１'!U35="","",IF($E$2="作成不要","",'補正（ｋW）指定１'!U35)) ->  | V35: =IF('補正（ｋW）指定１'!V35="","",IF($E$2="作成不要","",'補正（ｋW）指定１'!V35)) ->  | W35: =IF('補正（ｋW）指定１'!W35="","",IF($E$2="作成不要","",'補正（ｋW）指定１'!W35)) ->  | X35: =IF('補正（ｋW）指定１'!X35="","",IF($E$2="作成不要","",'補正（ｋW）指定１'!X35)) ->  | Y35: =IF('補正（ｋW）指定１'!Y35="","",IF($E$2="作成不要","",'補正（ｋW）指定１'!Y35)) ->  | Z35: =IF('補正（ｋW）指定１'!Z35="","",IF($E$2="作成不要","",'補正（ｋW）指定１'!Z35)) ->  | AA35: =IF('補正（ｋW）指定１'!AA35="","",IF($E$2="作成不要","",'補正（ｋW）指定１'!AA35)) ->  | AB35: =IF('補正（ｋW）指定１'!AB35="","",IF($E$2="作成不要","",'補正（ｋW）指定１'!AB35)) ->  | AC35: =IF(AC29="","",IF(AC30="","",AC29-AC30)) ->  | AF35: =IF(AF29="","",IF(AF30="","",AF29-AF30)) -> 
A36: 下段：ひっ迫時需要抑制電力反映時 | E36: =IF('補正（ｋW）指定１'!E36="","",IF($E$2="作成不要","",'補正（ｋW）指定１'!E36)) ->  | F36: =IF('補正（ｋW）指定１'!F36="","",IF($E$2="作成不要","",'補正（ｋW）指定１'!F36)) ->  | G36: =IF('補正（ｋW）指定１'!G36="","",IF($E$2="作成不要","",'補正（ｋW）指定１'!G36)) ->  | H36: =IF('補正（ｋW）指定１'!H36="","",IF($E$2="作成不要","",'補正（ｋW）指定１'!H36)) ->  | I36: =IF('補正（ｋW）指定１'!I36="","",IF($E$2="作成不要","",'補正（ｋW）指定１'!I36)) ->  | J36: =IF('補正（ｋW）指定１'!J36="","",IF($E$2="作成不要","",'補正（ｋW）指定１'!J36)) ->  | K36: =IF('補正（ｋW）指定１'!K36="","",IF($E$2="作成不要","",'補正（ｋW）指定１'!K36)) ->  | L36: =IF('補正（ｋW）指定１'!L36="","",IF($E$2="作成不要","",'補正（ｋW）指定１'!L36)) ->  | M36: =IF('補正（ｋW）指定１'!M36="","",IF($E$2="作成不要","",'補正（ｋW）指定１'!M36)) ->  | N36: =IF('補正（ｋW）指定１'!N36="","",IF($E$2="作成不要","",'補正（ｋW）指定１'!N36)) ->  | O36: =IF('補正（ｋW）指定１'!O36="","",IF($E$2="作成不要","",'補正（ｋW）指定１'!O36)) ->  | P36: =IF('補正（ｋW）指定１'!P36="","",IF($E$2="作成不要","",'補正（ｋW）指定１'!P36)) ->  | Q36: =IF('補正（ｋW）指定１'!Q36="","",IF($E$2="作成不要","",'補正（ｋW）指定１'!Q36)) ->  | R36: =IF('補正（ｋW）指定１'!R36="","",IF($E$2="作成不要","",'補正（ｋW）指定１'!R36)) ->  | S36: =IF('補正（ｋW）指定１'!S36="","",IF($E$2="作成不要","",'補正（ｋW）指定１'!S36)) ->  | T36: =IF('補正（ｋW）指定１'!T36="","",IF($E$2="作成不要","",'補正（ｋW）指定１'!T36)) ->  | U36: =IF('補正（ｋW）指定１'!U36="","",IF($E$2="作成不要","",'補正（ｋW）指定１'!U36)) ->  | V36: =IF('補正（ｋW）指定１'!V36="","",IF($E$2="作成不要","",'補正（ｋW）指定１'!V36)) ->  | W36: =IF('補正（ｋW）指定１'!W36="","",IF($E$2="作成不要","",'補正（ｋW）指定１'!W36)) ->  | X36: =IF('補正（ｋW）指定１'!X36="","",IF($E$2="作成不要","",'補正（ｋW）指定１'!X36)) ->  | Y36: =IF('補正（ｋW）指定１'!Y36="","",IF($E$2="作成不要","",'補正（ｋW）指定１'!Y36)) ->  | Z36: =IF('補正（ｋW）指定１'!Z36="","",IF($E$2="作成不要","",'補正（ｋW）指定１'!Z36)) ->  | AA36: =IF('補正（ｋW）指定１'!AA36="","",IF($E$2="作成不要","",'補正（ｋW）指定１'!AA36)) ->  | AB36: =IF('補正（ｋW）指定１'!AB36="","",IF($E$2="作成不要","",'補正（ｋW）指定１'!AB36)) ->  | AC36: =IF(AC29="","",IF(AC30="","",AC29-(AC30-SUM(AC33:AC34)))) ->  | AF36: =IF(AF29="","",IF(AF30="","",AF29-(AF30-SUM(AF33:AF34)))) -> 
A37: 供給予備率（％） | E37: =IF('補正（ｋW）指定１'!E37="","",IF($E$2="作成不要","",'補正（ｋW）指定１'!E37)) ->  | F37: =IF('補正（ｋW）指定１'!F37="","",IF($E$2="作成不要","",'補正（ｋW）指定１'!F37)) ->  | G37: =IF('補正（ｋW）指定１'!G37="","",IF($E$2="作成不要","",'補正（ｋW）指定１'!G37)) ->  | H37: =IF('補正（ｋW）指定１'!H37="","",IF($E$2="作成不要","",'補正（ｋW）指定１'!H37)) ->  | I37: =IF('補正（ｋW）指定１'!I37="","",IF($E$2="作成不要","",'補正（ｋW）指定１'!I37)) ->  | J37: =IF('補正（ｋW）指定１'!J37="","",IF($E$2="作成不要","",'補正（ｋW）指定１'!J37)) ->  | K37: =IF('補正（ｋW）指定１'!K37="","",IF($E$2="作成不要","",'補正（ｋW）指定１'!K37)) ->  | L37: =IF('補正（ｋW）指定１'!L37="","",IF($E$2="作成不要","",'補正（ｋW）指定１'!L37)) ->  | M37: =IF('補正（ｋW）指定１'!M37="","",IF($E$2="作成不要","",'補正（ｋW）指定１'!M37)) ->  | N37: =IF('補正（ｋW）指定１'!N37="","",IF($E$2="作成不要","",'補正（ｋW）指定１'!N37)) ->  | O37: =IF('補正（ｋW）指定１'!O37="","",IF($E$2="作成不要","",'補正（ｋW）指定１'!O37)) ->  | P37: =IF('補正（ｋW）指定１'!P37="","",IF($E$2="作成不要","",'補正（ｋW）指定１'!P37)) ->  | Q37: =IF('補正（ｋW）指定１'!Q37="","",IF($E$2="作成不要","",'補正（ｋW）指定１'!Q37)) ->  | R37: =IF('補正（ｋW）指定１'!R37="","",IF($E$2="作成不要","",'補正（ｋW）指定１'!R37)) ->  | S37: =IF('補正（ｋW）指定１'!S37="","",IF($E$2="作成不要","",'補正（ｋW）指定１'!S37)) ->  | T37: =IF('補正（ｋW）指定１'!T37="","",IF($E$2="作成不要","",'補正（ｋW）指定１'!T37)) ->  | U37: =IF('補正（ｋW）指定１'!U37="","",IF($E$2="作成不要","",'補正（ｋW）指定１'!U37)) ->  | V37: =IF('補正（ｋW）指定１'!V37="","",IF($E$2="作成不要","",'補正（ｋW）指定１'!V37)) ->  | W37: =IF('補正（ｋW）指定１'!W37="","",IF($E$2="作成不要","",'補正（ｋW）指定１'!W37)) ->  | X37: =IF('補正（ｋW）指定１'!X37="","",IF($E$2="作成不要","",'補正（ｋW）指定１'!X37)) ->  | Y37: =IF('補正（ｋW）指定１'!Y37="","",IF($E$2="作成不要","",'補正（ｋW）指定１'!Y37)) ->  | Z37: =IF('補正（ｋW）指定１'!Z37="","",IF($E$2="作成不要","",'補正（ｋW）指定１'!Z37)) ->  | AA37: =IF('補正（ｋW）指定１'!AA37="","",IF($E$2="作成不要","",'補正（ｋW）指定１'!AA37)) ->  | AB37: =IF('補正（ｋW）指定１'!AB37="","",IF($E$2="作成不要","",'補正（ｋW）指定１'!AB37)) ->  | AC37: =IF(AC35="","",AC35/AC30*100) ->  | AF37: =IF(AF35="","",AF35/AF30*100) -> 
A38: 下段：ひっ迫時需要抑制電力反映時 | E38: =IF('補正（ｋW）指定１'!E38="","",IF($E$2="作成不要","",'補正（ｋW）指定１'!E38)) ->  | F38: =IF('補正（ｋW）指定１'!F38="","",IF($E$2="作成不要","",'補正（ｋW）指定１'!F38)) ->  | G38: =IF('補正（ｋW）指定１'!G38="","",IF($E$2="作成不要","",'補正（ｋW）指定１'!G38)) ->  | H38: =IF('補正（ｋW）指定１'!H38="","",IF($E$2="作成不要","",'補正（ｋW）指定１'!H38)) ->  | I38: =IF('補正（ｋW）指定１'!I38="","",IF($E$2="作成不要","",'補正（ｋW）指定１'!I38)) ->  | J38: =IF('補正（ｋW）指定１'!J38="","",IF($E$2="作成不要","",'補正（ｋW）指定１'!J38)) ->  | K38: =IF('補正（ｋW）指定１'!K38="","",IF($E$2="作成不要","",'補正（ｋW）指定１'!K38)) ->  | L38: =IF('補正（ｋW）指定１'!L38="","",IF($E$2="作成不要","",'補正（ｋW）指定１'!L38)) ->  | M38: =IF('補正（ｋW）指定１'!M38="","",IF($E$2="作成不要","",'補正（ｋW）指定１'!M38)) ->  | N38: =IF('補正（ｋW）指定１'!N38="","",IF($E$2="作成不要","",'補正（ｋW）指定１'!N38)) ->  | O38: =IF('補正（ｋW）指定１'!O38="","",IF($E$2="作成不要","",'補正（ｋW）指定１'!O38)) ->  | P38: =IF('補正（ｋW）指定１'!P38="","",IF($E$2="作成不要","",'補正（ｋW）指定１'!P38)) ->  | Q38: =IF('補正（ｋW）指定１'!Q38="","",IF($E$2="作成不要","",'補正（ｋW）指定１'!Q38)) ->  | R38: =IF('補正（ｋW）指定１'!R38="","",IF($E$2="作成不要","",'補正（ｋW）指定１'!R38)) ->  | S38: =IF('補正（ｋW）指定１'!S38="","",IF($E$2="作成不要","",'補正（ｋW）指定１'!S38)) ->  | T38: =IF('補正（ｋW）指定１'!T38="","",IF($E$2="作成不要","",'補正（ｋW）指定１'!T38)) ->  | U38: =IF('補正（ｋW）指定１'!U38="","",IF($E$2="作成不要","",'補正（ｋW）指定１'!U38)) ->  | V38: =IF('補正（ｋW）指定１'!V38="","",IF($E$2="作成不要","",'補正（ｋW）指定１'!V38)) ->  | W38: =IF('補正（ｋW）指定１'!W38="","",IF($E$2="作成不要","",'補正（ｋW）指定１'!W38)) ->  | X38: =IF('補正（ｋW）指定１'!X38="","",IF($E$2="作成不要","",'補正（ｋW）指定１'!X38)) ->  | Y38: =IF('補正（ｋW）指定１'!Y38="","",IF($E$2="作成不要","",'補正（ｋW）指定１'!Y38)) ->  | Z38: =IF('補正（ｋW）指定１'!Z38="","",IF($E$2="作成不要","",'補正（ｋW）指定１'!Z38)) ->  | AA38: =IF('補正（ｋW）指定１'!AA38="","",IF($E$2="作成不要","",'補正（ｋW）指定１'!AA38)) ->  | AB38: =IF('補正（ｋW）指定１'!AB38="","",IF($E$2="作成不要","",'補正（ｋW）指定１'!AB38)) ->  | AC38: =IF(AC36="","",AC36/(AC30)*100) ->  | AF38: =IF(AF36="","",AF36/(AF30)*100) ->  | AG38: =IF(AG36="","",AG36/(AG30)*100) -> 
A39: 調整力確保量 | E39: =IF('補正（ｋW）指定１'!E39="","",IF($E$2="作成不要","",'補正（ｋW）指定１'!E39)) ->  | F39: =IF('補正（ｋW）指定１'!F39="","",IF($E$2="作成不要","",'補正（ｋW）指定１'!F39)) ->  | G39: =IF('補正（ｋW）指定１'!G39="","",IF($E$2="作成不要","",'補正（ｋW）指定１'!G39)) ->  | H39: =IF('補正（ｋW）指定１'!H39="","",IF($E$2="作成不要","",'補正（ｋW）指定１'!H39)) ->  | I39: =IF('補正（ｋW）指定１'!I39="","",IF($E$2="作成不要","",'補正（ｋW）指定１'!I39)) ->  | J39: =IF('補正（ｋW）指定１'!J39="","",IF($E$2="作成不要","",'補正（ｋW）指定１'!J39)) ->  | K39: =IF('補正（ｋW）指定１'!K39="","",IF($E$2="作成不要","",'補正（ｋW）指定１'!K39)) ->  | L39: =IF('補正（ｋW）指定１'!L39="","",IF($E$2="作成不要","",'補正（ｋW）指定１'!L39)) ->  | M39: =IF('補正（ｋW）指定１'!M39="","",IF($E$2="作成不要","",'補正（ｋW）指定１'!M39)) ->  | N39: =IF('補正（ｋW）指定１'!N39="","",IF($E$2="作成不要","",'補正（ｋW）指定１'!N39)) ->  | O39: =IF('補正（ｋW）指定１'!O39="","",IF($E$2="作成不要","",'補正（ｋW）指定１'!O39)) ->  | P39: =IF('補正（ｋW）指定１'!P39="","",IF($E$2="作成不要","",'補正（ｋW）指定１'!P39)) ->  | Q39: =IF('補正（ｋW）指定１'!Q39="","",IF($E$2="作成不要","",'補正（ｋW）指定１'!Q39)) ->  | R39: =IF('補正（ｋW）指定１'!R39="","",IF($E$2="作成不要","",'補正（ｋW）指定１'!R39)) ->  | S39: =IF('補正（ｋW）指定１'!S39="","",IF($E$2="作成不要","",'補正（ｋW）指定１'!S39)) ->  | T39: =IF('補正（ｋW）指定１'!T39="","",IF($E$2="作成不要","",'補正（ｋW）指定１'!T39)) ->  | U39: =IF('補正（ｋW）指定１'!U39="","",IF($E$2="作成不要","",'補正（ｋW）指定１'!U39)) ->  | V39: =IF('補正（ｋW）指定１'!V39="","",IF($E$2="作成不要","",'補正（ｋW）指定１'!V39)) ->  | W39: =IF('補正（ｋW）指定１'!W39="","",IF($E$2="作成不要","",'補正（ｋW）指定１'!W39)) ->  | X39: =IF('補正（ｋW）指定１'!X39="","",IF($E$2="作成不要","",'補正（ｋW）指定１'!X39)) ->  | Y39: =IF('補正（ｋW）指定１'!Y39="","",IF($E$2="作成不要","",'補正（ｋW）指定１'!Y39)) ->  | Z39: =IF('補正（ｋW）指定１'!Z39="","",IF($E$2="作成不要","",'補正（ｋW）指定１'!Z39)) ->  | AA39: =IF('補正（ｋW）指定１'!AA39="","",IF($E$2="作成不要","",'補正（ｋW）指定１'!AA39)) ->  | AB39: =IF('補正（ｋW）指定１'!AB39="","",IF($E$2="作成不要","",'補正（ｋW）指定１'!AB39)) ->  | AE39: =IF(Z39="","",Z39) -> 
A40: 調整力（％） | E40: =IF('補正（ｋW）指定１'!E40="","",IF($E$2="作成不要","",'補正（ｋW）指定１'!E40)) ->  | F40: =IF('補正（ｋW）指定１'!F40="","",IF($E$2="作成不要","",'補正（ｋW）指定１'!F40)) ->  | G40: =IF('補正（ｋW）指定１'!G40="","",IF($E$2="作成不要","",'補正（ｋW）指定１'!G40)) ->  | H40: =IF('補正（ｋW）指定１'!H40="","",IF($E$2="作成不要","",'補正（ｋW）指定１'!H40)) ->  | I40: =IF('補正（ｋW）指定１'!I40="","",IF($E$2="作成不要","",'補正（ｋW）指定１'!I40)) ->  | J40: =IF('補正（ｋW）指定１'!J40="","",IF($E$2="作成不要","",'補正（ｋW）指定１'!J40)) ->  | K40: =IF('補正（ｋW）指定１'!K40="","",IF($E$2="作成不要","",'補正（ｋW）指定１'!K40)) ->  | L40: =IF('補正（ｋW）指定１'!L40="","",IF($E$2="作成不要","",'補正（ｋW）指定１'!L40)) ->  | M40: =IF('補正（ｋW）指定１'!M40="","",IF($E$2="作成不要","",'補正（ｋW）指定１'!M40)) ->  | N40: =IF('補正（ｋW）指定１'!N40="","",IF($E$2="作成不要","",'補正（ｋW）指定１'!N40)) ->  | O40: =IF('補正（ｋW）指定１'!O40="","",IF($E$2="作成不要","",'補正（ｋW）指定１'!O40)) ->  | P40: =IF('補正（ｋW）指定１'!P40="","",IF($E$2="作成不要","",'補正（ｋW）指定１'!P40)) ->  | Q40: =IF('補正（ｋW）指定１'!Q40="","",IF($E$2="作成不要","",'補正（ｋW）指定１'!Q40)) ->  | R40: =IF('補正（ｋW）指定１'!R40="","",IF($E$2="作成不要","",'補正（ｋW）指定１'!R40)) ->  | S40: =IF('補正（ｋW）指定１'!S40="","",IF($E$2="作成不要","",'補正（ｋW）指定１'!S40)) ->  | T40: =IF('補正（ｋW）指定１'!T40="","",IF($E$2="作成不要","",'補正（ｋW）指定１'!T40)) ->  | U40: =IF('補正（ｋW）指定１'!U40="","",IF($E$2="作成不要","",'補正（ｋW）指定１'!U40)) ->  | V40: =IF('補正（ｋW）指定１'!V40="","",IF($E$2="作成不要","",'補正（ｋW）指定１'!V40)) ->  | W40: =IF('補正（ｋW）指定１'!W40="","",IF($E$2="作成不要","",'補正（ｋW）指定１'!W40)) ->  | X40: =IF('補正（ｋW）指定１'!X40="","",IF($E$2="作成不要","",'補正（ｋW）指定１'!X40)) ->  | Y40: =IF('補正（ｋW）指定１'!Y40="","",IF($E$2="作成不要","",'補正（ｋW）指定１'!Y40)) ->  | Z40: =IF('補正（ｋW）指定１'!Z40="","",IF($E$2="作成不要","",'補正（ｋW）指定１'!Z40)) ->  | AA40: =IF('補正（ｋW）指定１'!AA40="","",IF($E$2="作成不要","",'補正（ｋW）指定１'!AA40)) ->  | AB40: =IF('補正（ｋW）指定１'!AB40="","",IF($E$2="作成不要","",'補正（ｋW）指定１'!AB40)) ->  | AC40: =IF(AC30="","",IF(AC39="","",AC39/AC30*100)) ->  | AE40: =IF(Z40="","",Z40) -> 
A41: 年度末電源構成 | B41: 水力発電所 | AC41: =IF('補正（ｋW）指定１'!AC41="","",IF($E$2="作成不要","",'補正（ｋW）指定１'!AC41)) ->  | AD41: =IF('補正（ｋW）指定１'!AD41="","",IF($E$2="作成不要","",'補正（ｋW）指定１'!AD41)) ->  | AE41: =IF(AE42="",IF(AE43="","",SUM(AE42:AE43)),SUM(AE42:AE43)) ->  | AH41: =IF('補正（ｋW）指定１'!AH41="","",IF($E$2="作成不要","",'補正（ｋW）指定１'!AH41)) ->  | AI41: =IF(AI42="",IF(AI43="","",SUM(AI42:AI43)),SUM(AI42:AI43)) ->  | AM41: =IF('補正（ｋW）指定１'!AM41="","",IF($E$2="作成不要","",'補正（ｋW）指定１'!AM41)) -> 
D42: 一般 | AC42: =IF('補正（ｋW）指定１'!AC42="","",IF($E$2="作成不要","",'補正（ｋW）指定１'!AC42)) ->  | AD42: =IF('補正（ｋW）指定１'!AD42="","",IF($E$2="作成不要","",'補正（ｋW）指定１'!AD42)) ->  | AH42: =IF('補正（ｋW）指定１'!AH42="","",IF($E$2="作成不要","",'補正（ｋW）指定１'!AH42)) ->  | AM42: =IF('補正（ｋW）指定１'!AM42="","",IF($E$2="作成不要","",'補正（ｋW）指定１'!AM42)) -> 
D43: 揚水 | AC43: =IF('補正（ｋW）指定１'!AC43="","",IF($E$2="作成不要","",'補正（ｋW）指定１'!AC43)) ->  | AD43: =IF('補正（ｋW）指定１'!AD43="","",IF($E$2="作成不要","",'補正（ｋW）指定１'!AD43)) ->  | AH43: =IF('補正（ｋW）指定１'!AH43="","",IF($E$2="作成不要","",'補正（ｋW）指定１'!AH43)) ->  | AM43: =IF('補正（ｋW）指定１'!AM43="","",IF($E$2="作成不要","",'補正（ｋW）指定１'!AM43)) -> 
B44: 火力発電所 | AC44: =IF('補正（ｋW）指定１'!AC44="","",IF($E$2="作成不要","",'補正（ｋW）指定１'!AC44)) ->  | AD44: =IF('補正（ｋW）指定１'!AD44="","",IF($E$2="作成不要","",'補正（ｋW）指定１'!AD44)) ->  | AH44: =IF('補正（ｋW）指定１'!AH44="","",IF($E$2="作成不要","",'補正（ｋW）指定１'!AH44)) ->  | AM44: =IF('補正（ｋW）指定１'!AM44="","",IF($E$2="作成不要","",'補正（ｋW）指定１'!AM44)) -> 
D45: 石炭 | AC45: =IF('補正（ｋW）指定１'!AC45="","",IF($E$2="作成不要","",'補正（ｋW）指定１'!AC45)) ->  | AD45: =IF('補正（ｋW）指定１'!AD45="","",IF($E$2="作成不要","",'補正（ｋW）指定１'!AD45)) ->  | AH45: =IF('補正（ｋW）指定１'!AH45="","",IF($E$2="作成不要","",'補正（ｋW）指定１'!AH45)) ->  | AM45: =IF('補正（ｋW）指定１'!AM45="","",IF($E$2="作成不要","",'補正（ｋW）指定１'!AM45)) -> 
D46: ＬＮＧ | AC46: =IF('補正（ｋW）指定１'!AC46="","",IF($E$2="作成不要","",'補正（ｋW）指定１'!AC46)) ->  | AD46: =IF('補正（ｋW）指定１'!AD46="","",IF($E$2="作成不要","",'補正（ｋW）指定１'!AD46)) ->  | AH46: =IF('補正（ｋW）指定１'!AH46="","",IF($E$2="作成不要","",'補正（ｋW）指定１'!AH46)) ->  | AM46: =IF('補正（ｋW）指定１'!AM46="","",IF($E$2="作成不要","",'補正（ｋW）指定１'!AM46)) -> 
D47: 石油 | AC47: =IF('補正（ｋW）指定１'!AC47="","",IF($E$2="作成不要","",'補正（ｋW）指定１'!AC47)) ->  | AD47: =IF('補正（ｋW）指定１'!AD47="","",IF($E$2="作成不要","",'補正（ｋW）指定１'!AD47)) ->  | AH47: =IF('補正（ｋW）指定１'!AH47="","",IF($E$2="作成不要","",'補正（ｋW）指定１'!AH47)) ->  | AM47: =IF('補正（ｋW）指定１'!AM47="","",IF($E$2="作成不要","",'補正（ｋW）指定１'!AM47)) -> 
D48: ＬＰＧ | AC48: =IF('補正（ｋW）指定１'!AC48="","",IF($E$2="作成不要","",'補正（ｋW）指定１'!AC48)) ->  | AD48: =IF('補正（ｋW）指定１'!AD48="","",IF($E$2="作成不要","",'補正（ｋW）指定１'!AD48)) ->  | AH48: =IF('補正（ｋW）指定１'!AH48="","",IF($E$2="作成不要","",'補正（ｋW）指定１'!AH48)) ->  | AM48: =IF('補正（ｋW）指定１'!AM48="","",IF($E$2="作成不要","",'補正（ｋW）指定１'!AM48)) -> 
D49: その他ガス | AC49: =IF('補正（ｋW）指定１'!AC49="","",IF($E$2="作成不要","",'補正（ｋW）指定１'!AC49)) ->  | AD49: =IF('補正（ｋW）指定１'!AD49="","",IF($E$2="作成不要","",'補正（ｋW）指定１'!AD49)) ->  | AH49: =IF('補正（ｋW）指定１'!AH49="","",IF($E$2="作成不要","",'補正（ｋW）指定１'!AH49)) ->  | AM49: =IF('補正（ｋW）指定１'!AM49="","",IF($E$2="作成不要","",'補正（ｋW）指定１'!AM49)) -> 
D50: 瀝青質混合物 | AC50: =IF('補正（ｋW）指定１'!AC50="","",IF($E$2="作成不要","",'補正（ｋW）指定１'!AC50)) ->  | AD50: =IF('補正（ｋW）指定１'!AD50="","",IF($E$2="作成不要","",'補正（ｋW）指定１'!AD50)) ->  | AH50: =IF('補正（ｋW）指定１'!AH50="","",IF($E$2="作成不要","",'補正（ｋW）指定１'!AH50)) ->  | AM50: =IF('補正（ｋW）指定１'!AM50="","",IF($E$2="作成不要","",'補正（ｋW）指定１'!AM50)) -> 
B51: 原子力発電所 | AC51: =IF('補正（ｋW）指定１'!AC51="","",IF($E$2="作成不要","",'補正（ｋW）指定１'!AC51)) ->  | AD51: =IF('補正（ｋW）指定１'!AD51="","",IF($E$2="作成不要","",'補正（ｋW）指定１'!AD51)) ->  | AH51: =IF('補正（ｋW）指定１'!AH51="","",IF($E$2="作成不要","",'補正（ｋW）指定１'!AH51)) ->  | AM51: =IF('補正（ｋW）指定１'!AM51="","",IF($E$2="作成不要","",'補正（ｋW）指定１'!AM51)) -> 
B52: 新エネルギー等発電所 | AC52: =IF('補正（ｋW）指定１'!AC52="","",IF($E$2="作成不要","",'補正（ｋW）指定１'!AC52)) ->  | AD52: =IF('補正（ｋW）指定１'!AD52="","",IF($E$2="作成不要","",'補正（ｋW）指定１'!AD52)) ->  | AH52: =IF('補正（ｋW）指定１'!AH52="","",IF($E$2="作成不要","",'補正（ｋW）指定１'!AH52)) ->  | AM52: =IF('補正（ｋW）指定１'!AM52="","",IF($E$2="作成不要","",'補正（ｋW）指定１'!AM52)) -> 
D53: 風力 | AC53: =IF('補正（ｋW）指定１'!AC53="","",IF($E$2="作成不要","",'補正（ｋW）指定１'!AC53)) ->  | AD53: =IF('補正（ｋW）指定１'!AD53="","",IF($E$2="作成不要","",'補正（ｋW）指定１'!AD53)) ->  | AH53: =IF('補正（ｋW）指定１'!AH53="","",IF($E$2="作成不要","",'補正（ｋW）指定１'!AH53)) ->  | AM53: =IF('補正（ｋW）指定１'!AM53="","",IF($E$2="作成不要","",'補正（ｋW）指定１'!AM53)) -> 
D54: 太陽光 | AC54: =IF('補正（ｋW）指定１'!AC54="","",IF($E$2="作成不要","",'補正（ｋW）指定１'!AC54)) ->  | AD54: =IF('補正（ｋW）指定１'!AD54="","",IF($E$2="作成不要","",'補正（ｋW）指定１'!AD54)) ->  | AH54: =IF('補正（ｋW）指定１'!AH54="","",IF($E$2="作成不要","",'補正（ｋW）指定１'!AH54)) ->  | AM54: =IF('補正（ｋW）指定１'!AM54="","",IF($E$2="作成不要","",'補正（ｋW）指定１'!AM54)) -> 
D55: 地熱 | AC55: =IF('補正（ｋW）指定１'!AC55="","",IF($E$2="作成不要","",'補正（ｋW）指定１'!AC55)) ->  | AD55: =IF('補正（ｋW）指定１'!AD55="","",IF($E$2="作成不要","",'補正（ｋW）指定１'!AD55)) ->  | AH55: =IF('補正（ｋW）指定１'!AH55="","",IF($E$2="作成不要","",'補正（ｋW）指定１'!AH55)) ->  | AM55: =IF('補正（ｋW）指定１'!AM55="","",IF($E$2="作成不要","",'補正（ｋW）指定１'!AM55)) -> 
D56: バイオマス | AC56: =IF('補正（ｋW）指定１'!AC56="","",IF($E$2="作成不要","",'補正（ｋW）指定１'!AC56)) ->  | AD56: =IF('補正（ｋW）指定１'!AD56="","",IF($E$2="作成不要","",'補正（ｋW）指定１'!AD56)) ->  | AH56: =IF('補正（ｋW）指定１'!AH56="","",IF($E$2="作成不要","",'補正（ｋW）指定１'!AH56)) ->  | AM56: =IF('補正（ｋW）指定１'!AM56="","",IF($E$2="作成不要","",'補正（ｋW）指定１'!AM56)) -> 
D57: 廃棄物 | AC57: =IF('補正（ｋW）指定１'!AC57="","",IF($E$2="作成不要","",'補正（ｋW）指定１'!AC57)) ->  | AD57: =IF('補正（ｋW）指定１'!AD57="","",IF($E$2="作成不要","",'補正（ｋW）指定１'!AD57)) ->  | AH57: =IF('補正（ｋW）指定１'!AH57="","",IF($E$2="作成不要","",'補正（ｋW）指定１'!AH57)) ->  | AM57: =IF('補正（ｋW）指定１'!AM57="","",IF($E$2="作成不要","",'補正（ｋW）指定１'!AM57)) -> 
D58: 蓄電池 | AC58: =IF('補正（ｋW）指定１'!AC59="","",IF($E$2="作成不要","",'補正（ｋW）指定１'!AC59)) ->  | AD58: =IF('補正（ｋW）指定１'!AD59="","",IF($E$2="作成不要","",'補正（ｋW）指定１'!AD59)) ->  | AH58: =IF('補正（ｋW）指定１'!AH59="","",IF($E$2="作成不要","",'補正（ｋW）指定１'!AH59)) ->  | AM58: =IF('補正（ｋW）指定１'!AM59="","",IF($E$2="作成不要","",'補正（ｋW）指定１'!AM59)) -> 
B59: その他 | AC59: =IF('補正（ｋW）指定１'!AC59="","",IF($E$2="作成不要","",'補正（ｋW）指定１'!AC59)) ->  | AD59: =IF('補正（ｋW）指定１'!AD59="","",IF($E$2="作成不要","",'補正（ｋW）指定１'!AD59)) ->  | AH59: =IF('補正（ｋW）指定１'!AH59="","",IF($E$2="作成不要","",'補正（ｋW）指定１'!AH59)) ->  | AM59: =IF('補正（ｋW）指定１'!AM59="","",IF($E$2="作成不要","",'補正（ｋW）指定１'!AM59)) -> 
B60: 合計 | AC60: =IF('補正（ｋW）指定１'!AC60="","",IF($E$2="作成不要","",'補正（ｋW）指定１'!AC60)) ->  | AD60: =IF('補正（ｋW）指定１'!AD60="","",IF($E$2="作成不要","",'補正（ｋW）指定１'!AD60)) ->  | AH60: =IF('補正（ｋW）指定１'!AH60="","",IF($E$2="作成不要","",'補正（ｋW）指定１'!AH60)) ->  | AM60: =IF('補正（ｋW）指定１'!AM60="","",IF($E$2="作成不要","",'補正（ｋW）指定１'!AM60)) -> 
A63: 供給力補正 | E63: 記載要領 | F63: ・常備BUは、小売送電分はプラス、小売受電分をマイナスで表示（送配電からみると小売送電分は供給力からマイナスされており、小売送電分が受電分を上回ることで供給力が増加したこととなるため）
F64: ・ダブルカウント（突合せ確認）分は、突合せ確認漏れ等の修正として使用すること
F65: ・連系線超過分は、送電超過分はプラス、受電超過分はマイナスで表示
A66: 一般送配電事業者供給力補正 | F66: ・その他補正については、供給計画内容の誤り（供給力の二重計上や誤記等）の修正として使用すること。 | AM66: 【ＭＷ】
A67: =A6 -> 項目 | E67: =E6 -> 2024-01-01 | Q67: =Q6 -> 2025-01-01 | AC67: =AC6 -> 2023-01-01 | AD67: 2024-01-01 | AE67: 2025-01-01 | AF67: 2026-01-02 | AG67: 2027-01-03 | AH67: 2028-01-04 | AI67: 2029-01-04 | AJ67: 2030-01-05 | AK67: 2031-01-06 | AL67: 2032-01-07 | AM67: 2033-01-07
E68: =E7 -> 4月 | F68: =F7 -> 5月 | G68: 6月 | H68: 7月 | I68: 8月 | J68: 9月 | K68: 10月 | L68: 11月 | M68: 12月 | N68: 1月 | O68: 2月 | P68: 3月 | Q68: =Q7 -> 4月 | R68: =R7 -> 5月 | S68: 6月 | T68: 7月 | U68: 8月 | V68: 9月 | W68: 10月 | X68: 11月 | Y68: 12月 | Z68: 1月 | AA68: 2月 | AB68: 3月 | AC68: 実績
A69: 補正 | B69: 常時ＢＵ | D69: 小売送電分 | E69: =IF('補正（ｋW）指定１'!E69="","",IF($E$2="作成不要","",'補正（ｋW）指定１'!E69)) ->  | F69: =IF('補正（ｋW）指定１'!F69="","",IF($E$2="作成不要","",'補正（ｋW）指定１'!F69)) ->  | G69: =IF('補正（ｋW）指定１'!G69="","",IF($E$2="作成不要","",'補正（ｋW）指定１'!G69)) ->  | H69: =IF('補正（ｋW）指定１'!H69="","",IF($E$2="作成不要","",'補正（ｋW）指定１'!H69)) ->  | I69: =IF('補正（ｋW）指定１'!I69="","",IF($E$2="作成不要","",'補正（ｋW）指定１'!I69)) ->  | J69: =IF('補正（ｋW）指定１'!J69="","",IF($E$2="作成不要","",'補正（ｋW）指定１'!J69)) ->  | K69: =IF('補正（ｋW）指定１'!K69="","",IF($E$2="作成不要","",'補正（ｋW）指定１'!K69)) ->  | L69: =IF('補正（ｋW）指定１'!L69="","",IF($E$2="作成不要","",'補正（ｋW）指定１'!L69)) ->  | M69: =IF('補正（ｋW）指定１'!M69="","",IF($E$2="作成不要","",'補正（ｋW）指定１'!M69)) ->  | N69: =IF('補正（ｋW）指定１'!N69="","",IF($E$2="作成不要","",'補正（ｋW）指定１'!N69)) ->  | O69: =IF('補正（ｋW）指定１'!O69="","",IF($E$2="作成不要","",'補正（ｋW）指定１'!O69)) ->  | P69: =IF('補正（ｋW）指定１'!P69="","",IF($E$2="作成不要","",'補正（ｋW）指定１'!P69)) ->  | Q69: =IF('補正（ｋW）指定１'!Q69="","",IF($E$2="作成不要","",'補正（ｋW）指定１'!Q69)) ->  | R69: =IF('補正（ｋW）指定１'!R69="","",IF($E$2="作成不要","",'補正（ｋW）指定１'!R69)) ->  | S69: =IF('補正（ｋW）指定１'!S69="","",IF($E$2="作成不要","",'補正（ｋW）指定１'!S69)) ->  | T69: =IF('補正（ｋW）指定１'!T69="","",IF($E$2="作成不要","",'補正（ｋW）指定１'!T69)) ->  | U69: =IF('補正（ｋW）指定１'!U69="","",IF($E$2="作成不要","",'補正（ｋW）指定１'!U69)) ->  | V69: =IF('補正（ｋW）指定１'!V69="","",IF($E$2="作成不要","",'補正（ｋW）指定１'!V69)) ->  | W69: =IF('補正（ｋW）指定１'!W69="","",IF($E$2="作成不要","",'補正（ｋW）指定１'!W69)) ->  | X69: =IF('補正（ｋW）指定１'!X69="","",IF($E$2="作成不要","",'補正（ｋW）指定１'!X69)) ->  | Y69: =IF('補正（ｋW）指定１'!Y69="","",IF($E$2="作成不要","",'補正（ｋW）指定１'!Y69)) ->  | Z69: =IF('補正（ｋW）指定１'!Z69="","",IF($E$2="作成不要","",'補正（ｋW）指定１'!Z69)) ->  | AA69: =IF('補正（ｋW）指定１'!AA69="","",IF($E$2="作成不要","",'補正（ｋW）指定１'!AA69)) ->  | AB69: =IF('補正（ｋW）指定１'!AB69="","",IF($E$2="作成不要","",'補正（ｋW）指定１'!AB69)) ->  | AD69: =IF(N69="","",N69) ->  | AE69: =IF(Z69="","",Z69) -> 
D70: 小売受電分 | E70: =IF('補正（ｋW）指定１'!E70="","",IF($E$2="作成不要","",'補正（ｋW）指定１'!E70)) ->  | F70: =IF('補正（ｋW）指定１'!F70="","",IF($E$2="作成不要","",'補正（ｋW）指定１'!F70)) ->  | G70: =IF('補正（ｋW）指定１'!G70="","",IF($E$2="作成不要","",'補正（ｋW）指定１'!G70)) ->  | H70: =IF('補正（ｋW）指定１'!H70="","",IF($E$2="作成不要","",'補正（ｋW）指定１'!H70)) ->  | I70: =IF('補正（ｋW）指定１'!I70="","",IF($E$2="作成不要","",'補正（ｋW）指定１'!I70)) ->  | J70: =IF('補正（ｋW）指定１'!J70="","",IF($E$2="作成不要","",'補正（ｋW）指定１'!J70)) ->  | K70: =IF('補正（ｋW）指定１'!K70="","",IF($E$2="作成不要","",'補正（ｋW）指定１'!K70)) ->  | L70: =IF('補正（ｋW）指定１'!L70="","",IF($E$2="作成不要","",'補正（ｋW）指定１'!L70)) ->  | M70: =IF('補正（ｋW）指定１'!M70="","",IF($E$2="作成不要","",'補正（ｋW）指定１'!M70)) ->  | N70: =IF('補正（ｋW）指定１'!N70="","",IF($E$2="作成不要","",'補正（ｋW）指定１'!N70)) ->  | O70: =IF('補正（ｋW）指定１'!O70="","",IF($E$2="作成不要","",'補正（ｋW）指定１'!O70)) ->  | P70: =IF('補正（ｋW）指定１'!P70="","",IF($E$2="作成不要","",'補正（ｋW）指定１'!P70)) ->  | Q70: =IF('補正（ｋW）指定１'!Q70="","",IF($E$2="作成不要","",'補正（ｋW）指定１'!Q70)) ->  | R70: =IF('補正（ｋW）指定１'!R70="","",IF($E$2="作成不要","",'補正（ｋW）指定１'!R70)) ->  | S70: =IF('補正（ｋW）指定１'!S70="","",IF($E$2="作成不要","",'補正（ｋW）指定１'!S70)) ->  | T70: =IF('補正（ｋW）指定１'!T70="","",IF($E$2="作成不要","",'補正（ｋW）指定１'!T70)) ->  | U70: =IF('補正（ｋW）指定１'!U70="","",IF($E$2="作成不要","",'補正（ｋW）指定１'!U70)) ->  | V70: =IF('補正（ｋW）指定１'!V70="","",IF($E$2="作成不要","",'補正（ｋW）指定１'!V70)) ->  | W70: =IF('補正（ｋW）指定１'!W70="","",IF($E$2="作成不要","",'補正（ｋW）指定１'!W70)) ->  | X70: =IF('補正（ｋW）指定１'!X70="","",IF($E$2="作成不要","",'補正（ｋW）指定１'!X70)) ->  | Y70: =IF('補正（ｋW）指定１'!Y70="","",IF($E$2="作成不要","",'補正（ｋW）指定１'!Y70)) ->  | Z70: =IF('補正（ｋW）指定１'!Z70="","",IF($E$2="作成不要","",'補正（ｋW）指定１'!Z70)) ->  | AA70: =IF('補正（ｋW）指定１'!AA70="","",IF($E$2="作成不要","",'補正（ｋW）指定１'!AA70)) ->  | AB70: =IF('補正（ｋW）指定１'!AB70="","",IF($E$2="作成不要","",'補正（ｋW）指定１'!AB70)) -> 
D71: 差 | E71: =IF('補正（ｋW）指定１'!E71="","",'補正（ｋW）指定１'!E71) ->  | F71: =IF('補正（ｋW）指定１'!F71="","",'補正（ｋW）指定１'!F71) ->  | G71: =IF('補正（ｋW）指定１'!G71="","",'補正（ｋW）指定１'!G71) ->  | H71: =IF('補正（ｋW）指定１'!H71="","",'補正（ｋW）指定１'!H71) ->  | I71: =IF('補正（ｋW）指定１'!I71="","",'補正（ｋW）指定１'!I71) ->  | J71: =IF('補正（ｋW）指定１'!J71="","",'補正（ｋW）指定１'!J71) ->  | K71: =IF('補正（ｋW）指定１'!K71="","",'補正（ｋW）指定１'!K71) ->  | L71: =IF('補正（ｋW）指定１'!L71="","",'補正（ｋW）指定１'!L71) ->  | M71: =IF('補正（ｋW）指定１'!M71="","",'補正（ｋW）指定１'!M71) ->  | N71: =IF('補正（ｋW）指定１'!N71="","",'補正（ｋW）指定１'!N71) ->  | O71: =IF('補正（ｋW）指定１'!O71="","",'補正（ｋW）指定１'!O71) ->  | P71: =IF('補正（ｋW）指定１'!P71="","",'補正（ｋW）指定１'!P71) ->  | Q71: =IF('補正（ｋW）指定１'!Q71="","",'補正（ｋW）指定１'!Q71) ->  | R71: =IF('補正（ｋW）指定１'!R71="","",'補正（ｋW）指定１'!R71) ->  | S71: =IF('補正（ｋW）指定１'!S71="","",'補正（ｋW）指定１'!S71) ->  | T71: =IF('補正（ｋW）指定１'!T71="","",'補正（ｋW）指定１'!T71) ->  | U71: =IF('補正（ｋW）指定１'!U71="","",'補正（ｋW）指定１'!U71) ->  | V71: =IF('補正（ｋW）指定１'!V71="","",'補正（ｋW）指定１'!V71) ->  | W71: =IF('補正（ｋW）指定１'!W71="","",'補正（ｋW）指定１'!W71) ->  | X71: =IF('補正（ｋW）指定１'!X71="","",'補正（ｋW）指定１'!X71) ->  | Y71: =IF('補正（ｋW）指定１'!Y71="","",'補正（ｋW）指定１'!Y71) ->  | Z71: =IF('補正（ｋW）指定１'!Z71="","",'補正（ｋW）指定１'!Z71) ->  | AA71: =IF('補正（ｋW）指定１'!AA71="","",'補正（ｋW）指定１'!AA71) ->  | AB71: =IF('補正（ｋW）指定１'!AB71="","",'補正（ｋW）指定１'!AB71) ->  | AF71: =IF(COUNT(AF69:AF70)=0,"",SUM(AF69)-SUM(AF70)) ->  | AG71: =IF(COUNT(AG69:AG70)=0,"",SUM(AG69)-SUM(AG70)) -> 
B72: ダブルカウント（突合せ確認）分 （内訳： ） | E72: =IF('補正（ｋW）指定１'!E72="","",'補正（ｋW）指定１'!E72) ->  | F72: =IF('補正（ｋW）指定１'!F72="","",'補正（ｋW）指定１'!F72) ->  | G72: =IF('補正（ｋW）指定１'!G72="","",'補正（ｋW）指定１'!G72) ->  | H72: =IF('補正（ｋW）指定１'!H72="","",'補正（ｋW）指定１'!H72) ->  | I72: =IF('補正（ｋW）指定１'!I72="","",'補正（ｋW）指定１'!I72) ->  | J72: =IF('補正（ｋW）指定１'!J72="","",'補正（ｋW）指定１'!J72) ->  | K72: =IF('補正（ｋW）指定１'!K72="","",'補正（ｋW）指定１'!K72) ->  | L72: =IF('補正（ｋW）指定１'!L72="","",'補正（ｋW）指定１'!L72) ->  | M72: =IF('補正（ｋW）指定１'!M72="","",'補正（ｋW）指定１'!M72) ->  | N72: =IF('補正（ｋW）指定１'!N72="","",'補正（ｋW）指定１'!N72) ->  | O72: =IF('補正（ｋW）指定１'!O72="","",'補正（ｋW）指定１'!O72) ->  | P72: =IF('補正（ｋW）指定１'!P72="","",'補正（ｋW）指定１'!P72) ->  | Q72: =IF('補正（ｋW）指定１'!Q72="","",'補正（ｋW）指定１'!Q72) ->  | R72: =IF('補正（ｋW）指定１'!R72="","",'補正（ｋW）指定１'!R72) ->  | S72: =IF('補正（ｋW）指定１'!S72="","",'補正（ｋW）指定１'!S72) ->  | T72: =IF('補正（ｋW）指定１'!T72="","",'補正（ｋW）指定１'!T72) ->  | U72: =IF('補正（ｋW）指定１'!U72="","",'補正（ｋW）指定１'!U72) ->  | V72: =IF('補正（ｋW）指定１'!V72="","",'補正（ｋW）指定１'!V72) ->  | W72: =IF('補正（ｋW）指定１'!W72="","",'補正（ｋW）指定１'!W72) ->  | X72: =IF('補正（ｋW）指定１'!X72="","",'補正（ｋW）指定１'!X72) ->  | Y72: =IF('補正（ｋW）指定１'!Y72="","",'補正（ｋW）指定１'!Y72) ->  | Z72: =IF('補正（ｋW）指定１'!Z72="","",'補正（ｋW）指定１'!Z72) ->  | AA72: =IF('補正（ｋW）指定１'!AA72="","",'補正（ｋW）指定１'!AA72) ->  | AB72: =IF('補正（ｋW）指定１'!AB72="","",'補正（ｋW）指定１'!AB72) -> 
B73: 連系線超過分 | D73: 広域より指示 | E73: =IF('補正（ｋW）指定１'!E73="","",IF($E$2="作成不要","",'補正（ｋW）指定１'!E73)) ->  | F73: =IF('補正（ｋW）指定１'!F73="","",IF($E$2="作成不要","",'補正（ｋW）指定１'!F73)) ->  | G73: =IF('補正（ｋW）指定１'!G73="","",IF($E$2="作成不要","",'補正（ｋW）指定１'!G73)) ->  | H73: =IF('補正（ｋW）指定１'!H73="","",IF($E$2="作成不要","",'補正（ｋW）指定１'!H73)) ->  | I73: =IF('補正（ｋW）指定１'!I73="","",IF($E$2="作成不要","",'補正（ｋW）指定１'!I73)) ->  | J73: =IF('補正（ｋW）指定１'!J73="","",IF($E$2="作成不要","",'補正（ｋW）指定１'!J73)) ->  | K73: =IF('補正（ｋW）指定１'!K73="","",IF($E$2="作成不要","",'補正（ｋW）指定１'!K73)) ->  | L73: =IF('補正（ｋW）指定１'!L73="","",IF($E$2="作成不要","",'補正（ｋW）指定１'!L73)) ->  | M73: =IF('補正（ｋW）指定１'!M73="","",IF($E$2="作成不要","",'補正（ｋW）指定１'!M73)) ->  | N73: =IF('補正（ｋW）指定１'!N73="","",IF($E$2="作成不要","",'補正（ｋW）指定１'!N73)) ->  | O73: =IF('補正（ｋW）指定１'!O73="","",IF($E$2="作成不要","",'補正（ｋW）指定１'!O73)) ->  | P73: =IF('補正（ｋW）指定１'!P73="","",IF($E$2="作成不要","",'補正（ｋW）指定１'!P73)) ->  | Q73: =IF('補正（ｋW）指定１'!Q73="","",IF($E$2="作成不要","",'補正（ｋW）指定１'!Q73)) ->  | R73: =IF('補正（ｋW）指定１'!R73="","",IF($E$2="作成不要","",'補正（ｋW）指定１'!R73)) ->  | S73: =IF('補正（ｋW）指定１'!S73="","",IF($E$2="作成不要","",'補正（ｋW）指定１'!S73)) ->  | T73: =IF('補正（ｋW）指定１'!T73="","",IF($E$2="作成不要","",'補正（ｋW）指定１'!T73)) ->  | U73: =IF('補正（ｋW）指定１'!U73="","",IF($E$2="作成不要","",'補正（ｋW）指定１'!U73)) ->  | V73: =IF('補正（ｋW）指定１'!V73="","",IF($E$2="作成不要","",'補正（ｋW）指定１'!V73)) ->  | W73: =IF('補正（ｋW）指定１'!W73="","",IF($E$2="作成不要","",'補正（ｋW）指定１'!W73)) ->  | X73: =IF('補正（ｋW）指定１'!X73="","",IF($E$2="作成不要","",'補正（ｋW）指定１'!X73)) ->  | Y73: =IF('補正（ｋW）指定１'!Y73="","",IF($E$2="作成不要","",'補正（ｋW）指定１'!Y73)) ->  | Z73: =IF('補正（ｋW）指定１'!Z73="","",IF($E$2="作成不要","",'補正（ｋW）指定１'!Z73)) ->  | AA73: =IF('補正（ｋW）指定１'!AA73="","",IF($E$2="作成不要","",'補正（ｋW）指定１'!AA73)) ->  | AB73: =IF('補正（ｋW）指定１'!AB73="","",IF($E$2="作成不要","",'補正（ｋW）指定１'!AB73)) -> 
B74: 補修調整分 | D74: 広域より指示 | E74: =IF('補正（ｋW）指定１'!E74="","",IF($E$2="作成不要","",'補正（ｋW）指定１'!E74)) ->  | F74: =IF('補正（ｋW）指定１'!F74="","",IF($E$2="作成不要","",'補正（ｋW）指定１'!F74)) ->  | G74: =IF('補正（ｋW）指定１'!G74="","",IF($E$2="作成不要","",'補正（ｋW）指定１'!G74)) ->  | H74: =IF('補正（ｋW）指定１'!H74="","",IF($E$2="作成不要","",'補正（ｋW）指定１'!H74)) ->  | I74: =IF('補正（ｋW）指定１'!I74="","",IF($E$2="作成不要","",'補正（ｋW）指定１'!I74)) ->  | J74: =IF('補正（ｋW）指定１'!J74="","",IF($E$2="作成不要","",'補正（ｋW）指定１'!J74)) ->  | K74: =IF('補正（ｋW）指定１'!K74="","",IF($E$2="作成不要","",'補正（ｋW）指定１'!K74)) ->  | L74: =IF('補正（ｋW）指定１'!L74="","",IF($E$2="作成不要","",'補正（ｋW）指定１'!L74)) ->  | M74: =IF('補正（ｋW）指定１'!M74="","",IF($E$2="作成不要","",'補正（ｋW）指定１'!M74)) ->  | N74: =IF('補正（ｋW）指定１'!N74="","",IF($E$2="作成不要","",'補正（ｋW）指定１'!N74)) ->  | O74: =IF('補正（ｋW）指定１'!O74="","",IF($E$2="作成不要","",'補正（ｋW）指定１'!O74)) ->  | P74: =IF('補正（ｋW）指定１'!P74="","",IF($E$2="作成不要","",'補正（ｋW）指定１'!P74)) ->  | Q74: =IF('補正（ｋW）指定１'!Q74="","",IF($E$2="作成不要","",'補正（ｋW）指定１'!Q74)) ->  | R74: =IF('補正（ｋW）指定１'!R74="","",IF($E$2="作成不要","",'補正（ｋW）指定１'!R74)) ->  | S74: =IF('補正（ｋW）指定１'!S74="","",IF($E$2="作成不要","",'補正（ｋW）指定１'!S74)) ->  | T74: =IF('補正（ｋW）指定１'!T74="","",IF($E$2="作成不要","",'補正（ｋW）指定１'!T74)) ->  | U74: =IF('補正（ｋW）指定１'!U74="","",IF($E$2="作成不要","",'補正（ｋW）指定１'!U74)) ->  | V74: =IF('補正（ｋW）指定１'!V74="","",IF($E$2="作成不要","",'補正（ｋW）指定１'!V74)) ->  | W74: =IF('補正（ｋW）指定１'!W74="","",IF($E$2="作成不要","",'補正（ｋW）指定１'!W74)) ->  | X74: =IF('補正（ｋW）指定１'!X74="","",IF($E$2="作成不要","",'補正（ｋW）指定１'!X74)) ->  | Y74: =IF('補正（ｋW）指定１'!Y74="","",IF($E$2="作成不要","",'補正（ｋW）指定１'!Y74)) ->  | Z74: =IF('補正（ｋW）指定１'!Z74="","",IF($E$2="作成不要","",'補正（ｋW）指定１'!Z74)) ->  | AA74: =IF('補正（ｋW）指定１'!AA74="","",IF($E$2="作成不要","",'補正（ｋW）指定１'!AA74)) ->  | AB74: =IF('補正（ｋW）指定１'!AB74="","",IF($E$2="作成不要","",'補正（ｋW）指定１'!AB74)) ->  | AD74: =IF(N74="","",N74) ->  | AE74: =IF(Z74="","",Z74) -> 
B75: その他補正 （補正内容： ） | E75: =IF('補正（ｋW）指定１'!E75="","",IF($E$2="作成不要","",'補正（ｋW）指定１'!E75)) ->  | F75: =IF('補正（ｋW）指定１'!F75="","",IF($E$2="作成不要","",'補正（ｋW）指定１'!F75)) ->  | G75: =IF('補正（ｋW）指定１'!G75="","",IF($E$2="作成不要","",'補正（ｋW）指定１'!G75)) ->  | H75: =IF('補正（ｋW）指定１'!H75="","",IF($E$2="作成不要","",'補正（ｋW）指定１'!H75)) ->  | I75: =IF('補正（ｋW）指定１'!I75="","",IF($E$2="作成不要","",'補正（ｋW）指定１'!I75)) ->  | J75: =IF('補正（ｋW）指定１'!J75="","",IF($E$2="作成不要","",'補正（ｋW）指定１'!J75)) ->  | K75: =IF('補正（ｋW）指定１'!K75="","",IF($E$2="作成不要","",'補正（ｋW）指定１'!K75)) ->  | L75: =IF('補正（ｋW）指定１'!L75="","",IF($E$2="作成不要","",'補正（ｋW）指定１'!L75)) ->  | M75: =IF('補正（ｋW）指定１'!M75="","",IF($E$2="作成不要","",'補正（ｋW）指定１'!M75)) ->  | N75: =IF('補正（ｋW）指定１'!N75="","",IF($E$2="作成不要","",'補正（ｋW）指定１'!N75)) ->  | O75: =IF('補正（ｋW）指定１'!O75="","",IF($E$2="作成不要","",'補正（ｋW）指定１'!O75)) ->  | P75: =IF('補正（ｋW）指定１'!P75="","",IF($E$2="作成不要","",'補正（ｋW）指定１'!P75)) ->  | Q75: =IF('補正（ｋW）指定１'!Q75="","",IF($E$2="作成不要","",'補正（ｋW）指定１'!Q75)) ->  | R75: =IF('補正（ｋW）指定１'!R75="","",IF($E$2="作成不要","",'補正（ｋW）指定１'!R75)) ->  | S75: =IF('補正（ｋW）指定１'!S75="","",IF($E$2="作成不要","",'補正（ｋW）指定１'!S75)) ->  | T75: =IF('補正（ｋW）指定１'!T75="","",IF($E$2="作成不要","",'補正（ｋW）指定１'!T75)) ->  | U75: =IF('補正（ｋW）指定１'!U75="","",IF($E$2="作成不要","",'補正（ｋW）指定１'!U75)) ->  | V75: =IF('補正（ｋW）指定１'!V75="","",IF($E$2="作成不要","",'補正（ｋW）指定１'!V75)) ->  | W75: =IF('補正（ｋW）指定１'!W75="","",IF($E$2="作成不要","",'補正（ｋW）指定１'!W75)) ->  | X75: =IF('補正（ｋW）指定１'!X75="","",IF($E$2="作成不要","",'補正（ｋW）指定１'!X75)) ->  | Y75: =IF('補正（ｋW）指定１'!Y75="","",IF($E$2="作成不要","",'補正（ｋW）指定１'!Y75)) ->  | Z75: =IF('補正（ｋW）指定１'!Z75="","",IF($E$2="作成不要","",'補正（ｋW）指定１'!Z75)) ->  | AA75: =IF('補正（ｋW）指定１'!AA75="","",IF($E$2="作成不要","",'補正（ｋW）指定１'!AA75)) ->  | AB75: =IF('補正（ｋW）指定１'!AB75="","",IF($E$2="作成不要","",'補正（ｋW）指定１'!AB75)) -> 
B76: 合計 | E76: =IF('補正（ｋW）指定１'!E76="","",'補正（ｋW）指定１'!E76) ->  | F76: =IF('補正（ｋW）指定１'!F76="","",'補正（ｋW）指定１'!F76) ->  | G76: =IF('補正（ｋW）指定１'!G76="","",'補正（ｋW）指定１'!G76) ->  | H76: =IF('補正（ｋW）指定１'!H76="","",'補正（ｋW）指定１'!H76) ->  | I76: =IF('補正（ｋW）指定１'!I76="","",'補正（ｋW）指定１'!I76) ->  | J76: =IF('補正（ｋW）指定１'!J76="","",'補正（ｋW）指定１'!J76) ->  | K76: =IF('補正（ｋW）指定１'!K76="","",'補正（ｋW）指定１'!K76) ->  | L76: =IF('補正（ｋW）指定１'!L76="","",'補正（ｋW）指定１'!L76) ->  | M76: =IF('補正（ｋW）指定１'!M76="","",'補正（ｋW）指定１'!M76) ->  | N76: =IF('補正（ｋW）指定１'!N76="","",'補正（ｋW）指定１'!N76) ->  | O76: =IF('補正（ｋW）指定１'!O76="","",'補正（ｋW）指定１'!O76) ->  | P76: =IF('補正（ｋW）指定１'!P76="","",'補正（ｋW）指定１'!P76) ->  | Q76: =IF('補正（ｋW）指定１'!Q76="","",'補正（ｋW）指定１'!Q76) ->  | R76: =IF('補正（ｋW）指定１'!R76="","",'補正（ｋW）指定１'!R76) ->  | S76: =IF('補正（ｋW）指定１'!S76="","",'補正（ｋW）指定１'!S76) ->  | T76: =IF('補正（ｋW）指定１'!T76="","",'補正（ｋW）指定１'!T76) ->  | U76: =IF('補正（ｋW）指定１'!U76="","",'補正（ｋW）指定１'!U76) ->  | V76: =IF('補正（ｋW）指定１'!V76="","",'補正（ｋW）指定１'!V76) ->  | W76: =IF('補正（ｋW）指定１'!W76="","",'補正（ｋW）指定１'!W76) ->  | X76: =IF('補正（ｋW）指定１'!X76="","",'補正（ｋW）指定１'!X76) ->  | Y76: =IF('補正（ｋW）指定１'!Y76="","",'補正（ｋW）指定１'!Y76) ->  | Z76: =IF('補正（ｋW）指定１'!Z76="","",'補正（ｋW）指定１'!Z76) ->  | AA76: =IF('補正（ｋW）指定１'!AA76="","",'補正（ｋW）指定１'!AA76) ->  | AB76: =IF('補正（ｋW）指定１'!AB76="","",'補正（ｋW）指定１'!AB76) ->  | AC76: =IF(AC75="","",SUM(AC75)) ->  | AF76: =IF(COUNT(AF71,AF72:AF75)=0,"",SUM(AF71,AF72,AF73,AF74,AF75)) ->  | AG76: =IF(COUNT(AG71,AG72:AG75)=0,"",SUM(AG71,AG72,AG73,AG74,AG75)) -> 
A78: 補正後供給力 | AM78: 【ＭＷ】
A79: =A6 -> 項目 | E79: =E6 -> 2024-01-01 | Q79: =Q6 -> 2025-01-01 | AC79: ='補正（ｋW）指定１'!AC79 -> 2023-01-01 | AD79: =AD6 -> 2024-01-01 | AE79: 2025-01-01 | AF79: 2026-01-02 | AG79: 2027-01-03 | AH79: 2028-01-04 | AI79: 2029-01-04 | AJ79: 2030-01-05 | AK79: 2031-01-06 | AL79: 2032-01-07 | AM79: 2033-01-07
E80: =E7 -> 4月 | F80: =F7 -> 5月 | G80: 6月 | H80: 7月 | I80: 8月 | J80: 9月 | K80: 10月 | L80: 11月 | M80: 12月 | N80: 1月 | O80: 2月 | P80: 3月 | Q80: =Q7 -> 4月 | R80: =R7 -> 5月 | S80: 6月 | T80: 7月 | U80: 8月 | V80: 9月 | W80: 10月 | X80: 11月 | Y80: 12月 | Z80: 1月 | AA80: 2月 | AB80: 3月 | AC80: 実績
A81: =A8 -> 供給力 | B81: =B8 -> 保有 電力 | C81: =C8 -> 水力発電所（送電端） | E81: =IF('補正（ｋW）指定１'!E81="","",IF($E$2="作成不要","",'補正（ｋW）指定１'!E81)) ->  | F81: =IF('補正（ｋW）指定１'!F81="","",IF($E$2="作成不要","",'補正（ｋW）指定１'!F81)) ->  | G81: =IF('補正（ｋW）指定１'!G81="","",IF($E$2="作成不要","",'補正（ｋW）指定１'!G81)) ->  | H81: =IF('補正（ｋW）指定１'!H81="","",IF($E$2="作成不要","",'補正（ｋW）指定１'!H81)) ->  | I81: =IF('補正（ｋW）指定１'!I81="","",IF($E$2="作成不要","",'補正（ｋW）指定１'!I81)) ->  | J81: =IF('補正（ｋW）指定１'!J81="","",IF($E$2="作成不要","",'補正（ｋW）指定１'!J81)) ->  | K81: =IF('補正（ｋW）指定１'!K81="","",IF($E$2="作成不要","",'補正（ｋW）指定１'!K81)) ->  | L81: =IF('補正（ｋW）指定１'!L81="","",IF($E$2="作成不要","",'補正（ｋW）指定１'!L81)) ->  | M81: =IF('補正（ｋW）指定１'!M81="","",IF($E$2="作成不要","",'補正（ｋW）指定１'!M81)) ->  | N81: =IF('補正（ｋW）指定１'!N81="","",IF($E$2="作成不要","",'補正（ｋW）指定１'!N81)) ->  | O81: =IF('補正（ｋW）指定１'!O81="","",IF($E$2="作成不要","",'補正（ｋW）指定１'!O81)) ->  | P81: =IF('補正（ｋW）指定１'!P81="","",IF($E$2="作成不要","",'補正（ｋW）指定１'!P81)) ->  | Q81: =IF('補正（ｋW）指定１'!Q81="","",IF($E$2="作成不要","",'補正（ｋW）指定１'!Q81)) ->  | R81: =IF('補正（ｋW）指定１'!R81="","",IF($E$2="作成不要","",'補正（ｋW）指定１'!R81)) ->  | S81: =IF('補正（ｋW）指定１'!S81="","",IF($E$2="作成不要","",'補正（ｋW）指定１'!S81)) ->  | T81: =IF('補正（ｋW）指定１'!T81="","",IF($E$2="作成不要","",'補正（ｋW）指定１'!T81)) ->  | U81: =IF('補正（ｋW）指定１'!U81="","",IF($E$2="作成不要","",'補正（ｋW）指定１'!U81)) ->  | V81: =IF('補正（ｋW）指定１'!V81="","",IF($E$2="作成不要","",'補正（ｋW）指定１'!V81)) ->  | W81: =IF('補正（ｋW）指定１'!W81="","",IF($E$2="作成不要","",'補正（ｋW）指定１'!W81)) ->  | X81: =IF('補正（ｋW）指定１'!X81="","",IF($E$2="作成不要","",'補正（ｋW）指定１'!X81)) ->  | Y81: =IF('補正（ｋW）指定１'!Y81="","",IF($E$2="作成不要","",'補正（ｋW）指定１'!Y81)) ->  | Z81: =IF('補正（ｋW）指定１'!Z81="","",IF($E$2="作成不要","",'補正（ｋW）指定１'!Z81)) ->  | AA81: =IF('補正（ｋW）指定１'!AA81="","",IF($E$2="作成不要","",'補正（ｋW）指定１'!AA81)) ->  | AB81: =IF('補正（ｋW）指定１'!AB81="","",IF($E$2="作成不要","",'補正（ｋW）指定１'!AB81)) ->  | AC81: =IF(AC8="","",AC8) ->  | AD81: =IF(N81="","",N81) ->  | AE81: =IF(AE8="","",AE8) -> 
C82: =C9 -> 火力発電所（送電端） | E82: =IF('補正（ｋW）指定１'!E82="","",IF($E$2="作成不要","",'補正（ｋW）指定１'!E82)) ->  | F82: =IF('補正（ｋW）指定１'!F82="","",IF($E$2="作成不要","",'補正（ｋW）指定１'!F82)) ->  | G82: =IF('補正（ｋW）指定１'!G82="","",IF($E$2="作成不要","",'補正（ｋW）指定１'!G82)) ->  | H82: =IF('補正（ｋW）指定１'!H82="","",IF($E$2="作成不要","",'補正（ｋW）指定１'!H82)) ->  | I82: =IF('補正（ｋW）指定１'!I82="","",IF($E$2="作成不要","",'補正（ｋW）指定１'!I82)) ->  | J82: =IF('補正（ｋW）指定１'!J82="","",IF($E$2="作成不要","",'補正（ｋW）指定１'!J82)) ->  | K82: =IF('補正（ｋW）指定１'!K82="","",IF($E$2="作成不要","",'補正（ｋW）指定１'!K82)) ->  | L82: =IF('補正（ｋW）指定１'!L82="","",IF($E$2="作成不要","",'補正（ｋW）指定１'!L82)) ->  | M82: =IF('補正（ｋW）指定１'!M82="","",IF($E$2="作成不要","",'補正（ｋW）指定１'!M82)) ->  | N82: =IF('補正（ｋW）指定１'!N82="","",IF($E$2="作成不要","",'補正（ｋW）指定１'!N82)) ->  | O82: =IF('補正（ｋW）指定１'!O82="","",IF($E$2="作成不要","",'補正（ｋW）指定１'!O82)) ->  | P82: =IF('補正（ｋW）指定１'!P82="","",IF($E$2="作成不要","",'補正（ｋW）指定１'!P82)) ->  | Q82: =IF('補正（ｋW）指定１'!Q82="","",IF($E$2="作成不要","",'補正（ｋW）指定１'!Q82)) ->  | R82: =IF('補正（ｋW）指定１'!R82="","",IF($E$2="作成不要","",'補正（ｋW）指定１'!R82)) ->  | S82: =IF('補正（ｋW）指定１'!S82="","",IF($E$2="作成不要","",'補正（ｋW）指定１'!S82)) ->  | T82: =IF('補正（ｋW）指定１'!T82="","",IF($E$2="作成不要","",'補正（ｋW）指定１'!T82)) ->  | U82: =IF('補正（ｋW）指定１'!U82="","",IF($E$2="作成不要","",'補正（ｋW）指定１'!U82)) ->  | V82: =IF('補正（ｋW）指定１'!V82="","",IF($E$2="作成不要","",'補正（ｋW）指定１'!V82)) ->  | W82: =IF('補正（ｋW）指定１'!W82="","",IF($E$2="作成不要","",'補正（ｋW）指定１'!W82)) ->  | X82: =IF('補正（ｋW）指定１'!X82="","",IF($E$2="作成不要","",'補正（ｋW）指定１'!X82)) ->  | Y82: =IF('補正（ｋW）指定１'!Y82="","",IF($E$2="作成不要","",'補正（ｋW）指定１'!Y82)) ->  | Z82: =IF('補正（ｋW）指定１'!Z82="","",IF($E$2="作成不要","",'補正（ｋW）指定１'!Z82)) ->  | AA82: =IF('補正（ｋW）指定１'!AA82="","",IF($E$2="作成不要","",'補正（ｋW）指定１'!AA82)) ->  | AB82: =IF('補正（ｋW）指定１'!AB82="","",IF($E$2="作成不要","",'補正（ｋW）指定１'!AB82)) ->  | AD82: =IF(N82="","",N82) ->  | AE82: =IF(AE9="","",AE9) -> 
C83: =C10 -> 原子力発電所（送電端） | E83: =IF('補正（ｋW）指定１'!E83="","",IF($E$2="作成不要","",'補正（ｋW）指定１'!E83)) ->  | F83: =IF('補正（ｋW）指定１'!F83="","",IF($E$2="作成不要","",'補正（ｋW）指定１'!F83)) ->  | G83: =IF('補正（ｋW）指定１'!G83="","",IF($E$2="作成不要","",'補正（ｋW）指定１'!G83)) ->  | H83: =IF('補正（ｋW）指定１'!H83="","",IF($E$2="作成不要","",'補正（ｋW）指定１'!H83)) ->  | I83: =IF('補正（ｋW）指定１'!I83="","",IF($E$2="作成不要","",'補正（ｋW）指定１'!I83)) ->  | J83: =IF('補正（ｋW）指定１'!J83="","",IF($E$2="作成不要","",'補正（ｋW）指定１'!J83)) ->  | K83: =IF('補正（ｋW）指定１'!K83="","",IF($E$2="作成不要","",'補正（ｋW）指定１'!K83)) ->  | L83: =IF('補正（ｋW）指定１'!L83="","",IF($E$2="作成不要","",'補正（ｋW）指定１'!L83)) ->  | M83: =IF('補正（ｋW）指定１'!M83="","",IF($E$2="作成不要","",'補正（ｋW）指定１'!M83)) ->  | N83: =IF('補正（ｋW）指定１'!N83="","",IF($E$2="作成不要","",'補正（ｋW）指定１'!N83)) ->  | O83: =IF('補正（ｋW）指定１'!O83="","",IF($E$2="作成不要","",'補正（ｋW）指定１'!O83)) ->  | P83: =IF('補正（ｋW）指定１'!P83="","",IF($E$2="作成不要","",'補正（ｋW）指定１'!P83)) ->  | Q83: =IF('補正（ｋW）指定１'!Q83="","",IF($E$2="作成不要","",'補正（ｋW）指定１'!Q83)) ->  | R83: =IF('補正（ｋW）指定１'!R83="","",IF($E$2="作成不要","",'補正（ｋW）指定１'!R83)) ->  | S83: =IF('補正（ｋW）指定１'!S83="","",IF($E$2="作成不要","",'補正（ｋW）指定１'!S83)) ->  | T83: =IF('補正（ｋW）指定１'!T83="","",IF($E$2="作成不要","",'補正（ｋW）指定１'!T83)) ->  | U83: =IF('補正（ｋW）指定１'!U83="","",IF($E$2="作成不要","",'補正（ｋW）指定１'!U83)) ->  | V83: =IF('補正（ｋW）指定１'!V83="","",IF($E$2="作成不要","",'補正（ｋW）指定１'!V83)) ->  | W83: =IF('補正（ｋW）指定１'!W83="","",IF($E$2="作成不要","",'補正（ｋW）指定１'!W83)) ->  | X83: =IF('補正（ｋW）指定１'!X83="","",IF($E$2="作成不要","",'補正（ｋW）指定１'!X83)) ->  | Y83: =IF('補正（ｋW）指定１'!Y83="","",IF($E$2="作成不要","",'補正（ｋW）指定１'!Y83)) ->  | Z83: =IF('補正（ｋW）指定１'!Z83="","",IF($E$2="作成不要","",'補正（ｋW）指定１'!Z83)) ->  | AA83: =IF('補正（ｋW）指定１'!AA83="","",IF($E$2="作成不要","",'補正（ｋW）指定１'!AA83)) ->  | AB83: =IF('補正（ｋW）指定１'!AB83="","",IF($E$2="作成不要","",'補正（ｋW）指定１'!AB83)) ->  | AD83: =IF(N83="","",N83) ->  | AE83: =IF(AE10="","",AE10) -> 
C84: =C11 -> 新エネルギー発電所（送電端） | E84: =IF('補正（ｋW）指定１'!E84="","",IF($E$2="作成不要","",'補正（ｋW）指定１'!E84)) ->  | F84: =IF('補正（ｋW）指定１'!F84="","",IF($E$2="作成不要","",'補正（ｋW）指定１'!F84)) ->  | G84: =IF('補正（ｋW）指定１'!G84="","",IF($E$2="作成不要","",'補正（ｋW）指定１'!G84)) ->  | H84: =IF('補正（ｋW）指定１'!H84="","",IF($E$2="作成不要","",'補正（ｋW）指定１'!H84)) ->  | I84: =IF('補正（ｋW）指定１'!I84="","",IF($E$2="作成不要","",'補正（ｋW）指定１'!I84)) ->  | J84: =IF('補正（ｋW）指定１'!J84="","",IF($E$2="作成不要","",'補正（ｋW）指定１'!J84)) ->  | K84: =IF('補正（ｋW）指定１'!K84="","",IF($E$2="作成不要","",'補正（ｋW）指定１'!K84)) ->  | L84: =IF('補正（ｋW）指定１'!L84="","",IF($E$2="作成不要","",'補正（ｋW）指定１'!L84)) ->  | M84: =IF('補正（ｋW）指定１'!M84="","",IF($E$2="作成不要","",'補正（ｋW）指定１'!M84)) ->  | N84: =IF('補正（ｋW）指定１'!N84="","",IF($E$2="作成不要","",'補正（ｋW）指定１'!N84)) ->  | O84: =IF('補正（ｋW）指定１'!O84="","",IF($E$2="作成不要","",'補正（ｋW）指定１'!O84)) ->  | P84: =IF('補正（ｋW）指定１'!P84="","",IF($E$2="作成不要","",'補正（ｋW）指定１'!P84)) ->  | Q84: =IF('補正（ｋW）指定１'!Q84="","",IF($E$2="作成不要","",'補正（ｋW）指定１'!Q84)) ->  | R84: =IF('補正（ｋW）指定１'!R84="","",IF($E$2="作成不要","",'補正（ｋW）指定１'!R84)) ->  | S84: =IF('補正（ｋW）指定１'!S84="","",IF($E$2="作成不要","",'補正（ｋW）指定１'!S84)) ->  | T84: =IF('補正（ｋW）指定１'!T84="","",IF($E$2="作成不要","",'補正（ｋW）指定１'!T84)) ->  | U84: =IF('補正（ｋW）指定１'!U84="","",IF($E$2="作成不要","",'補正（ｋW）指定１'!U84)) ->  | V84: =IF('補正（ｋW）指定１'!V84="","",IF($E$2="作成不要","",'補正（ｋW）指定１'!V84)) ->  | W84: =IF('補正（ｋW）指定１'!W84="","",IF($E$2="作成不要","",'補正（ｋW）指定１'!W84)) ->  | X84: =IF('補正（ｋW）指定１'!X84="","",IF($E$2="作成不要","",'補正（ｋW）指定１'!X84)) ->  | Y84: =IF('補正（ｋW）指定１'!Y84="","",IF($E$2="作成不要","",'補正（ｋW）指定１'!Y84)) ->  | Z84: =IF('補正（ｋW）指定１'!Z84="","",IF($E$2="作成不要","",'補正（ｋW）指定１'!Z84)) ->  | AA84: =IF('補正（ｋW）指定１'!AA84="","",IF($E$2="作成不要","",'補正（ｋW）指定１'!AA84)) ->  | AB84: =IF('補正（ｋW）指定１'!AB84="","",IF($E$2="作成不要","",'補正（ｋW）指定１'!AB84)) ->  | AD84: =IF(N84="","",N84) ->  | AE84: =IF(AE11="","",AE11) -> 
C85: =C12 -> 合計（送電端） | E85: =IF('補正（ｋW）指定１'!E85="","",IF($E$2="作成不要","",'補正（ｋW）指定１'!E85)) ->  | F85: =IF('補正（ｋW）指定１'!F85="","",IF($E$2="作成不要","",'補正（ｋW）指定１'!F85)) ->  | G85: =IF('補正（ｋW）指定１'!G85="","",IF($E$2="作成不要","",'補正（ｋW）指定１'!G85)) ->  | H85: =IF('補正（ｋW）指定１'!H85="","",IF($E$2="作成不要","",'補正（ｋW）指定１'!H85)) ->  | I85: =IF('補正（ｋW）指定１'!I85="","",IF($E$2="作成不要","",'補正（ｋW）指定１'!I85)) ->  | J85: =IF('補正（ｋW）指定１'!J85="","",IF($E$2="作成不要","",'補正（ｋW）指定１'!J85)) ->  | K85: =IF('補正（ｋW）指定１'!K85="","",IF($E$2="作成不要","",'補正（ｋW）指定１'!K85)) ->  | L85: =IF('補正（ｋW）指定１'!L85="","",IF($E$2="作成不要","",'補正（ｋW）指定１'!L85)) ->  | M85: =IF('補正（ｋW）指定１'!M85="","",IF($E$2="作成不要","",'補正（ｋW）指定１'!M85)) ->  | N85: =IF('補正（ｋW）指定１'!N85="","",IF($E$2="作成不要","",'補正（ｋW）指定１'!N85)) ->  | O85: =IF('補正（ｋW）指定１'!O85="","",IF($E$2="作成不要","",'補正（ｋW）指定１'!O85)) ->  | P85: =IF('補正（ｋW）指定１'!P85="","",IF($E$2="作成不要","",'補正（ｋW）指定１'!P85)) ->  | Q85: =IF('補正（ｋW）指定１'!Q85="","",IF($E$2="作成不要","",'補正（ｋW）指定１'!Q85)) ->  | R85: =IF('補正（ｋW）指定１'!R85="","",IF($E$2="作成不要","",'補正（ｋW）指定１'!R85)) ->  | S85: =IF('補正（ｋW）指定１'!S85="","",IF($E$2="作成不要","",'補正（ｋW）指定１'!S85)) ->  | T85: =IF('補正（ｋW）指定１'!T85="","",IF($E$2="作成不要","",'補正（ｋW）指定１'!T85)) ->  | U85: =IF('補正（ｋW）指定１'!U85="","",IF($E$2="作成不要","",'補正（ｋW）指定１'!U85)) ->  | V85: =IF('補正（ｋW）指定１'!V85="","",IF($E$2="作成不要","",'補正（ｋW）指定１'!V85)) ->  | W85: =IF('補正（ｋW）指定１'!W85="","",IF($E$2="作成不要","",'補正（ｋW）指定１'!W85)) ->  | X85: =IF('補正（ｋW）指定１'!X85="","",IF($E$2="作成不要","",'補正（ｋW）指定１'!X85)) ->  | Y85: =IF('補正（ｋW）指定１'!Y85="","",IF($E$2="作成不要","",'補正（ｋW）指定１'!Y85)) ->  | Z85: =IF('補正（ｋW）指定１'!Z85="","",IF($E$2="作成不要","",'補正（ｋW）指定１'!Z85)) ->  | AA85: =IF('補正（ｋW）指定１'!AA85="","",IF($E$2="作成不要","",'補正（ｋW）指定１'!AA85)) ->  | AB85: =IF('補正（ｋW）指定１'!AB85="","",IF($E$2="作成不要","",'補正（ｋW）指定１'!AB85)) ->  | AD85: =IF(AD12="","",AD12) ->  | AE85: =IF(AE12="","",AE12) -> 
B86: =B13 -> 調達分 | C86: =C13 -> 発電事業者 | E86: =IF('補正（ｋW）指定１'!E86="","",IF($E$2="作成不要","",'補正（ｋW）指定１'!E86)) ->  | F86: =IF('補正（ｋW）指定１'!F86="","",IF($E$2="作成不要","",'補正（ｋW）指定１'!F86)) ->  | G86: =IF('補正（ｋW）指定１'!G86="","",IF($E$2="作成不要","",'補正（ｋW）指定１'!G86)) ->  | H86: =IF('補正（ｋW）指定１'!H86="","",IF($E$2="作成不要","",'補正（ｋW）指定１'!H86)) ->  | I86: =IF('補正（ｋW）指定１'!I86="","",IF($E$2="作成不要","",'補正（ｋW）指定１'!I86)) ->  | J86: =IF('補正（ｋW）指定１'!J86="","",IF($E$2="作成不要","",'補正（ｋW）指定１'!J86)) ->  | K86: =IF('補正（ｋW）指定１'!K86="","",IF($E$2="作成不要","",'補正（ｋW）指定１'!K86)) ->  | L86: =IF('補正（ｋW）指定１'!L86="","",IF($E$2="作成不要","",'補正（ｋW）指定１'!L86)) ->  | M86: =IF('補正（ｋW）指定１'!M86="","",IF($E$2="作成不要","",'補正（ｋW）指定１'!M86)) ->  | N86: =IF('補正（ｋW）指定１'!N86="","",IF($E$2="作成不要","",'補正（ｋW）指定１'!N86)) ->  | O86: =IF('補正（ｋW）指定１'!O86="","",IF($E$2="作成不要","",'補正（ｋW）指定１'!O86)) ->  | P86: =IF('補正（ｋW）指定１'!P86="","",IF($E$2="作成不要","",'補正（ｋW）指定１'!P86)) ->  | Q86: =IF('補正（ｋW）指定１'!Q86="","",IF($E$2="作成不要","",'補正（ｋW）指定１'!Q86)) ->  | R86: =IF('補正（ｋW）指定１'!R86="","",IF($E$2="作成不要","",'補正（ｋW）指定１'!R86)) ->  | S86: =IF('補正（ｋW）指定１'!S86="","",IF($E$2="作成不要","",'補正（ｋW）指定１'!S86)) ->  | T86: =IF('補正（ｋW）指定１'!T86="","",IF($E$2="作成不要","",'補正（ｋW）指定１'!T86)) ->  | U86: =IF('補正（ｋW）指定１'!U86="","",IF($E$2="作成不要","",'補正（ｋW）指定１'!U86)) ->  | V86: =IF('補正（ｋW）指定１'!V86="","",IF($E$2="作成不要","",'補正（ｋW）指定１'!V86)) ->  | W86: =IF('補正（ｋW）指定１'!W86="","",IF($E$2="作成不要","",'補正（ｋW）指定１'!W86)) ->  | X86: =IF('補正（ｋW）指定１'!X86="","",IF($E$2="作成不要","",'補正（ｋW）指定１'!X86)) ->  | Y86: =IF('補正（ｋW）指定１'!Y86="","",IF($E$2="作成不要","",'補正（ｋW）指定１'!Y86)) ->  | Z86: =IF('補正（ｋW）指定１'!Z86="","",IF($E$2="作成不要","",'補正（ｋW）指定１'!Z86)) ->  | AA86: =IF('補正（ｋW）指定１'!AA86="","",IF($E$2="作成不要","",'補正（ｋW）指定１'!AA86)) ->  | AB86: =IF('補正（ｋW）指定１'!AB86="","",IF($E$2="作成不要","",'補正（ｋW）指定１'!AB86)) ->  | AD86: =IF(AD13="","",AD13) ->  | AE86: =IF(AE13="","",AE13) -> 
C87: 特定卸供給事業者 | E87: =IF('補正（ｋW）指定１'!E87="","",IF($E$2="作成不要","",'補正（ｋW）指定１'!E87)) ->  | F87: =IF('補正（ｋW）指定１'!F87="","",IF($E$2="作成不要","",'補正（ｋW）指定１'!F87)) ->  | G87: =IF('補正（ｋW）指定１'!G87="","",IF($E$2="作成不要","",'補正（ｋW）指定１'!G87)) ->  | H87: =IF('補正（ｋW）指定１'!H87="","",IF($E$2="作成不要","",'補正（ｋW）指定１'!H87)) ->  | I87: =IF('補正（ｋW）指定１'!I87="","",IF($E$2="作成不要","",'補正（ｋW）指定１'!I87)) ->  | J87: =IF('補正（ｋW）指定１'!J87="","",IF($E$2="作成不要","",'補正（ｋW）指定１'!J87)) ->  | K87: =IF('補正（ｋW）指定１'!K87="","",IF($E$2="作成不要","",'補正（ｋW）指定１'!K87)) ->  | L87: =IF('補正（ｋW）指定１'!L87="","",IF($E$2="作成不要","",'補正（ｋW）指定１'!L87)) ->  | M87: =IF('補正（ｋW）指定１'!M87="","",IF($E$2="作成不要","",'補正（ｋW）指定１'!M87)) ->  | N87: =IF('補正（ｋW）指定１'!N87="","",IF($E$2="作成不要","",'補正（ｋW）指定１'!N87)) ->  | O87: =IF('補正（ｋW）指定１'!O87="","",IF($E$2="作成不要","",'補正（ｋW）指定１'!O87)) ->  | P87: =IF('補正（ｋW）指定１'!P87="","",IF($E$2="作成不要","",'補正（ｋW）指定１'!P87)) ->  | Q87: =IF('補正（ｋW）指定１'!Q87="","",IF($E$2="作成不要","",'補正（ｋW）指定１'!Q87)) ->  | R87: =IF('補正（ｋW）指定１'!R87="","",IF($E$2="作成不要","",'補正（ｋW）指定１'!R87)) ->  | S87: =IF('補正（ｋW）指定１'!S87="","",IF($E$2="作成不要","",'補正（ｋW）指定１'!S87)) ->  | T87: =IF('補正（ｋW）指定１'!T87="","",IF($E$2="作成不要","",'補正（ｋW）指定１'!T87)) ->  | U87: =IF('補正（ｋW）指定１'!U87="","",IF($E$2="作成不要","",'補正（ｋW）指定１'!U87)) ->  | V87: =IF('補正（ｋW）指定１'!V87="","",IF($E$2="作成不要","",'補正（ｋW）指定１'!V87)) ->  | W87: =IF('補正（ｋW）指定１'!W87="","",IF($E$2="作成不要","",'補正（ｋW）指定１'!W87)) ->  | X87: =IF('補正（ｋW）指定１'!X87="","",IF($E$2="作成不要","",'補正（ｋW）指定１'!X87)) ->  | Y87: =IF('補正（ｋW）指定１'!Y87="","",IF($E$2="作成不要","",'補正（ｋW）指定１'!Y87)) ->  | Z87: =IF('補正（ｋW）指定１'!Z87="","",IF($E$2="作成不要","",'補正（ｋW）指定１'!Z87)) ->  | AA87: =IF('補正（ｋW）指定１'!AA87="","",IF($E$2="作成不要","",'補正（ｋW）指定１'!AA87)) ->  | AB87: =IF('補正（ｋW）指定１'!AB87="","",IF($E$2="作成不要","",'補正（ｋW）指定１'!AB87)) ->  | AC87: =IF(AC14="","",AC14) -> 
C88: =C15 -> 一般送配電事業者 | E88: =IF('補正（ｋW）指定１'!E88="","",IF($E$2="作成不要","",'補正（ｋW）指定１'!E88)) ->  | F88: =IF('補正（ｋW）指定１'!F88="","",IF($E$2="作成不要","",'補正（ｋW）指定１'!F88)) ->  | G88: =IF('補正（ｋW）指定１'!G88="","",IF($E$2="作成不要","",'補正（ｋW）指定１'!G88)) ->  | H88: =IF('補正（ｋW）指定１'!H88="","",IF($E$2="作成不要","",'補正（ｋW）指定１'!H88)) ->  | I88: =IF('補正（ｋW）指定１'!I88="","",IF($E$2="作成不要","",'補正（ｋW）指定１'!I88)) ->  | J88: =IF('補正（ｋW）指定１'!J88="","",IF($E$2="作成不要","",'補正（ｋW）指定１'!J88)) ->  | K88: =IF('補正（ｋW）指定１'!K88="","",IF($E$2="作成不要","",'補正（ｋW）指定１'!K88)) ->  | L88: =IF('補正（ｋW）指定１'!L88="","",IF($E$2="作成不要","",'補正（ｋW）指定１'!L88)) ->  | M88: =IF('補正（ｋW）指定１'!M88="","",IF($E$2="作成不要","",'補正（ｋW）指定１'!M88)) ->  | N88: =IF('補正（ｋW）指定１'!N88="","",IF($E$2="作成不要","",'補正（ｋW）指定１'!N88)) ->  | O88: =IF('補正（ｋW）指定１'!O88="","",IF($E$2="作成不要","",'補正（ｋW）指定１'!O88)) ->  | P88: =IF('補正（ｋW）指定１'!P88="","",IF($E$2="作成不要","",'補正（ｋW）指定１'!P88)) ->  | Q88: =IF('補正（ｋW）指定１'!Q88="","",IF($E$2="作成不要","",'補正（ｋW）指定１'!Q88)) ->  | R88: =IF('補正（ｋW）指定１'!R88="","",IF($E$2="作成不要","",'補正（ｋW）指定１'!R88)) ->  | S88: =IF('補正（ｋW）指定１'!S88="","",IF($E$2="作成不要","",'補正（ｋW）指定１'!S88)) ->  | T88: =IF('補正（ｋW）指定１'!T88="","",IF($E$2="作成不要","",'補正（ｋW）指定１'!T88)) ->  | U88: =IF('補正（ｋW）指定１'!U88="","",IF($E$2="作成不要","",'補正（ｋW）指定１'!U88)) ->  | V88: =IF('補正（ｋW）指定１'!V88="","",IF($E$2="作成不要","",'補正（ｋW）指定１'!V88)) ->  | W88: =IF('補正（ｋW）指定１'!W88="","",IF($E$2="作成不要","",'補正（ｋW）指定１'!W88)) ->  | X88: =IF('補正（ｋW）指定１'!X88="","",IF($E$2="作成不要","",'補正（ｋW）指定１'!X88)) ->  | Y88: =IF('補正（ｋW）指定１'!Y88="","",IF($E$2="作成不要","",'補正（ｋW）指定１'!Y88)) ->  | Z88: =IF('補正（ｋW）指定１'!Z88="","",IF($E$2="作成不要","",'補正（ｋW）指定１'!Z88)) ->  | AA88: =IF('補正（ｋW）指定１'!AA88="","",IF($E$2="作成不要","",'補正（ｋW）指定１'!AA88)) ->  | AB88: =IF('補正（ｋW）指定１'!AB88="","",IF($E$2="作成不要","",'補正（ｋW）指定１'!AB88)) ->  | AC88: =IF(AC15="","",AC15) -> 
C89: 配電事業者 | E89: =IF('補正（ｋW）指定１'!E89="","",IF($E$2="作成不要","",'補正（ｋW）指定１'!E89)) ->  | F89: =IF('補正（ｋW）指定１'!F89="","",IF($E$2="作成不要","",'補正（ｋW）指定１'!F89)) ->  | G89: =IF('補正（ｋW）指定１'!G89="","",IF($E$2="作成不要","",'補正（ｋW）指定１'!G89)) ->  | H89: =IF('補正（ｋW）指定１'!H89="","",IF($E$2="作成不要","",'補正（ｋW）指定１'!H89)) ->  | I89: =IF('補正（ｋW）指定１'!I89="","",IF($E$2="作成不要","",'補正（ｋW）指定１'!I89)) ->  | J89: =IF('補正（ｋW）指定１'!J89="","",IF($E$2="作成不要","",'補正（ｋW）指定１'!J89)) ->  | K89: =IF('補正（ｋW）指定１'!K89="","",IF($E$2="作成不要","",'補正（ｋW）指定１'!K89)) ->  | L89: =IF('補正（ｋW）指定１'!L89="","",IF($E$2="作成不要","",'補正（ｋW）指定１'!L89)) ->  | M89: =IF('補正（ｋW）指定１'!M89="","",IF($E$2="作成不要","",'補正（ｋW）指定１'!M89)) ->  | N89: =IF('補正（ｋW）指定１'!N89="","",IF($E$2="作成不要","",'補正（ｋW）指定１'!N89)) ->  | O89: =IF('補正（ｋW）指定１'!O89="","",IF($E$2="作成不要","",'補正（ｋW）指定１'!O89)) ->  | P89: =IF('補正（ｋW）指定１'!P89="","",IF($E$2="作成不要","",'補正（ｋW）指定１'!P89)) ->  | Q89: =IF('補正（ｋW）指定１'!Q89="","",IF($E$2="作成不要","",'補正（ｋW）指定１'!Q89)) ->  | R89: =IF('補正（ｋW）指定１'!R89="","",IF($E$2="作成不要","",'補正（ｋW）指定１'!R89)) ->  | S89: =IF('補正（ｋW）指定１'!S89="","",IF($E$2="作成不要","",'補正（ｋW）指定１'!S89)) ->  | T89: =IF('補正（ｋW）指定１'!T89="","",IF($E$2="作成不要","",'補正（ｋW）指定１'!T89)) ->  | U89: =IF('補正（ｋW）指定１'!U89="","",IF($E$2="作成不要","",'補正（ｋW）指定１'!U89)) ->  | V89: =IF('補正（ｋW）指定１'!V89="","",IF($E$2="作成不要","",'補正（ｋW）指定１'!V89)) ->  | W89: =IF('補正（ｋW）指定１'!W89="","",IF($E$2="作成不要","",'補正（ｋW）指定１'!W89)) ->  | X89: =IF('補正（ｋW）指定１'!X89="","",IF($E$2="作成不要","",'補正（ｋW）指定１'!X89)) ->  | Y89: =IF('補正（ｋW）指定１'!Y89="","",IF($E$2="作成不要","",'補正（ｋW）指定１'!Y89)) ->  | Z89: =IF('補正（ｋW）指定１'!Z89="","",IF($E$2="作成不要","",'補正（ｋW）指定１'!Z89)) ->  | AA89: =IF('補正（ｋW）指定１'!AA89="","",IF($E$2="作成不要","",'補正（ｋW）指定１'!AA89)) ->  | AB89: =IF('補正（ｋW）指定１'!AB89="","",IF($E$2="作成不要","",'補正（ｋW）指定１'!AB89)) ->  | AC89: =IF(AC16="","",AC16) -> 
C90: =C17 -> 小売電気事業者 | E90: =IF('補正（ｋW）指定１'!E90="","",IF($E$2="作成不要","",'補正（ｋW）指定１'!E90)) ->  | F90: =IF('補正（ｋW）指定１'!F90="","",IF($E$2="作成不要","",'補正（ｋW）指定１'!F90)) ->  | G90: =IF('補正（ｋW）指定１'!G90="","",IF($E$2="作成不要","",'補正（ｋW）指定１'!G90)) ->  | H90: =IF('補正（ｋW）指定１'!H90="","",IF($E$2="作成不要","",'補正（ｋW）指定１'!H90)) ->  | I90: =IF('補正（ｋW）指定１'!I90="","",IF($E$2="作成不要","",'補正（ｋW）指定１'!I90)) ->  | J90: =IF('補正（ｋW）指定１'!J90="","",IF($E$2="作成不要","",'補正（ｋW）指定１'!J90)) ->  | K90: =IF('補正（ｋW）指定１'!K90="","",IF($E$2="作成不要","",'補正（ｋW）指定１'!K90)) ->  | L90: =IF('補正（ｋW）指定１'!L90="","",IF($E$2="作成不要","",'補正（ｋW）指定１'!L90)) ->  | M90: =IF('補正（ｋW）指定１'!M90="","",IF($E$2="作成不要","",'補正（ｋW）指定１'!M90)) ->  | N90: =IF('補正（ｋW）指定１'!N90="","",IF($E$2="作成不要","",'補正（ｋW）指定１'!N90)) ->  | O90: =IF('補正（ｋW）指定１'!O90="","",IF($E$2="作成不要","",'補正（ｋW）指定１'!O90)) ->  | P90: =IF('補正（ｋW）指定１'!P90="","",IF($E$2="作成不要","",'補正（ｋW）指定１'!P90)) ->  | Q90: =IF('補正（ｋW）指定１'!Q90="","",IF($E$2="作成不要","",'補正（ｋW）指定１'!Q90)) ->  | R90: =IF('補正（ｋW）指定１'!R90="","",IF($E$2="作成不要","",'補正（ｋW）指定１'!R90)) ->  | S90: =IF('補正（ｋW）指定１'!S90="","",IF($E$2="作成不要","",'補正（ｋW）指定１'!S90)) ->  | T90: =IF('補正（ｋW）指定１'!T90="","",IF($E$2="作成不要","",'補正（ｋW）指定１'!T90)) ->  | U90: =IF('補正（ｋW）指定１'!U90="","",IF($E$2="作成不要","",'補正（ｋW）指定１'!U90)) ->  | V90: =IF('補正（ｋW）指定１'!V90="","",IF($E$2="作成不要","",'補正（ｋW）指定１'!V90)) ->  | W90: =IF('補正（ｋW）指定１'!W90="","",IF($E$2="作成不要","",'補正（ｋW）指定１'!W90)) ->  | X90: =IF('補正（ｋW）指定１'!X90="","",IF($E$2="作成不要","",'補正（ｋW）指定１'!X90)) ->  | Y90: =IF('補正（ｋW）指定１'!Y90="","",IF($E$2="作成不要","",'補正（ｋW）指定１'!Y90)) ->  | Z90: =IF('補正（ｋW）指定１'!Z90="","",IF($E$2="作成不要","",'補正（ｋW）指定１'!Z90)) ->  | AA90: =IF('補正（ｋW）指定１'!AA90="","",IF($E$2="作成不要","",'補正（ｋW）指定１'!AA90)) ->  | AB90: =IF('補正（ｋW）指定１'!AB90="","",IF($E$2="作成不要","",'補正（ｋW）指定１'!AB90)) ->  | AC90: =IF(AC17="","",AC17) ->  | AE90: =IF(AE17="","",AE17) -> 
C91: =C18 -> その他 | D91: =D18 -> 取引所 | E91: =IF('補正（ｋW）指定１'!E91="","",IF($E$2="作成不要","",'補正（ｋW）指定１'!E91)) ->  | F91: =IF('補正（ｋW）指定１'!F91="","",IF($E$2="作成不要","",'補正（ｋW）指定１'!F91)) ->  | G91: =IF('補正（ｋW）指定１'!G91="","",IF($E$2="作成不要","",'補正（ｋW）指定１'!G91)) ->  | H91: =IF('補正（ｋW）指定１'!H91="","",IF($E$2="作成不要","",'補正（ｋW）指定１'!H91)) ->  | I91: =IF('補正（ｋW）指定１'!J91="","",IF($E$2="作成不要","",'補正（ｋW）指定１'!J91)) ->  | K91: =IF('補正（ｋW）指定１'!K91="","",IF($E$2="作成不要","",'補正（ｋW）指定１'!K91)) ->  | L91: =IF('補正（ｋW）指定１'!L91="","",IF($E$2="作成不要","",'補正（ｋW）指定１'!L91)) ->  | M91: =IF('補正（ｋW）指定１'!M91="","",IF($E$2="作成不要","",'補正（ｋW）指定１'!M91)) ->  | N91: =IF('補正（ｋW）指定１'!N91="","",IF($E$2="作成不要","",'補正（ｋW）指定１'!N91)) ->  | O91: =IF('補正（ｋW）指定１'!O91="","",IF($E$2="作成不要","",'補正（ｋW）指定１'!O91)) ->  | P91: =IF('補正（ｋW）指定１'!P91="","",IF($E$2="作成不要","",'補正（ｋW）指定１'!P91)) ->  | Q91: =IF('補正（ｋW）指定１'!Q91="","",IF($E$2="作成不要","",'補正（ｋW）指定１'!Q91)) ->  | R91: =IF('補正（ｋW）指定１'!R91="","",IF($E$2="作成不要","",'補正（ｋW）指定１'!R91)) ->  | S91: =IF('補正（ｋW）指定１'!S91="","",IF($E$2="作成不要","",'補正（ｋW）指定１'!S91)) ->  | T91: =IF('補正（ｋW）指定１'!T91="","",IF($E$2="作成不要","",'補正（ｋW）指定１'!T91)) ->  | U91: =IF('補正（ｋW）指定１'!U91="","",IF($E$2="作成不要","",'補正（ｋW）指定１'!U91)) ->  | V91: =IF('補正（ｋW）指定１'!V91="","",IF($E$2="作成不要","",'補正（ｋW）指定１'!V91)) ->  | W91: =IF('補正（ｋW）指定１'!W91="","",IF($E$2="作成不要","",'補正（ｋW）指定１'!W91)) ->  | X91: =IF('補正（ｋW）指定１'!X91="","",IF($E$2="作成不要","",'補正（ｋW）指定１'!X91)) ->  | Y91: =IF('補正（ｋW）指定１'!Y91="","",IF($E$2="作成不要","",'補正（ｋW）指定１'!Y91)) ->  | Z91: =IF('補正（ｋW）指定１'!Z91="","",IF($E$2="作成不要","",'補正（ｋW）指定１'!Z91)) ->  | AA91: =IF('補正（ｋW）指定１'!AA91="","",IF($E$2="作成不要","",'補正（ｋW）指定１'!AA91)) ->  | AB91: =IF('補正（ｋW）指定１'!AB91="","",IF($E$2="作成不要","",'補正（ｋW）指定１'!AB91)) ->  | AE91: =IF(AE18="","",AE18) -> 
D92: =D19 -> その他 | E92: =IF('補正（ｋW）指定１'!E92="","",IF($E$2="作成不要","",'補正（ｋW）指定１'!E92)) ->  | F92: =IF('補正（ｋW）指定１'!F92="","",IF($E$2="作成不要","",'補正（ｋW）指定１'!F92)) ->  | G92: =IF('補正（ｋW）指定１'!G92="","",IF($E$2="作成不要","",'補正（ｋW）指定１'!G92)) ->  | H92: =IF('補正（ｋW）指定１'!H92="","",IF($E$2="作成不要","",'補正（ｋW）指定１'!H92)) ->  | I92: =IF('補正（ｋW）指定１'!I92="","",IF($E$2="作成不要","",'補正（ｋW）指定１'!I92)) ->  | J92: =IF('補正（ｋW）指定１'!J92="","",IF($E$2="作成不要","",'補正（ｋW）指定１'!J92)) ->  | K92: =IF('補正（ｋW）指定１'!K92="","",IF($E$2="作成不要","",'補正（ｋW）指定１'!K92)) ->  | L92: =IF('補正（ｋW）指定１'!L92="","",IF($E$2="作成不要","",'補正（ｋW）指定１'!L92)) ->  | M92: =IF('補正（ｋW）指定１'!M92="","",IF($E$2="作成不要","",'補正（ｋW）指定１'!M92)) ->  | N92: =IF('補正（ｋW）指定１'!N92="","",IF($E$2="作成不要","",'補正（ｋW）指定１'!N92)) ->  | O92: =IF('補正（ｋW）指定１'!O92="","",IF($E$2="作成不要","",'補正（ｋW）指定１'!O92)) ->  | P92: =IF('補正（ｋW）指定１'!P92="","",IF($E$2="作成不要","",'補正（ｋW）指定１'!P92)) ->  | Q92: =IF('補正（ｋW）指定１'!Q92="","",IF($E$2="作成不要","",'補正（ｋW）指定１'!Q92)) ->  | R92: =IF('補正（ｋW）指定１'!R92="","",IF($E$2="作成不要","",'補正（ｋW）指定１'!R92)) ->  | S92: =IF('補正（ｋW）指定１'!S92="","",IF($E$2="作成不要","",'補正（ｋW）指定１'!S92)) ->  | T92: =IF('補正（ｋW）指定１'!T92="","",IF($E$2="作成不要","",'補正（ｋW）指定１'!T92)) ->  | U92: =IF('補正（ｋW）指定１'!U92="","",IF($E$2="作成不要","",'補正（ｋW）指定１'!U92)) ->  | V92: =IF('補正（ｋW）指定１'!V92="","",IF($E$2="作成不要","",'補正（ｋW）指定１'!V92)) ->  | W92: =IF('補正（ｋW）指定１'!W92="","",IF($E$2="作成不要","",'補正（ｋW）指定１'!W92)) ->  | X92: =IF('補正（ｋW）指定１'!X92="","",IF($E$2="作成不要","",'補正（ｋW）指定１'!X92)) ->  | Y92: =IF('補正（ｋW）指定１'!Y92="","",IF($E$2="作成不要","",'補正（ｋW）指定１'!Y92)) ->  | Z92: =IF('補正（ｋW）指定１'!Z92="","",IF($E$2="作成不要","",'補正（ｋW）指定１'!Z92)) ->  | AA92: =IF('補正（ｋW）指定１'!AA92="","",IF($E$2="作成不要","",'補正（ｋW）指定１'!AA92)) ->  | AB92: =IF('補正（ｋW）指定１'!AB92="","",IF($E$2="作成不要","",'補正（ｋW）指定１'!AB92)) ->  | AE92: =IF(AE19="","",AE19) -> 
B93: =B20 -> 調達先未定 | E93: =IF('補正（ｋW）指定１'!E93="","",IF($E$2="作成不要","",'補正（ｋW）指定１'!E93)) ->  | F93: =IF('補正（ｋW）指定１'!F93="","",IF($E$2="作成不要","",'補正（ｋW）指定１'!F93)) ->  | G93: =IF('補正（ｋW）指定１'!G93="","",IF($E$2="作成不要","",'補正（ｋW）指定１'!G93)) ->  | H93: =IF('補正（ｋW）指定１'!H93="","",IF($E$2="作成不要","",'補正（ｋW）指定１'!H93)) ->  | I93: =IF('補正（ｋW）指定１'!I93="","",IF($E$2="作成不要","",'補正（ｋW）指定１'!I93)) ->  | J93: =IF('補正（ｋW）指定１'!J93="","",IF($E$2="作成不要","",'補正（ｋW）指定１'!J93)) ->  | K93: =IF('補正（ｋW）指定１'!K93="","",IF($E$2="作成不要","",'補正（ｋW）指定１'!K93)) ->  | L93: =IF('補正（ｋW）指定１'!L93="","",IF($E$2="作成不要","",'補正（ｋW）指定１'!L93)) ->  | M93: =IF('補正（ｋW）指定１'!M93="","",IF($E$2="作成不要","",'補正（ｋW）指定１'!M93)) ->  | N93: =IF('補正（ｋW）指定１'!N93="","",IF($E$2="作成不要","",'補正（ｋW）指定１'!N93)) ->  | O93: =IF('補正（ｋW）指定１'!O93="","",IF($E$2="作成不要","",'補正（ｋW）指定１'!O93)) ->  | P93: =IF('補正（ｋW）指定１'!P93="","",IF($E$2="作成不要","",'補正（ｋW）指定１'!P93)) ->  | Q93: =IF('補正（ｋW）指定１'!Q93="","",IF($E$2="作成不要","",'補正（ｋW）指定１'!Q93)) ->  | R93: =IF('補正（ｋW）指定１'!R93="","",IF($E$2="作成不要","",'補正（ｋW）指定１'!R93)) ->  | S93: =IF('補正（ｋW）指定１'!S93="","",IF($E$2="作成不要","",'補正（ｋW）指定１'!S93)) ->  | T93: =IF('補正（ｋW）指定１'!T93="","",IF($E$2="作成不要","",'補正（ｋW）指定１'!T93)) ->  | U93: =IF('補正（ｋW）指定１'!U93="","",IF($E$2="作成不要","",'補正（ｋW）指定１'!U93)) ->  | V93: =IF('補正（ｋW）指定１'!V93="","",IF($E$2="作成不要","",'補正（ｋW）指定１'!V93)) ->  | W93: =IF('補正（ｋW）指定１'!W93="","",IF($E$2="作成不要","",'補正（ｋW）指定１'!W93)) ->  | X93: =IF('補正（ｋW）指定１'!X93="","",IF($E$2="作成不要","",'補正（ｋW）指定１'!X93)) ->  | Y93: =IF('補正（ｋW）指定１'!Y93="","",IF($E$2="作成不要","",'補正（ｋW）指定１'!Y93)) ->  | Z93: =IF('補正（ｋW）指定１'!Z93="","",IF($E$2="作成不要","",'補正（ｋW）指定１'!Z93)) ->  | AA93: =IF('補正（ｋW）指定１'!AA93="","",IF($E$2="作成不要","",'補正（ｋW）指定１'!AA93)) ->  | AB93: =IF('補正（ｋW）指定１'!AB93="","",IF($E$2="作成不要","",'補正（ｋW）指定１'!AB93)) ->  | AE93: =IF(AE20="","",AE20) -> 
B94: =B21 -> （上段：取引所、下段：その他） | E94: =IF('補正（ｋW）指定１'!E94="","",IF($E$2="作成不要","",'補正（ｋW）指定１'!E94)) ->  | F94: =IF('補正（ｋW）指定１'!F94="","",IF($E$2="作成不要","",'補正（ｋW）指定１'!F94)) ->  | G94: =IF('補正（ｋW）指定１'!G94="","",IF($E$2="作成不要","",'補正（ｋW）指定１'!G94)) ->  | H94: =IF('補正（ｋW）指定１'!H94="","",IF($E$2="作成不要","",'補正（ｋW）指定１'!H94)) ->  | I94: =IF('補正（ｋW）指定１'!I94="","",IF($E$2="作成不要","",'補正（ｋW）指定１'!I94)) ->  | J94: =IF('補正（ｋW）指定１'!J94="","",IF($E$2="作成不要","",'補正（ｋW）指定１'!J94)) ->  | K94: =IF('補正（ｋW）指定１'!K94="","",IF($E$2="作成不要","",'補正（ｋW）指定１'!K94)) ->  | L94: =IF('補正（ｋW）指定１'!L94="","",IF($E$2="作成不要","",'補正（ｋW）指定１'!L94)) ->  | M94: =IF('補正（ｋW）指定１'!M94="","",IF($E$2="作成不要","",'補正（ｋW）指定１'!M94)) ->  | N94: =IF('補正（ｋW）指定１'!N94="","",IF($E$2="作成不要","",'補正（ｋW）指定１'!N94)) ->  | O94: =IF('補正（ｋW）指定１'!O94="","",IF($E$2="作成不要","",'補正（ｋW）指定１'!O94)) ->  | P94: =IF('補正（ｋW）指定１'!P94="","",IF($E$2="作成不要","",'補正（ｋW）指定１'!P94)) ->  | Q94: =IF('補正（ｋW）指定１'!Q94="","",IF($E$2="作成不要","",'補正（ｋW）指定１'!Q94)) ->  | R94: =IF('補正（ｋW）指定１'!R94="","",IF($E$2="作成不要","",'補正（ｋW）指定１'!R94)) ->  | S94: =IF('補正（ｋW）指定１'!S94="","",IF($E$2="作成不要","",'補正（ｋW）指定１'!S94)) ->  | T94: =IF('補正（ｋW）指定１'!T94="","",IF($E$2="作成不要","",'補正（ｋW）指定１'!T94)) ->  | U94: =IF('補正（ｋW）指定１'!U94="","",IF($E$2="作成不要","",'補正（ｋW）指定１'!U94)) ->  | V94: =IF('補正（ｋW）指定１'!V94="","",IF($E$2="作成不要","",'補正（ｋW）指定１'!V94)) ->  | W94: =IF('補正（ｋW）指定１'!W94="","",IF($E$2="作成不要","",'補正（ｋW）指定１'!W94)) ->  | X94: =IF('補正（ｋW）指定１'!X94="","",IF($E$2="作成不要","",'補正（ｋW）指定１'!X94)) ->  | Y94: =IF('補正（ｋW）指定１'!Y94="","",IF($E$2="作成不要","",'補正（ｋW）指定１'!Y94)) ->  | Z94: =IF('補正（ｋW）指定１'!Z94="","",IF($E$2="作成不要","",'補正（ｋW）指定１'!Z94)) ->  | AA94: =IF('補正（ｋW）指定１'!AA94="","",IF($E$2="作成不要","",'補正（ｋW）指定１'!AA94)) ->  | AB94: =IF('補正（ｋW）指定１'!AB94="","",IF($E$2="作成不要","",'補正（ｋW）指定１'!AB94)) ->  | AE94: =IF(AE21="","",AE21) -> 
B95: =B22 -> 【送配電】合計（送電端） | E95: =IF('補正（ｋW）指定１'!E95="","",IF($E$2="作成不要","",'補正（ｋW）指定１'!E95)) ->  | F95: =IF('補正（ｋW）指定１'!F95="","",IF($E$2="作成不要","",'補正（ｋW）指定１'!F95)) ->  | G95: =IF('補正（ｋW）指定１'!G95="","",IF($E$2="作成不要","",'補正（ｋW）指定１'!G95)) ->  | H95: =IF('補正（ｋW）指定１'!H95="","",IF($E$2="作成不要","",'補正（ｋW）指定１'!H95)) ->  | I95: =IF('補正（ｋW）指定１'!I95="","",IF($E$2="作成不要","",'補正（ｋW）指定１'!I95)) ->  | J95: =IF('補正（ｋW）指定１'!J95="","",IF($E$2="作成不要","",'補正（ｋW）指定１'!J95)) ->  | K95: =IF('補正（ｋW）指定１'!K95="","",IF($E$2="作成不要","",'補正（ｋW）指定１'!K95)) ->  | L95: =IF('補正（ｋW）指定１'!L95="","",IF($E$2="作成不要","",'補正（ｋW）指定１'!L95)) ->  | M95: =IF('補正（ｋW）指定１'!M95="","",IF($E$2="作成不要","",'補正（ｋW）指定１'!M95)) ->  | N95: =IF('補正（ｋW）指定１'!N95="","",IF($E$2="作成不要","",'補正（ｋW）指定１'!N95)) ->  | O95: =IF('補正（ｋW）指定１'!O95="","",IF($E$2="作成不要","",'補正（ｋW）指定１'!O95)) ->  | P95: =IF('補正（ｋW）指定１'!P95="","",IF($E$2="作成不要","",'補正（ｋW）指定１'!P95)) ->  | Q95: =IF('補正（ｋW）指定１'!Q95="","",IF($E$2="作成不要","",'補正（ｋW）指定１'!Q95)) ->  | R95: =IF('補正（ｋW）指定１'!R95="","",IF($E$2="作成不要","",'補正（ｋW）指定１'!R95)) ->  | S95: =IF('補正（ｋW）指定１'!S95="","",IF($E$2="作成不要","",'補正（ｋW）指定１'!S95)) ->  | T95: =IF('補正（ｋW）指定１'!T95="","",IF($E$2="作成不要","",'補正（ｋW）指定１'!T95)) ->  | U95: =IF('補正（ｋW）指定１'!U95="","",IF($E$2="作成不要","",'補正（ｋW）指定１'!U95)) ->  | V95: =IF('補正（ｋW）指定１'!V95="","",IF($E$2="作成不要","",'補正（ｋW）指定１'!V95)) ->  | W95: =IF('補正（ｋW）指定１'!W95="","",IF($E$2="作成不要","",'補正（ｋW）指定１'!W95)) ->  | X95: =IF('補正（ｋW）指定１'!X95="","",IF($E$2="作成不要","",'補正（ｋW）指定１'!X95)) ->  | Y95: =IF('補正（ｋW）指定１'!Y95="","",IF($E$2="作成不要","",'補正（ｋW）指定１'!Y95)) ->  | Z95: =IF('補正（ｋW）指定１'!Z95="","",IF($E$2="作成不要","",'補正（ｋW）指定１'!Z95)) ->  | AA95: =IF('補正（ｋW）指定１'!AA95="","",IF($E$2="作成不要","",'補正（ｋW）指定１'!AA95)) ->  | AB95: =IF('補正（ｋW）指定１'!AB95="","",IF($E$2="作成不要","",'補正（ｋW）指定１'!AB95)) ->  | AE95: =IF(AE22="","",AE22) -> 
B96: =B23 -> 【ｴﾘｱ】小売電気事業者（供給力合計） | E96: =IF('補正（ｋW）指定１'!E96="","",IF($E$2="作成不要","",'補正（ｋW）指定１'!E96)) ->  | F96: =IF('補正（ｋW）指定１'!F96="","",IF($E$2="作成不要","",'補正（ｋW）指定１'!F96)) ->  | G96: =IF('補正（ｋW）指定１'!G96="","",IF($E$2="作成不要","",'補正（ｋW）指定１'!G96)) ->  | H96: =IF('補正（ｋW）指定１'!H96="","",IF($E$2="作成不要","",'補正（ｋW）指定１'!H96)) ->  | I96: =IF('補正（ｋW）指定１'!I96="","",IF($E$2="作成不要","",'補正（ｋW）指定１'!I96)) ->  | J96: =IF('補正（ｋW）指定１'!J96="","",IF($E$2="作成不要","",'補正（ｋW）指定１'!J96)) ->  | K96: =IF('補正（ｋW）指定１'!K96="","",IF($E$2="作成不要","",'補正（ｋW）指定１'!K96)) ->  | L96: =IF('補正（ｋW）指定１'!L96="","",IF($E$2="作成不要","",'補正（ｋW）指定１'!L96)) ->  | M96: =IF('補正（ｋW）指定１'!M96="","",IF($E$2="作成不要","",'補正（ｋW）指定１'!M96)) ->  | N96: =IF('補正（ｋW）指定１'!N96="","",IF($E$2="作成不要","",'補正（ｋW）指定１'!N96)) ->  | O96: =IF('補正（ｋW）指定１'!O96="","",IF($E$2="作成不要","",'補正（ｋW）指定１'!O96)) ->  | P96: =IF('補正（ｋW）指定１'!P96="","",IF($E$2="作成不要","",'補正（ｋW）指定１'!P96)) ->  | Q96: =IF('補正（ｋW）指定１'!Q96="","",IF($E$2="作成不要","",'補正（ｋW）指定１'!Q96)) ->  | R96: =IF('補正（ｋW）指定１'!R96="","",IF($E$2="作成不要","",'補正（ｋW）指定１'!R96)) ->  | S96: =IF('補正（ｋW）指定１'!S96="","",IF($E$2="作成不要","",'補正（ｋW）指定１'!S96)) ->  | T96: =IF('補正（ｋW）指定１'!T96="","",IF($E$2="作成不要","",'補正（ｋW）指定１'!T96)) ->  | U96: =IF('補正（ｋW）指定１'!U96="","",IF($E$2="作成不要","",'補正（ｋW）指定１'!U96)) ->  | V96: =IF('補正（ｋW）指定１'!V96="","",IF($E$2="作成不要","",'補正（ｋW）指定１'!V96)) ->  | W96: =IF('補正（ｋW）指定１'!W96="","",IF($E$2="作成不要","",'補正（ｋW）指定１'!W96)) ->  | X96: =IF('補正（ｋW）指定１'!X96="","",IF($E$2="作成不要","",'補正（ｋW）指定１'!X96)) ->  | Y96: =IF('補正（ｋW）指定１'!Y96="","",IF($E$2="作成不要","",'補正（ｋW）指定１'!Y96)) ->  | Z96: =IF('補正（ｋW）指定１'!Z96="","",IF($E$2="作成不要","",'補正（ｋW）指定１'!Z96)) ->  | AA96: =IF('補正（ｋW）指定１'!AA96="","",IF($E$2="作成不要","",'補正（ｋW）指定１'!AA96)) ->  | AB96: =IF('補正（ｋW）指定１'!AB96="","",IF($E$2="作成不要","",'補正（ｋW）指定１'!AB96)) ->  | AE96: =IF(AE23="","",AE23) -> 
B97: =B24 -> 【ｴﾘｱ】発電事業者（余力合計） | E97: =IF('補正（ｋW）指定１'!E97="","",IF($E$2="作成不要","",'補正（ｋW）指定１'!E97)) ->  | F97: =IF('補正（ｋW）指定１'!F97="","",IF($E$2="作成不要","",'補正（ｋW）指定１'!F97)) ->  | G97: =IF('補正（ｋW）指定１'!G97="","",IF($E$2="作成不要","",'補正（ｋW）指定１'!G97)) ->  | H97: =IF('補正（ｋW）指定１'!H97="","",IF($E$2="作成不要","",'補正（ｋW）指定１'!H97)) ->  | I97: =IF('補正（ｋW）指定１'!I97="","",IF($E$2="作成不要","",'補正（ｋW）指定１'!I97)) ->  | J97: =IF('補正（ｋW）指定１'!J97="","",IF($E$2="作成不要","",'補正（ｋW）指定１'!J97)) ->  | K97: =IF('補正（ｋW）指定１'!K97="","",IF($E$2="作成不要","",'補正（ｋW）指定１'!K97)) ->  | L97: =IF('補正（ｋW）指定１'!L97="","",IF($E$2="作成不要","",'補正（ｋW）指定１'!L97)) ->  | M97: =IF('補正（ｋW）指定１'!M97="","",IF($E$2="作成不要","",'補正（ｋW）指定１'!M97)) ->  | N97: =IF('補正（ｋW）指定１'!N97="","",IF($E$2="作成不要","",'補正（ｋW）指定１'!N97)) ->  | O97: =IF('補正（ｋW）指定１'!O97="","",IF($E$2="作成不要","",'補正（ｋW）指定１'!O97)) ->  | P97: =IF('補正（ｋW）指定１'!P97="","",IF($E$2="作成不要","",'補正（ｋW）指定１'!P97)) ->  | Q97: =IF('補正（ｋW）指定１'!Q97="","",IF($E$2="作成不要","",'補正（ｋW）指定１'!Q97)) ->  | R97: =IF('補正（ｋW）指定１'!R97="","",IF($E$2="作成不要","",'補正（ｋW）指定１'!R97)) ->  | S97: =IF('補正（ｋW）指定１'!S97="","",IF($E$2="作成不要","",'補正（ｋW）指定１'!S97)) ->  | T97: =IF('補正（ｋW）指定１'!T97="","",IF($E$2="作成不要","",'補正（ｋW）指定１'!T97)) ->  | U97: =IF('補正（ｋW）指定１'!U97="","",IF($E$2="作成不要","",'補正（ｋW）指定１'!U97)) ->  | V97: =IF('補正（ｋW）指定１'!V97="","",IF($E$2="作成不要","",'補正（ｋW）指定１'!V97)) ->  | W97: =IF('補正（ｋW）指定１'!W97="","",IF($E$2="作成不要","",'補正（ｋW）指定１'!W97)) ->  | X97: =IF('補正（ｋW）指定１'!X97="","",IF($E$2="作成不要","",'補正（ｋW）指定１'!X97)) ->  | Y97: =IF('補正（ｋW）指定１'!Y97="","",IF($E$2="作成不要","",'補正（ｋW）指定１'!Y97)) ->  | Z97: =IF('補正（ｋW）指定１'!Z97="","",IF($E$2="作成不要","",'補正（ｋW）指定１'!Z97)) ->  | AA97: =IF('補正（ｋW）指定１'!AA97="","",IF($E$2="作成不要","",'補正（ｋW）指定１'!AA97)) ->  | AB97: =IF('補正（ｋW）指定１'!AB97="","",IF($E$2="作成不要","",'補正（ｋW）指定１'!AB97)) ->  | AE97: =IF(AE24="","",AE24) -> 
B98: 【ｴﾘｱ】特定卸供給事業者（余力合計） | E98: =IF('補正（ｋW）指定１'!E98="","",IF($E$2="作成不要","",'補正（ｋW）指定１'!E98)) ->  | F98: =IF('補正（ｋW）指定１'!F98="","",IF($E$2="作成不要","",'補正（ｋW）指定１'!F98)) ->  | G98: =IF('補正（ｋW）指定１'!G98="","",IF($E$2="作成不要","",'補正（ｋW）指定１'!G98)) ->  | H98: =IF('補正（ｋW）指定１'!H98="","",IF($E$2="作成不要","",'補正（ｋW）指定１'!H98)) ->  | I98: =IF('補正（ｋW）指定１'!I98="","",IF($E$2="作成不要","",'補正（ｋW）指定１'!I98)) ->  | J98: =IF('補正（ｋW）指定１'!J98="","",IF($E$2="作成不要","",'補正（ｋW）指定１'!J98)) ->  | K98: =IF('補正（ｋW）指定１'!K98="","",IF($E$2="作成不要","",'補正（ｋW）指定１'!K98)) ->  | L98: =IF('補正（ｋW）指定１'!L98="","",IF($E$2="作成不要","",'補正（ｋW）指定１'!L98)) ->  | M98: =IF('補正（ｋW）指定１'!M98="","",IF($E$2="作成不要","",'補正（ｋW）指定１'!M98)) ->  | N98: =IF('補正（ｋW）指定１'!N98="","",IF($E$2="作成不要","",'補正（ｋW）指定１'!N98)) ->  | O98: =IF('補正（ｋW）指定１'!O98="","",IF($E$2="作成不要","",'補正（ｋW）指定１'!O98)) ->  | P98: =IF('補正（ｋW）指定１'!P98="","",IF($E$2="作成不要","",'補正（ｋW）指定１'!P98)) ->  | Q98: =IF('補正（ｋW）指定１'!Q98="","",IF($E$2="作成不要","",'補正（ｋW）指定１'!Q98)) ->  | R98: =IF('補正（ｋW）指定１'!R98="","",IF($E$2="作成不要","",'補正（ｋW）指定１'!R98)) ->  | S98: =IF('補正（ｋW）指定１'!S98="","",IF($E$2="作成不要","",'補正（ｋW）指定１'!S98)) ->  | T98: =IF('補正（ｋW）指定１'!T98="","",IF($E$2="作成不要","",'補正（ｋW）指定１'!T98)) ->  | U98: =IF('補正（ｋW）指定１'!U98="","",IF($E$2="作成不要","",'補正（ｋW）指定１'!U98)) ->  | V98: =IF('補正（ｋW）指定１'!V98="","",IF($E$2="作成不要","",'補正（ｋW）指定１'!V98)) ->  | W98: =IF('補正（ｋW）指定１'!W98="","",IF($E$2="作成不要","",'補正（ｋW）指定１'!W98)) ->  | X98: =IF('補正（ｋW）指定１'!X98="","",IF($E$2="作成不要","",'補正（ｋW）指定１'!X98)) ->  | Y98: =IF('補正（ｋW）指定１'!Y98="","",IF($E$2="作成不要","",'補正（ｋW）指定１'!Y98)) ->  | Z98: =IF('補正（ｋW）指定１'!Z98="","",IF($E$2="作成不要","",'補正（ｋW）指定１'!Z98)) ->  | AA98: =IF('補正（ｋW）指定１'!AA98="","",IF($E$2="作成不要","",'補正（ｋW）指定１'!AA98)) ->  | AB98: =IF('補正（ｋW）指定１'!AB98="","",IF($E$2="作成不要","",'補正（ｋW）指定１'!AB98)) ->  | AE98: =IF(AE25="","",AE25) -> 
B99: =B26 -> 一般送配電事業者（補正） | E99: =IF('補正（ｋW）指定１'!E99="","",IF($E$2="作成不要","",'補正（ｋW）指定１'!E99)) ->  | F99: =IF('補正（ｋW）指定１'!F99="","",IF($E$2="作成不要","",'補正（ｋW）指定１'!F99)) ->  | G99: =IF('補正（ｋW）指定１'!G99="","",IF($E$2="作成不要","",'補正（ｋW）指定１'!G99)) ->  | H99: =IF('補正（ｋW）指定１'!H99="","",IF($E$2="作成不要","",'補正（ｋW）指定１'!H99)) ->  | I99: =IF('補正（ｋW）指定１'!I99="","",IF($E$2="作成不要","",'補正（ｋW）指定１'!I99)) ->  | J99: =IF('補正（ｋW）指定１'!J99="","",IF($E$2="作成不要","",'補正（ｋW）指定１'!J99)) ->  | K99: =IF('補正（ｋW）指定１'!K99="","",IF($E$2="作成不要","",'補正（ｋW）指定１'!K99)) ->  | L99: =IF('補正（ｋW）指定１'!L99="","",IF($E$2="作成不要","",'補正（ｋW）指定１'!L99)) ->  | M99: =IF('補正（ｋW）指定１'!M99="","",IF($E$2="作成不要","",'補正（ｋW）指定１'!M99)) ->  | N99: =IF('補正（ｋW）指定１'!N99="","",IF($E$2="作成不要","",'補正（ｋW）指定１'!N99)) ->  | O99: =IF('補正（ｋW）指定１'!O99="","",IF($E$2="作成不要","",'補正（ｋW）指定１'!O99)) ->  | P99: =IF('補正（ｋW）指定１'!P99="","",IF($E$2="作成不要","",'補正（ｋW）指定１'!P99)) ->  | Q99: =IF('補正（ｋW）指定１'!Q99="","",IF($E$2="作成不要","",'補正（ｋW）指定１'!Q99)) ->  | R99: =IF('補正（ｋW）指定１'!R99="","",IF($E$2="作成不要","",'補正（ｋW）指定１'!R99)) ->  | S99: =IF('補正（ｋW）指定１'!S99="","",IF($E$2="作成不要","",'補正（ｋW）指定１'!S99)) ->  | T99: =IF('補正（ｋW）指定１'!T99="","",IF($E$2="作成不要","",'補正（ｋW）指定１'!T99)) ->  | U99: =IF('補正（ｋW）指定１'!U99="","",IF($E$2="作成不要","",'補正（ｋW）指定１'!U99)) ->  | V99: =IF('補正（ｋW）指定１'!V99="","",IF($E$2="作成不要","",'補正（ｋW）指定１'!V99)) ->  | W99: =IF('補正（ｋW）指定１'!W99="","",IF($E$2="作成不要","",'補正（ｋW）指定１'!W99)) ->  | X99: =IF('補正（ｋW）指定１'!X99="","",IF($E$2="作成不要","",'補正（ｋW）指定１'!X99)) ->  | Y99: =IF('補正（ｋW）指定１'!Y99="","",IF($E$2="作成不要","",'補正（ｋW）指定１'!Y99)) ->  | Z99: =IF('補正（ｋW）指定１'!Z99="","",IF($E$2="作成不要","",'補正（ｋW）指定１'!Z99)) ->  | AA99: =IF('補正（ｋW）指定１'!AA99="","",IF($E$2="作成不要","",'補正（ｋW）指定１'!AA99)) ->  | AB99: =IF('補正（ｋW）指定１'!AB99="","",IF($E$2="作成不要","",'補正（ｋW）指定１'!AB99)) ->  | AC99: =IF(AC76="","",AC76) -> 
B100: =B27 -> エリア外供給力（再掲） | E100: =IF('補正（ｋW）指定１'!E100="","",IF($E$2="作成不要","",'補正（ｋW）指定１'!E100)) ->  | F100: =IF('補正（ｋW）指定１'!F100="","",IF($E$2="作成不要","",'補正（ｋW）指定１'!F100)) ->  | G100: =IF('補正（ｋW）指定１'!G100="","",IF($E$2="作成不要","",'補正（ｋW）指定１'!G100)) ->  | H100: =IF('補正（ｋW）指定１'!H100="","",IF($E$2="作成不要","",'補正（ｋW）指定１'!H100)) ->  | I100: =IF('補正（ｋW）指定１'!I100="","",IF($E$2="作成不要","",'補正（ｋW）指定１'!I100)) ->  | J100: =IF('補正（ｋW）指定１'!J100="","",IF($E$2="作成不要","",'補正（ｋW）指定１'!J100)) ->  | K100: =IF('補正（ｋW）指定１'!K100="","",IF($E$2="作成不要","",'補正（ｋW）指定１'!K100)) ->  | L100: =IF('補正（ｋW）指定１'!L100="","",IF($E$2="作成不要","",'補正（ｋW）指定１'!L100)) ->  | M100: =IF('補正（ｋW）指定１'!M100="","",IF($E$2="作成不要","",'補正（ｋW）指定１'!M100)) ->  | N100: =IF('補正（ｋW）指定１'!N100="","",IF($E$2="作成不要","",'補正（ｋW）指定１'!N100)) ->  | O100: =IF('補正（ｋW）指定１'!O100="","",IF($E$2="作成不要","",'補正（ｋW）指定１'!O100)) ->  | P100: =IF('補正（ｋW）指定１'!P100="","",IF($E$2="作成不要","",'補正（ｋW）指定１'!P100)) ->  | Q100: =IF('補正（ｋW）指定１'!Q100="","",IF($E$2="作成不要","",'補正（ｋW）指定１'!Q100)) ->  | R100: =IF('補正（ｋW）指定１'!R100="","",IF($E$2="作成不要","",'補正（ｋW）指定１'!R100)) ->  | S100: =IF('補正（ｋW）指定１'!S100="","",IF($E$2="作成不要","",'補正（ｋW）指定１'!S100)) ->  | T100: =IF('補正（ｋW）指定１'!T100="","",IF($E$2="作成不要","",'補正（ｋW）指定１'!T100)) ->  | U100: =IF('補正（ｋW）指定１'!U100="","",IF($E$2="作成不要","",'補正（ｋW）指定１'!U100)) ->  | V100: =IF('補正（ｋW）指定１'!V100="","",IF($E$2="作成不要","",'補正（ｋW）指定１'!V100)) ->  | W100: =IF('補正（ｋW）指定１'!W100="","",IF($E$2="作成不要","",'補正（ｋW）指定１'!W100)) ->  | X100: =IF('補正（ｋW）指定１'!X100="","",IF($E$2="作成不要","",'補正（ｋW）指定１'!X100)) ->  | Y100: =IF('補正（ｋW）指定１'!Y100="","",IF($E$2="作成不要","",'補正（ｋW）指定１'!Y100)) ->  | Z100: =IF('補正（ｋW）指定１'!Z100="","",IF($E$2="作成不要","",'補正（ｋW）指定１'!Z100)) ->  | AA100: =IF('補正（ｋW）指定１'!AA100="","",IF($E$2="作成不要","",'補正（ｋW）指定１'!AA100)) ->  | AB100: =IF('補正（ｋW）指定１'!AB100="","",IF($E$2="作成不要","",'補正（ｋW）指定１'!AB100)) ->  | AC100: =IF(AC27="","",AC27) -> 
B101: =B28 -> 発動指令電源供給力（再掲） | E101: =IF('補正（ｋW）指定１'!E101="","",IF($E$2="作成不要","",'補正（ｋW）指定１'!E101)) ->  | F101: =IF('補正（ｋW）指定１'!F101="","",IF($E$2="作成不要","",'補正（ｋW）指定１'!F101)) ->  | G101: =IF('補正（ｋW）指定１'!G101="","",IF($E$2="作成不要","",'補正（ｋW）指定１'!G101)) ->  | H101: =IF('補正（ｋW）指定１'!H101="","",IF($E$2="作成不要","",'補正（ｋW）指定１'!H101)) ->  | I101: =IF('補正（ｋW）指定１'!I101="","",IF($E$2="作成不要","",'補正（ｋW）指定１'!I101)) ->  | J101: =IF('補正（ｋW）指定１'!J101="","",IF($E$2="作成不要","",'補正（ｋW）指定１'!J101)) ->  | K101: =IF('補正（ｋW）指定１'!K101="","",IF($E$2="作成不要","",'補正（ｋW）指定１'!K101)) ->  | L101: =IF('補正（ｋW）指定１'!L101="","",IF($E$2="作成不要","",'補正（ｋW）指定１'!L101)) ->  | M101: =IF('補正（ｋW）指定１'!M101="","",IF($E$2="作成不要","",'補正（ｋW）指定１'!M101)) ->  | N101: =IF('補正（ｋW）指定１'!N101="","",IF($E$2="作成不要","",'補正（ｋW）指定１'!N101)) ->  | O101: =IF('補正（ｋW）指定１'!O101="","",IF($E$2="作成不要","",'補正（ｋW）指定１'!O101)) ->  | P101: =IF('補正（ｋW）指定１'!P101="","",IF($E$2="作成不要","",'補正（ｋW）指定１'!P101)) ->  | Q101: =IF('補正（ｋW）指定１'!Q101="","",IF($E$2="作成不要","",'補正（ｋW）指定１'!Q101)) ->  | R101: =IF('補正（ｋW）指定１'!R101="","",IF($E$2="作成不要","",'補正（ｋW）指定１'!R101)) ->  | S101: =IF('補正（ｋW）指定１'!S101="","",IF($E$2="作成不要","",'補正（ｋW）指定１'!S101)) ->  | T101: =IF('補正（ｋW）指定１'!T101="","",IF($E$2="作成不要","",'補正（ｋW）指定１'!T101)) ->  | U101: =IF('補正（ｋW）指定１'!U101="","",IF($E$2="作成不要","",'補正（ｋW）指定１'!U101)) ->  | V101: =IF('補正（ｋW）指定１'!V101="","",IF($E$2="作成不要","",'補正（ｋW）指定１'!V101)) ->  | W101: =IF('補正（ｋW）指定１'!W101="","",IF($E$2="作成不要","",'補正（ｋW）指定１'!W101)) ->  | X101: =IF('補正（ｋW）指定１'!X101="","",IF($E$2="作成不要","",'補正（ｋW）指定１'!X101)) ->  | Y101: =IF('補正（ｋW）指定１'!Y101="","",IF($E$2="作成不要","",'補正（ｋW）指定１'!Y101)) ->  | Z101: =IF('補正（ｋW）指定１'!Z101="","",IF($E$2="作成不要","",'補正（ｋW）指定１'!Z101)) ->  | AA101: =IF('補正（ｋW）指定１'!AA101="","",IF($E$2="作成不要","",'補正（ｋW）指定１'!AA101)) ->  | AB101: =IF('補正（ｋW）指定１'!AB101="","",IF($E$2="作成不要","",'補正（ｋW）指定１'!AB101)) -> 
B102: =B29 -> 【ｴﾘｱ】合計（送電端） | E102: =IF('補正（ｋW）指定１'!E102="","",IF($E$2="作成不要","",'補正（ｋW）指定１'!E102)) ->  | F102: =IF('補正（ｋW）指定１'!F102="","",IF($E$2="作成不要","",'補正（ｋW）指定１'!F102)) ->  | G102: =IF('補正（ｋW）指定１'!G102="","",IF($E$2="作成不要","",'補正（ｋW）指定１'!G102)) ->  | H102: =IF('補正（ｋW）指定１'!H102="","",IF($E$2="作成不要","",'補正（ｋW）指定１'!H102)) ->  | I102: =IF('補正（ｋW）指定１'!I102="","",IF($E$2="作成不要","",'補正（ｋW）指定１'!I102)) ->  | J102: =IF('補正（ｋW）指定１'!J102="","",IF($E$2="作成不要","",'補正（ｋW）指定１'!J102)) ->  | K102: =IF('補正（ｋW）指定１'!K102="","",IF($E$2="作成不要","",'補正（ｋW）指定１'!K102)) ->  | L102: =IF('補正（ｋW）指定１'!L102="","",IF($E$2="作成不要","",'補正（ｋW）指定１'!L102)) ->  | M102: =IF('補正（ｋW）指定１'!M102="","",IF($E$2="作成不要","",'補正（ｋW）指定１'!M102)) ->  | N102: =IF('補正（ｋW）指定１'!N102="","",IF($E$2="作成不要","",'補正（ｋW）指定１'!N102)) ->  | O102: =IF('補正（ｋW）指定１'!O102="","",IF($E$2="作成不要","",'補正（ｋW）指定１'!O102)) ->  | P102: =IF('補正（ｋW）指定１'!P102="","",IF($E$2="作成不要","",'補正（ｋW）指定１'!P102)) ->  | Q102: =IF('補正（ｋW）指定１'!Q102="","",IF($E$2="作成不要","",'補正（ｋW）指定１'!Q102)) ->  | R102: =IF('補正（ｋW）指定１'!R102="","",IF($E$2="作成不要","",'補正（ｋW）指定１'!R102)) ->  | S102: =IF('補正（ｋW）指定１'!S102="","",IF($E$2="作成不要","",'補正（ｋW）指定１'!S102)) ->  | T102: =IF('補正（ｋW）指定１'!T102="","",IF($E$2="作成不要","",'補正（ｋW）指定１'!T102)) ->  | U102: =IF('補正（ｋW）指定１'!U102="","",IF($E$2="作成不要","",'補正（ｋW）指定１'!U102)) ->  | V102: =IF('補正（ｋW）指定１'!V102="","",IF($E$2="作成不要","",'補正（ｋW）指定１'!V102)) ->  | W102: =IF('補正（ｋW）指定１'!W102="","",IF($E$2="作成不要","",'補正（ｋW）指定１'!W102)) ->  | X102: =IF('補正（ｋW）指定１'!X102="","",IF($E$2="作成不要","",'補正（ｋW）指定１'!X102)) ->  | Y102: =IF('補正（ｋW）指定１'!Y102="","",IF($E$2="作成不要","",'補正（ｋW）指定１'!Y102)) ->  | Z102: =IF('補正（ｋW）指定１'!Z102="","",IF($E$2="作成不要","",'補正（ｋW）指定１'!Z102)) ->  | AA102: =IF('補正（ｋW）指定１'!AA102="","",IF($E$2="作成不要","",'補正（ｋW）指定１'!AA102)) ->  | AB102: =IF('補正（ｋW）指定１'!AB102="","",IF($E$2="作成不要","",'補正（ｋW）指定１'!AB102)) ->  | AC102: =IF(COUNT(AC85:AC92,AC96,AC97,AC99)=0,"",SUM(AC85:AC92,AC96,AC97,AC99)) ->  | AD102: =IF(COUNT(AD85:AD92,AD96,AD97,AD99)=0,"",SUM(AD85:AD92,AD96,AD97,AD99)) -> 
A103: 需要電力（送電端） | D103: エリア全体 | E103: =IF('補正（ｋW）指定１'!E103="","",IF($E$2="作成不要","",'補正（ｋW）指定１'!E103)) ->  | F103: =IF('補正（ｋW）指定１'!F103="","",IF($E$2="作成不要","",'補正（ｋW）指定１'!F103)) ->  | G103: =IF('補正（ｋW）指定１'!G103="","",IF($E$2="作成不要","",'補正（ｋW）指定１'!G103)) ->  | H103: =IF('補正（ｋW）指定１'!H103="","",IF($E$2="作成不要","",'補正（ｋW）指定１'!H103)) ->  | I103: =IF('補正（ｋW）指定１'!I103="","",IF($E$2="作成不要","",'補正（ｋW）指定１'!I103)) ->  | J103: =IF('補正（ｋW）指定１'!J103="","",IF($E$2="作成不要","",'補正（ｋW）指定１'!J103)) ->  | K103: =IF('補正（ｋW）指定１'!K103="","",IF($E$2="作成不要","",'補正（ｋW）指定１'!K103)) ->  | L103: =IF('補正（ｋW）指定１'!L103="","",IF($E$2="作成不要","",'補正（ｋW）指定１'!L103)) ->  | M103: =IF('補正（ｋW）指定１'!M103="","",IF($E$2="作成不要","",'補正（ｋW）指定１'!M103)) ->  | N103: =IF('補正（ｋW）指定１'!N103="","",IF($E$2="作成不要","",'補正（ｋW）指定１'!N103)) ->  | O103: =IF('補正（ｋW）指定１'!O103="","",IF($E$2="作成不要","",'補正（ｋW）指定１'!O103)) ->  | P103: =IF('補正（ｋW）指定１'!P103="","",IF($E$2="作成不要","",'補正（ｋW）指定１'!P103)) ->  | Q103: =IF('補正（ｋW）指定１'!Q103="","",IF($E$2="作成不要","",'補正（ｋW）指定１'!Q103)) ->  | R103: =IF('補正（ｋW）指定１'!R103="","",IF($E$2="作成不要","",'補正（ｋW）指定１'!R103)) ->  | S103: =IF('補正（ｋW）指定１'!S103="","",IF($E$2="作成不要","",'補正（ｋW）指定１'!S103)) ->  | T103: =IF('補正（ｋW）指定１'!T103="","",IF($E$2="作成不要","",'補正（ｋW）指定１'!T103)) ->  | U103: =IF('補正（ｋW）指定１'!U103="","",IF($E$2="作成不要","",'補正（ｋW）指定１'!U103)) ->  | V103: =IF('補正（ｋW）指定１'!V103="","",IF($E$2="作成不要","",'補正（ｋW）指定１'!V103)) ->  | W103: =IF('補正（ｋW）指定１'!W103="","",IF($E$2="作成不要","",'補正（ｋW）指定１'!W103)) ->  | X103: =IF('補正（ｋW）指定１'!X103="","",IF($E$2="作成不要","",'補正（ｋW）指定１'!X103)) ->  | Y103: =IF('補正（ｋW）指定１'!Y103="","",IF($E$2="作成不要","",'補正（ｋW）指定１'!Y103)) ->  | Z103: =IF('補正（ｋW）指定１'!Z103="","",IF($E$2="作成不要","",'補正（ｋW）指定１'!Z103)) ->  | AA103: =IF('補正（ｋW）指定１'!AA103="","",IF($E$2="作成不要","",'補正（ｋW）指定１'!AA103)) ->  | AB103: =IF('補正（ｋW）指定１'!AB103="","",IF($E$2="作成不要","",'補正（ｋW）指定１'!AB103)) ->  | AC103: =IF(AC30="","",AC30) -> 
D104: （内訳）本土分 | E104: =IF('補正（ｋW）指定１'!E104="","",IF($E$2="作成不要","",'補正（ｋW）指定１'!E104)) ->  | F104: =IF('補正（ｋW）指定１'!F104="","",IF($E$2="作成不要","",'補正（ｋW）指定１'!F104)) ->  | G104: =IF('補正（ｋW）指定１'!G104="","",IF($E$2="作成不要","",'補正（ｋW）指定１'!G104)) ->  | H104: =IF('補正（ｋW）指定１'!H104="","",IF($E$2="作成不要","",'補正（ｋW）指定１'!H104)) ->  | I104: =IF('補正（ｋW）指定１'!I104="","",IF($E$2="作成不要","",'補正（ｋW）指定１'!I104)) ->  | J104: =IF('補正（ｋW）指定１'!J104="","",IF($E$2="作成不要","",'補正（ｋW）指定１'!J104)) ->  | K104: =IF('補正（ｋW）指定１'!K104="","",IF($E$2="作成不要","",'補正（ｋW）指定１'!K104)) ->  | L104: =IF('補正（ｋW）指定１'!L104="","",IF($E$2="作成不要","",'補正（ｋW）指定１'!L104)) ->  | M104: =IF('補正（ｋW）指定１'!M104="","",IF($E$2="作成不要","",'補正（ｋW）指定１'!M104)) ->  | N104: =IF('補正（ｋW）指定１'!N104="","",IF($E$2="作成不要","",'補正（ｋW）指定１'!N104)) ->  | O104: =IF('補正（ｋW）指定１'!O104="","",IF($E$2="作成不要","",'補正（ｋW）指定１'!O104)) ->  | P104: =IF('補正（ｋW）指定１'!P104="","",IF($E$2="作成不要","",'補正（ｋW）指定１'!P104)) ->  | Q104: =IF('補正（ｋW）指定１'!Q104="","",IF($E$2="作成不要","",'補正（ｋW）指定１'!Q104)) ->  | R104: =IF('補正（ｋW）指定１'!R104="","",IF($E$2="作成不要","",'補正（ｋW）指定１'!R104)) ->  | S104: =IF('補正（ｋW）指定１'!S104="","",IF($E$2="作成不要","",'補正（ｋW）指定１'!S104)) ->  | T104: =IF('補正（ｋW）指定１'!T104="","",IF($E$2="作成不要","",'補正（ｋW）指定１'!T104)) ->  | U104: =IF('補正（ｋW）指定１'!U104="","",IF($E$2="作成不要","",'補正（ｋW）指定１'!U104)) ->  | V104: =IF('補正（ｋW）指定１'!V104="","",IF($E$2="作成不要","",'補正（ｋW）指定１'!V104)) ->  | W104: =IF('補正（ｋW）指定１'!W104="","",IF($E$2="作成不要","",'補正（ｋW）指定１'!W104)) ->  | X104: =IF('補正（ｋW）指定１'!X104="","",IF($E$2="作成不要","",'補正（ｋW）指定１'!X104)) ->  | Y104: =IF('補正（ｋW）指定１'!Y104="","",IF($E$2="作成不要","",'補正（ｋW）指定１'!Y104)) ->  | Z104: =IF('補正（ｋW）指定１'!Z104="","",IF($E$2="作成不要","",'補正（ｋW）指定１'!Z104)) ->  | AA104: =IF('補正（ｋW）指定１'!AA104="","",IF($E$2="作成不要","",'補正（ｋW）指定１'!AA104)) ->  | AB104: =IF('補正（ｋW）指定１'!AB104="","",IF($E$2="作成不要","",'補正（ｋW）指定１'!AB104)) ->  | AC104: =IF(AC31="","",AC31) -> 
D105: （内訳）離島分 | E105: =IF('補正（ｋW）指定１'!E105="","",IF($E$2="作成不要","",'補正（ｋW）指定１'!E105)) ->  | F105: =IF('補正（ｋW）指定１'!F105="","",IF($E$2="作成不要","",'補正（ｋW）指定１'!F105)) ->  | G105: =IF('補正（ｋW）指定１'!G105="","",IF($E$2="作成不要","",'補正（ｋW）指定１'!G105)) ->  | H105: =IF('補正（ｋW）指定１'!H105="","",IF($E$2="作成不要","",'補正（ｋW）指定１'!H105)) ->  | I105: =IF('補正（ｋW）指定１'!I105="","",IF($E$2="作成不要","",'補正（ｋW）指定１'!I105)) ->  | J105: =IF('補正（ｋW）指定１'!J105="","",IF($E$2="作成不要","",'補正（ｋW）指定１'!J105)) ->  | K105: =IF('補正（ｋW）指定１'!K105="","",IF($E$2="作成不要","",'補正（ｋW）指定１'!K105)) ->  | L105: =IF('補正（ｋW）指定１'!L105="","",IF($E$2="作成不要","",'補正（ｋW）指定１'!L105)) ->  | M105: =IF('補正（ｋW）指定１'!M105="","",IF($E$2="作成不要","",'補正（ｋW）指定１'!M105)) ->  | N105: =IF('補正（ｋW）指定１'!N105="","",IF($E$2="作成不要","",'補正（ｋW）指定１'!N105)) ->  | O105: =IF('補正（ｋW）指定１'!O105="","",IF($E$2="作成不要","",'補正（ｋW）指定１'!O105)) ->  | P105: =IF('補正（ｋW）指定１'!P105="","",IF($E$2="作成不要","",'補正（ｋW）指定１'!P105)) ->  | Q105: =IF('補正（ｋW）指定１'!Q105="","",IF($E$2="作成不要","",'補正（ｋW）指定１'!Q105)) ->  | R105: =IF('補正（ｋW）指定１'!R105="","",IF($E$2="作成不要","",'補正（ｋW）指定１'!R105)) ->  | S105: =IF('補正（ｋW）指定１'!S105="","",IF($E$2="作成不要","",'補正（ｋW）指定１'!S105)) ->  | T105: =IF('補正（ｋW）指定１'!T105="","",IF($E$2="作成不要","",'補正（ｋW）指定１'!T105)) ->  | U105: =IF('補正（ｋW）指定１'!U105="","",IF($E$2="作成不要","",'補正（ｋW）指定１'!U105)) ->  | V105: =IF('補正（ｋW）指定１'!V105="","",IF($E$2="作成不要","",'補正（ｋW）指定１'!V105)) ->  | W105: =IF('補正（ｋW）指定１'!W105="","",IF($E$2="作成不要","",'補正（ｋW）指定１'!W105)) ->  | X105: =IF('補正（ｋW）指定１'!X105="","",IF($E$2="作成不要","",'補正（ｋW）指定１'!X105)) ->  | Y105: =IF('補正（ｋW）指定１'!Y105="","",IF($E$2="作成不要","",'補正（ｋW）指定１'!Y105)) ->  | Z105: =IF('補正（ｋW）指定１'!Z105="","",IF($E$2="作成不要","",'補正（ｋW）指定１'!Z105)) ->  | AA105: =IF('補正（ｋW）指定１'!AA105="","",IF($E$2="作成不要","",'補正（ｋW）指定１'!AA105)) ->  | AB105: =IF('補正（ｋW）指定１'!AB105="","",IF($E$2="作成不要","",'補正（ｋW）指定１'!AB105)) ->  | AC105: =IF(AC32="","",AC32) -> 
A106: =A33 -> ひっ迫時需要抑制電力 （送電端） | D106: =D33 -> 小売電気事業者 | E106: =IF('補正（ｋW）指定１'!E106="","",IF($E$2="作成不要","",'補正（ｋW）指定１'!E106)) ->  | F106: =IF('補正（ｋW）指定１'!F106="","",IF($E$2="作成不要","",'補正（ｋW）指定１'!F106)) ->  | G106: =IF('補正（ｋW）指定１'!G106="","",IF($E$2="作成不要","",'補正（ｋW）指定１'!G106)) ->  | H106: =IF('補正（ｋW）指定１'!H106="","",IF($E$2="作成不要","",'補正（ｋW）指定１'!H106)) ->  | I106: =IF('補正（ｋW）指定１'!I106="","",IF($E$2="作成不要","",'補正（ｋW）指定１'!I106)) ->  | J106: =IF('補正（ｋW）指定１'!J106="","",IF($E$2="作成不要","",'補正（ｋW）指定１'!J106)) ->  | K106: =IF('補正（ｋW）指定１'!K106="","",IF($E$2="作成不要","",'補正（ｋW）指定１'!K106)) ->  | L106: =IF('補正（ｋW）指定１'!L106="","",IF($E$2="作成不要","",'補正（ｋW）指定１'!L106)) ->  | M106: =IF('補正（ｋW）指定１'!M106="","",IF($E$2="作成不要","",'補正（ｋW）指定１'!M106)) ->  | N106: =IF('補正（ｋW）指定１'!N106="","",IF($E$2="作成不要","",'補正（ｋW）指定１'!N106)) ->  | O106: =IF('補正（ｋW）指定１'!O106="","",IF($E$2="作成不要","",'補正（ｋW）指定１'!O106)) ->  | P106: =IF('補正（ｋW）指定１'!P106="","",IF($E$2="作成不要","",'補正（ｋW）指定１'!P106)) ->  | Q106: =IF('補正（ｋW）指定１'!Q106="","",IF($E$2="作成不要","",'補正（ｋW）指定１'!Q106)) ->  | R106: =IF('補正（ｋW）指定１'!R106="","",IF($E$2="作成不要","",'補正（ｋW）指定１'!R106)) ->  | S106: =IF('補正（ｋW）指定１'!S106="","",IF($E$2="作成不要","",'補正（ｋW）指定１'!S106)) ->  | T106: =IF('補正（ｋW）指定１'!T106="","",IF($E$2="作成不要","",'補正（ｋW）指定１'!T106)) ->  | U106: =IF('補正（ｋW）指定１'!U106="","",IF($E$2="作成不要","",'補正（ｋW）指定１'!U106)) ->  | V106: =IF('補正（ｋW）指定１'!V106="","",IF($E$2="作成不要","",'補正（ｋW）指定１'!V106)) ->  | W106: =IF('補正（ｋW）指定１'!W106="","",IF($E$2="作成不要","",'補正（ｋW）指定１'!W106)) ->  | X106: =IF('補正（ｋW）指定１'!X106="","",IF($E$2="作成不要","",'補正（ｋW）指定１'!X106)) ->  | Y106: =IF('補正（ｋW）指定１'!Y106="","",IF($E$2="作成不要","",'補正（ｋW）指定１'!Y106)) ->  | Z106: =IF('補正（ｋW）指定１'!Z106="","",IF($E$2="作成不要","",'補正（ｋW）指定１'!Z106)) ->  | AA106: =IF('補正（ｋW）指定１'!AA106="","",IF($E$2="作成不要","",'補正（ｋW）指定１'!AA106)) ->  | AB106: =IF('補正（ｋW）指定１'!AB106="","",IF($E$2="作成不要","",'補正（ｋW）指定１'!AB106)) ->  | AC106: =IF(AC33="","",AC33) -> 
D107: =D34 -> 一般送配電事業者 | E107: =IF('補正（ｋW）指定１'!E107="","",IF($E$2="作成不要","",'補正（ｋW）指定１'!E107)) ->  | F107: =IF('補正（ｋW）指定１'!F107="","",IF($E$2="作成不要","",'補正（ｋW）指定１'!F107)) ->  | G107: =IF('補正（ｋW）指定１'!G107="","",IF($E$2="作成不要","",'補正（ｋW）指定１'!G107)) ->  | H107: =IF('補正（ｋW）指定１'!H107="","",IF($E$2="作成不要","",'補正（ｋW）指定１'!H107)) ->  | I107: =IF('補正（ｋW）指定１'!I107="","",IF($E$2="作成不要","",'補正（ｋW）指定１'!I107)) ->  | J107: =IF('補正（ｋW）指定１'!J107="","",IF($E$2="作成不要","",'補正（ｋW）指定１'!J107)) ->  | K107: =IF('補正（ｋW）指定１'!K107="","",IF($E$2="作成不要","",'補正（ｋW）指定１'!K107)) ->  | L107: =IF('補正（ｋW）指定１'!L107="","",IF($E$2="作成不要","",'補正（ｋW）指定１'!L107)) ->  | M107: =IF('補正（ｋW）指定１'!M107="","",IF($E$2="作成不要","",'補正（ｋW）指定１'!M107)) ->  | N107: =IF('補正（ｋW）指定１'!N107="","",IF($E$2="作成不要","",'補正（ｋW）指定１'!N107)) ->  | O107: =IF('補正（ｋW）指定１'!O107="","",IF($E$2="作成不要","",'補正（ｋW）指定１'!O107)) ->  | P107: =IF('補正（ｋW）指定１'!P107="","",IF($E$2="作成不要","",'補正（ｋW）指定１'!P107)) ->  | Q107: =IF('補正（ｋW）指定１'!Q107="","",IF($E$2="作成不要","",'補正（ｋW）指定１'!Q107)) ->  | R107: =IF('補正（ｋW）指定１'!R107="","",IF($E$2="作成不要","",'補正（ｋW）指定１'!R107)) ->  | S107: =IF('補正（ｋW）指定１'!S107="","",IF($E$2="作成不要","",'補正（ｋW）指定１'!S107)) ->  | T107: =IF('補正（ｋW）指定１'!T107="","",IF($E$2="作成不要","",'補正（ｋW）指定１'!T107)) ->  | U107: =IF('補正（ｋW）指定１'!U107="","",IF($E$2="作成不要","",'補正（ｋW）指定１'!U107)) ->  | V107: =IF('補正（ｋW）指定１'!V107="","",IF($E$2="作成不要","",'補正（ｋW）指定１'!V107)) ->  | W107: =IF('補正（ｋW）指定１'!W107="","",IF($E$2="作成不要","",'補正（ｋW）指定１'!W107)) ->  | X107: =IF('補正（ｋW）指定１'!X107="","",IF($E$2="作成不要","",'補正（ｋW）指定１'!X107)) ->  | Y107: =IF('補正（ｋW）指定１'!Y107="","",IF($E$2="作成不要","",'補正（ｋW）指定１'!Y107)) ->  | Z107: =IF('補正（ｋW）指定１'!Z107="","",IF($E$2="作成不要","",'補正（ｋW）指定１'!Z107)) ->  | AA107: =IF('補正（ｋW）指定１'!AA107="","",IF($E$2="作成不要","",'補正（ｋW）指定１'!AA107)) ->  | AB107: =IF('補正（ｋW）指定１'!AB107="","",IF($E$2="作成不要","",'補正（ｋW）指定１'!AB107)) ->  | AC107: =IF(AC34="","",AC34) -> 
A108: =A35 -> 供給予備力送電端 | E108: =IF('補正（ｋW）指定１'!E108="","",IF($E$2="作成不要","",'補正（ｋW）指定１'!E108)) ->  | F108: =IF('補正（ｋW）指定１'!F108="","",IF($E$2="作成不要","",'補正（ｋW）指定１'!F108)) ->  | G108: =IF('補正（ｋW）指定１'!G108="","",IF($E$2="作成不要","",'補正（ｋW）指定１'!G108)) ->  | H108: =IF('補正（ｋW）指定１'!H108="","",IF($E$2="作成不要","",'補正（ｋW）指定１'!H108)) ->  | I108: =IF('補正（ｋW）指定１'!I108="","",IF($E$2="作成不要","",'補正（ｋW）指定１'!I108)) ->  | J108: =IF('補正（ｋW）指定１'!J108="","",IF($E$2="作成不要","",'補正（ｋW）指定１'!J108)) ->  | K108: =IF('補正（ｋW）指定１'!K108="","",IF($E$2="作成不要","",'補正（ｋW）指定１'!K108)) ->  | L108: =IF('補正（ｋW）指定１'!L108="","",IF($E$2="作成不要","",'補正（ｋW）指定１'!L108)) ->  | M108: =IF('補正（ｋW）指定１'!M108="","",IF($E$2="作成不要","",'補正（ｋW）指定１'!M108)) ->  | N108: =IF('補正（ｋW）指定１'!N108="","",IF($E$2="作成不要","",'補正（ｋW）指定１'!N108)) ->  | O108: =IF('補正（ｋW）指定１'!O108="","",IF($E$2="作成不要","",'補正（ｋW）指定１'!O108)) ->  | P108: =IF('補正（ｋW）指定１'!P108="","",IF($E$2="作成不要","",'補正（ｋW）指定１'!P108)) ->  | Q108: =IF('補正（ｋW）指定１'!Q108="","",IF($E$2="作成不要","",'補正（ｋW）指定１'!Q108)) ->  | R108: =IF('補正（ｋW）指定１'!R108="","",IF($E$2="作成不要","",'補正（ｋW）指定１'!R108)) ->  | S108: =IF('補正（ｋW）指定１'!S108="","",IF($E$2="作成不要","",'補正（ｋW）指定１'!S108)) ->  | T108: =IF('補正（ｋW）指定１'!T108="","",IF($E$2="作成不要","",'補正（ｋW）指定１'!T108)) ->  | U108: =IF('補正（ｋW）指定１'!U108="","",IF($E$2="作成不要","",'補正（ｋW）指定１'!U108)) ->  | V108: =IF('補正（ｋW）指定１'!V108="","",IF($E$2="作成不要","",'補正（ｋW）指定１'!V108)) ->  | W108: =IF('補正（ｋW）指定１'!W108="","",IF($E$2="作成不要","",'補正（ｋW）指定１'!W108)) ->  | X108: =IF('補正（ｋW）指定１'!X108="","",IF($E$2="作成不要","",'補正（ｋW）指定１'!X108)) ->  | Y108: =IF('補正（ｋW）指定１'!Y108="","",IF($E$2="作成不要","",'補正（ｋW）指定１'!Y108)) ->  | Z108: =IF('補正（ｋW）指定１'!Z108="","",IF($E$2="作成不要","",'補正（ｋW）指定１'!Z108)) ->  | AA108: =IF('補正（ｋW）指定１'!AA108="","",IF($E$2="作成不要","",'補正（ｋW）指定１'!AA108)) ->  | AB108: =IF('補正（ｋW）指定１'!AB108="","",IF($E$2="作成不要","",'補正（ｋW）指定１'!AB108)) ->  | AC108: =IF(AC102=0,"",IF(AC103="","",AC102-AC103)) ->  | AD108: =IF(N108="","",N108) ->  | AE108: =IF(Z108="","",Z108) -> 
A109: 下段：ひっ迫時需要抑制電力反映時 | E109: =IF('補正（ｋW）指定１'!E109="","",IF($E$2="作成不要","",'補正（ｋW）指定１'!E109)) ->  | F109: =IF('補正（ｋW）指定１'!F109="","",IF($E$2="作成不要","",'補正（ｋW）指定１'!F109)) ->  | G109: =IF('補正（ｋW）指定１'!G109="","",IF($E$2="作成不要","",'補正（ｋW）指定１'!G109)) ->  | H109: =IF('補正（ｋW）指定１'!H109="","",IF($E$2="作成不要","",'補正（ｋW）指定１'!H109)) ->  | I109: =IF('補正（ｋW）指定１'!I109="","",IF($E$2="作成不要","",'補正（ｋW）指定１'!I109)) ->  | J109: =IF('補正（ｋW）指定１'!J109="","",IF($E$2="作成不要","",'補正（ｋW）指定１'!J109)) ->  | K109: =IF('補正（ｋW）指定１'!K109="","",IF($E$2="作成不要","",'補正（ｋW）指定１'!K109)) ->  | L109: =IF('補正（ｋW）指定１'!L109="","",IF($E$2="作成不要","",'補正（ｋW）指定１'!L109)) ->  | M109: =IF('補正（ｋW）指定１'!M109="","",IF($E$2="作成不要","",'補正（ｋW）指定１'!M109)) ->  | N109: =IF('補正（ｋW）指定１'!N109="","",IF($E$2="作成不要","",'補正（ｋW）指定１'!N109)) ->  | O109: =IF('補正（ｋW）指定１'!O109="","",IF($E$2="作成不要","",'補正（ｋW）指定１'!O109)) ->  | P109: =IF('補正（ｋW）指定１'!P109="","",IF($E$2="作成不要","",'補正（ｋW）指定１'!P109)) ->  | Q109: =IF('補正（ｋW）指定１'!Q109="","",IF($E$2="作成不要","",'補正（ｋW）指定１'!Q109)) ->  | R109: =IF('補正（ｋW）指定１'!R109="","",IF($E$2="作成不要","",'補正（ｋW）指定１'!R109)) ->  | S109: =IF('補正（ｋW）指定１'!S109="","",IF($E$2="作成不要","",'補正（ｋW）指定１'!S109)) ->  | T109: =IF('補正（ｋW）指定１'!T109="","",IF($E$2="作成不要","",'補正（ｋW）指定１'!T109)) ->  | U109: =IF('補正（ｋW）指定１'!U109="","",IF($E$2="作成不要","",'補正（ｋW）指定１'!U109)) ->  | V109: =IF('補正（ｋW）指定１'!V109="","",IF($E$2="作成不要","",'補正（ｋW）指定１'!V109)) ->  | W109: =IF('補正（ｋW）指定１'!W109="","",IF($E$2="作成不要","",'補正（ｋW）指定１'!W109)) ->  | X109: =IF('補正（ｋW）指定１'!X109="","",IF($E$2="作成不要","",'補正（ｋW）指定１'!X109)) ->  | Y109: =IF('補正（ｋW）指定１'!Y109="","",IF($E$2="作成不要","",'補正（ｋW）指定１'!Y109)) ->  | Z109: =IF('補正（ｋW）指定１'!Z109="","",IF($E$2="作成不要","",'補正（ｋW）指定１'!Z109)) ->  | AA109: =IF('補正（ｋW）指定１'!AA109="","",IF($E$2="作成不要","",'補正（ｋW）指定１'!AA109)) ->  | AB109: =IF('補正（ｋW）指定１'!AB109="","",IF($E$2="作成不要","",'補正（ｋW）指定１'!AB109)) ->  | AC109: =IF(AC102="","",IF(AC103="","",AC102-(AC103-SUM(AC106:AC107)))) -> 
A110: 供給予備率（％） | E110: =IF('補正（ｋW）指定１'!E110="","",IF($E$2="作成不要","",'補正（ｋW）指定１'!E110)) ->  | F110: =IF('補正（ｋW）指定１'!F110="","",IF($E$2="作成不要","",'補正（ｋW）指定１'!F110)) ->  | G110: =IF('補正（ｋW）指定１'!G110="","",IF($E$2="作成不要","",'補正（ｋW）指定１'!G110)) ->  | H110: =IF('補正（ｋW）指定１'!H110="","",IF($E$2="作成不要","",'補正（ｋW）指定１'!H110)) ->  | I110: =IF('補正（ｋW）指定１'!I110="","",IF($E$2="作成不要","",'補正（ｋW）指定１'!I110)) ->  | J110: =IF('補正（ｋW）指定１'!J110="","",IF($E$2="作成不要","",'補正（ｋW）指定１'!J110)) ->  | K110: =IF('補正（ｋW）指定１'!K110="","",IF($E$2="作成不要","",'補正（ｋW）指定１'!K110)) ->  | L110: =IF('補正（ｋW）指定１'!L110="","",IF($E$2="作成不要","",'補正（ｋW）指定１'!L110)) ->  | M110: =IF('補正（ｋW）指定１'!M110="","",IF($E$2="作成不要","",'補正（ｋW）指定１'!M110)) ->  | N110: =IF('補正（ｋW）指定１'!N110="","",IF($E$2="作成不要","",'補正（ｋW）指定１'!N110)) ->  | O110: =IF('補正（ｋW）指定１'!O110="","",IF($E$2="作成不要","",'補正（ｋW）指定１'!O110)) ->  | P110: =IF('補正（ｋW）指定１'!P110="","",IF($E$2="作成不要","",'補正（ｋW）指定１'!P110)) ->  | Q110: =IF('補正（ｋW）指定１'!Q110="","",IF($E$2="作成不要","",'補正（ｋW）指定１'!Q110)) ->  | R110: =IF('補正（ｋW）指定１'!R110="","",IF($E$2="作成不要","",'補正（ｋW）指定１'!R110)) ->  | S110: =IF('補正（ｋW）指定１'!S110="","",IF($E$2="作成不要","",'補正（ｋW）指定１'!S110)) ->  | T110: =IF('補正（ｋW）指定１'!T110="","",IF($E$2="作成不要","",'補正（ｋW）指定１'!T110)) ->  | U110: =IF('補正（ｋW）指定１'!U110="","",IF($E$2="作成不要","",'補正（ｋW）指定１'!U110)) ->  | V110: =IF('補正（ｋW）指定１'!V110="","",IF($E$2="作成不要","",'補正（ｋW）指定１'!V110)) ->  | W110: =IF('補正（ｋW）指定１'!W110="","",IF($E$2="作成不要","",'補正（ｋW）指定１'!W110)) ->  | X110: =IF('補正（ｋW）指定１'!X110="","",IF($E$2="作成不要","",'補正（ｋW）指定１'!X110)) ->  | Y110: =IF('補正（ｋW）指定１'!Y110="","",IF($E$2="作成不要","",'補正（ｋW）指定１'!Y110)) ->  | Z110: =IF('補正（ｋW）指定１'!Z110="","",IF($E$2="作成不要","",'補正（ｋW）指定１'!Z110)) ->  | AA110: =IF('補正（ｋW）指定１'!AA110="","",IF($E$2="作成不要","",'補正（ｋW）指定１'!AA110)) ->  | AB110: =IF('補正（ｋW）指定１'!AB110="","",IF($E$2="作成不要","",'補正（ｋW）指定１'!AB110)) ->  | AC110: =IF(AC108="","",AC108/AC103*100) -> 
A111: 下段：ひっ迫時需要抑制電力反映時 | E111: =IF('補正（ｋW）指定１'!E111="","",IF($E$2="作成不要","",'補正（ｋW）指定１'!E111)) ->  | F111: =IF('補正（ｋW）指定１'!F111="","",IF($E$2="作成不要","",'補正（ｋW）指定１'!F111)) ->  | G111: =IF('補正（ｋW）指定１'!G111="","",IF($E$2="作成不要","",'補正（ｋW）指定１'!G111)) ->  | H111: =IF('補正（ｋW）指定１'!H111="","",IF($E$2="作成不要","",'補正（ｋW）指定１'!H111)) ->  | I111: =IF('補正（ｋW）指定１'!I111="","",IF($E$2="作成不要","",'補正（ｋW）指定１'!I111)) ->  | J111: =IF('補正（ｋW）指定１'!J111="","",IF($E$2="作成不要","",'補正（ｋW）指定１'!J111)) ->  | K111: =IF('補正（ｋW）指定１'!K111="","",IF($E$2="作成不要","",'補正（ｋW）指定１'!K111)) ->  | L111: =IF('補正（ｋW）指定１'!L111="","",IF($E$2="作成不要","",'補正（ｋW）指定１'!L111)) ->  | M111: =IF('補正（ｋW）指定１'!M111="","",IF($E$2="作成不要","",'補正（ｋW）指定１'!M111)) ->  | N111: =IF('補正（ｋW）指定１'!N111="","",IF($E$2="作成不要","",'補正（ｋW）指定１'!N111)) ->  | O111: =IF('補正（ｋW）指定１'!O111="","",IF($E$2="作成不要","",'補正（ｋW）指定１'!O111)) ->  | P111: =IF('補正（ｋW）指定１'!P111="","",IF($E$2="作成不要","",'補正（ｋW）指定１'!P111)) ->  | Q111: =IF('補正（ｋW）指定１'!Q111="","",IF($E$2="作成不要","",'補正（ｋW）指定１'!Q111)) ->  | R111: =IF('補正（ｋW）指定１'!R111="","",IF($E$2="作成不要","",'補正（ｋW）指定１'!R111)) ->  | S111: =IF('補正（ｋW）指定１'!S111="","",IF($E$2="作成不要","",'補正（ｋW）指定１'!S111)) ->  | T111: =IF('補正（ｋW）指定１'!T111="","",IF($E$2="作成不要","",'補正（ｋW）指定１'!T111)) ->  | U111: =IF('補正（ｋW）指定１'!U111="","",IF($E$2="作成不要","",'補正（ｋW）指定１'!U111)) ->  | V111: =IF('補正（ｋW）指定１'!V111="","",IF($E$2="作成不要","",'補正（ｋW）指定１'!V111)) ->  | W111: =IF('補正（ｋW）指定１'!W111="","",IF($E$2="作成不要","",'補正（ｋW）指定１'!W111)) ->  | X111: =IF('補正（ｋW）指定１'!X111="","",IF($E$2="作成不要","",'補正（ｋW）指定１'!X111)) ->  | Y111: =IF('補正（ｋW）指定１'!Y111="","",IF($E$2="作成不要","",'補正（ｋW）指定１'!Y111)) ->  | Z111: =IF('補正（ｋW）指定１'!Z111="","",IF($E$2="作成不要","",'補正（ｋW）指定１'!Z111)) ->  | AA111: =IF('補正（ｋW）指定１'!AA111="","",IF($E$2="作成不要","",'補正（ｋW）指定１'!AA111)) ->  | AB111: =IF('補正（ｋW）指定１'!AB111="","",IF($E$2="作成不要","",'補正（ｋW）指定１'!AB111)) ->  | AC111: =IF(AC109="","",AC109/(AC103-SUM(AC106:AC107))*100) ->  | AF111: =IF(AF109="","",AF109/(AF103-SUM(AF106:AF107))*100) -> 
A112: 調整力確保量 | E112: =IF('補正（ｋW）指定１'!E112="","",IF($E$2="作成不要","",'補正（ｋW）指定１'!E112)) ->  | F112: =IF('補正（ｋW）指定１'!F112="","",IF($E$2="作成不要","",'補正（ｋW）指定１'!F112)) ->  | G112: =IF('補正（ｋW）指定１'!G112="","",IF($E$2="作成不要","",'補正（ｋW）指定１'!G112)) ->  | H112: =IF('補正（ｋW）指定１'!H112="","",IF($E$2="作成不要","",'補正（ｋW）指定１'!H112)) ->  | I112: =IF('補正（ｋW）指定１'!I112="","",IF($E$2="作成不要","",'補正（ｋW）指定１'!I112)) ->  | J112: =IF('補正（ｋW）指定１'!J112="","",IF($E$2="作成不要","",'補正（ｋW）指定１'!J112)) ->  | K112: =IF('補正（ｋW）指定１'!K112="","",IF($E$2="作成不要","",'補正（ｋW）指定１'!K112)) ->  | L112: =IF('補正（ｋW）指定１'!L112="","",IF($E$2="作成不要","",'補正（ｋW）指定１'!L112)) ->  | M112: =IF('補正（ｋW）指定１'!M112="","",IF($E$2="作成不要","",'補正（ｋW）指定１'!M112)) ->  | N112: =IF('補正（ｋW）指定１'!N112="","",IF($E$2="作成不要","",'補正（ｋW）指定１'!N112)) ->  | O112: =IF('補正（ｋW）指定１'!O112="","",IF($E$2="作成不要","",'補正（ｋW）指定１'!O112)) ->  | P112: =IF('補正（ｋW）指定１'!P112="","",IF($E$2="作成不要","",'補正（ｋW）指定１'!P112)) ->  | Q112: =IF('補正（ｋW）指定１'!Q112="","",IF($E$2="作成不要","",'補正（ｋW）指定１'!Q112)) ->  | R112: =IF('補正（ｋW）指定１'!R112="","",IF($E$2="作成不要","",'補正（ｋW）指定１'!R112)) ->  | S112: =IF('補正（ｋW）指定１'!S112="","",IF($E$2="作成不要","",'補正（ｋW）指定１'!S112)) ->  | T112: =IF('補正（ｋW）指定１'!T112="","",IF($E$2="作成不要","",'補正（ｋW）指定１'!T112)) ->  | U112: =IF('補正（ｋW）指定１'!U112="","",IF($E$2="作成不要","",'補正（ｋW）指定１'!U112)) ->  | V112: =IF('補正（ｋW）指定１'!V112="","",IF($E$2="作成不要","",'補正（ｋW）指定１'!V112)) ->  | W112: =IF('補正（ｋW）指定１'!W112="","",IF($E$2="作成不要","",'補正（ｋW）指定１'!W112)) ->  | X112: =IF('補正（ｋW）指定１'!X112="","",IF($E$2="作成不要","",'補正（ｋW）指定１'!X112)) ->  | Y112: =IF('補正（ｋW）指定１'!Y112="","",IF($E$2="作成不要","",'補正（ｋW）指定１'!Y112)) ->  | Z112: =IF('補正（ｋW）指定１'!Z112="","",IF($E$2="作成不要","",'補正（ｋW）指定１'!Z112)) ->  | AA112: =IF('補正（ｋW）指定１'!AA112="","",IF($E$2="作成不要","",'補正（ｋW）指定１'!AA112)) ->  | AB112: =IF('補正（ｋW）指定１'!AB112="","",IF($E$2="作成不要","",'補正（ｋW）指定１'!AB112)) ->  | AC112: =IF(AC39="","",AC39) ->  | AF112: =IF(AF39="","",AF39) -> 
A113: 調整力（％） | E113: =IF('補正（ｋW）指定１'!E113="","",IF($E$2="作成不要","",'補正（ｋW）指定１'!E113)) ->  | F113: =IF('補正（ｋW）指定１'!F113="","",IF($E$2="作成不要","",'補正（ｋW）指定１'!F113)) ->  | G113: =IF('補正（ｋW）指定１'!G113="","",IF($E$2="作成不要","",'補正（ｋW）指定１'!G113)) ->  | H113: =IF('補正（ｋW）指定１'!H113="","",IF($E$2="作成不要","",'補正（ｋW）指定１'!H113)) ->  | I113: =IF('補正（ｋW）指定１'!I113="","",IF($E$2="作成不要","",'補正（ｋW）指定１'!I113)) ->  | J113: =IF('補正（ｋW）指定１'!J113="","",IF($E$2="作成不要","",'補正（ｋW）指定１'!J113)) ->  | K113: =IF('補正（ｋW）指定１'!K113="","",IF($E$2="作成不要","",'補正（ｋW）指定１'!K113)) ->  | L113: =IF('補正（ｋW）指定１'!L113="","",IF($E$2="作成不要","",'補正（ｋW）指定１'!L113)) ->  | M113: =IF('補正（ｋW）指定１'!M113="","",IF($E$2="作成不要","",'補正（ｋW）指定１'!M113)) ->  | N113: =IF('補正（ｋW）指定１'!N113="","",IF($E$2="作成不要","",'補正（ｋW）指定１'!N113)) ->  | O113: =IF('補正（ｋW）指定１'!O113="","",IF($E$2="作成不要","",'補正（ｋW）指定１'!O113)) ->  | P113: =IF('補正（ｋW）指定１'!P113="","",IF($E$2="作成不要","",'補正（ｋW）指定１'!P113)) ->  | Q113: =IF('補正（ｋW）指定１'!Q113="","",IF($E$2="作成不要","",'補正（ｋW）指定１'!Q113)) ->  | R113: =IF('補正（ｋW）指定１'!R113="","",IF($E$2="作成不要","",'補正（ｋW）指定１'!R113)) ->  | S113: =IF('補正（ｋW）指定１'!S113="","",IF($E$2="作成不要","",'補正（ｋW）指定１'!S113)) ->  | T113: =IF('補正（ｋW）指定１'!T113="","",IF($E$2="作成不要","",'補正（ｋW）指定１'!T113)) ->  | U113: =IF('補正（ｋW）指定１'!U113="","",IF($E$2="作成不要","",'補正（ｋW）指定１'!U113)) ->  | V113: =IF('補正（ｋW）指定１'!V113="","",IF($E$2="作成不要","",'補正（ｋW）指定１'!V113)) ->  | W113: =IF('補正（ｋW）指定１'!W113="","",IF($E$2="作成不要","",'補正（ｋW）指定１'!W113)) ->  | X113: =IF('補正（ｋW）指定１'!X113="","",IF($E$2="作成不要","",'補正（ｋW）指定１'!X113)) ->  | Y113: =IF('補正（ｋW）指定１'!Y113="","",IF($E$2="作成不要","",'補正（ｋW）指定１'!Y113)) ->  | Z113: =IF('補正（ｋW）指定１'!Z113="","",IF($E$2="作成不要","",'補正（ｋW）指定１'!Z113)) ->  | AA113: =IF('補正（ｋW）指定１'!AA113="","",IF($E$2="作成不要","",'補正（ｋW）指定１'!AA113)) ->  | AB113: =IF('補正（ｋW）指定１'!AB113="","",IF($E$2="作成不要","",'補正（ｋW）指定１'!AB113)) ->  | AC113: =IF(AC103="","",IF(AC112="","",AC112/AC103*100)) ->  | AF113: =IF(AF40="","",AF40) -> 
A114: 年度末電源構成 | B114: =B41 -> 水力発電所 | AC114: =IF(AC41="","",AC41) ->  | AD114: =IF(AD41="","",AD41) ->  | AE114: =IF(AE41="","",AE41) ->  | AH114: =IF(AH41="","",AH41) ->  | AI114: =IF(AI41="","",AI41) ->  | AM114: =IF(AM41="","",AM41) -> 
D115: =D42 -> 一般 | AC115: =IF(AC42="","",AC42) ->  | AH115: =IF(AH42="","",AH42) -> 
D116: =D43 -> 揚水
B117: =B44 -> 火力発電所
D118: =D45 -> 石炭
D119: ＬＮＧ
D120: 石油
D121: ＬＰＧ
D122: その他ガス
B123: =B51 -> 原子力発電所 | D123: 瀝青質混合物
B124: 原子力発電所
B125: =B52 -> 新エネルギー等発電所
D126: =D53 -> 風力
D127: =D54 -> 太陽光
D128: =D55 -> 地熱
D129: =D56 -> バイオマス
D130: =D57 -> 廃棄物
D131: 蓄電池
B132: =B59 -> その他 | AC132: =IF(AC59="","",AC59) ->  | AH132: =IF(AH59="","",AH59) ->  | AM132: =IF(AM59="","",AM59) -> 
B133: =B60 -> 合計

Sheet 補正（ｋWｈ） (hidden)
A2: 供給区域 | C2: =IF('補正（ｋW）指定１'!$C$2="","",'補正（ｋW）指定１'!$C$2) ->  | D2: エリア | E2: =IF(C2="北海道",1,IF(C2="東北",2,IF(C2="東京",3,IF(C2="中部",4,IF(C2="北陸",5,IF(C2="関西",6,IF(C2="中国",7,IF(C2="四国",8,IF(C2="九州",9,IF(C2="沖縄",10,IF(C2="","","正しいエリア名を入力してください"))))))))))) -> 
F3: 入力箇所 | I3: リンク箇所 | L3: 自動計算
A5: 補正前供給力 | AC5: 【GWh】
A6: 項目 | E6: ='補正（ｋW）指定１'!E6 -> 2024-01-01 | S6: ='補正（ｋW）指定１'!AC6 -> 2023-01-01 | T6: =E6 -> 2024-01-01 | U6: ='補正（ｋW）指定１'!AE6:AE7 -> 2025-01-01 | V6: ='補正（ｋW）指定１'!AF6:AF7 -> 2026-01-02 | W6: ='補正（ｋW）指定１'!AG6:AG7 -> 2027-01-03 | X6: ='補正（ｋW）指定１'!AH6:AH7 -> 2028-01-04 | Y6: ='補正（ｋW）指定１'!AI6:AI7 -> 2029-01-04 | Z6: ='補正（ｋW）指定１'!AJ6:AJ7 -> 2030-01-05 | AA6: ='補正（ｋW）指定１'!AK6:AK7 -> 2031-01-06 | AB6: ='補正（ｋW）指定１'!AL6:AL7 -> 2032-01-07 | AC6: ='補正（ｋW）指定１'!AM6:AM7 -> 2033-01-07
E7: 4月 | F7: 5月 | G7: 6月 | H7: 7月 | I7: 8月 | J7: 9月 | K7: 上期 | L7: 10月 | M7: 11月 | N7: 12月 | O7: 1月 | P7: 2月 | Q7: 3月 | R7: 下期 | S7: 実績
A8: 供給電力量 | B8: 保有 電力 | C8: 水力発電所（送電端） | K8: =IF(COUNT(E8:J8)=0,"",SUM(E8:J8)) ->  | R8: =IF(COUNT(L8:Q8)=0,"",SUM(L8:Q8)) ->  | T8: =IF(COUNT(E8:R8,"")=0,"",SUM(E8:J8,L8:Q8)) -> 
C9: 火力発電所（送電端） | K9: =IF(COUNT(E9:J9)=0,"",SUM(E9:J9)) ->  | R9: =IF(COUNT(L9:Q9)=0,"",SUM(L9:Q9)) ->  | T9: =IF(COUNT(E9:R9,"")=0,"",SUM(E9:J9,L9:Q9)) -> 
C10: 原子力発電所（送電端） | K10: =IF(COUNT(E10:J10)=0,"",SUM(E10:J10)) ->  | R10: =IF(COUNT(L10:Q10)=0,"",SUM(L10:Q10)) ->  | T10: =IF(COUNT(E10:R10,"")=0,"",SUM(E10:J10,L10:Q10)) -> 
C11: 新エネルギー発電所（送電端） | K11: =IF(COUNT(E11:J11)=0,"",SUM(E11:J11)) ->  | R11: =IF(COUNT(L11:Q11)=0,"",SUM(L11:Q11)) ->  | T11: =IF(COUNT(E11:R11,"")=0,"",SUM(E11:J11,L11:Q11)) -> 
C12: 合計（送電端） | E12: =IF(COUNT(E8:E11)=0,"",SUM(E8:E11)) -> 
B13: 調達分 | C13: 発電事業者 | K13: =IF(COUNT(E13:J13)=0,"",SUM(E13:J13)) ->  | R13: =IF(COUNT(L13:Q13)=0,"",SUM(L13:Q13)) ->  | T13: =IF(COUNT(E13:R13,"")=0,"",SUM(E13:J13,L13:Q13)) -> 
C14: 特定卸供給事業者 | R14: =IF(COUNT(L14:Q14)=0,"",SUM(L14:Q14)) -> 
C15: 一般送配電事業者 | R15: =IF(COUNT(L15:Q15)=0,"",SUM(L15:Q15)) -> 
C16: 配電事業者
C17: 小売電気事業者
C18: その他 | D18: 取引所
D19: その他
B20: 調達先未定 | K20: =IF(COUNT(E20:J20)=0,"",SUM(E20:J20)) -> 
B21: （上段：取引所、下段：その他） | K21: =IF(COUNT(E21:J21)=0,"",SUM(E21:J21)) -> 
B22: 揚水式発電所の揚水用動力 | K22: =IF(COUNT(E22:J22)=0,"",SUM(E22:J22)) -> 
B23: 蓄電所の蓄電用電力量 | K23: =IF(COUNT(E23:J23)=0,"",SUM(E23:J23)) ->  | R23: =IF(COUNT(L23:Q23)=0,"",SUM(L23:Q23)) ->  | T23: =IF(COUNT(E23:R23,"")=0,"",SUM(E23:J23,L23:Q23)) -> 
B24: 【送配電】合計（送電端） | E24: =IF(COUNT(E12:E22)=0,"",SUM(E12:E22)) ->  | F24: =IF(COUNT(F12:F22)=0,"",SUM(F12:F22)) -> 
B25: 【ｴﾘｱ】小売電気事業者（供給電力量合計） | K25: =IF(COUNTIF(E25:J25,"")=6,"",SUM(E25:J25)) ->  | R25: =IF(COUNTIF(L25:Q25,"")=6,"",SUM(L25:Q25)) ->  | T25: =IF(COUNTIF(E25:R25,"")=14,"",SUM(E25:J25,L25:Q25)) -> 
B26: 一般送配電事業者（補正）
B27: 【ｴﾘｱ】合計（送電端） | E27: =IF(COUNT(E12:E19,E25)=0,"",SUM(E12:E19,E25)) ->  | F27: =IF(COUNT(F12:F19,F25)=0,"",SUM(F12:F19,F25)) -> 
A28: 需要電力量（送電端） | D28: エリア全体 | K28: =IF(COUNT(E28:J28)=0,"",SUM(E28:J28)) ->  | R28: =IF(COUNT(L28:Q28)=0,"",SUM(L28:Q28)) ->  | T28: =IF($E$2="","",CHOOSE($E$2,'様式第33表（指定１）'!H13,'様式第33表（指定１）'!H43,'様式第33表（指定１）'!H73,'様式第33表（指定１）'!H103,'様式第33表（指定１）'!H133,'様式第33表（指定１）'!H163,'様式第33表（指定１）'!H193,'様式第33表（指定１）'!H223,'様式第33表（指定１）'!H253,'様式第33表（指定１）'!H283)) ->  | U28: =IF($E$2="","",CHOOSE($E$2,'様式第33表（指定１）'!I13,'様式第33表（指定１）'!I43,'様式第33表（指定１）'!I73,'様式第33表（指定１）'!I103,'様式第33表（指定１）'!I133,'様式第33表（指定１）'!I163,'様式第33表（指定１）'!I193,'様式第33表（指定１）'!I223,'様式第33表（指定１）'!I253,'様式第33表（指定１）'!I283)) ->  | V28: =IF($E$2="","",CHOOSE($E$2,'様式第33表（指定１）'!J13,'様式第33表（指定１）'!J43,'様式第33表（指定１）'!J73,'様式第33表（指定１）'!J103,'様式第33表（指定１）'!J133,'様式第33表（指定１）'!J163,'様式第33表（指定１）'!J193,'様式第33表（指定１）'!J223,'様式第33表（指定１）'!J253,'様式第33表（指定１）'!J283)) ->  | W28: =IF($E$2="","",CHOOSE($E$2,'様式第33表（指定１）'!K13,'様式第33表（指定１）'!K43,'様式第33表（指定１）'!K73,'様式第33表（指定１）'!K103,'様式第33表（指定１）'!K133,'様式第33表（指定１）'!K163,'様式第33表（指定１）'!K193,'様式第33表（指定１）'!K223,'様式第33表（指定１）'!K253,'様式第33表（指定１）'!K283)) ->  | X28: =IF($E$2="","",CHOOSE($E$2,'様式第33表（指定１）'!L13,'様式第33表（指定１）'!L43,'様式第33表（指定１）'!L73,'様式第33表（指定１）'!L103,'様式第33表（指定１）'!L133,'様式第33表（指定１）'!L163,'様式第33表（指定１）'!L193,'様式第33表（指定１）'!L223,'様式第33表（指定１）'!L253,'様式第33表（指定１）'!L283)) ->  | Y28: =IF($E$2="","",CHOOSE($E$2,'様式第33表（指定１）'!M13,'様式第33表（指定１）'!M43,'様式第33表（指定１）'!M73,'様式第33表（指定１）'!M103,'様式第33表（指定１）'!M133,'様式第33表（指定１）'!M163,'様式第33表（指定１）'!M193,'様式第33表（指定１）'!M223,'様式第33表（指定１）'!M253,'様式第33表（指定１）'!M283)) ->  | Z28: =IF($E$2="","",CHOOSE($E$2,'様式第33表（指定１）'!N13,'様式第33表（指定１）'!N43,'様式第33表（指定１）'!N73,'様式第33表（指定１）'!N103,'様式第33表（指定１）'!N133,'様式第33表（指定１）'!N163,'様式第33表（指定１）'!N193,'様式第33表（指定１）'!N223,'様式第33表（指定１）'!N253,'様式第33表（指定１）'!N283)) ->  | AA28: =IF($E$2="","",CHOOSE($E$2,'様式第33表（指定１）'!O13,'様式第33表（指定１）'!O43,'様式第33表（指定１）'!O73,'様式第33表（指定１）'!O103,'様式第33表（指定１）'!O133,'様式第33表（指定１）'!O163,'様式第33表（指定１）'!O193,'様式第33表（指定１）'!O223,'様式第33表（指定１）'!O253,'様式第33表（指定１）'!O283)) ->  | AB28: =IF($E$2="","",CHOOSE($E$2,'様式第33表（指定１）'!P13,'様式第33表（指定１）'!P43,'様式第33表（指定１）'!P73,'様式第33表（指定１）'!P103,'様式第33表（指定１）'!P133,'様式第33表（指定１）'!P163,'様式第33表（指定１）'!P193,'様式第33表（指定１）'!P223,'様式第33表（指定１）'!P253,'様式第33表（指定１）'!P283)) ->  | AC28: =IF($E$2="","",CHOOSE($E$2,'様式第33表（指定１）'!Q13,'様式第33表（指定１）'!Q43,'様式第33表（指定１）'!Q73,'様式第33表（指定１）'!Q103,'様式第33表（指定１）'!Q133,'様式第33表（指定１）'!Q163,'様式第33表（指定１）'!Q193,'様式第33表（指定１）'!Q223,'様式第33表（指定１）'!Q253,'様式第33表（指定１）'!Q283)) -> 
D29: （内訳）本土分 | E29: =IF(E28="","",E28-E30) ->  | K29: =IF(COUNT(E29:J29)=0,"",SUM(E29:J29)) ->  | L29: =IF(L28="","",L28-L30) ->  | R29: =IF(COUNT(L29:Q29)=0,"",SUM(L29:Q29)) ->  | T29: =IF(T30="","",T28-T30) ->  | U29: =IF(U30="","",U28-U30) -> 
D30: （内訳）離島分 | K30: =IF(COUNT(E30:J30)=0,"",SUM(E30:J30)) ->  | R30: =IF(COUNT(L30:Q30)=0,"",SUM(L30:Q30)) ->  | T30: =IF(COUNT(E30:R30)=0,"",SUM(E30:J30,L30:Q30)) -> 
A31: 送電端電力量 | B31: 水力発電所 | S31: =IF(COUNT(S32:S33)=0,"",SUM(S32:S33)) ->  | T31: =IF(COUNT(T32:T33)=0,"",SUM(T32:T33)) ->  | U31: =IF(U32="",IF(U33="","",SUM(U32:U33)),SUM(U32:U33)) ->  | X31: =IF(COUNT(X32:X33)=0,"",SUM(X32:X33)) ->  | Y31: =IF(Y32="",IF(Y33="","",SUM(Y32:Y33)),SUM(Y32:Y33)) ->  | AC31: =IF(COUNT(AC32:AC33)=0,"",SUM(AC32:AC33)) -> 
D32: 一般
D33: 揚水
B34: 火力発電所 | S34: =IF(COUNT(S35:S40)=0,"",SUM(S35:S40)) ->  | T34: =IF(COUNT(T35:T40)=0,"",SUM(T35:T40)) ->  | X34: =IF(COUNT(X35:X40)=0,"",SUM(X35:X40)) ->  | AC34: =IF(COUNT(AC35:AC40)=0,"",SUM(AC35:AC40)) -> 
D35: 石炭
D36: ＬＮＧ
D37: 石油
D38: ＬＰＧ
D39: その他ガス
D40: 瀝青質混合物
B41: 原子力発電所
B42: 新エネルギー等発電所 | S42: =IF(COUNT(S43:S47)=0,"",SUM(S43:S47)) ->  | T42: =IF(COUNT(T43:T47)=0,"",SUM(T43:T47)) ->  | X42: =IF(COUNT(X43:X47)=0,"",SUM(X43:X47)) ->  | AC42: =IF(COUNT(AC43:AC47)=0,"",SUM(AC43:AC47)) -> 
D43: 風力
D44: 太陽光
D45: 地熱
D46: バイオマス
D47: 廃棄物
D48: 蓄電池
B49: その他
B50: 合計 | S50: =IF(COUNT(S31,S34,S41,S42,S49)=0,"",SUM(S31,S34,S41,S42,S49)) ->  | T50: =IF(COUNT(T31,T34,T41,T42,T49)=0,"",SUM(T31,T34,T41,T42,T49)) ->  | X50: =IF(COUNT(X31,X34,X41,X42,X49)=0,"",SUM(X31,X34,X41,X42,X49)) ->  | AC50: =IF(COUNT(AC31,AC34,AC41,AC42,AC49)=0,"",SUM(AC31,AC34,AC41,AC42,AC49)) -> 
B51: 非化石電源比率（％）
A54: 供給電力量補正 | E54: 記載要領 | F54: ・常備BUは、小売送電分はプラス、小売受電分をマイナスで表示（送配電からみると小売送電分は供給電力量からマイナスされており、小売送電分が受電分を上回ることで供給電力量が増加したこととなるため）
F55: ・ダブルカウント（突合せ確認）分は、突合せ確認漏れ等の修正として使用すること
A56: 一般送配電事業者供給電力量補正 | F56: ・その他補正については、供給計画内容の誤り（供給電力量の二重計上や誤記等）の修正として使用すること。 | AC56: 【GWh】
A57: =A6 -> 項目 | E57: =E6 -> 2024-01-01 | S57: =S6 -> 2023-01-01 | T57: =T6 -> 2024-01-01 | U57: 2025-01-01 | V57: 2026-01-02 | W57: 2027-01-03 | X57: 2028-01-04 | Y57: 2029-01-04 | Z57: 2030-01-05 | AA57: 2031-01-06 | AB57: 2032-01-07 | AC57: 2033-01-07
E58: 4月 | F58: 5月 | G58: 6月 | H58: 7月 | I58: 8月 | J58: 9月 | K58: 上期 | L58: 10月 | M58: 11月 | N58: 12月 | O58: 1月 | P58: 2月 | Q58: 3月 | R58: 下期 | S58: 実績
A59: 補正 | B59: 常時ＢＵ | D59: 小売送電分 | K59: =IF(COUNT(E59:J59)=0,"",SUM(E59:J59)) ->  | R59: =IF(COUNT(L59:Q59)=0,"",SUM(L59:Q59)) ->  | T59: =IF(COUNT(E59:R59)=0,"",SUM(E59:J59,L59:Q59)) -> 
D60: 小売受電分 | K60: =IF(COUNT(E60:J60)=0,"",SUM(E60:J60)) ->  | R60: =IF(COUNT(L60:Q60)=0,"",SUM(L60:Q60)) -> 
D61: 差分 | E61: =IF(COUNT(E59:E60)=0,"",SUM(E59)-SUM(E60)) ->  | U61: =IF(COUNT(U59:U60)=0,"",SUM(U59)-SUM(U60)) ->  | V61: =IF(COUNT(V59:V60)=0,"",SUM(V59)-SUM(V60)) -> 
B62: ダブルカウント（突合せ確認）分 （内訳： ） | K62: =IF(COUNT(E62:J62)=0,"",SUM(E62:J62)) ->  | R62: =IF(COUNT(L62:Q62)=0,"",SUM(L62:Q62)) -> 
B63: その他補正 （補正内容： ） | K63: =IF(COUNT(E63:J63)=0,"",SUM(E63:J63)) ->  | R63: =IF(COUNT(L63:Q63)=0,"",SUM(L63:Q63)) -> 
B64: 合計 | E64: =IF(COUNT(E61:E63)=0,"",SUM(E61:E63)) ->  | S64: =IF(S63="","",SUM(S63)) ->  | U64: =IF(COUNT(U61:U63)=0,"",SUM(U61:U63)) ->  | V64: =IF(COUNT(V61:V63)=0,"",SUM(V61:V63)) -> 
A67: 補正後供給力 | AC67: 【GWh】
A68: =A6 -> 項目 | E68: =E6 -> 2024-01-01 | S68: =S57 -> 2023-01-01 | T68: =T57 -> 2024-01-01 | U68: 2025-01-01 | V68: 2026-01-02 | W68: 2027-01-03 | X68: 2028-01-04 | Y68: 2029-01-04 | Z68: 2030-01-05 | AA68: 2031-01-06 | AB68: 2032-01-07 | AC68: 2033-01-07
E69: 4月 | F69: 5月 | G69: 6月 | H69: 7月 | I69: 8月 | J69: 9月 | K69: 上期 | L69: 10月 | M69: 11月 | N69: 12月 | O69: 1月 | P69: 2月 | Q69: 3月 | R69: 下期 | S69: 実績
A70: =A8 -> 供給電力量 | B70: =B8 -> 保有 電力 | C70: =C8 -> 水力発電所（送電端） | E70: =IF(E8="","",E8) ->  | K70: =IF(K8="","",K8) ->  | R70: =IF(R8="","",R8) ->  | S70: =IF(S8="","",S8) ->  | T70: =IF(T8="","",T8) ->  | U70: =IF(U8="","",U8) -> 
C71: =C9 -> 火力発電所（送電端） | E71: =IF(E9="","",E9) ->  | R71: =IF(R9="","",R9) ->  | T71: =IF(T9="","",T9) -> 
C72: =C10 -> 原子力発電所（送電端） | E72: =IF(E10="","",E10) -> 
C73: =C11 -> 新エネルギー発電所（送電端） | E73: =IF(E11="","",E11) -> 
C74: =C12 -> 合計（送電端） | E74: =IF(E12="","",E12) -> 
B75: =B13 -> 調達分 | C75: =C13 -> 発電事業者 | E75: =IF(E13="","",E13) -> 
C76: 特定卸供給事業者 | E76: =IF(E14="","",E14) ->  | L76: =IF(L14="","",L14) ->  | S76: =IF(S14="","",S14) ->  | U76: =IF(U14="","",U14) -> 
C77: =C15 -> 一般送配電事業者 | E77: =IF(E15="","",E15) ->  | S77: =IF(S15="","",S15) ->  | U77: =IF(U15="","",U15) -> 
C78: 配電事業者 | E78: =IF(E16="","",E16) ->  | S78: =IF(S16="","",S16) ->  | U78: =IF(U16="","",U16) -> 
C79: =C17 -> 小売電気事業者 | E79: =IF(E17="","",E17) -> 
C80: =C18 -> その他 | D80: =D18 -> 取引所 | E80: =IF(E18="","",E18) -> 
D81: =D19 -> その他 | E81: =IF(E19="","",E19) -> 
B82: =B20 -> 調達先未定 | E82: =IF(E20="","",E20) -> 
B83: =B21 -> （上段：取引所、下段：その他） | E83: =IF(E21="","",E21) -> 
B84: =B22 -> 揚水式発電所の揚水用動力 | E84: =IF(E22="","",E22) ->  | L84: =IF(L22="","",L22) ->  | S84: =IF(S22="","",S22) -> 
B85: 蓄電所の蓄電用電力量
B86: =B24 -> 【送配電】合計（送電端） | E86: =IF(E24="","",E24) ->  | S86: =IF(S24="","",S24) -> 
B87: =B25 -> 【ｴﾘｱ】小売電気事業者（供給電力量合計） | E87: =IF(E25="","",E25) ->  | S87: =IF(S25="","",S25) ->  | U87: =IF(U25="","",U25) -> 
B88: =B26 -> 一般送配電事業者（補正） | E88: =IF(E64="","",E64) ->  | F88: =IF(F64="","",F64) -> 
B89: =B27 -> 【ｴﾘｱ】合計（送電端） | E89: =IF(COUNT(E74:E81,E87,E88)=0,"",SUM(E74:E81,E87,E88)) ->  | F89: =IF(COUNT(F74:F81,F87,F88)=0,"",SUM(F74:F81,F87,F88)) -> 
A90: 需要電力量（送電端） | D90: エリア全体 | E90: =IF(E28="","",E28) ->  | F90: =IF(F28="","",F28) ->  | S90: =IF(S28="","",S28) -> 
D91: （内訳）本土分 | E91: =IF(E29="","",E29) ->  | T91: =IF(T29="","",T29) ->  | U91: =IF(U29="","",U29) -> 
D92: （内訳）離島分 | E92: =IF(E30="","",E30) ->  | U92: =IF(U30="","",U30) -> 
A93: =A31 -> 送電端電力量 | B93: =B31 -> 水力発電所 | S93: =IF(S31="","",S31) ->  | U93: =IF(U31="","",U31) ->  | X93: =IF(X31="","",X31) ->  | Y93: =IF(Y31="","",Y31) ->  | AC93: =IF(AC31="","",AC31) -> 
D94: =D32 -> 一般 | X94: =IF(X32="","",X32) -> 
D95: =D33 -> 揚水
B96: =B34 -> 火力発電所
D97: =D35 -> 石炭
D98: ＬＮＧ
D99: 石油
D100: ＬＰＧ
D101: その他ガス
D102: 瀝青質混合物
B103: =B41 -> 原子力発電所
B104: =B42 -> 新エネルギー等発電所
D105: =D43 -> 風力
D106: =D44 -> 太陽光
D107: =D45 -> 地熱
D108: =D46 -> バイオマス
D109: =D47 -> 廃棄物
D110: 蓄電池
B111: =B49 -> その他 | S111: =IF(S49="","",S49) ->  | X111: =IF(X49="","",X49) ->  | AC111: =IF(AC49="","",AC49) -> 
B112: =B50 -> 合計
B113: =B51 -> 非化石電源比率（％）

Sheet 補正（太陽光）指定１ (hidden)
A1: 太陽光補正シート
N2: 記載要領
A3: 供給区域 | B3: =IF('補正（ｋW）指定１'!$C$2="","",'補正（ｋW）指定１'!$C$2) ->  | C3: エリア | D3: =IF(B3="北海道",1,IF(B3="東北",2,IF(B3="東京",3,IF(B3="中部",4,IF(B3="北陸",5,IF(B3="関西",6,IF(B3="中国",7,IF(B3="四国",8,IF(B3="九州",9,IF(B3="沖縄",10,IF(B3="","","正しいエリア名を入力してください"))))))))))) ->  | H3: 入力箇所 | J3: リンク箇所 | L3: 自動計算 | N3: ・エリア想定欄には、エリア全体（発電・小売分を含む）の設備量想定値を記載。尚、マクロ想定を行っていない項目は個別積み上げ値を記載。 | AS3: 調整係数（%)
N4: ・「小売電気事業者の調達分欄」への記載は、小売調達分及び発電余力を記載（送配電への販売分は記載しない）。 | AS4: =G7 -> 2024-01-01 | BH4: =AS4+366 -> 2025-01-01 | BW4: =BH4+365 -> 2026-01-01 | CA4: =BW4+365 -> 2027-01-01 | CE4: =CA4+365 -> 2028-01-01 | CI4: =CE4+366 -> 2029-01-01 | CM4: =CI4+366 -> 2030-01-02 | CQ4: =CM4+366 -> 2031-01-03 | CU4: =CQ4+366 -> 2032-01-04 | CY4: =CU4+366 -> 2033-01-04
AS5: 全量 | BH5: 全量 | BW5: 全量 | CA5: 全量 | CE5: 全量 | CI5: 全量 | CM5: 全量 | CQ5: 全量 | CU5: 全量 | CY5: 全量
A6: 受電取引帳票転記フォーマット | E6: 方式選択 | G6: Ⅰ：各月の設備量を反映 Ⅱ：当月と前月を比較し、少ない月の設備量を反映 | AU6: 4月 | AV6: 5月 | AW6: 6月 | AX6: 7月 | AY6: 8月 | AZ6: 9月 | BA6: 10月 | BB6: 11月 | BC6: 12月 | BD6: 1月 | BE6: 2月 | BF6: 3月 | BJ6: 4月 | BK6: 5月 | BL6: 6月 | BM6: 7月 | BN6: 8月 | BO6: 9月 | BP6: 10月 | BQ6: 11月 | BR6: 12月 | BS6: 1月 | BT6: 2月 | BU6: 3月 | BY6: 8月 | CC6: 8月 | CG6: 8月 | CK6: 8月 | CO6: 8月 | CS6: 8月 | CW6: 8月 | DA6: 8月
A7: 項目 | G7: ='補正（ｋW）指定１'!E6 -> 2024-01-01 | S7: ='補正（ｋW）指定１'!Q6 -> 2025-01-01 | AE7: 項目 | AF7: =G7 -> 2024-01-01 | AG7: =S7 -> 2025-01-01 | AH7: =S7+366 -> 2026-01-02 | AI7: =AH7+366 -> 2027-01-03 | AJ7: =AI7+366 -> 2028-01-04 | AK7: 2029-01-04 | AL7: 2030-01-05 | AM7: 2031-01-06 | AN7: 2032-01-07 | AO7: 2033-01-07 | AP7: 備考 （上中段：種別、下段：備考） | AS7: 1 | AT7: 北海道 | AU7: 1.2 | AV7: 4.1 | AW7: 6.7 | AX7: 9.1 | AY7: 9 | AZ7: 3.9 | BA7: 0.8 | BB7: 0.6 | BC7: 0.5 | BD7: 1.3 | BE7: 1.3 | BF7: 1 | BH7: 1 | BI7: 北海道 | BJ7: 1.3 | BK7: 4.1 | BL7: 6.8 | BM7: 9.1 | BN7: 8.6 | BO7: 4.1 | BP7: 1 | BQ7: 0.5 | BR7: 0.5 | BS7: 1.3 | BT7: 1.3 | BU7: 1 | BW7: 1 | BX7: 北海道 | BY7: 8.4 | CA7: 1 | CB7: 北海道 | CC7: 9.1 | CE7: 1 | CF7: 北海道 | CG7: 8 | CI7: 1 | CJ7: 北海道 | CK7: 7.2 | CM7: 1 | CN7: 北海道 | CO7: 6.9 | CQ7: 1 | CR7: 北海道 | CS7: 6.6 | CU7: 1 | CV7: 北海道 | CW7: 7 | CY7: 1 | CZ7: 北海道 | DA7: 7
G8: 4月 | H8: 5月 | I8: 6月 | J8: 7月 | K8: 8月 | L8: 9月 | M8: 10月 | N8: 11月 | O8: 12月 | P8: 1月 | Q8: 2月 | R8: 3月 | S8: 4月 | T8: 5月 | U8: 6月 | V8: 7月 | W8: 8月 | X8: 9月 | Y8: 10月 | Z8: 11月 | AA8: 12月 | AB8: 1月 | AC8: 2月 | AD8: 3月 | AS8: 2 | AT8: 東北 | AU8: 3.2 | AV8: 17.2 | AW8: 20.6 | AX8: 21 | AY8: 25.9 | AZ8: 16.2 | BA8: 11.7 | BB8: 1.5 | BC8: 1.5 | BD8: 3.9 | BE8: 1.6 | BF8: 2.3 | BH8: 2 | BI8: 東北 | BJ8: 3.1 | BK8: 16.7 | BL8: 20.2 | BM8: 20.2 | BN8: 25.3 | BO8: 16 | BP8: 10.7 | BQ8: 1.2 | BR8: 1.5 | BS8: 3.9 | BT8: 1.6 | BU8: 2.2 | BW8: 2 | BX8: 東北 | BY8: 24.5 | CA8: 2 | CB8: 東北 | CC8: 23.6 | CE8: 2 | CF8: 東北 | CG8: 23.2 | CI8: 2 | CJ8: 東北 | CK8: 22.3 | CM8: 2 | CN8: 東北 | CO8: 22.3 | CQ8: 2 | CR8: 東北 | CS8: 23.1 | CU8: 2 | CV8: 東北 | CW8: 23.3 | CY8: 2 | CZ8: 東北 | DA8: 23.3
A9: 全量 | B9: 調達電力（MW） | G9: =IF(G60="","",ROUND(G60,1)) ->  | H9: =IF(H60="","",ROUND(H60,1)) ->  | AE9: 8月電力 | AF9: =IF(K9="","",K9) ->  | AG9: =IF(W9="","",W9) ->  | AH9: =IF(AH60="","",ROUND(AH60,1)) ->  | AI9: =IF(AI60="","",ROUND(AI60,1)) ->  | AP9: 太陽光（全量） | AS9: 3 | AT9: 東京 | AU9: 1.5 | AV9: 12.7 | AW9: 15.5 | AX9: 23.2 | AY9: 25.9 | AZ9: 15.6 | BA9: 7.8 | BB9: 0.5 | BC9: 0.9 | BD9: 2.4 | BE9: 0.9 | BF9: 0.9 | BH9: 3 | BI9: 東京 | BJ9: 1.4 | BK9: 12.2 | BL9: 14.9 | BM9: 22.4 | BN9: 25.1 | BO9: 15.4 | BP9: 7 | BQ9: 0.4 | BR9: 0.9 | BS9: 2.3 | BT9: 0.9 | BU9: 0.9 | BW9: 3 | BX9: 東京 | BY9: 24.3 | CA9: 3 | CB9: 東京 | CC9: 23.7 | CE9: 3 | CF9: 東京 | CG9: 23.2 | CI9: 3 | CJ9: 東京 | CK9: 23.6 | CM9: 3 | CN9: 東京 | CO9: 23.3 | CQ9: 3 | CR9: 東京 | CS9: 24.6 | CU9: 3 | CV9: 東京 | CW9: 24 | CY9: 3 | CZ9: 東京 | DA9: 24
AE10: 1月電力 | AF10: =IF(OR($D$3=1,$D$3=2),'補正（太陽光）指定２'!AF10,"") ->  | AG10: =IF(OR($D$3=1,$D$3=2),'補正（太陽光）指定２'!AG10,"") ->  | AH10: =IF(OR($D$3=1,$D$3=2),'補正（太陽光）指定２'!AH10,"") ->  | AI10: =IF(OR($D$3=1,$D$3=2),'補正（太陽光）指定２'!AI10,"") ->  | AJ10: =IF(OR($D$3=1,$D$3=2),'補正（太陽光）指定２'!AJ10,"") ->  | AK10: =IF(OR($D$3=1,$D$3=2),'補正（太陽光）指定２'!AK10,"") ->  | AL10: =IF(OR($D$3=1,$D$3=2),'補正（太陽光）指定２'!AL10,"") ->  | AM10: =IF(OR($D$3=1,$D$3=2),'補正（太陽光）指定２'!AM10,"") ->  | AN10: =IF(OR($D$3=1,$D$3=2),'補正（太陽光）指定２'!AN10,"") ->  | AO10: =IF(OR($D$3=1,$D$3=2),'補正（太陽光）指定２'!AO10,"") ->  | AP10: 太陽光（全量） | AS10: 4 | AT10: 中部 | AU10: 4.2 | AV10: 16 | AW10: 18.6 | AX10: 22.8 | AY10: 28.7 | AZ10: 17.1 | BA10: 10.1 | BB10: 0.4 | BC10: 4.9 | BD10: 6.6 | BE10: 2.8 | BF10: 2 | BH10: 4 | BI10: 中部 | BJ10: 4 | BK10: 15.3 | BL10: 18 | BM10: 21.9 | BN10: 30.6 | BO10: 16.4 | BP10: 9.5 | BQ10: 0.4 | BR10: 4.8 | BS10: 6.4 | BT10: 2.8 | BU10: 1.9 | BW10: 4 | BX10: 中部 | BY10: 29.2 | CA10: 4 | CB10: 中部 | CC10: 27.1 | CE10: 4 | CF10: 中部 | CG10: 26 | CI10: 4 | CJ10: 中部 | CK10: 26 | CM10: 4 | CN10: 中部 | CO10: 27.5 | CQ10: 4 | CR10: 中部 | CS10: 26.9 | CU10: 4 | CV10: 中部 | CW10: 26 | CY10: 4 | CZ10: 中部 | DA10: 26
B11: 月間調達電力量（GWh） | G11: =IF(G78="","",ROUND(G78,1)) ->  | AE11: 年間電力量 | AF11: =IF(AF78="","",AF78) ->  | AG11: =IF(AG78="","",ROUND(AG78,1)) ->  | AS11: 5 | AT11: 北陸 | AU11: 7.6 | AV11: 23.6 | AW11: 27.5 | AX11: 30.7 | AY11: 35.8 | AZ11: 19.5 | BA11: 14.4 | BB11: 0.7 | BC11: 2.7 | BD11: 2.1 | BE11: 1.2 | BF11: 3.6 | BH11: 5 | BI11: 北陸 | BJ11: 7.5 | BK11: 23 | BL11: 26.9 | BM11: 29.9 | BN11: 36.1 | BO11: 19.2 | BP11: 14.1 | BQ11: 0.7 | BR11: 2.7 | BS11: 2 | BT11: 1.2 | BU11: 3.7 | BW11: 5 | BX11: 北陸 | BY11: 34.9 | CA11: 5 | CB11: 北陸 | CC11: 35.1 | CE11: 5 | CF11: 北陸 | CG11: 33.9 | CI11: 5 | CJ11: 北陸 | CK11: 32.2 | CM11: 5 | CN11: 北陸 | CO11: 32.2 | CQ11: 5 | CR11: 北陸 | CS11: 30 | CU11: 5 | CV11: 北陸 | CW11: 29.5 | CY11: 5 | CZ11: 北陸 | DA11: 29.5
AS12: 6 | AT12: 関西 | AU12: 4.5 | AV12: 16.5 | AW12: 18.6 | AX12: 24.4 | AY12: 27.6 | AZ12: 17.5 | BA12: 10.5 | BB12: 0.4 | BC12: 4.1 | BD12: 5.1 | BE12: 2.7 | BF12: 2.3 | BH12: 6 | BI12: 関西 | BJ12: 4.5 | BK12: 16.1 | BL12: 18.3 | BM12: 23.8 | BN12: 28.5 | BO12: 17.2 | BP12: 10.2 | BQ12: 0.4 | BR12: 4.1 | BS12: 5 | BT12: 2.7 | BU12: 2.3 | BW12: 6 | BX12: 関西 | BY12: 27.6 | CA12: 6 | CB12: 関西 | CC12: 27 | CE12: 6 | CF12: 関西 | CG12: 26.5 | CI12: 6 | CJ12: 関西 | CK12: 26 | CM12: 6 | CN12: 関西 | CO12: 26.1 | CQ12: 6 | CR12: 関西 | CS12: 24.3 | CU12: 6 | CV12: 関西 | CW12: 24.5 | CY12: 6 | CZ12: 関西 | DA12: 24.5
A13: 項目 | G13: =G7 -> 2024-01-01 | S13: =S7 -> 2025-01-01 | AE13: 項目 | AF13: =AF7 -> 2024-01-01 | AG13: =AG7 -> 2025-01-01 | AH13: =AH7 -> 2026-01-02 | AI13: =AI7 -> 2027-01-03 | AJ13: 2028-01-04 | AK13: 2029-01-04 | AL13: 2030-01-05 | AM13: 2031-01-06 | AN13: 2032-01-07 | AO13: 2033-01-07 | AP13: 備考 （上中段：種別、下段：備考） | AS13: 7 | AT13: 中国 | AU13: 3.2 | AV13: 18.4 | AW13: 17.6 | AX13: 27.6 | AY13: 29.7 | AZ13: 17.2 | BA13: 11.2 | BB13: 0.4 | BC13: 4 | BD13: 5.5 | BE13: 2.5 | BF13: 2.2 | BH13: 7 | BI13: 中国 | BJ13: 3.2 | BK13: 18.1 | BL13: 16.9 | BM13: 27 | BN13: 30.1 | BO13: 16.7 | BP13: 10.8 | BQ13: 0.4 | BR13: 4 | BS13: 5.3 | BT13: 2.5 | BU13: 2.1 | BW13: 7 | BX13: 中国 | BY13: 28.8 | CA13: 7 | CB13: 中国 | CC13: 28.1 | CE13: 7 | CF13: 中国 | CG13: 27.7 | CI13: 7 | CJ13: 中国 | CK13: 27.5 | CM13: 7 | CN13: 中国 | CO13: 27.4 | CQ13: 7 | CR13: 中国 | CS13: 25.6 | CU13: 7 | CV13: 中国 | CW13: 25.3 | CY13: 7 | CZ13: 中国 | DA13: 25.3
G14: =G8 -> 4月 | H14: =H8 -> 5月 | I14: 6月 | J14: 7月 | K14: 8月 | L14: 9月 | M14: 10月 | N14: 11月 | O14: 12月 | P14: 1月 | Q14: 2月 | R14: 3月 | S14: =S8 -> 4月 | T14: =T8 -> 5月 | U14: 6月 | V14: 7月 | W14: 8月 | X14: 9月 | Y14: 10月 | Z14: 11月 | AA14: 12月 | AB14: 1月 | AC14: 2月 | AD14: 3月 | AS14: 8 | AT14: 四国 | AU14: 4.4 | AV14: 20.8 | AW14: 19.6 | AX14: 29.7 | AY14: 32.8 | AZ14: 20.6 | BA14: 14 | BB14: 0.5 | BC14: 5 | BD14: 6.7 | BE14: 3.3 | BF14: 3 | BH14: 8 | BI14: 四国 | BJ14: 4.4 | BK14: 20.7 | BL14: 19.3 | BM14: 29.5 | BN14: 33.6 | BO14: 20.3 | BP14: 13.5 | BQ14: 0.5 | BR14: 5.1 | BS14: 6.6 | BT14: 3.2 | BU14: 3 | BW14: 8 | BX14: 四国 | BY14: 32.4 | CA14: 8 | CB14: 四国 | CC14: 32 | CE14: 8 | CF14: 四国 | CG14: 31.2 | CI14: 8 | CJ14: 四国 | CK14: 30.4 | CM14: 8 | CN14: 四国 | CO14: 30.8 | CQ14: 8 | CR14: 四国 | CS14: 28.6 | CU14: 8 | CV14: 四国 | CW14: 28.7 | CY14: 8 | CZ14: 四国 | DA14: 28.7
A15: 余剰 | B15: 調達電力（MW） | G15: =IF(G61="","",ROUND(G61,1)) ->  | AE15: 8月電力 | AF15: =IF(K15="","",K15) ->  | AG15: =IF(W15="","",W15) ->  | AH15: =IF(AH61="","",ROUND(AH61,1)) ->  | AP15: 太陽光（余剰） | AS15: 9 | AT15: 九州 | AU15: 0.8 | AV15: 7.4 | AW15: 9.3 | AX15: 14.1 | AY15: 13.8 | AZ15: 9.9 | BA15: 5.9 | BB15: 0.2 | BC15: 1.5 | BD15: 3 | BE15: 1.1 | BF15: 0.8 | BH15: 9 | BI15: 九州 | BJ15: 0.9 | BK15: 6.7 | BL15: 8.7 | BM15: 13.3 | BN15: 13.2 | BO15: 9.4 | BP15: 5.4 | BQ15: 0.2 | BR15: 1.4 | BS15: 2.8 | BT15: 1.1 | BU15: 0.7 | BW15: 9 | BX15: 九州 | BY15: 12.5 | CA15: 9 | CB15: 九州 | CC15: 12 | CE15: 9 | CF15: 九州 | CG15: 11.8 | CI15: 9 | CJ15: 九州 | CK15: 11.6 | CM15: 9 | CN15: 九州 | CO15: 11.5 | CQ15: 9 | CR15: 九州 | CS15: 10.7 | CU15: 9 | CV15: 九州 | CW15: 10.4 | CY15: 9 | CZ15: 九州 | DA15: 10.4
AE16: 1月電力 | AF16: =IF(OR($D$3=1,$D$3=2),'補正（太陽光）指定２'!AF16,"") ->  | AG16: =IF(OR($D$3=1,$D$3=2),'補正（太陽光）指定２'!AG16,"") ->  | AH16: =IF(OR($D$3=1,$D$3=2),'補正（太陽光）指定２'!AH16,"") ->  | AI16: =IF(OR($D$3=1,$D$3=2),'補正（太陽光）指定２'!AI16,"") ->  | AJ16: =IF(OR($D$3=1,$D$3=2),'補正（太陽光）指定２'!AJ16,"") ->  | AK16: =IF(OR($D$3=1,$D$3=2),'補正（太陽光）指定２'!AK16,"") ->  | AL16: =IF(OR($D$3=1,$D$3=2),'補正（太陽光）指定２'!AL16,"") ->  | AM16: =IF(OR($D$3=1,$D$3=2),'補正（太陽光）指定２'!AM16,"") ->  | AN16: =IF(OR($D$3=1,$D$3=2),'補正（太陽光）指定２'!AN16,"") ->  | AO16: =IF(OR($D$3=1,$D$3=2),'補正（太陽光）指定２'!AO16,"") ->  | AP16: 太陽光（余剰） | AS16: 10 | AT16: 沖縄 | AU16: 0 | AV16: 8.2 | AW16: 23.5 | AX16: 24.4 | AY16: 36.2 | AZ16: 29.3 | BA16: 11.9 | BB16: 0 | BC16: 0 | BD16: 0 | BE16: 0 | BF16: 0 | BH16: 10 | BI16: 沖縄 | BJ16: 0.9 | BK16: 6.7 | BL16: 8.7 | BM16: 13.3 | BN16: 13.2 | BO16: 9.4 | BP16: 5.4 | BQ16: 0.2 | BR16: 1.4 | BS16: 2.8 | BT16: 1.1 | BU16: 0.7 | BW16: 10 | BX16: 沖縄 | BY16: 12.5 | CA16: 10 | CB16: 沖縄 | CC16: 12 | CE16: 10 | CF16: 沖縄 | CG16: 11.8 | CI16: 10 | CJ16: 沖縄 | CK16: 11.6 | CM16: 10 | CN16: 沖縄 | CO16: 11.5 | CQ16: 10 | CR16: 沖縄 | CS16: 10.7 | CU16: 10 | CV16: 沖縄 | CW16: 10.4 | CY16: 10 | CZ16: 沖縄 | DA16: 10.4
B17: 月間調達電力量（GWh） | G17: =IF(G79="","",ROUND(G79,1)) ->  | AE17: 年間電力量 | AF17: =IF(AF79="","",AF79) ->  | AG17: =IF(AG79="","",ROUND(AG79,1)) ->  | AU17: 3 | AV17: 4 | AW17: 5 | AX17: 6 | AY17: 7 | AZ17: 8 | BA17: 9 | BB17: 10 | BC17: 11 | BD17: 12 | BE17: 13 | BF17: 14 | BJ17: 3 | BK17: 4 | BL17: 5 | BM17: 6 | BN17: 7 | BO17: 8 | BP17: 9 | BQ17: 10 | BR17: 11 | BS17: 12 | BT17: 13 | BU17: 14 | BY17: 3 | CC17: 3 | CG17: 3 | CK17: 3 | CO17: 3 | CS17: 3 | CW17: 3 | DA17: 3
AS19: 余剰 ※該当エリアの自家消費率分を減じた値 | BH19: 余剰 ※該当エリアの自家消費比率分を減じた値 | BW19: 余剰※ | CA19: 余剰※ | CE19: 余剰※ | CI19: 余剰※ | CM19: 余剰※ | CQ19: 余剰※ | CU19: 余剰※ | CY19: 余剰※
AU20: 4月 | AV20: 5月 | AW20: 6月 | AX20: 7月 | AY20: 8月 | AZ20: 9月 | BA20: 10月 | BB20: 11月 | BC20: 12月 | BD20: 1月 | BE20: 2月 | BF20: 3月 | BJ20: 4月 | BK20: 5月 | BL20: 6月 | BM20: 7月 | BN20: 8月 | BO20: 9月 | BP20: 10月 | BQ20: 11月 | BR20: 12月 | BS20: 1月 | BT20: 2月 | BU20: 3月 | BY20: 8月 | CC20: 8月 | CG20: 8月 | CK20: 8月 | CO20: 8月 | CS20: 8月 | CW20: 8月 | DA20: 8月
A21: 太陽光（指定１） | AO21: 【ＭＷ、ＧＷｈ】 | AS21: 1 | AT21: 北海道 | AU21: =IFERROR(AU7*(1-AU63),AU7) -> 1.2 | AV21: 4.1 | AW21: 6.7 | AX21: 9.1 | AY21: 9 | AZ21: 3.9 | BA21: 0.8 | BB21: 0.6 | BC21: 0.5 | BD21: 1.3 | BE21: 1.3 | BF21: 1 | BH21: 1 | BI21: 北海道 | BJ21: =IFERROR(BJ7*(1-AU63),BJ7) -> 1.3 | BK21: 4.1 | BL21: 6.8 | BM21: 9.1 | BN21: 8.6 | BO21: 4.1 | BP21: 1 | BQ21: 0.5 | BR21: 0.5 | BS21: 1.3 | BT21: 1.3 | BU21: 1 | BW21: 1 | BX21: 北海道 | BY21: =IFERROR(BY7*(1-AY63),BY7) -> 8.4 | CA21: 1 | CB21: 北海道 | CC21: =IFERROR(CC7*(1-AY63),CC7) -> 9.1 | CE21: 1 | CF21: 北海道 | CG21: =IFERROR(CG7*(1-AY63),CG7) -> 8 | CI21: 1 | CJ21: 北海道 | CK21: =IFERROR(CK7*(1-AY63),CK7) -> 7.2 | CM21: 1 | CN21: 北海道 | CO21: =IFERROR(CO7*(1-AY63),CO7) -> 6.9 | CQ21: 1 | CR21: 北海道 | CS21: =IFERROR(CS7*(1-AY63),CS7) -> 6.6 | CU21: 1 | CV21: 北海道 | CW21: =IFERROR(CW7*(1-AY63),CW7) -> 7 | CY21: 1 | CZ21: 北海道 | DA21: =IFERROR(DA7*(1-AY63),DA7) -> 7
A22: 項目 | G22: =G13 -> 2024-01-01 | S22: =S13 -> 2025-01-01 | AF22: =AF13 -> 2024-01-01 | AG22: =AG13 -> 2025-01-01 | AH22: =AH13 -> 2026-01-02 | AI22: =AI13 -> 2027-01-03 | AJ22: 2028-01-04 | AK22: 2029-01-04 | AL22: 2030-01-05 | AM22: 2031-01-06 | AN22: 2032-01-07 | AO22: 2033-01-07 | AS22: 2 | AT22: 東北 | AU22: 3.2 | AV22: 17.2 | AW22: 20.6 | AX22: 21 | AY22: 25.9 | AZ22: 16.2 | BA22: 11.7 | BB22: 1.5 | BC22: 1.5 | BD22: 3.9 | BE22: 1.6 | BF22: 2.3 | BH22: 2 | BI22: 東北 | BJ22: 3.1 | BK22: 16.7 | BL22: 20.2 | BM22: 20.2 | BN22: 25.3 | BO22: 16 | BP22: 10.7 | BQ22: 1.2 | BR22: 1.5 | BS22: 3.9 | BT22: 1.6 | BU22: 2.2 | BW22: 2 | BX22: 東北 | BY22: =IFERROR(BY8*(1-AY64),BY8) -> 24.5 | CA22: 2 | CB22: 東北 | CC22: =IFERROR(CC8*(1-AY64),CC8) -> 23.6 | CE22: 2 | CF22: 東北 | CG22: =IFERROR(CG8*(1-AY64),CG8) -> 23.2 | CI22: 2 | CJ22: 東北 | CK22: =IFERROR(CK8*(1-AY64),CK8) -> 22.3 | CM22: 2 | CN22: 東北 | CO22: =IFERROR(CO8*(1-AY64),CO8) -> 22.3 | CQ22: 2 | CR22: 東北 | CS22: =IFERROR(CS8*(1-AY64),CS8) -> 23.1 | CU22: 2 | CV22: 東北 | CW22: =IFERROR(CW8*(1-AY64),CW8) -> 23.3 | CY22: 2 | CZ22: 東北 | DA22: =IFERROR(DA8*(1-AY64),DA8) -> 23.3
G23: =G8 -> 4月 | H23: =H8 -> 5月 | I23: 6月 | J23: 7月 | K23: 8月 | L23: 9月 | M23: 10月 | N23: 11月 | O23: 12月 | P23: 1月 | Q23: 2月 | R23: 3月 | S23: =S8 -> 4月 | T23: =T8 -> 5月 | U23: 6月 | V23: 7月 | W23: 8月 | X23: 9月 | Y23: 10月 | Z23: 11月 | AA23: 12月 | AB23: 1月 | AC23: 2月 | AD23: 3月 | AS23: 3 | AT23: 東京 | AU23: 1.5 | AV23: 12.7 | AW23: 15.5 | AX23: 23.2 | AY23: 25.9 | AZ23: 15.6 | BA23: 7.8 | BB23: 0.5 | BC23: 0.9 | BD23: 2.4 | BE23: 0.9 | BF23: 0.9 | BH23: 3 | BI23: 東京 | BJ23: 1.4 | BK23: 12.2 | BL23: 14.9 | BM23: 22.4 | BN23: 25.1 | BO23: 15.4 | BP23: 7 | BQ23: 0.4 | BR23: 0.9 | BS23: 2.3 | BT23: 0.9 | BU23: 0.9 | BW23: 3 | BX23: 東京 | BY23: 24.3 | CA23: 3 | CB23: 東京 | CC23: 23.7 | CE23: 3 | CF23: 東京 | CG23: 23.2 | CI23: 3 | CJ23: 東京 | CK23: 23.6 | CM23: 3 | CN23: 東京 | CO23: 23.3 | CQ23: 3 | CR23: 東京 | CS23: 24.6 | CU23: 3 | CV23: 東京 | CW23: 24 | CY23: 3 | CZ23: 東京 | DA23: 24
A24: 調整係数（※沖縄エリアのみL5）出力比率 | E24: 全量 | G24: =IF($D$3="","",VLOOKUP($D$3,$AS$7:$BF$16,AU$17,TRUE)) ->  | S24: =IF($D$3="","",VLOOKUP($D$3,$BH$7:$BU$16,BJ$17,TRUE)) ->  | AF24: =IF($D$3="","",K24) ->  | AG24: =IF($D$3="","",W24) ->  | AH24: =IF($D$3="","",VLOOKUP($D$3,$BW$7:$BY$16,BY$17,TRUE)) ->  | AI24: =IF($D$3="","",VLOOKUP($D$3,$CA$7:$CC$16,CC$17,TRUE)) ->  | AJ24: =IF($D$3="","",VLOOKUP($D$3,$CE$7:$CG$16,CG$17,TRUE)) ->  | AK24: =IF($D$3="","",VLOOKUP($D$3,$CI$7:$CK$16,CK$17,TRUE)) ->  | AL24: =IF($D$3="","",VLOOKUP($D$3,$CM$7:$CO$16,CO$17,TRUE)) ->  | AM24: =IF($D$3="","",VLOOKUP($D$3,$CQ$7:$CS$16,CS$17,TRUE)) ->  | AN24: =IF($D$3="","",VLOOKUP($D$3,$CU$7:$CW$16,CW$17,TRUE)) ->  | AO24: =IF($D$3="","",VLOOKUP($D$3,$CY$7:$DA$16,DA$17,TRUE)) ->  | AS24: 4 | AT24: 中部 | AU24: =IFERROR(AU10*(1-AU66),AU10) -> 4.2 | AV24: =IFERROR(AV10*(1-AV66),AV10) -> 16 | AW24: 18.6 | AX24: 22.8 | AY24: 28.7 | AZ24: 17.1 | BA24: 10.1 | BB24: 0.4 | BC24: 4.9 | BD24: 6.6 | BE24: 2.8 | BF24: 2 | BH24: 4 | BI24: 中部 | BJ24: =IFERROR(BJ10*(1-AU66),BJ10) -> 4 | BK24: =IFERROR(BK10*(1-AV66),BK10) -> 15.3 | BL24: 18 | BM24: 21.9 | BN24: 30.6 | BO24: 16.4 | BP24: 9.5 | BQ24: 0.4 | BR24: 4.8 | BS24: 6.4 | BT24: 2.8 | BU24: 1.9 | BW24: 4 | BX24: 中部 | BY24: 29.2 | CA24: 4 | CB24: 中部 | CC24: 27.1 | CE24: 4 | CF24: 中部 | CG24: 26 | CI24: 4 | CJ24: 中部 | CK24: 26 | CM24: 4 | CN24: 中部 | CO24: 27.5 | CQ24: 4 | CR24: 中部 | CS24: 26.9 | CU24: 4 | CV24: 中部 | CW24: 26 | CY24: 4 | CZ24: 中部 | DA24: 26
E25: 余剰 | G25: =IF($D$3="","",VLOOKUP($D$3,$AS$21:$BF$30,AU$31,TRUE)) ->  | S25: =IF($D$3="","",VLOOKUP($D$3,$BH$21:$BU$30,BJ$31,TRUE)) ->  | AF25: =IF($D$3="","",K25) ->  | AG25: =IF($D$3="","",W25) ->  | AH25: =IF($D$3="","",VLOOKUP($D$3,$BW$21:$BY$30,BY$31,TRUE)) ->  | AI25: =IF($D$3="","",VLOOKUP($D$3,$CA$21:$CC$30,CC$31,TRUE)) ->  | AJ25: =IF($D$3="","",VLOOKUP($D$3,$CE$21:$CG$30,CG$31,TRUE)) ->  | AK25: =IF($D$3="","",VLOOKUP($D$3,$CI$21:$CK$30,CK$31,TRUE)) ->  | AL25: =IF($D$3="","",VLOOKUP($D$3,$CM$21:$CO$30,CO$31,TRUE)) ->  | AM25: =IF($D$3="","",VLOOKUP($D$3,$CQ$21:$CS$30,CS$31,TRUE)) ->  | AN25: =IF($D$3="","",VLOOKUP($D$3,$CU$21:$CW$30,CW$31,TRUE)) ->  | AO25: =IF($D$3="","",VLOOKUP($D$3,$CY$21:$DA$30,DA$31,TRUE)) ->  | AS25: 5 | AT25: 北陸 | AU25: =IFERROR(AU11*(1-AU67),AU11) -> 7.6 | AV25: 23.6 | AW25: 27.5 | AX25: 30.7 | AY25: 35.8 | AZ25: 19.5 | BA25: 14.4 | BB25: 0.7 | BC25: 2.7 | BD25: 2.1 | BE25: 1.2 | BF25: 3.6 | BH25: 5 | BI25: 北陸 | BJ25: 7.5 | BK25: =IFERROR(BK11*(1-AV67),BK11) -> 23 | BL25: 26.9 | BM25: 29.9 | BN25: 36.1 | BO25: 19.2 | BP25: 14.1 | BQ25: 0.7 | BR25: 2.7 | BS25: 2 | BT25: 1.2 | BU25: 3.7 | BW25: 5 | BX25: 北陸 | BY25: 34.9 | CA25: 5 | CB25: 北陸 | CC25: 35.1 | CE25: 5 | CF25: 北陸 | CG25: 33.9 | CI25: 5 | CJ25: 北陸 | CK25: 32.2 | CM25: 5 | CN25: 北陸 | CO25: 32.2 | CQ25: 5 | CR25: 北陸 | CS25: 30 | CU25: 5 | CV25: 北陸 | CW25: 29.5 | CY25: 5 | CZ25: 北陸 | DA25: 29.5
A26: ｋＷ | B26: エリア想定 | D26: 設備量 | E26: 合計 | G26: =IF(COUNT(G27:G28)=0,"",SUM(G27:G28)) ->  | H26: =IF(COUNT(H27:H28)=0,"",SUM(H27:H28)) ->  | AH26: =IF(COUNT(AH27:AH28)=0,"",SUM(AH27:AH28)) ->  | AI26: =IF(COUNT(AI27:AI28)=0,"",SUM(AI27:AI28)) ->  | AS26: 6 | AT26: 関西 | AU26: 4.5 | AV26: 16.5 | AW26: 18.6 | AX26: 24.4 | AY26: 27.6 | AZ26: 17.5 | BA26: 10.5 | BB26: 0.4 | BC26: 4.1 | BD26: 5.1 | BE26: 2.7 | BF26: 2.3 | BH26: 6 | BI26: 関西 | BJ26: 4.5 | BK26: 16.1 | BL26: 18.3 | BM26: 23.8 | BN26: 28.5 | BO26: 17.2 | BP26: 10.2 | BQ26: 0.4 | BR26: 4.1 | BS26: 5 | BT26: 2.7 | BU26: 2.3 | BW26: 6 | BX26: 関西 | BY26: 27.6 | CA26: 6 | CB26: 関西 | CC26: 27 | CE26: 6 | CF26: 関西 | CG26: 26.5 | CI26: 6 | CJ26: 関西 | CK26: 26 | CM26: 6 | CN26: 関西 | CO26: 26.1 | CQ26: 6 | CR26: 関西 | CS26: 24.3 | CU26: 6 | CV26: 関西 | CW26: 24.5 | CY26: 6 | CZ26: 関西 | DA26: 24.5
F27: 全量 | G27: =IF(D6="","",IF(D6="Ⅰ",'②太陽光（全量）'!H13,MIN('②太陽光（全量）'!S12,'②太陽光（全量）'!H13))) ->  | H27: =IF(D6="","",IF(D6="Ⅰ",'②太陽光（全量）'!I13,MIN('②太陽光（全量）'!H13,'②太陽光（全量）'!I13))) ->  | I27: =IF(D6="","",IF(D6="Ⅰ",'②太陽光（全量）'!J13,MIN('②太陽光（全量）'!I13,'②太陽光（全量）'!J13))) ->  | J27: =IF(D6="","",IF(D6="Ⅰ",'②太陽光（全量）'!K13,MIN('②太陽光（全量）'!J13,'②太陽光（全量）'!K13))) ->  | K27: =IF(D6="","",IF(D6="Ⅰ",'②太陽光（全量）'!L13,MIN('②太陽光（全量）'!K13,'②太陽光（全量）'!L13))) ->  | L27: =IF(D6="","",IF(D6="Ⅰ",'②太陽光（全量）'!M13,MIN('②太陽光（全量）'!L13,'②太陽光（全量）'!M13))) ->  | M27: =IF(D6="","",IF(D6="Ⅰ",'②太陽光（全量）'!N13,MIN('②太陽光（全量）'!M13,'②太陽光（全量）'!N13))) ->  | N27: =IF(D6="","",IF(D6="Ⅰ",'②太陽光（全量）'!O13,MIN('②太陽光（全量）'!N13,'②太陽光（全量）'!O13))) ->  | O27: =IF(D6="","",IF(D6="Ⅰ",'②太陽光（全量）'!P13,MIN('②太陽光（全量）'!O13,'②太陽光（全量）'!P13))) ->  | P27: =IF(D6="","",IF(D6="Ⅰ",'②太陽光（全量）'!Q13,MIN('②太陽光（全量）'!P13,'②太陽光（全量）'!Q13))) ->  | Q27: =IF(D6="","",IF(D6="Ⅰ",'②太陽光（全量）'!R13,MIN('②太陽光（全量）'!Q13,'②太陽光（全量）'!R13))) ->  | R27: =IF(D6="","",IF(D6="Ⅰ",'②太陽光（全量）'!S13,MIN('②太陽光（全量）'!R13,'②太陽光（全量）'!S13))) ->  | S27: =IF(D6="","",IF(D6="Ⅰ",'②太陽光（全量）'!H14,MIN('②太陽光（全量）'!S13,'②太陽光（全量）'!H14))) ->  | T27: =IF(D6="","",IF(D6="Ⅰ",'②太陽光（全量）'!I14,MIN('②太陽光（全量）'!H14,'②太陽光（全量）'!I14))) ->  | U27: =IF(D6="","",IF(D6="Ⅰ",'②太陽光（全量）'!J14,MIN('②太陽光（全量）'!I14,'②太陽光（全量）'!J14))) ->  | V27: =IF(D6="","",IF(D6="Ⅰ",'②太陽光（全量）'!K14,MIN('②太陽光（全量）'!J14,'②太陽光（全量）'!K14))) ->  | W27: =IF(D6="","",IF(D6="Ⅰ",'②太陽光（全量）'!L14,MIN('②太陽光（全量）'!K14,'②太陽光（全量）'!L14))) ->  | X27: =IF(D6="","",IF(D6="Ⅰ",'②太陽光（全量）'!M14,MIN('②太陽光（全量）'!L14,'②太陽光（全量）'!M14))) ->  | Y27: =IF(D6="","",IF(D6="Ⅰ",'②太陽光（全量）'!N14,MIN('②太陽光（全量）'!M14,'②太陽光（全量）'!N14))) ->  | Z27: =IF(D6="","",IF(D6="Ⅰ",'②太陽光（全量）'!O14,MIN('②太陽光（全量）'!N14,'②太陽光（全量）'!O14))) ->  | AA27: =IF(D6="","",IF(D6="Ⅰ",'②太陽光（全量）'!P14,MIN('②太陽光（全量）'!O14,'②太陽光（全量）'!P14))) ->  | AB27: =IF(D6="","",IF(D6="Ⅰ",'②太陽光（全量）'!Q14,MIN('②太陽光（全量）'!P14,'②太陽光（全量）'!Q14))) ->  | AC27: =IF(D6="","",IF(D6="Ⅰ",'②太陽光（全量）'!R14,MIN('②太陽光（全量）'!Q14,'②太陽光（全量）'!R14))) ->  | AD27: =IF(D6="","",IF(D6="Ⅰ",'②太陽光（全量）'!S14,MIN('②太陽光（全量）'!R14,'②太陽光（全量）'!S14))) ->  | AH27: =IF(D6="","",IF(D6="Ⅰ",'②太陽光（全量）'!L15,MIN('②太陽光（全量）'!K15,'②太陽光（全量）'!L15))) ->  | AI27: =IF(D6="","",IF(D6="Ⅰ",'②太陽光（全量）'!L16,MIN('②太陽光（全量）'!K16,'②太陽光（全量）'!L16))) ->  | AJ27: =IF(D6="","",IF(D6="Ⅰ",'②太陽光（全量）'!L17,MIN('②太陽光（全量）'!K17,'②太陽光（全量）'!L17))) ->  | AK27: =IF(D6="","",IF(D6="Ⅰ",'②太陽光（全量）'!L18,MIN('②太陽光（全量）'!K18,'②太陽光（全量）'!L18))) ->  | AL27: =IF(D6="","",IF(D6="Ⅰ",'②太陽光（全量）'!L19,MIN('②太陽光（全量）'!K19,'②太陽光（全量）'!L19))) ->  | AM27: =IF(D6="","",IF(D6="Ⅰ",'②太陽光（全量）'!L20,MIN('②太陽光（全量）'!K20,'②太陽光（全量）'!L20))) ->  | AN27: =IF(D6="","",IF(D6="Ⅰ",'②太陽光（全量）'!L21,MIN('②太陽光（全量）'!K21,'②太陽光（全量）'!L21))) ->  | AO27: =IF(D6="","",IF(D6="Ⅰ",'②太陽光（全量）'!L22,MIN('②太陽光（全量）'!K22,'②太陽光（全量）'!L22))) ->  | AS27: 7 | AT27: 中国 | AU27: 3.2 | AV27: 18.4 | AW27: 17.6 | AX27: 27.6 | AY27: 29.7 | AZ27: 17.2 | BA27: 11.2 | BB27: 0.4 | BC27: 4 | BD27: 5.5 | BE27: 2.5 | BF27: 2.2 | BH27: 7 | BI27: 中国 | BJ27: 3.2 | BK27: 18.1 | BL27: 16.9 | BM27: 27 | BN27: 30.1 | BO27: 16.7 | BP27: 10.8 | BQ27: 0.4 | BR27: 4 | BS27: 5.3 | BT27: 2.5 | BU27: 2.1 | BW27: 7 | BX27: 中国 | BY27: 28.8 | CA27: 7 | CB27: 中国 | CC27: 28.1 | CE27: 7 | CF27: 中国 | CG27: 27.7 | CI27: 7 | CJ27: 中国 | CK27: 27.5 | CM27: 7 | CN27: 中国 | CO27: 27.4 | CQ27: 7 | CR27: 中国 | CS27: 25.6 | CU27: 7 | CV27: 中国 | CW27: 25.3 | CY27: 7 | CZ27: 中国 | DA27: 25.3
F28: 余剰 | G28: =IF(D6="","",IF(D6="Ⅰ",'③太陽光（余剰）'!H13,MIN('③太陽光（余剰）'!S12,'③太陽光（余剰）'!H13))) ->  | H28: =IF(D6="","",IF(D6="Ⅰ",'③太陽光（余剰）'!I13,MIN('③太陽光（余剰）'!H13,'③太陽光（余剰）'!I13))) ->  | I28: =IF(D6="","",IF(D6="Ⅰ",'③太陽光（余剰）'!J13,MIN('③太陽光（余剰）'!I13,'③太陽光（余剰）'!J13))) ->  | J28: =IF(D6="","",IF(D6="Ⅰ",'③太陽光（余剰）'!K13,MIN('③太陽光（余剰）'!J13,'③太陽光（余剰）'!K13))) ->  | K28: =IF(D6="","",IF(D6="Ⅰ",'③太陽光（余剰）'!L13,MIN('③太陽光（余剰）'!K13,'③太陽光（余剰）'!L13))) ->  | L28: =IF(D6="","",IF(D6="Ⅰ",'③太陽光（余剰）'!M13,MIN('③太陽光（余剰）'!L13,'③太陽光（余剰）'!M13))) ->  | M28: =IF(D6="","",IF(D6="Ⅰ",'③太陽光（余剰）'!N13,MIN('③太陽光（余剰）'!M13,'③太陽光（余剰）'!N13))) ->  | N28: =IF(D6="","",IF(D6="Ⅰ",'③太陽光（余剰）'!O13,MIN('③太陽光（余剰）'!N13,'③太陽光（余剰）'!O13))) ->  | O28: =IF(D6="","",IF(D6="Ⅰ",'③太陽光（余剰）'!P13,MIN('③太陽光（余剰）'!O13,'③太陽光（余剰）'!P13))) ->  | P28: =IF(D6="","",IF(D6="Ⅰ",'③太陽光（余剰）'!Q13,MIN('③太陽光（余剰）'!P13,'③太陽光（余剰）'!Q13))) ->  | Q28: =IF(D6="","",IF(D6="Ⅰ",'③太陽光（余剰）'!R13,MIN('③太陽光（余剰）'!Q13,'③太陽光（余剰）'!R13))) ->  | R28: =IF(D6="","",IF(D6="Ⅰ",'③太陽光（余剰）'!S13,MIN('③太陽光（余剰）'!R13,'③太陽光（余剰）'!S13))) ->  | S28: =IF(D6="","",IF(D6="Ⅰ",'③太陽光（余剰）'!H14,MIN('③太陽光（余剰）'!S13,'③太陽光（余剰）'!H14))) ->  | T28: =IF(D6="","",IF(D6="Ⅰ",'③太陽光（余剰）'!I14,MIN('③太陽光（余剰）'!H14,'③太陽光（余剰）'!I14))) ->  | U28: =IF(D6="","",IF(D6="Ⅰ",'③太陽光（余剰）'!J14,MIN('③太陽光（余剰）'!I14,'③太陽光（余剰）'!J14))) ->  | V28: =IF(D6="","",IF(D6="Ⅰ",'③太陽光（余剰）'!K14,MIN('③太陽光（余剰）'!J14,'③太陽光（余剰）'!K14))) ->  | W28: =IF(D6="","",IF(D6="Ⅰ",'③太陽光（余剰）'!L14,MIN('③太陽光（余剰）'!K14,'③太陽光（余剰）'!L14))) ->  | X28: =IF(D6="","",IF(D6="Ⅰ",'③太陽光（余剰）'!M14,MIN('③太陽光（余剰）'!L14,'③太陽光（余剰）'!M14))) ->  | Y28: =IF(D6="","",IF(D6="Ⅰ",'③太陽光（余剰）'!N14,MIN('③太陽光（余剰）'!M14,'③太陽光（余剰）'!N14))) ->  | Z28: =IF(D6="","",IF(D6="Ⅰ",'③太陽光（余剰）'!O14,MIN('③太陽光（余剰）'!N14,'③太陽光（余剰）'!O14))) ->  | AA28: =IF(D6="","",IF(D6="Ⅰ",'③太陽光（余剰）'!P14,MIN('③太陽光（余剰）'!O14,'③太陽光（余剰）'!P14))) ->  | AB28: =IF(D6="","",IF(D6="Ⅰ",'③太陽光（余剰）'!Q14,MIN('③太陽光（余剰）'!P14,'③太陽光（余剰）'!Q14))) ->  | AC28: =IF(D6="","",IF(D6="Ⅰ",'③太陽光（余剰）'!R14,MIN('③太陽光（余剰）'!Q14,'③太陽光（余剰）'!R14))) ->  | AD28: =IF(D6="","",IF(D6="Ⅰ",'③太陽光（余剰）'!S14,MIN('③太陽光（余剰）'!R14,'③太陽光（余剰）'!S14))) ->  | AH28: =IF(D6="","",IF(D6="Ⅰ",'③太陽光（余剰）'!L15,MIN('③太陽光（余剰）'!K15,'③太陽光（余剰）'!L15))) ->  | AI28: =IF(D6="","",IF(D6="Ⅰ",'③太陽光（余剰）'!L16,MIN('③太陽光（余剰）'!K16,'③太陽光（余剰）'!L16))) ->  | AJ28: =IF(D6="","",IF(D6="Ⅰ",'③太陽光（余剰）'!L17,MIN('③太陽光（余剰）'!K17,'③太陽光（余剰）'!L17))) ->  | AK28: =IF(D6="","",IF(D6="Ⅰ",'③太陽光（余剰）'!L18,MIN('③太陽光（余剰）'!K18,'③太陽光（余剰）'!L18))) ->  | AL28: =IF(D6="","",IF(D6="Ⅰ",'③太陽光（余剰）'!L19,MIN('③太陽光（余剰）'!K19,'③太陽光（余剰）'!L19))) ->  | AM28: =IF(D6="","",IF(D6="Ⅰ",'③太陽光（余剰）'!L20,MIN('③太陽光（余剰）'!K20,'③太陽光（余剰）'!L20))) ->  | AN28: =IF(D6="","",IF(D6="Ⅰ",'③太陽光（余剰）'!L21,MIN('③太陽光（余剰）'!K21,'③太陽光（余剰）'!L21))) ->  | AO28: =IF(D6="","",IF(D6="Ⅰ",'③太陽光（余剰）'!L22,MIN('③太陽光（余剰）'!K22,'③太陽光（余剰）'!L22))) ->  | AS28: 8 | AT28: 四国 | AU28: 4.4 | AV28: 20.8 | AW28: 19.6 | AX28: 29.7 | AY28: 32.8 | AZ28: 20.6 | BA28: 14 | BB28: 0.5 | BC28: 5 | BD28: 6.7 | BE28: 3.3 | BF28: 3 | BH28: 8 | BI28: 四国 | BJ28: 4.4 | BK28: 20.7 | BL28: 19.3 | BM28: 29.5 | BN28: 33.6 | BO28: 20.3 | BP28: 13.5 | BQ28: 0.5 | BR28: 5.1 | BS28: 6.6 | BT28: 3.2 | BU28: 3 | BW28: 8 | BX28: 四国 | BY28: 32.4 | CA28: 8 | CB28: 四国 | CC28: 32 | CE28: 8 | CF28: 四国 | CG28: 31.2 | CI28: 8 | CJ28: 四国 | CK28: 30.4 | CM28: 8 | CN28: 四国 | CO28: 30.8 | CQ28: 8 | CR28: 四国 | CS28: 28.6 | CU28: 8 | CV28: 四国 | CW28: 28.7 | CY28: 8 | CZ28: 四国 | DA28: 28.7
D29: 供給電力 （調整係数 ※沖縄L5） | E29: 合計 | G29: =IF(COUNT(G30:G31)=0,"",SUM(G30:G31)) ->  | H29: =IF(COUNT(H30:H31)=0,"",SUM(H30:H31)) ->  | AH29: =IF(COUNT(AH30:AH31)=0,"",SUM(AH30:AH31)) ->  | AI29: =IF(COUNT(AI30:AI31)=0,"",SUM(AI30:AI31)) ->  | AP29: =IF(COUNTIF(AP30:AP31,"")=2,"",SUM(AP30:AP31)) ->  | AQ29: =IF(COUNTIF(AQ30:AQ31,"")=2,"",SUM(AQ30:AQ31)) ->  | AR29: =IF(COUNTIF(AR30:AR31,"")=2,"",SUM(AR30:AR31)) ->  | AS29: 9 | AT29: 九州 | AU29: 0.8 | AV29: 7.4 | AW29: 9.3 | AX29: 14.1 | AY29: 13.8 | AZ29: 9.9 | BA29: 5.9 | BB29: 0.2 | BC29: 1.5 | BD29: 3 | BE29: 1.1 | BF29: 0.8 | BH29: 9 | BI29: 九州 | BJ29: 0.9 | BK29: 6.7 | BL29: 8.7 | BM29: 13.3 | BN29: 13.2 | BO29: 9.4 | BP29: 5.4 | BQ29: 0.2 | BR29: 1.4 | BS29: 2.8 | BT29: 1.1 | BU29: 0.7 | BW29: 9 | BX29: 九州 | BY29: 12.5 | CA29: 9 | CB29: 九州 | CC29: 12 | CE29: 9 | CF29: 九州 | CG29: 11.8 | CI29: 9 | CJ29: 九州 | CK29: 11.6 | CM29: 9 | CN29: 九州 | CO29: 11.5 | CQ29: 9 | CR29: 九州 | CS29: 10.7 | CU29: 9 | CV29: 九州 | CW29: 10.4 | CY29: 9 | CZ29: 九州 | DA29: 10.4
F30: 全量 | G30: =IF(G27="","",IF(G24=0,0,IF(G24="","",ROUND(SUM(G27)*SUM(G$24)/100,2)))) ->  | H30: =IF(H27="","",IF(H24=0,0,IF(H24="","",ROUND(SUM(H27)*SUM(H$24)/100,2)))) ->  | I30: =IF(I27="","",IF(I24=0,0,IF(I24="","",ROUND(SUM(I27)*SUM(I$24)/100,2)))) ->  | J30: =IF(J27="","",IF(J24=0,0,IF(J24="","",ROUND(SUM(J27)*SUM(J$24)/100,2)))) ->  | K30: =IF(K27="","",IF(K24=0,0,IF(K24="","",ROUND(SUM(K27)*SUM(K$24)/100,2)))) ->  | L30: =IF(L27="","",IF(L24=0,0,IF(L24="","",ROUND(SUM(L27)*SUM(L$24)/100,2)))) ->  | R30: =IF(R27="","",IF(R24=0,0,IF(R24="","",ROUND(SUM(R27)*SUM(R$24)/100,2)))) ->  | AH30: =IF(AH27="","",IF(AH24=0,0,IF(AH24="","",ROUND(SUM(AH27)*SUM(AH$24)/100,2)))) ->  | AI30: =IF(AI27="","",IF(AI24=0,0,IF(AI24="","",ROUND(SUM(AI27)*SUM(AI$24)/100,2)))) ->  | AJ30: =IF(AJ27="","",IF(AJ24=0,0,IF(AJ24="","",ROUND(SUM(AJ27)*SUM(AJ$24)/100,2)))) ->  | AK30: =IF(AK27="","",IF(AK24=0,0,IF(AK24="","",ROUND(SUM(AK27)*SUM(AK$24)/100,2)))) ->  | AL30: =IF(AL27="","",IF(AL24=0,0,IF(AL24="","",ROUND(SUM(AL27)*SUM(AL$24)/100,2)))) ->  | AM30: =IF(AM27="","",IF(AM24=0,0,IF(AM24="","",ROUND(SUM(AM27)*SUM(AM$24)/100,2)))) ->  | AS30: 10 | AT30: 沖縄 | AU30: 0 | AV30: 8.2 | AW30: 23.5 | AX30: 24.4 | AY30: 36.2 | AZ30: 29.3 | BA30: 11.9 | BB30: 0 | BC30: 0 | BD30: 0 | BE30: 0 | BF30: 0 | BH30: 10 | BI30: 沖縄 | BJ30: =IFERROR(BJ16*(1-AU72),BJ16) -> 0.9 | BK30: =IFERROR(BK16*(1-AV72),BK16) -> 6.7 | BL30: =IFERROR(BL16*(1-AW72),BL16) -> 8.7 | BM30: =IFERROR(BM16*(1-AX72),BM16) -> 13.3 | BN30: =IFERROR(BN16*(1-AY72),BN16) -> 13.2 | BO30: =IFERROR(BO16*(1-AZ72),BO16) -> 9.4 | BP30: =IFERROR(BP16*(1-BA72),BP16) -> 5.4 | BQ30: =IFERROR(BQ16*(1-BB72),BQ16) -> 0.2 | BR30: =IFERROR(BR16*(1-BC72),BR16) -> 1.4 | BS30: =IFERROR(BS16*(1-BD72),BS16) -> 2.8 | BT30: =IFERROR(BT16*(1-BE72),BT16) -> 1.1 | BU30: =IFERROR(BU16*(1-BF72),BU16) -> 0.7 | BW30: 10 | BX30: 沖縄 | BY30: 12.5 | CA30: 10 | CB30: 沖縄 | CC30: 12 | CE30: 10 | CF30: 沖縄 | CG30: 11.8 | CI30: 10 | CJ30: 沖縄 | CK30: 11.6 | CM30: 10 | CN30: 沖縄 | CO30: 11.5 | CQ30: 10 | CR30: 沖縄 | CS30: 10.7 | CU30: 10 | CV30: 沖縄 | CW30: 10.4 | CY30: 10 | CZ30: 沖縄 | DA30: 10.4
F31: 余剰 | G31: =IF(G28="","",IF(G25=0,0,IF(G25="","",ROUND(SUM(G28)*SUM(G$25)/100,2)))) ->  | H31: =IF(H28="","",IF(H25=0,0,IF(H25="","",ROUND(SUM(H28)*SUM(H$25)/100,2)))) ->  | AH31: =IF(AH28="","",IF(AH25=0,0,IF(AH25="","",ROUND(SUM(AH28)*SUM(AH$25)/100,2)))) ->  | AI31: =IF(AI28="","",IF(AI25=0,0,IF(AI25="","",ROUND(SUM(AI28)*SUM(AI$25)/100,2)))) ->  | AP31: =IF(AP28="","",IF(AP25=0,0,IF(AP25="","",ROUND(SUM(AP28)*SUM(AP$25)/100,2)))) ->  | AQ31: =IF(AQ28="","",IF(AQ25=0,0,IF(AQ25="","",ROUND(SUM(AQ28)*SUM(AQ$25)/100,2)))) ->  | AR31: =IF(AR28="","",IF(AR25=0,0,IF(AR25="","",ROUND(SUM(AR28)*SUM(AR$25)/100,2)))) ->  | AU31: 3 | AV31: 4 | AW31: 5 | AX31: 6 | AY31: 7 | AZ31: 8 | BA31: 9 | BB31: 10 | BC31: 11 | BD31: 12 | BE31: 13 | BF31: 14 | BJ31: 3 | BK31: 4 | BL31: 5 | BM31: 6 | BN31: 7 | BO31: 8 | BP31: 9 | BQ31: 10 | BR31: 11 | BS31: 12 | BT31: 13 | BU31: 14 | BY31: 3 | CC31: 3 | CG31: 3 | CK31: 3 | CO31: 3 | CS31: 3 | CW31: 3 | DA31: 3
B32: 小売電気事業者の調達分 | D32: 設備量 | E32: 合計 | G32: =IF(COUNT(G33:G34)=0,"",SUM(G33:G34)) ->  | H32: =IF(COUNT(H33:H34)=0,"",SUM(H33:H34)) ->  | AH32: =IF(COUNT(AH33:AH34)=0,"",SUM(AH33:AH34)) ->  | AI32: =IF(COUNT(AI33:AI34)=0,"",SUM(AI33:AI34)) ->  | AP32: =IF(COUNTIF(AP33:AP34,"")=2,"",SUM(AP33:AP34)) ->  | AQ32: =IF(COUNTIF(AQ33:AQ34,"")=2,"",SUM(AQ33:AQ34)) ->  | AR32: =IF(COUNTIF(AR33:AR34,"")=2,"",SUM(AR33:AR34)) -> 
F33: 全量 | G33: =IF(AND(G42="",G48=""),"",SUM(G39,G45)) ->  | H33: =IF(AND(H42="",H48=""),"",SUM(H39,H45)) ->  | R33: =IF(AND(R42="",R48=""),"",SUM(R39,R45)) ->  | AH33: =IF(AND(AH42="",AH48=""),"",SUM(AH39,AH45)) ->  | AI33: =IF(AND(AI42="",AI48=""),"",SUM(AI39,AI45)) ->  | AS33: 供給力算定期間 | BX33: ※該当エリアの自家消費率分を減じた値
F34: 余剰 | G34: =IF(AND(G43="",G49=""),"",SUM(G40,G46)) ->  | H34: =IF(AND(H43="",H49=""),"",SUM(H40,H46)) ->  | R34: =IF(AND(R43="",R49=""),"",SUM(R40,R46)) ->  | AH34: =IF(AND(AH43="",AH49=""),"",SUM(AH40,AH46)) ->  | AI34: =IF(AND(AI43="",AI49=""),"",SUM(AI40,AI46)) ->  | AU34: 4月 | AV34: 5月 | AW34: 6月 | AX34: 7月 | AY34: 8月 | AZ34: 9月 | BA34: 10月 | BB34: 11月 | BC34: 12月 | BD34: 1月 | BE34: 2月 | BF34: 3月
D35: 供給電力 （調整係数 ※沖縄L5） | E35: 合計 | G35: =IF(COUNT(G36:G37)=0,"",SUM(G36:G37)) ->  | H35: =IF(COUNT(H36:H37)=0,"",SUM(H36:H37)) ->  | AH35: =IF(COUNT(AH36:AH37)=0,"",SUM(AH36:AH37)) ->  | AI35: =IF(COUNT(AI36:AI37)=0,"",SUM(AI36:AI37)) ->  | AP35: =IF(COUNTIF(AP36:AP37,"")=2,"",SUM(AP36:AP37)) ->  | AQ35: =IF(COUNTIF(AQ36:AQ37,"")=2,"",SUM(AQ36:AQ37)) ->  | AR35: =IF(COUNTIF(AR36:AR37,"")=2,"",SUM(AR36:AR37)) ->  | AT35: 北海道 | AU35: 月間 | AV35: 月間 | AW35: 月間 | AX35: 月間 | AY35: 月間 | AZ35: 月間 | BA35: 月間 | BB35: 月間 | BC35: 月間 | BD35: 月間 | BE35: 月間 | BF35: 月間
F36: 全量 | G36: =IF(AND(G42="",G48=""),"",SUM(G42,G48)) ->  | H36: =IF(AND(H42="",H48=""),"",SUM(H42,H48)) ->  | R36: =IF(AND(R42="",R48=""),"",SUM(R42,R48)) ->  | AH36: =IF(AND(AH42="",AH48=""),"",SUM(AH42,AH48)) ->  | AI36: =IF(AND(AI42="",AI48=""),"",SUM(AI42,AI48)) ->  | AT36: 東北 | AU36: 月間 | AV36: 月間 | AW36: 月間 | AX36: 後半 | AY36: 月間 | AZ36: 前半 | BA36: 月間 | BB36: 月間 | BC36: 月間 | BD36: 月間 | BE36: 月間 | BF36: 前半
F37: 余剰 | G37: =IF(AND(G43="",G49=""),"",SUM(G43,G49)) ->  | H37: =IF(AND(H43="",H49=""),"",SUM(H43,H49)) ->  | R37: =IF(AND(R43="",R49=""),"",SUM(R43,R49)) ->  | AH37: =IF(AND(AH43="",AH49=""),"",SUM(AH43,AH49)) ->  | AI37: =IF(AND(AI43="",AI49=""),"",SUM(AI43,AI49)) ->  | AT37: 東京 | AU37: 月間 | AV37: 月間 | AW37: 月間 | AX37: 後半 | AY37: 月間 | AZ37: 前半 | BA37: 月間 | BB37: 月間 | BC37: 月間 | BD37: 月間 | BE37: 月間 | BF37: 前半
B38: 内訳 | C38: 非電気→小売 | D38: 設備量 | E38: 合計 | G38: =IF(COUNT(G39:G40)=0,"",SUM(G39:G40)) ->  | H38: =IF(COUNT(H39:H40)=0,"",SUM(H39:H40)) ->  | AH38: =IF(COUNT(AH39:AH40)=0,"",SUM(AH39:AH40)) ->  | AI38: =IF(COUNT(AI39:AI40)=0,"",SUM(AI39:AI40)) ->  | AP38: =IF(COUNTIF(AP39:AP40,"")=2,"",SUM(AP39:AP40)) ->  | AQ38: =IF(COUNTIF(AQ39:AQ40,"")=2,"",SUM(AQ39:AQ40)) ->  | AR38: =IF(COUNTIF(AR39:AR40,"")=2,"",SUM(AR39:AR40)) ->  | AT38: 中部 | AU38: 月間 | AV38: 月間 | AW38: 後半 | AX38: 後半 | AY38: 月間 | AZ38: 前半 | BA38: 月間 | BB38: 月間 | BC38: 月間 | BD38: 月間 | BE38: 月間 | BF38: 前半
F39: 全量 | G39: =IF(G42="","",IF(G24=0,0,IF(G24="","",ROUND(G42/(G$24/100),2)))) ->  | R39: =IF(R42="","",IF(R24=0,0,IF(R24="","",ROUND(R42/(R$24/100),2)))) ->  | AH39: =IF(AH42="","",IF(AH24=0,0,IF(AH24="","",ROUND(AH42/(AH$24/100),2)))) ->  | AT39: 北陸 | AU39: 月間 | AV39: 月間 | AW39: 月間 | AX39: 後半 | AY39: 月間 | AZ39: 前半 | BA39: 月間 | BB39: 月間 | BC39: 月間 | BD39: 月間 | BE39: 月間 | BF39: 前半
F40: 余剰 | G40: =IF(G43="","",IF(G25=0,0,IF(G25="","",ROUND(G43/(G$25/100),2)))) ->  | R40: =IF(R43="","",IF(R25=0,0,IF(R25="","",ROUND(R43/(R$25/100),2)))) ->  | AH40: =IF(AH43="","",IF(AH25=0,0,IF(AH25="","",ROUND(AH43/(AH$25/100),2)))) ->  | AT40: 関西 | AU40: 月間 | AV40: 月間 | AW40: 後半 | AX40: 後半 | AY40: 月間 | AZ40: 前半 | BA40: 月間 | BB40: 月間 | BC40: 月間 | BD40: 月間 | BE40: 月間 | BF40: 前半
D41: 供給電力 （調整係数 ※沖縄L5） | E41: 合計 | G41: =IF(COUNT(G42:G43)=0,"",SUM(G42:G43)) ->  | H41: =IF(COUNT(H42:H43)=0,"",SUM(H42:H43)) ->  | AH41: =IF(COUNT(AH42:AH43)=0,"",SUM(AH42:AH43)) ->  | AI41: =IF(COUNT(AI42:AI43)=0,"",SUM(AI42:AI43)) ->  | AT41: 中国 | AU41: 月間 | AV41: 月間 | AW41: 後半 | AX41: 後半 | AY41: 月間 | AZ41: 前半 | BA41: 月間 | BB41: 月間 | BC41: 月間 | BD41: 月間 | BE41: 月間 | BF41: 前半
F42: 全量 | AT42: 四国 | AU42: 月間 | AV42: 月間 | AW42: 後半 | AX42: 後半 | AY42: 月間 | AZ42: 前半 | BA42: 月間 | BB42: 月間 | BC42: 月間 | BD42: 月間 | BE42: 月間 | BF42: 前半
F43: 余剰 | AT43: 九州 | AU43: 月間 | AV43: 月間 | AW43: 後半 | AX43: 後半 | AY43: 月間 | AZ43: 前半 | BA43: 月間 | BB43: 月間 | BC43: 月間 | BD43: 月間 | BE43: 月間 | BF43: 前半
C44: 発電→小売 | D44: 設備量 | E44: 合計 | G44: =IF(COUNT(G45:G46)=0,"",SUM(G45:G46)) ->  | H44: =IF(COUNT(H45:H46)=0,"",SUM(H45:H46)) ->  | AH44: =IF(COUNT(AH45:AH46)=0,"",SUM(AH45:AH46)) ->  | AI44: =IF(COUNT(AI45:AI46)=0,"",SUM(AI45:AI46)) ->  | AT44: 沖縄 | AU44: 月間 | AV44: 月間 | AW44: 月間 | AX44: 月間 | AY44: 月間 | AZ44: 月間 | BA44: 月間 | BB44: 月間 | BC44: 月間 | BD44: 月間 | BE44: 月間 | BF44: 月間
F45: 全量 | G45: =IF(G48="","",IF(G24=0,0,IF(G24="","",ROUND(G48/(G$24/100),2)))) ->  | R45: =IF(R48="","",IF(R24=0,0,IF(R24="","",ROUND(R48/(R$24/100),2)))) ->  | AH45: =IF(AH48="","",IF(AH24=0,0,IF(AH24="","",ROUND(AH48/(AH$24/100),2)))) -> 
F46: 余剰 | G46: =IF(G49="","",IF(G25=0,0,IF(G25="","",ROUND(G49/(G$25/100),2)))) ->  | R46: =IF(R49="","",IF(R25=0,0,IF(R25="","",ROUND(R49/(R$25/100),2)))) ->  | AH46: =IF(AH49="","",IF(AH25=0,0,IF(AH25="","",ROUND(AH49/(AH$25/100),2)))) -> 
D47: 供給電力 （調整係数 ※沖縄L5） | E47: 合計 | G47: =IF(COUNT(G48:G49)=0,"",SUM(G48:G49)) ->  | H47: =IF(COUNT(H48:H49)=0,"",SUM(H48:H49)) ->  | AH47: =IF(COUNT(AH48:AH49)=0,"",SUM(AH48:AH49)) ->  | AI47: =IF(COUNT(AI48:AI49)=0,"",SUM(AI48:AI49)) ->  | AS47: 指定断面
F48: 全量 | AU48: 4月 | AV48: 5月 | AW48: 6月 | AX48: 7月 | AY48: 8月 | AZ48: 9月 | BA48: 10月 | BB48: 11月 | BC48: 12月 | BD48: 1月 | BE48: 2月 | BF48: 3月
F49: 余剰 | AT49: 北海道 | AU49: 19 | AV49: 20 | AW49: 17 | AX49: 17 | AY49: 15 | AZ49: 19 | BA49: 18 | BB49: 17 | BC49: 17 | BD49: 18 | BE49: 19 | BF49: 19
B50: 発電事業者の送電分 発電→送配電 | D50: 設備量 | E50: 合計 | G50: =IF(COUNT(G51:G52)=0,"",SUM(G51:G52)) ->  | H50: =IF(COUNT(H51:H52)=0,"",SUM(H51:H52)) ->  | AH50: =IF(COUNT(AH51:AH52)=0,"",SUM(AH51:AH52)) ->  | AI50: =IF(COUNT(AI51:AI52)=0,"",SUM(AI51:AI52)) ->  | AT50: 東北 | AU50: 19 | AV50: 15 | AW50: 15 | AX50: 15 | AY50: 15 | AZ50: 15 | BA50: 18 | BB50: 18 | BC50: 18 | BD50: 18 | BE50: 18 | BF50: 10
F51: 全量 | G51: =IF(G54="","",IF(G30=0,0,IF(G30="","",ROUND(G54/(G$24/100),2)))) ->  | S51: =IF(S54="","",IF(S30=0,0,IF(S30="","",ROUND(S54/(S$24/100),2)))) ->  | AH51: =IF(AH54="","",IF(AH30=0,0,IF(AH30="","",ROUND(AH54/(AH$24/100),2)))) ->  | AT51: 東京 | AU51: 19 | AV51: 15 | AW51: 15 | AX51: 15 | AY51: 15 | AZ51: 15 | BA51: 18 | BB51: 18 | BC51: 18 | BD51: 18 | BE51: 18 | BF51: 19
F52: 余剰 | G52: =IF(G55="","",IF(G31=0,0,IF(G31="","",ROUND(G55/(G$25/100),2)))) ->  | S52: =IF(S55="","",IF(S31=0,0,IF(S31="","",ROUND(S55/(S$25/100),2)))) ->  | AH52: =IF(AH55="","",IF(AH31=0,0,IF(AH31="","",ROUND(AH55/(AH$25/100),2)))) ->  | AT52: 中部 | AU52: 10 | AV52: 15 | AW52: 15 | AX52: 15 | AY52: 15 | AZ52: 15 | BA52: 15 | BB52: 18 | BC52: 18 | BD52: 10 | BE52: 10 | BF52: 10
D53: 供給電力 （調整係数 ※沖縄L5） | E53: 合計 | G53: =IF(COUNT(G54:G55)=0,"",SUM(G54:G55)) ->  | H53: =IF(COUNT(H54:H55)=0,"",SUM(H54:H55)) ->  | AH53: =IF(COUNT(AH54:AH55)=0,"",SUM(AH54:AH55)) ->  | AI53: =IF(COUNT(AI54:AI55)=0,"",SUM(AI54:AI55)) ->  | AT53: 北陸 | AU53: 10 | AV53: 15 | AW53: 15 | AX53: 15 | AY53: 15 | AZ53: 15 | BA53: 15 | BB53: 18 | BC53: 10 | BD53: 10 | BE53: 10 | BF53: 10
F54: 全量 | AT54: 関西 | AU54: 10 | AV54: 15 | AW54: 15 | AX54: 15 | AY54: 15 | AZ54: 15 | BA54: 15 | BB54: 18 | BC54: 18 | BD54: 10 | BE54: 10 | BF54: 10
F55: 余剰 | AT55: 中国 | AU55: 10 | AV55: 15 | AW55: 15 | AX55: 15 | AY55: 15 | AZ55: 15 | BA55: 15 | BB55: 10 | BC55: 10 | BD55: 10 | BE55: 10 | BF55: 10
B56: 一般送配電想定との差分 | D56: 設備量 | E56: 合計 | G56: =IF(COUNT(G57:G58)=0,"",SUM(G57:G58)) ->  | H56: =IF(COUNT(H57:H58)=0,"",SUM(H57:H58)) ->  | AH56: =IF(COUNT(AH57:AH58)=0,"",SUM(AH57:AH58)) ->  | AI56: =IF(COUNT(AI57:AI58)=0,"",SUM(AI57:AI58)) ->  | AT56: 四国 | AU56: 19 | AV56: 15 | AW56: 15 | AX56: 15 | AY56: 15 | AZ56: 15 | BA56: 15 | BB56: 18 | BC56: 18 | BD56: 19 | BE56: 19 | BF56: 19
F57: 全量 | G57: =IF(AND(G27="",G33="",G51=""),"",SUM(G27)-SUM(G33)-SUM(G51)) ->  | H57: =IF(AND(H27="",H33="",H51=""),"",SUM(H27)-SUM(H33)-SUM(H51)) ->  | S57: =IF(AND(S27="",S33="",S51=""),"",SUM(S27)-SUM(S33)-SUM(S51)) ->  | AH57: =IF(AND(AH27="",AH33="",AH51=""),"",SUM(AH27)-SUM(AH33)-SUM(AH51)) ->  | AT57: 九州 | AU57: 20 | AV57: 15 | AW57: 14 | AX57: 15 | AY57: 15 | AZ57: 14 | BA57: 14 | BB57: 19 | BC57: 19 | BD57: 19 | BE57: 19 | BF57: 20
F58: 余剰 | G58: =IF(AND(G28="",G34="",G52=""),"",SUM(G28)-SUM(G34)-SUM(G52)) ->  | H58: =IF(AND(H28="",H34="",H52=""),"",SUM(H28)-SUM(H34)-SUM(H52)) ->  | S58: =IF(AND(S28="",S34="",S52=""),"",SUM(S28)-SUM(S34)-SUM(S52)) ->  | AH58: =IF(AND(AH28="",AH34="",AH52=""),"",SUM(AH28)-SUM(AH34)-SUM(AH52)) ->  | AT58: 沖縄 | AU58: 20 | AV58: 15 | AW58: 15 | AX58: 15 | AY58: 12 | AZ58: 15 | BA58: 15 | BB58: 19 | BC58: 19 | BD58: 20 | BE58: 20 | BF58: 20
D59: 供給電力 （調整係数 ※沖縄L5） | E59: 合計 | G59: =IF(COUNT(G60:G61)=0,"",SUM(G60:G61)) ->  | H59: =IF(COUNT(H60:H61)=0,"",SUM(H60:H61)) ->  | AH59: =IF(COUNT(AH60:AH61)=0,"",SUM(AH60:AH61)) ->  | AI59: =IF(COUNT(AI60:AI61)=0,"",SUM(AI60:AI61)) -> 
F60: 全量 | G60: =IF(AND(G30="",G36="",G54=""),"",SUM(G30)-SUM(G36)-SUM(G54)) ->  | H60: =IF(AND(H30="",H36="",H54=""),"",SUM(H30)-SUM(H36)-SUM(H54)) ->  | S60: =IF(AND(S30="",S36="",S54=""),"",SUM(S30)-SUM(S36)-SUM(S54)) ->  | AH60: =IF(AND(AH30="",AH36="",AH54=""),"",SUM(AH30)-SUM(AH36)-SUM(AH54)) ->  | AI60: =IF(AND(AI30="",AI36="",AI54=""),"",SUM(AI30)-SUM(AI36)-SUM(AI54)) ->  | AS60: 太陽光（余剰）自家消費率
F61: 余剰 | G61: =IF(AND(G31="",G37="",G55),"",SUM(G31)-SUM(G37)-SUM(G55)) ->  | H61: =IF(AND(H31="",H37="",H55),"",SUM(H31)-SUM(H37)-SUM(H55)) ->  | S61: =IF(AND(S31="",S37="",S55),"",SUM(S31)-SUM(S37)-SUM(S55)) ->  | AH61: =IF(AND(AH31="",AH37="",AH55),"",SUM(AH31)-SUM(AH37)-SUM(AH55)) -> 
A62: ｋＷｈ | B62: エリア想定 | D62: 電力量 | E62: 合計 | G62: =IF(COUNT(G63:G64)=0,"",SUM(G63:G64)) ->  | H62: =IF(COUNT(H63:H64)=0,"",SUM(H63:H64)) ->  | AF62: =IF($D$3="","",SUM(G62:R62)) ->  | AG62: =IF(COUNT(AG63:AG64)=0,"",SUM(AG63:AG64)) ->  | AH62: =IF(COUNT(AH63:AH64)=0,"",SUM(AH63:AH64)) ->  | AU62: 4月 | AV62: 5月 | AW62: 6月 | AX62: 7月 | AY62: 8月 | AZ62: 9月 | BA62: 10月 | BB62: 11月 | BC62: 12月 | BD62: 1月 | BE62: 2月 | BF62: 3月
F63: 全量 | G63: =IF($D$6="","",'②太陽光（全量）'!H29) ->  | H63: =IF($D$6="","",'②太陽光（全量）'!I29) ->  | I63: =IF($D$6="","",'②太陽光（全量）'!J29) ->  | J63: =IF($D$6="","",'②太陽光（全量）'!K29) ->  | K63: =IF($D$6="","",'②太陽光（全量）'!L29) ->  | L63: =IF($D$6="","",'②太陽光（全量）'!M29) ->  | M63: =IF($D$6="","",'②太陽光（全量）'!N29) ->  | N63: =IF($D$6="","",'②太陽光（全量）'!O29) ->  | O63: =IF($D$6="","",'②太陽光（全量）'!P29) ->  | P63: =IF($D$6="","",'②太陽光（全量）'!Q29) ->  | Q63: =IF($D$6="","",'②太陽光（全量）'!R29) ->  | R63: =IF($D$6="","",'②太陽光（全量）'!S29) ->  | AF63: =IF($D$3="","",SUM(G63:R63)) ->  | AG63: =IF($D$6="","",SUM('②太陽光（全量）'!H30:S30)) ->  | AH63: =IF($D$6="","",SUM('②太陽光（全量）'!H31:S31)) ->  | AI63: =IF($D$6="","",SUM('②太陽光（全量）'!H32:S32)) ->  | AJ63: =IF($D$6="","",SUM('②太陽光（全量）'!H33:S33)) ->  | AK63: =IF($D$6="","",SUM('②太陽光（全量）'!H34:S34)) ->  | AL63: =IF($D$6="","",SUM('②太陽光（全量）'!H35:S35)) ->  | AM63: =IF($D$6="","",SUM('②太陽光（全量）'!H36:S36)) ->  | AN63: =IF($D$6="","",SUM('②太陽光（全量）'!H37:S37)) ->  | AO63: =IF($D$6="","",SUM('②太陽光（全量）'!H38:S38)) ->  | AT63: 北海道 | AU63: =IFERROR(VLOOKUP($AT63,'③太陽光（余剰）'!$G$44:$S$44,2,FALSE),"") ->  | AV63: =IFERROR(VLOOKUP($AT63,'③太陽光（余剰）'!$G$44:$S$44,3,FALSE),"") ->  | AW63: =IFERROR(VLOOKUP($AT63,'③太陽光（余剰）'!$G$44:$S$44,4,FALSE),"") ->  | AX63: =IFERROR(VLOOKUP($AT63,'③太陽光（余剰）'!$G$44:$S$44,5,FALSE),"") ->  | AY63: =IFERROR(VLOOKUP($AT63,'③太陽光（余剰）'!$G$44:$S$44,6,FALSE),"") ->  | AZ63: =IFERROR(VLOOKUP($AT63,'③太陽光（余剰）'!$G$44:$S$44,7,FALSE),"") ->  | BA63: =IFERROR(VLOOKUP($AT63,'③太陽光（余剰）'!$G$44:$S$44,8,FALSE),"") ->  | BB63: =IFERROR(VLOOKUP($AT63,'③太陽光（余剰）'!$G$44:$S$44,9,FALSE),"") ->  | BC63: =IFERROR(VLOOKUP($AT63,'③太陽光（余剰）'!$G$44:$S$44,10,FALSE),"") ->  | BD63: =IFERROR(VLOOKUP($AT63,'③太陽光（余剰）'!$G$44:$S$44,11,FALSE),"") ->  | BE63: =IFERROR(VLOOKUP($AT63,'③太陽光（余剰）'!$G$44:$S$44,12,FALSE),"") ->  | BF63: =IFERROR(VLOOKUP($AT63,'③太陽光（余剰）'!$G$44:$S$44,13,FALSE),"") -> 
F64: 余剰 | G64: =IF($D$6="","",'③太陽光（余剰）'!H29) ->  | H64: =IF($D$6="","",'③太陽光（余剰）'!I29) ->  | I64: =IF($D$6="","",'③太陽光（余剰）'!J29) ->  | J64: =IF($D$6="","",'③太陽光（余剰）'!K29) ->  | K64: =IF($D$6="","",'③太陽光（余剰）'!L29) ->  | L64: =IF($D$6="","",'③太陽光（余剰）'!M29) ->  | M64: =IF($D$6="","",'③太陽光（余剰）'!N29) ->  | N64: =IF($D$6="","",'③太陽光（余剰）'!O29) ->  | O64: =IF($D$6="","",'③太陽光（余剰）'!P29) ->  | P64: =IF($D$6="","",'③太陽光（余剰）'!Q29) ->  | Q64: =IF($D$6="","",'③太陽光（余剰）'!R29) ->  | R64: =IF($D$6="","",'③太陽光（余剰）'!S29) ->  | AG64: =IF($D$6="","",SUM('③太陽光（余剰）'!H30:S30)) ->  | AH64: =IF($D$6="","",SUM('③太陽光（余剰）'!H31:S31)) ->  | AI64: =IF($D$6="","",SUM('③太陽光（余剰）'!H32:S32)) ->  | AJ64: =IF($D$6="","",SUM('③太陽光（余剰）'!H33:S33)) ->  | AK64: =IF($D$6="","",SUM('③太陽光（余剰）'!H34:S34)) ->  | AL64: =IF($D$6="","",SUM('③太陽光（余剰）'!H35:S35)) ->  | AM64: =IF($D$6="","",SUM('③太陽光（余剰）'!H36:S36)) ->  | AN64: =IF($D$6="","",SUM('③太陽光（余剰）'!H37:S37)) ->  | AO64: =IF($D$6="","",SUM('③太陽光（余剰）'!H38:S38)) ->  | AT64: 東北 | AU64: =IFERROR(VLOOKUP($AT64,'③太陽光（余剰）'!$G$44:$S$44,2,FALSE),"") ->  | AV64: =IFERROR(VLOOKUP($AT64,'③太陽光（余剰）'!$G$44:$S$44,3,FALSE),"") ->  | AW64: =IFERROR(VLOOKUP($AT64,'③太陽光（余剰）'!$G$44:$S$44,4,FALSE),"") ->  | AX64: =IFERROR(VLOOKUP($AT64,'③太陽光（余剰）'!$G$44:$S$44,5,FALSE),"") ->  | AY64: =IFERROR(VLOOKUP($AT64,'③太陽光（余剰）'!$G$44:$S$44,6,FALSE),"") ->  | AZ64: =IFERROR(VLOOKUP($AT64,'③太陽光（余剰）'!$G$44:$S$44,7,FALSE),"") ->  | BA64: =IFERROR(VLOOKUP($AT64,'③太陽光（余剰）'!$G$44:$S$44,8,FALSE),"") ->  | BB64: =IFERROR(VLOOKUP($AT64,'③太陽光（余剰）'!$G$44:$S$44,9,FALSE),"") ->  | BC64: =IFERROR(VLOOKUP($AT64,'③太陽光（余剰）'!$G$44:$S$44,10,FALSE),"") ->  | BD64: =IFERROR(VLOOKUP($AT64,'③太陽光（余剰）'!$G$44:$S$44,11,FALSE),"") ->  | BE64: =IFERROR(VLOOKUP($AT64,'③太陽光（余剰）'!$G$44:$S$44,12,FALSE),"") ->  | BF64: =IFERROR(VLOOKUP($AT64,'③太陽光（余剰）'!$G$44:$S$44,13,FALSE),"") -> 
B65: 小売電気事業者の調達分 | D65: 電力量 | E65: 合計 | G65: =IF(COUNT(G66:G67)=0,"",SUM(G66:G67)) ->  | H65: =IF(COUNT(H66:H67)=0,"",SUM(H66:H67)) ->  | AG65: =IF(COUNT(AG66:AG67)=0,"",SUM(AG66:AG67)) ->  | AH65: =IF(COUNT(AH66:AH67)=0,"",SUM(AH66:AH67)) ->  | AT65: 東京 | AU65: =IFERROR(VLOOKUP($AT65,'③太陽光（余剰）'!$G$44:$S$44,2,FALSE),"") ->  | AV65: =IFERROR(VLOOKUP($AT65,'③太陽光（余剰）'!$G$44:$S$44,3,FALSE),"") ->  | AW65: =IFERROR(VLOOKUP($AT65,'③太陽光（余剰）'!$G$44:$S$44,4,FALSE),"") ->  | AX65: =IFERROR(VLOOKUP($AT65,'③太陽光（余剰）'!$G$44:$S$44,5,FALSE),"") ->  | AY65: =IFERROR(VLOOKUP($AT65,'③太陽光（余剰）'!$G$44:$S$44,6,FALSE),"") ->  | AZ65: =IFERROR(VLOOKUP($AT65,'③太陽光（余剰）'!$G$44:$S$44,7,FALSE),"") ->  | BA65: =IFERROR(VLOOKUP($AT65,'③太陽光（余剰）'!$G$44:$S$44,8,FALSE),"") ->  | BB65: =IFERROR(VLOOKUP($AT65,'③太陽光（余剰）'!$G$44:$S$44,9,FALSE),"") ->  | BC65: =IFERROR(VLOOKUP($AT65,'③太陽光（余剰）'!$G$44:$S$44,10,FALSE),"") ->  | BD65: =IFERROR(VLOOKUP($AT65,'③太陽光（余剰）'!$G$44:$S$44,11,FALSE),"") ->  | BE65: =IFERROR(VLOOKUP($AT65,'③太陽光（余剰）'!$G$44:$S$44,12,FALSE),"") ->  | BF65: =IFERROR(VLOOKUP($AT65,'③太陽光（余剰）'!$G$44:$S$44,13,FALSE),"") -> 
F66: 全量 | G66: =IF(AND(G69="",G72=""),"",SUM(G69,G72)) ->  | H66: =IF(AND(H69="",H72=""),"",SUM(H69,H72)) ->  | AG66: =IF(AND(AG69="",AG72=""),"",SUM(AG69,AG72)) ->  | AH66: =IF(AND(AH69="",AH72=""),"",SUM(AH69,AH72)) ->  | AT66: 中部 | AU66: =IFERROR(VLOOKUP($AT66,'③太陽光（余剰）'!$G$44:$S$44,2,FALSE),"") ->  | AV66: =IFERROR(VLOOKUP($AT66,'③太陽光（余剰）'!$G$44:$S$44,3,FALSE),"") ->  | AW66: =IFERROR(VLOOKUP($AT66,'③太陽光（余剰）'!$G$44:$S$44,4,FALSE),"") ->  | AX66: =IFERROR(VLOOKUP($AT66,'③太陽光（余剰）'!$G$44:$S$44,5,FALSE),"") ->  | AY66: =IFERROR(VLOOKUP($AT66,'③太陽光（余剰）'!$G$44:$S$44,6,FALSE),"") ->  | AZ66: =IFERROR(VLOOKUP($AT66,'③太陽光（余剰）'!$G$44:$S$44,7,FALSE),"") ->  | BA66: =IFERROR(VLOOKUP($AT66,'③太陽光（余剰）'!$G$44:$S$44,8,FALSE),"") ->  | BB66: =IFERROR(VLOOKUP($AT66,'③太陽光（余剰）'!$G$44:$S$44,9,FALSE),"") ->  | BC66: =IFERROR(VLOOKUP($AT66,'③太陽光（余剰）'!$G$44:$S$44,10,FALSE),"") ->  | BD66: =IFERROR(VLOOKUP($AT66,'③太陽光（余剰）'!$G$44:$S$44,11,FALSE),"") ->  | BE66: =IFERROR(VLOOKUP($AT66,'③太陽光（余剰）'!$G$44:$S$44,12,FALSE),"") ->  | BF66: =IFERROR(VLOOKUP($AT66,'③太陽光（余剰）'!$G$44:$S$44,13,FALSE),"") -> 
F67: 余剰 | G67: =IF(AND(G70="",G73=""),"",SUM(G70,G73)) ->  | H67: =IF(AND(H70="",H73=""),"",SUM(H70,H73)) ->  | AG67: =IF(AND(AG70="",AG73=""),"",SUM(AG70,AG73)) ->  | AH67: =IF(AND(AH70="",AH73=""),"",SUM(AH70,AH73)) ->  | AT67: 北陸 | AU67: =IFERROR(VLOOKUP($AT67,'③太陽光（余剰）'!$G$44:$S$44,2,FALSE),"") ->  | AV67: =IFERROR(VLOOKUP($AT67,'③太陽光（余剰）'!$G$44:$S$44,3,FALSE),"") ->  | AW67: =IFERROR(VLOOKUP($AT67,'③太陽光（余剰）'!$G$44:$S$44,4,FALSE),"") ->  | AX67: =IFERROR(VLOOKUP($AT67,'③太陽光（余剰）'!$G$44:$S$44,5,FALSE),"") ->  | AY67: =IFERROR(VLOOKUP($AT67,'③太陽光（余剰）'!$G$44:$S$44,6,FALSE),"") ->  | AZ67: =IFERROR(VLOOKUP($AT67,'③太陽光（余剰）'!$G$44:$S$44,7,FALSE),"") ->  | BA67: =IFERROR(VLOOKUP($AT67,'③太陽光（余剰）'!$G$44:$S$44,8,FALSE),"") ->  | BB67: =IFERROR(VLOOKUP($AT67,'③太陽光（余剰）'!$G$44:$S$44,9,FALSE),"") ->  | BC67: =IFERROR(VLOOKUP($AT67,'③太陽光（余剰）'!$G$44:$S$44,10,FALSE),"") ->  | BD67: =IFERROR(VLOOKUP($AT67,'③太陽光（余剰）'!$G$44:$S$44,11,FALSE),"") ->  | BE67: =IFERROR(VLOOKUP($AT67,'③太陽光（余剰）'!$G$44:$S$44,12,FALSE),"") ->  | BF67: =IFERROR(VLOOKUP($AT67,'③太陽光（余剰）'!$G$44:$S$44,13,FALSE),"") -> 
B68: 内訳 | C68: 非電気→小売 | D68: 電力量 | E68: 合計 | G68: =IF(COUNT(G69:G70)=0,"",SUM(G69:G70)) ->  | H68: =IF(COUNT(H69:H70)=0,"",SUM(H69:H70)) ->  | AG68: =IF(COUNT(AG69:AG70)=0,"",SUM(AG69:AG70)) ->  | AH68: =IF(COUNT(AH69:AH70)=0,"",SUM(AH69:AH70)) ->  | AT68: 関西 | AU68: =IFERROR(VLOOKUP($AT68,'③太陽光（余剰）'!$G$44:$S$44,2,FALSE),"") ->  | AV68: =IFERROR(VLOOKUP($AT68,'③太陽光（余剰）'!$G$44:$S$44,3,FALSE),"") ->  | AW68: =IFERROR(VLOOKUP($AT68,'③太陽光（余剰）'!$G$44:$S$44,4,FALSE),"") ->  | AX68: =IFERROR(VLOOKUP($AT68,'③太陽光（余剰）'!$G$44:$S$44,5,FALSE),"") ->  | AY68: =IFERROR(VLOOKUP($AT68,'③太陽光（余剰）'!$G$44:$S$44,6,FALSE),"") ->  | AZ68: =IFERROR(VLOOKUP($AT68,'③太陽光（余剰）'!$G$44:$S$44,7,FALSE),"") ->  | BA68: =IFERROR(VLOOKUP($AT68,'③太陽光（余剰）'!$G$44:$S$44,8,FALSE),"") ->  | BB68: =IFERROR(VLOOKUP($AT68,'③太陽光（余剰）'!$G$44:$S$44,9,FALSE),"") ->  | BC68: =IFERROR(VLOOKUP($AT68,'③太陽光（余剰）'!$G$44:$S$44,10,FALSE),"") ->  | BD68: =IFERROR(VLOOKUP($AT68,'③太陽光（余剰）'!$G$44:$S$44,11,FALSE),"") ->  | BE68: =IFERROR(VLOOKUP($AT68,'③太陽光（余剰）'!$G$44:$S$44,12,FALSE),"") ->  | BF68: =IFERROR(VLOOKUP($AT68,'③太陽光（余剰）'!$G$44:$S$44,13,FALSE),"") -> 
F69: 全量 | AT69: 中国 | AU69: =IFERROR(VLOOKUP($AT69,'③太陽光（余剰）'!$G$44:$S$44,2,FALSE),"") ->  | AV69: =IFERROR(VLOOKUP($AT69,'③太陽光（余剰）'!$G$44:$S$44,3,FALSE),"") ->  | AW69: =IFERROR(VLOOKUP($AT69,'③太陽光（余剰）'!$G$44:$S$44,4,FALSE),"") ->  | AX69: =IFERROR(VLOOKUP($AT69,'③太陽光（余剰）'!$G$44:$S$44,5,FALSE),"") ->  | AY69: =IFERROR(VLOOKUP($AT69,'③太陽光（余剰）'!$G$44:$S$44,6,FALSE),"") ->  | AZ69: =IFERROR(VLOOKUP($AT69,'③太陽光（余剰）'!$G$44:$S$44,7,FALSE),"") ->  | BA69: =IFERROR(VLOOKUP($AT69,'③太陽光（余剰）'!$G$44:$S$44,8,FALSE),"") ->  | BB69: =IFERROR(VLOOKUP($AT69,'③太陽光（余剰）'!$G$44:$S$44,9,FALSE),"") ->  | BC69: =IFERROR(VLOOKUP($AT69,'③太陽光（余剰）'!$G$44:$S$44,10,FALSE),"") ->  | BD69: =IFERROR(VLOOKUP($AT69,'③太陽光（余剰）'!$G$44:$S$44,11,FALSE),"") ->  | BE69: =IFERROR(VLOOKUP($AT69,'③太陽光（余剰）'!$G$44:$S$44,12,FALSE),"") ->  | BF69: =IFERROR(VLOOKUP($AT69,'③太陽光（余剰）'!$G$44:$S$44,13,FALSE),"") -> 
F70: 余剰 | AT70: 四国 | AU70: =IFERROR(VLOOKUP($AT70,'③太陽光（余剰）'!$G$44:$S$44,2,FALSE),"") ->  | AV70: =IFERROR(VLOOKUP($AT70,'③太陽光（余剰）'!$G$44:$S$44,3,FALSE),"") ->  | AW70: =IFERROR(VLOOKUP($AT70,'③太陽光（余剰）'!$G$44:$S$44,4,FALSE),"") ->  | AX70: =IFERROR(VLOOKUP($AT70,'③太陽光（余剰）'!$G$44:$S$44,5,FALSE),"") ->  | AY70: =IFERROR(VLOOKUP($AT70,'③太陽光（余剰）'!$G$44:$S$44,6,FALSE),"") ->  | AZ70: =IFERROR(VLOOKUP($AT70,'③太陽光（余剰）'!$G$44:$S$44,7,FALSE),"") ->  | BA70: =IFERROR(VLOOKUP($AT70,'③太陽光（余剰）'!$G$44:$S$44,8,FALSE),"") ->  | BB70: =IFERROR(VLOOKUP($AT70,'③太陽光（余剰）'!$G$44:$S$44,9,FALSE),"") ->  | BC70: =IFERROR(VLOOKUP($AT70,'③太陽光（余剰）'!$G$44:$S$44,10,FALSE),"") ->  | BD70: =IFERROR(VLOOKUP($AT70,'③太陽光（余剰）'!$G$44:$S$44,11,FALSE),"") ->  | BE70: =IFERROR(VLOOKUP($AT70,'③太陽光（余剰）'!$G$44:$S$44,12,FALSE),"") ->  | BF70: =IFERROR(VLOOKUP($AT70,'③太陽光（余剰）'!$G$44:$S$44,13,FALSE),"") -> 
C71: 発電→小売 | D71: 電力量 | E71: 合計 | G71: =IF(COUNT(G72:G73)=0,"",SUM(G72:G73)) ->  | H71: =IF(COUNT(H72:H73)=0,"",SUM(H72:H73)) ->  | AG71: =IF(COUNT(AG72:AG73)=0,"",SUM(AG72:AG73)) ->  | AH71: =IF(COUNT(AH72:AH73)=0,"",SUM(AH72:AH73)) ->  | AT71: 九州 | AU71: =IFERROR(VLOOKUP($AT71,'③太陽光（余剰）'!$G$44:$S$44,2,FALSE),"") ->  | AV71: =IFERROR(VLOOKUP($AT71,'③太陽光（余剰）'!$G$44:$S$44,3,FALSE),"") ->  | AW71: =IFERROR(VLOOKUP($AT71,'③太陽光（余剰）'!$G$44:$S$44,4,FALSE),"") ->  | AX71: =IFERROR(VLOOKUP($AT71,'③太陽光（余剰）'!$G$44:$S$44,5,FALSE),"") ->  | AY71: =IFERROR(VLOOKUP($AT71,'③太陽光（余剰）'!$G$44:$S$44,6,FALSE),"") ->  | AZ71: =IFERROR(VLOOKUP($AT71,'③太陽光（余剰）'!$G$44:$S$44,7,FALSE),"") ->  | BA71: =IFERROR(VLOOKUP($AT71,'③太陽光（余剰）'!$G$44:$S$44,8,FALSE),"") ->  | BB71: =IFERROR(VLOOKUP($AT71,'③太陽光（余剰）'!$G$44:$S$44,9,FALSE),"") ->  | BC71: =IFERROR(VLOOKUP($AT71,'③太陽光（余剰）'!$G$44:$S$44,10,FALSE),"") ->  | BD71: =IFERROR(VLOOKUP($AT71,'③太陽光（余剰）'!$G$44:$S$44,11,FALSE),"") ->  | BE71: =IFERROR(VLOOKUP($AT71,'③太陽光（余剰）'!$G$44:$S$44,12,FALSE),"") ->  | BF71: =IFERROR(VLOOKUP($AT71,'③太陽光（余剰）'!$G$44:$S$44,13,FALSE),"") -> 
F72: 全量 | AT72: 沖縄 | AU72: =IFERROR(VLOOKUP($AT72,'③太陽光（余剰）'!$G$44:$S$44,2,FALSE),"") ->  | AV72: =IFERROR(VLOOKUP($AT72,'③太陽光（余剰）'!$G$44:$S$44,3,FALSE),"") ->  | AW72: =IFERROR(VLOOKUP($AT72,'③太陽光（余剰）'!$G$44:$S$44,4,FALSE),"") ->  | AX72: =IFERROR(VLOOKUP($AT72,'③太陽光（余剰）'!$G$44:$S$44,5,FALSE),"") ->  | AY72: =IFERROR(VLOOKUP($AT72,'③太陽光（余剰）'!$G$44:$S$44,6,FALSE),"") ->  | AZ72: =IFERROR(VLOOKUP($AT72,'③太陽光（余剰）'!$G$44:$S$44,7,FALSE),"") ->  | BA72: =IFERROR(VLOOKUP($AT72,'③太陽光（余剰）'!$G$44:$S$44,8,FALSE),"") ->  | BB72: =IFERROR(VLOOKUP($AT72,'③太陽光（余剰）'!$G$44:$S$44,9,FALSE),"") ->  | BC72: =IFERROR(VLOOKUP($AT72,'③太陽光（余剰）'!$G$44:$S$44,10,FALSE),"") ->  | BD72: =IFERROR(VLOOKUP($AT72,'③太陽光（余剰）'!$G$44:$S$44,11,FALSE),"") ->  | BE72: =IFERROR(VLOOKUP($AT72,'③太陽光（余剰）'!$G$44:$S$44,12,FALSE),"") ->  | BF72: =IFERROR(VLOOKUP($AT72,'③太陽光（余剰）'!$G$44:$S$44,13,FALSE),"") -> 
F73: 余剰
B74: 発電事業者の送電分 発電→送配電 | D74: 電力量 | E74: 合計 | G74: =IF(COUNT(G75:G76)=0,"",SUM(G75:G76)) ->  | H74: =IF(COUNT(H75:H76)=0,"",SUM(H75:H76)) ->  | AG74: =IF(COUNT(AG75:AG76)=0,"",SUM(AG75:AG76)) ->  | AH74: =IF(COUNT(AH75:AH76)=0,"",SUM(AH75:AH76)) -> 
F75: 全量
F76: 余剰
B77: 一般送配電想定との差分 | D77: 電力量 | E77: 合計 | G77: =IF(COUNT(G78:G79)=0,"",SUM(G78:G79)) ->  | H77: =IF(COUNT(H78:H79)=0,"",SUM(H78:H79)) ->  | AG77: =IF(COUNT(AG78:AG79)=0,"",SUM(AG78:AG79)) ->  | AH77: =IF(COUNT(AH78:AH79)=0,"",SUM(AH78:AH79)) -> 
F78: 全量 | G78: =IF(AND(G63="",G66="",G75=""),"",SUM(G63)-SUM(G66)-SUM(G75)) ->  | H78: =IF(AND(H63="",H66="",H75=""),"",SUM(H63)-SUM(H66)-SUM(H75)) ->  | AG78: =IF(AND(AG63="",AG66="",AG75=""),"",SUM(AG63)-SUM(AG66)-SUM(AG75)) ->  | AH78: =IF(AND(AH63="",AH66="",AH75=""),"",SUM(AH63)-SUM(AH66)-SUM(AH75)) -> 
F79: 余剰 | G79: =IF(AND(G64="",G67="",G76=""),"",SUM(G64)-SUM(G67)-SUM(G76)) ->  | H79: =IF(AND(H64="",H67="",H76=""),"",SUM(H64)-SUM(H67)-SUM(H76)) ->  | AG79: =IF(AND(AG64="",AG67="",AG76=""),"",SUM(AG64)-SUM(AG67)-SUM(AG76)) ->  | AH79: =IF(AND(AH64="",AH67="",AH76=""),"",SUM(AH64)-SUM(AH67)-SUM(AH76)) -> 

Sheet 補正（太陽光）指定２ (hidden)
A1: 太陽光補正シート
N2: 記載要領
A3: 供給区域 | B3: =IF('補正（ｋW）指定１'!$C$2="","",'補正（ｋW）指定１'!$C$2) ->  | C3: エリア | D3: =IF(B3="北海道",1,IF(B3="東北",2,IF(B3="","","作成不要"))) ->  | H3: 入力箇所 | J3: リンク箇所 | L3: 自動計算 | N3: ・エリア想定欄には、エリア全体（発電・小売分を含む）の設備量想定値を記載。尚、マクロ想定を行っていない項目は個別積み上げ値を記載。 | AS3: 調整係数（%)
N4: ・「小売電気事業者の調達分欄」への記載は、小売調達分及び発電余力を記載（送配電への販売分は記載しない）。 | AS4: =G7 -> 2024-01-01 | BH4: =AS4+366 -> 2025-01-01 | BW4: =BH4+365 -> 2026-01-01 | CA4: =BW4+365 -> 2027-01-01 | CE4: =CA4+365 -> 2028-01-01 | CI4: =CE4+366 -> 2029-01-01 | CM4: =CI4+366 -> 2030-01-02 | CQ4: =CM4+366 -> 2031-01-03 | CU4: =CQ4+366 -> 2032-01-04 | CY4: =CU4+366 -> 2033-01-04
AS5: 全量（沖縄エリアのみ） | BH5: 全量（沖縄エリアのみ） | BW5: 全量（沖縄エリアのみ） | CA5: 全量（沖縄エリアのみ） | CE5: 全量（沖縄エリアのみ） | CI5: 全量（沖縄エリアのみ） | CM5: 全量（沖縄エリアのみ） | CQ5: 全量（沖縄エリアのみ） | CU5: 全量（沖縄エリアのみ） | CY5: 全量（沖縄エリアのみ）
A6: 受電取引帳票転記フォーマット | D6: =IF('補正（太陽光）指定１'!D6="","",'補正（太陽光）指定１'!D6) ->  | E6: 方式選択 | G6: Ⅰ：各月の設備量を反映 Ⅱ：当月と前月を比較し、少ない月の設備量を反映 | AF6: ※補正（太陽光）指定１に自動転記 | AU6: 4月 | AV6: 5月 | AW6: 6月 | AX6: 7月 | AY6: 8月 | AZ6: 9月 | BA6: 10月 | BB6: 11月 | BC6: 12月 | BD6: 1月 | BE6: 2月 | BF6: 3月 | BJ6: 4月 | BK6: 5月 | BL6: 6月 | BM6: 7月 | BN6: 8月 | BO6: 9月 | BP6: 10月 | BQ6: 11月 | BR6: 12月 | BS6: 1月 | BT6: 2月 | BU6: 3月 | BY6: 1月 | CC6: 1月 | CG6: 1月 | CK6: 1月 | CO6: 1月 | CS6: 1月 | CW6: 1月 | DA6: 1月
A7: 項目 | G7: ='補正（ｋW）指定１'!E6 -> 2024-01-01 | S7: ='補正（ｋW）指定１'!Q6 -> 2025-01-01 | AE7: 項目 | AF7: =G7 -> 2024-01-01 | AG7: =S7 -> 2025-01-01 | AH7: ='補正（太陽光）指定１'!AH7:AH8 -> 2026-01-02 | AI7: ='補正（太陽光）指定１'!AI7:AI8 -> 2027-01-03 | AJ7: ='補正（太陽光）指定１'!AJ7:AJ8 -> 2028-01-04 | AK7: ='補正（太陽光）指定１'!AK7:AK8 -> 2029-01-04 | AL7: ='補正（太陽光）指定１'!AL7:AL8 -> 2030-01-05 | AM7: ='補正（太陽光）指定１'!AM7:AM8 -> 2031-01-06 | AN7: ='補正（太陽光）指定１'!AN7:AN8 -> 2032-01-07 | AO7: ='補正（太陽光）指定１'!AO7:AO8 -> 2033-01-07 | AP7: 備考 （上中段：種別、下段：備考） | AS7: 1 | AT7: 北海道 | AU7: ='補正（太陽光）指定１'!AU7 -> 1.2 | AV7: ='補正（太陽光）指定１'!AV7 -> 4.1 | AW7: ='補正（太陽光）指定１'!AW7 -> 6.7 | AX7: ='補正（太陽光）指定１'!AX7 -> 9.1 | AY7: ='補正（太陽光）指定１'!AY7 -> 9 | AZ7: ='補正（太陽光）指定１'!AZ7 -> 3.9 | BA7: ='補正（太陽光）指定１'!BA7 -> 0.8 | BB7: ='補正（太陽光）指定１'!BB7 -> 0.6 | BC7: ='補正（太陽光）指定１'!BC7 -> 0.5 | BD7: ='補正（太陽光）指定１'!BD7 -> 1.3 | BE7: ='補正（太陽光）指定１'!BE7 -> 1.3 | BF7: ='補正（太陽光）指定１'!BF7 -> 1 | BH7: 1 | BI7: 北海道 | BJ7: ='補正（太陽光）指定１'!BJ7 -> 1.3 | BK7: ='補正（太陽光）指定１'!BK7 -> 4.1 | BL7: ='補正（太陽光）指定１'!BL7 -> 6.8 | BM7: ='補正（太陽光）指定１'!BM7 -> 9.1 | BN7: ='補正（太陽光）指定１'!BN7 -> 8.6 | BO7: ='補正（太陽光）指定１'!BO7 -> 4.1 | BP7: ='補正（太陽光）指定１'!BP7 -> 1 | BQ7: ='補正（太陽光）指定１'!BQ7 -> 0.5 | BR7: ='補正（太陽光）指定１'!BR7 -> 0.5 | BS7: ='補正（太陽光）指定１'!BS7 -> 1.3 | BT7: ='補正（太陽光）指定１'!BT7 -> 1.3 | BU7: ='補正（太陽光）指定１'!BU7 -> 1 | BW7: 1 | BX7: 北海道 | BY7: 1.1 | CA7: 1 | CB7: 北海道 | CC7: 1.2 | CE7: 1 | CF7: 北海道 | CG7: 1.2 | CI7: 1 | CJ7: 北海道 | CK7: 1 | CM7: 1 | CN7: 北海道 | CO7: 1 | CQ7: 1 | CR7: 北海道 | CS7: 0.9 | CU7: 1 | CV7: 北海道 | CW7: 0.9 | CY7: 1 | CZ7: 北海道 | DA7: 0.9
G8: 4月 | H8: 5月 | I8: 6月 | J8: 7月 | K8: 8月 | L8: 9月 | M8: 10月 | N8: 11月 | O8: 12月 | P8: 1月 | Q8: 2月 | R8: 3月 | S8: 4月 | T8: 5月 | U8: 6月 | V8: 7月 | W8: 8月 | X8: 9月 | Y8: 10月 | Z8: 11月 | AA8: 12月 | AB8: 1月 | AC8: 2月 | AD8: 3月 | AS8: 2 | AT8: 東北 | AU8: ='補正（太陽光）指定１'!AU8 -> 3.2 | AV8: ='補正（太陽光）指定１'!AV8 -> 17.2 | AW8: ='補正（太陽光）指定１'!AW8 -> 20.6 | AX8: ='補正（太陽光）指定１'!AX8 -> 21 | AY8: ='補正（太陽光）指定１'!AY8 -> 25.9 | AZ8: ='補正（太陽光）指定１'!AZ8 -> 16.2 | BA8: ='補正（太陽光）指定１'!BA8 -> 11.7 | BB8: ='補正（太陽光）指定１'!BB8 -> 1.5 | BC8: ='補正（太陽光）指定１'!BC8 -> 1.5 | BD8: ='補正（太陽光）指定１'!BD8 -> 3.9 | BE8: ='補正（太陽光）指定１'!BE8 -> 1.6 | BF8: ='補正（太陽光）指定１'!BF8 -> 2.3 | BH8: 2 | BI8: 東北 | BJ8: ='補正（太陽光）指定１'!BJ8 -> 3.1 | BK8: ='補正（太陽光）指定１'!BK8 -> 16.7 | BL8: ='補正（太陽光）指定１'!BL8 -> 20.2 | BM8: ='補正（太陽光）指定１'!BM8 -> 20.2 | BN8: ='補正（太陽光）指定１'!BN8 -> 25.3 | BO8: ='補正（太陽光）指定１'!BO8 -> 16 | BP8: ='補正（太陽光）指定１'!BP8 -> 10.7 | BQ8: ='補正（太陽光）指定１'!BQ8 -> 1.2 | BR8: ='補正（太陽光）指定１'!BR8 -> 1.5 | BS8: ='補正（太陽光）指定１'!BS8 -> 3.9 | BT8: ='補正（太陽光）指定１'!BT8 -> 1.6 | BU8: ='補正（太陽光）指定１'!BU8 -> 2.2 | BW8: 2 | BX8: 東北 | BY8: 3.6 | CA8: 2 | CB8: 東北 | CC8: 3.6 | CE8: 2 | CF8: 東北 | CG8: 3.4 | CI8: 2 | CJ8: 東北 | CK8: 3.4 | CM8: 2 | CN8: 東北 | CO8: 3.3 | CQ8: 2 | CR8: 東北 | CS8: 3.5 | CU8: 2 | CV8: 東北 | CW8: 3.5 | CY8: 2 | CZ8: 東北 | DA8: 3.5
A9: 全量 | B9: 調達電力（MW） | AE9: 8月電力 | AP9: 太陽光（全量） | AS9: 3 | AT9: 東京 | AU9: ='補正（太陽光）指定１'!AU9 -> 1.5 | AV9: ='補正（太陽光）指定１'!AV9 -> 12.7 | AW9: ='補正（太陽光）指定１'!AW9 -> 15.5 | AX9: ='補正（太陽光）指定１'!AX9 -> 23.2 | AY9: ='補正（太陽光）指定１'!AY9 -> 25.9 | AZ9: ='補正（太陽光）指定１'!AZ9 -> 15.6 | BA9: ='補正（太陽光）指定１'!BA9 -> 7.8 | BB9: ='補正（太陽光）指定１'!BB9 -> 0.5 | BC9: ='補正（太陽光）指定１'!BC9 -> 0.9 | BD9: ='補正（太陽光）指定１'!BD9 -> 2.4 | BE9: ='補正（太陽光）指定１'!BE9 -> 0.9 | BF9: ='補正（太陽光）指定１'!BF9 -> 0.9 | BH9: 3 | BI9: 東京 | BJ9: ='補正（太陽光）指定１'!BJ9 -> 1.4 | BK9: ='補正（太陽光）指定１'!BK9 -> 12.2 | BL9: ='補正（太陽光）指定１'!BL9 -> 14.9 | BM9: ='補正（太陽光）指定１'!BM9 -> 22.4 | BN9: ='補正（太陽光）指定１'!BN9 -> 25.1 | BO9: ='補正（太陽光）指定１'!BO9 -> 15.4 | BP9: ='補正（太陽光）指定１'!BP9 -> 7 | BQ9: ='補正（太陽光）指定１'!BQ9 -> 0.4 | BR9: ='補正（太陽光）指定１'!BR9 -> 0.9 | BS9: ='補正（太陽光）指定１'!BS9 -> 2.3 | BT9: ='補正（太陽光）指定１'!BT9 -> 0.9 | BU9: ='補正（太陽光）指定１'!BU9 -> 0.9 | BW9: 3 | BX9: 東京 | CA9: 3 | CB9: 東京 | CE9: 3 | CF9: 東京 | CI9: 3 | CJ9: 東京 | CM9: 3 | CN9: 東京 | CQ9: 3 | CR9: 東京 | CU9: 3 | CV9: 東京 | CY9: 3 | CZ9: 東京
AE10: 1月電力 | AF10: =IF(AF60="","",AF60) ->  | AG10: =IF(AG60="","",AG60) ->  | AH10: =IF(AH60="","",ROUND(AH60,1)) ->  | AI10: =IF(AI60="","",ROUND(AI60,1)) ->  | AP10: 太陽光（全量） | AS10: 4 | AT10: 中部 | AU10: ='補正（太陽光）指定１'!AU10 -> 4.2 | AV10: ='補正（太陽光）指定１'!AV10 -> 16 | AW10: ='補正（太陽光）指定１'!AW10 -> 18.6 | AX10: ='補正（太陽光）指定１'!AX10 -> 22.8 | AY10: ='補正（太陽光）指定１'!AY10 -> 28.7 | AZ10: ='補正（太陽光）指定１'!AZ10 -> 17.1 | BA10: ='補正（太陽光）指定１'!BA10 -> 10.1 | BB10: ='補正（太陽光）指定１'!BB10 -> 0.4 | BC10: ='補正（太陽光）指定１'!BC10 -> 4.9 | BD10: ='補正（太陽光）指定１'!BD10 -> 6.6 | BE10: ='補正（太陽光）指定１'!BE10 -> 2.8 | BF10: ='補正（太陽光）指定１'!BF10 -> 2 | BH10: 4 | BI10: 中部 | BJ10: ='補正（太陽光）指定１'!BJ10 -> 4 | BK10: ='補正（太陽光）指定１'!BK10 -> 15.3 | BL10: ='補正（太陽光）指定１'!BL10 -> 18 | BM10: ='補正（太陽光）指定１'!BM10 -> 21.9 | BN10: ='補正（太陽光）指定１'!BN10 -> 30.6 | BO10: ='補正（太陽光）指定１'!BO10 -> 16.4 | BP10: ='補正（太陽光）指定１'!BP10 -> 9.5 | BQ10: ='補正（太陽光）指定１'!BQ10 -> 0.4 | BR10: ='補正（太陽光）指定１'!BR10 -> 4.8 | BS10: ='補正（太陽光）指定１'!BS10 -> 6.4 | BT10: ='補正（太陽光）指定１'!BT10 -> 2.8 | BU10: ='補正（太陽光）指定１'!BU10 -> 1.9 | BW10: 4 | BX10: 中部 | CA10: 4 | CB10: 中部 | CE10: 4 | CF10: 中部 | CI10: 4 | CJ10: 中部 | CM10: 4 | CN10: 中部 | CQ10: 4 | CR10: 中部 | CU10: 4 | CV10: 中部 | CY10: 4 | CZ10: 中部
B11: 月間調達電力量（GWh） | AE11: 年間電力量 | AS11: 5 | AT11: 北陸 | AU11: ='補正（太陽光）指定１'!AU11 -> 7.6 | AV11: ='補正（太陽光）指定１'!AV11 -> 23.6 | AW11: ='補正（太陽光）指定１'!AW11 -> 27.5 | AX11: ='補正（太陽光）指定１'!AX11 -> 30.7 | AY11: ='補正（太陽光）指定１'!AY11 -> 35.8 | AZ11: ='補正（太陽光）指定１'!AZ11 -> 19.5 | BA11: ='補正（太陽光）指定１'!BA11 -> 14.4 | BB11: ='補正（太陽光）指定１'!BB11 -> 0.7 | BC11: ='補正（太陽光）指定１'!BC11 -> 2.7 | BD11: ='補正（太陽光）指定１'!BD11 -> 2.1 | BE11: ='補正（太陽光）指定１'!BE11 -> 1.2 | BF11: ='補正（太陽光）指定１'!BF11 -> 3.6 | BH11: 5 | BI11: 北陸 | BJ11: ='補正（太陽光）指定１'!BJ11 -> 7.5 | BK11: ='補正（太陽光）指定１'!BK11 -> 23 | BL11: ='補正（太陽光）指定１'!BL11 -> 26.9 | BM11: ='補正（太陽光）指定１'!BM11 -> 29.9 | BN11: ='補正（太陽光）指定１'!BN11 -> 36.1 | BO11: ='補正（太陽光）指定１'!BO11 -> 19.2 | BP11: ='補正（太陽光）指定１'!BP11 -> 14.1 | BQ11: ='補正（太陽光）指定１'!BQ11 -> 0.7 | BR11: ='補正（太陽光）指定１'!BR11 -> 2.7 | BS11: ='補正（太陽光）指定１'!BS11 -> 2 | BT11: ='補正（太陽光）指定１'!BT11 -> 1.2 | BU11: ='補正（太陽光）指定１'!BU11 -> 3.7 | BW11: 5 | BX11: 北陸 | CA11: 5 | CB11: 北陸 | CE11: 5 | CF11: 北陸 | CI11: 5 | CJ11: 北陸 | CM11: 5 | CN11: 北陸 | CQ11: 5 | CR11: 北陸 | CU11: 5 | CV11: 北陸 | CY11: 5 | CZ11: 北陸
AS12: 6 | AT12: 関西 | AU12: ='補正（太陽光）指定１'!AU12 -> 4.5 | AV12: ='補正（太陽光）指定１'!AV12 -> 16.5 | AW12: ='補正（太陽光）指定１'!AW12 -> 18.6 | AX12: ='補正（太陽光）指定１'!AX12 -> 24.4 | AY12: ='補正（太陽光）指定１'!AY12 -> 27.6 | AZ12: ='補正（太陽光）指定１'!AZ12 -> 17.5 | BA12: ='補正（太陽光）指定１'!BA12 -> 10.5 | BB12: ='補正（太陽光）指定１'!BB12 -> 0.4 | BC12: ='補正（太陽光）指定１'!BC12 -> 4.1 | BD12: ='補正（太陽光）指定１'!BD12 -> 5.1 | BE12: ='補正（太陽光）指定１'!BE12 -> 2.7 | BF12: ='補正（太陽光）指定１'!BF12 -> 2.3 | BH12: 6 | BI12: 関西 | BJ12: ='補正（太陽光）指定１'!BJ12 -> 4.5 | BK12: ='補正（太陽光）指定１'!BK12 -> 16.1 | BL12: ='補正（太陽光）指定１'!BL12 -> 18.3 | BM12: ='補正（太陽光）指定１'!BM12 -> 23.8 | BN12: ='補正（太陽光）指定１'!BN12 -> 28.5 | BO12: ='補正（太陽光）指定１'!BO12 -> 17.2 | BP12: ='補正（太陽光）指定１'!BP12 -> 10.2 | BQ12: ='補正（太陽光）指定１'!BQ12 -> 0.4 | BR12: ='補正（太陽光）指定１'!BR12 -> 4.1 | BS12: ='補正（太陽光）指定１'!BS12 -> 5 | BT12: ='補正（太陽光）指定１'!BT12 -> 2.7 | BU12: ='補正（太陽光）指定１'!BU12 -> 2.3 | BW12: 6 | BX12: 関西 | CA12: 6 | CB12: 関西 | CE12: 6 | CF12: 関西 | CI12: 6 | CJ12: 関西 | CM12: 6 | CN12: 関西 | CQ12: 6 | CR12: 関西 | CU12: 6 | CV12: 関西 | CY12: 6 | CZ12: 関西
A13: 項目 | G13: =G7 -> 2024-01-01 | S13: =S7 -> 2025-01-01 | AE13: 項目 | AF13: =AF7 -> 2024-01-01 | AG13: =AG7 -> 2025-01-01 | AH13: =AH7 -> 2026-01-02 | AI13: =AI7 -> 2027-01-03 | AJ13: 2028-01-04 | AK13: 2029-01-04 | AL13: 2030-01-05 | AM13: 2031-01-06 | AN13: 2032-01-07 | AO13: 2033-01-07 | AP13: 備考 （上中段：種別、下段：備考） | AS13: 7 | AT13: 中国 | AU13: ='補正（太陽光）指定１'!AU13 -> 3.2 | AV13: ='補正（太陽光）指定１'!AV13 -> 18.4 | AW13: ='補正（太陽光）指定１'!AW13 -> 17.6 | AX13: ='補正（太陽光）指定１'!AX13 -> 27.6 | AY13: ='補正（太陽光）指定１'!AY13 -> 29.7 | AZ13: ='補正（太陽光）指定１'!AZ13 -> 17.2 | BA13: ='補正（太陽光）指定１'!BA13 -> 11.2 | BB13: ='補正（太陽光）指定１'!BB13 -> 0.4 | BC13: ='補正（太陽光）指定１'!BC13 -> 4 | BD13: ='補正（太陽光）指定１'!BD13 -> 5.5 | BE13: ='補正（太陽光）指定１'!BE13 -> 2.5 | BF13: ='補正（太陽光）指定１'!BF13 -> 2.2 | BH13: 7 | BI13: 中国 | BJ13: ='補正（太陽光）指定１'!BJ13 -> 3.2 | BK13: ='補正（太陽光）指定１'!BK13 -> 18.1 | BL13: ='補正（太陽光）指定１'!BL13 -> 16.9 | BM13: ='補正（太陽光）指定１'!BM13 -> 27 | BN13: ='補正（太陽光）指定１'!BN13 -> 30.1 | BO13: ='補正（太陽光）指定１'!BO13 -> 16.7 | BP13: ='補正（太陽光）指定１'!BP13 -> 10.8 | BQ13: ='補正（太陽光）指定１'!BQ13 -> 0.4 | BR13: ='補正（太陽光）指定１'!BR13 -> 4 | BS13: ='補正（太陽光）指定１'!BS13 -> 5.3 | BT13: ='補正（太陽光）指定１'!BT13 -> 2.5 | BU13: ='補正（太陽光）指定１'!BU13 -> 2.1 | BW13: 7 | BX13: 中国 | CA13: 7 | CB13: 中国 | CE13: 7 | CF13: 中国 | CI13: 7 | CJ13: 中国 | CM13: 7 | CN13: 中国 | CQ13: 7 | CR13: 中国 | CU13: 7 | CV13: 中国 | CY13: 7 | CZ13: 中国
G14: =G8 -> 4月 | H14: =H8 -> 5月 | I14: 6月 | J14: 7月 | K14: 8月 | L14: 9月 | M14: 10月 | N14: 11月 | O14: 12月 | P14: 1月 | Q14: 2月 | R14: 3月 | S14: =S8 -> 4月 | T14: =T8 -> 5月 | U14: 6月 | V14: 7月 | W14: 8月 | X14: 9月 | Y14: 10月 | Z14: 11月 | AA14: 12月 | AB14: 1月 | AC14: 2月 | AD14: 3月 | AS14: 8 | AT14: 四国 | AU14: ='補正（太陽光）指定１'!AU14 -> 4.4 | AV14: ='補正（太陽光）指定１'!AV14 -> 20.8 | AW14: ='補正（太陽光）指定１'!AW14 -> 19.6 | AX14: ='補正（太陽光）指定１'!AX14 -> 29.7 | AY14: ='補正（太陽光）指定１'!AY14 -> 32.8 | AZ14: ='補正（太陽光）指定１'!AZ14 -> 20.6 | BA14: ='補正（太陽光）指定１'!BA14 -> 14 | BB14: ='補正（太陽光）指定１'!BB14 -> 0.5 | BC14: ='補正（太陽光）指定１'!BC14 -> 5 | BD14: ='補正（太陽光）指定１'!BD14 -> 6.7 | BE14: ='補正（太陽光）指定１'!BE14 -> 3.3 | BF14: ='補正（太陽光）指定１'!BF14 -> 3 | BH14: 8 | BI14: 四国 | BJ14: ='補正（太陽光）指定１'!BJ14 -> 4.4 | BK14: ='補正（太陽光）指定１'!BK14 -> 20.7 | BL14: ='補正（太陽光）指定１'!BL14 -> 19.3 | BM14: ='補正（太陽光）指定１'!BM14 -> 29.5 | BN14: ='補正（太陽光）指定１'!BN14 -> 33.6 | BO14: ='補正（太陽光）指定１'!BO14 -> 20.3 | BP14: ='補正（太陽光）指定１'!BP14 -> 13.5 | BQ14: ='補正（太陽光）指定１'!BQ14 -> 0.5 | BR14: ='補正（太陽光）指定１'!BR14 -> 5.1 | BS14: ='補正（太陽光）指定１'!BS14 -> 6.6 | BT14: ='補正（太陽光）指定１'!BT14 -> 3.2 | BU14: ='補正（太陽光）指定１'!BU14 -> 3 | BW14: 8 | BX14: 四国 | CA14: 8 | CB14: 四国 | CE14: 8 | CF14: 四国 | CI14: 8 | CJ14: 四国 | CM14: 8 | CN14: 四国 | CQ14: 8 | CR14: 四国 | CU14: 8 | CV14: 四国 | CY14: 8 | CZ14: 四国
A15: 余剰 | B15: 調達電力（MW） | AE15: 8月電力 | AP15: 太陽光（余剰） | AS15: 9 | AT15: 九州 | AU15: ='補正（太陽光）指定１'!AU15 -> 0.8 | AV15: ='補正（太陽光）指定１'!AV15 -> 7.4 | AW15: ='補正（太陽光）指定１'!AW15 -> 9.3 | AX15: ='補正（太陽光）指定１'!AX15 -> 14.1 | AY15: ='補正（太陽光）指定１'!AY15 -> 13.8 | AZ15: ='補正（太陽光）指定１'!AZ15 -> 9.9 | BA15: ='補正（太陽光）指定１'!BA15 -> 5.9 | BB15: ='補正（太陽光）指定１'!BB15 -> 0.2 | BC15: ='補正（太陽光）指定１'!BC15 -> 1.5 | BD15: ='補正（太陽光）指定１'!BD15 -> 3 | BE15: ='補正（太陽光）指定１'!BE15 -> 1.1 | BF15: ='補正（太陽光）指定１'!BF15 -> 0.8 | BH15: 9 | BI15: 九州 | BJ15: ='補正（太陽光）指定１'!BJ15 -> 0.9 | BK15: ='補正（太陽光）指定１'!BK15 -> 6.7 | BL15: ='補正（太陽光）指定１'!BL15 -> 8.7 | BM15: ='補正（太陽光）指定１'!BM15 -> 13.3 | BN15: ='補正（太陽光）指定１'!BN15 -> 13.2 | BO15: ='補正（太陽光）指定１'!BO15 -> 9.4 | BP15: ='補正（太陽光）指定１'!BP15 -> 5.4 | BQ15: ='補正（太陽光）指定１'!BQ15 -> 0.2 | BR15: ='補正（太陽光）指定１'!BR15 -> 1.4 | BS15: ='補正（太陽光）指定１'!BS15 -> 2.8 | BT15: ='補正（太陽光）指定１'!BT15 -> 1.1 | BU15: ='補正（太陽光）指定１'!BU15 -> 0.7 | BW15: 9 | BX15: 九州 | CA15: 9 | CB15: 九州 | CE15: 9 | CF15: 九州 | CI15: 9 | CJ15: 九州 | CM15: 9 | CN15: 九州 | CQ15: 9 | CR15: 九州 | CU15: 9 | CV15: 九州 | CY15: 9 | CZ15: 九州
AE16: 1月電力 | AF16: =IF(AF61="","",AF61) ->  | AG16: =IF(AG61="","",AG61) ->  | AH16: =IF(AH61="","",ROUND(AH61,1)) ->  | AI16: =IF(AI61="","",ROUND(AI61,1)) ->  | AP16: 太陽光（余剰） | AS16: 10 | AT16: 沖縄 | AU16: ='補正（太陽光）指定１'!AU16 -> 0 | AV16: ='補正（太陽光）指定１'!AV16 -> 8.2 | AW16: ='補正（太陽光）指定１'!AW16 -> 23.5 | AX16: ='補正（太陽光）指定１'!AX16 -> 24.4 | AY16: ='補正（太陽光）指定１'!AY16 -> 36.2 | AZ16: ='補正（太陽光）指定１'!AZ16 -> 29.3 | BA16: ='補正（太陽光）指定１'!BA16 -> 11.9 | BB16: ='補正（太陽光）指定１'!BB16 -> 0 | BC16: ='補正（太陽光）指定１'!BC16 -> 0 | BD16: ='補正（太陽光）指定１'!BD16 -> 0 | BE16: ='補正（太陽光）指定１'!BE16 -> 0 | BF16: ='補正（太陽光）指定１'!BF16 -> 0 | BH16: 10 | BI16: 沖縄 | BJ16: ='補正（太陽光）指定１'!BJ16 -> 0.9 | BK16: ='補正（太陽光）指定１'!BK16 -> 6.7 | BL16: ='補正（太陽光）指定１'!BL16 -> 8.7 | BM16: ='補正（太陽光）指定１'!BM16 -> 13.3 | BN16: ='補正（太陽光）指定１'!BN16 -> 13.2 | BO16: ='補正（太陽光）指定１'!BO16 -> 9.4 | BP16: ='補正（太陽光）指定１'!BP16 -> 5.4 | BQ16: ='補正（太陽光）指定１'!BQ16 -> 0.2 | BR16: ='補正（太陽光）指定１'!BR16 -> 1.4 | BS16: ='補正（太陽光）指定１'!BS16 -> 2.8 | BT16: ='補正（太陽光）指定１'!BT16 -> 1.1 | BU16: ='補正（太陽光）指定１'!BU16 -> 0.7 | BW16: 10 | BX16: 沖縄 | CA16: 10 | CB16: 沖縄 | CE16: 10 | CF16: 沖縄 | CI16: 10 | CJ16: 沖縄 | CM16: 10 | CN16: 沖縄 | CQ16: 10 | CR16: 沖縄 | CU16: 10 | CV16: 沖縄 | CY16: 10 | CZ16: 沖縄
B17: 月間調達電力量（GWh） | AE17: 年間電力量 | AU17: 3 | AV17: 4 | AW17: 5 | AX17: 6 | AY17: 7 | AZ17: 8 | BA17: 9 | BB17: 10 | BC17: 11 | BD17: 12 | BE17: 13 | BF17: 14 | BJ17: 3 | BK17: 4 | BL17: 5 | BM17: 6 | BN17: 7 | BO17: 8 | BP17: 9 | BQ17: 10 | BR17: 11 | BS17: 12 | BT17: 13 | BU17: 14 | BY17: 3 | CC17: 3 | CG17: 3 | CK17: 3 | CO17: 3 | CS17: 3 | CW17: 3 | DA17: 3
AS19: 余剰（沖縄エリアのみ） ※該当エリアの自家消費率分を減じた値 | BH19: 余剰（沖縄エリアのみ） ※該当エリアの自家消費率分を減じた値 | BW19: 余剰（沖縄エリアのみ）※ | CA19: 余剰（沖縄エリアのみ）※ | CE19: 余剰（沖縄エリアのみ）※ | CI19: 余剰（沖縄エリアのみ）※ | CM19: 余剰（沖縄エリアのみ）※ | CQ19: 余剰（沖縄エリアのみ）※ | CU19: 余剰（沖縄エリアのみ）※ | CY19: 余剰（沖縄エリアのみ）※
AU20: 4月 | AV20: 5月 | AW20: 6月 | AX20: 7月 | AY20: 8月 | AZ20: 9月 | BA20: 10月 | BB20: 11月 | BC20: 12月 | BD20: 1月 | BE20: 2月 | BF20: 3月 | BJ20: 4月 | BK20: 5月 | BL20: 6月 | BM20: 7月 | BN20: 8月 | BO20: 9月 | BP20: 10月 | BQ20: 11月 | BR20: 12月 | BS20: 1月 | BT20: 2月 | BU20: 3月 | BY20: 1月 | CC20: 1月 | CG20: 1月 | CK20: 1月 | CO20: 1月 | CS20: 1月 | CW20: 1月 | DA20: 1月
A21: 太陽光（指定２） | AS21: 1 | AT21: 北海道 | AU21: ='補正（太陽光）指定１'!AU21 -> 1.2 | AV21: ='補正（太陽光）指定１'!AV21 -> 4.1 | AW21: ='補正（太陽光）指定１'!AW21 -> 6.7 | AX21: ='補正（太陽光）指定１'!AX21 -> 9.1 | AY21: ='補正（太陽光）指定１'!AY21 -> 9 | AZ21: ='補正（太陽光）指定１'!AZ21 -> 3.9 | BA21: ='補正（太陽光）指定１'!BA21 -> 0.8 | BB21: ='補正（太陽光）指定１'!BB21 -> 0.6 | BC21: ='補正（太陽光）指定１'!BC21 -> 0.5 | BD21: ='補正（太陽光）指定１'!BD21 -> 1.3 | BE21: ='補正（太陽光）指定１'!BE21 -> 1.3 | BF21: ='補正（太陽光）指定１'!BF21 -> 1 | BH21: 1 | BI21: 北海道 | BJ21: ='補正（太陽光）指定１'!BJ21 -> 1.3 | BK21: ='補正（太陽光）指定１'!BK21 -> 4.1 | BL21: ='補正（太陽光）指定１'!BL21 -> 6.8 | BM21: ='補正（太陽光）指定１'!BM21 -> 9.1 | BN21: ='補正（太陽光）指定１'!BN21 -> 8.6 | BO21: ='補正（太陽光）指定１'!BO21 -> 4.1 | BP21: ='補正（太陽光）指定１'!BP21 -> 1 | BQ21: ='補正（太陽光）指定１'!BQ21 -> 0.5 | BR21: ='補正（太陽光）指定１'!BR21 -> 0.5 | BS21: ='補正（太陽光）指定１'!BS21 -> 1.3 | BT21: ='補正（太陽光）指定１'!BT21 -> 1.3 | BU21: ='補正（太陽光）指定１'!BU21 -> 1 | BW21: 1 | BX21: 北海道 | BY21: =IFERROR(BY7*(1-BD63),BY7) -> 1.1 | CA21: 1 | CB21: 北海道 | CC21: =IFERROR(CC7*(1-BD63),CC7) -> 1.2 | CE21: 1 | CF21: 北海道 | CG21: =IFERROR(CG7*(1-BD63),CG7) -> 1.2 | CI21: 1 | CJ21: 北海道 | CK21: =IFERROR(CK7*(1-BD63),CK7) -> 1 | CM21: 1 | CN21: 北海道 | CO21: =IFERROR(CO7*(1-BD63),CO7) -> 1 | CQ21: 1 | CR21: 北海道 | CS21: =IFERROR(CS7*(1-BD63),CS7) -> 0.9 | CU21: 1 | CV21: 北海道 | CW21: =IFERROR(CW7*(1-BD63),CW7) -> 0.9 | CY21: 1 | CZ21: 北海道 | DA21: =IFERROR(DA7*(1-BD63),DA7) -> 0.9
A22: 項目 | G22: =G7 -> 2024-01-01 | S22: =S7 -> 2025-01-01 | AF22: =AF7 -> 2024-01-01 | AG22: =AG7 -> 2025-01-01 | AH22: =AH7 -> 2026-01-02 | AI22: 2027-01-03 | AJ22: 2028-01-04 | AK22: 2029-01-04 | AL22: 2030-01-05 | AM22: 2031-01-06 | AN22: 2032-01-07 | AO22: 2033-01-07 | AS22: 2 | AT22: 東北 | AU22: ='補正（太陽光）指定１'!AU22 -> 3.2 | AV22: ='補正（太陽光）指定１'!AV22 -> 17.2 | AW22: ='補正（太陽光）指定１'!AW22 -> 20.6 | AX22: ='補正（太陽光）指定１'!AX22 -> 21 | AY22: ='補正（太陽光）指定１'!AY22 -> 25.9 | AZ22: ='補正（太陽光）指定１'!AZ22 -> 16.2 | BA22: ='補正（太陽光）指定１'!BA22 -> 11.7 | BB22: ='補正（太陽光）指定１'!BB22 -> 1.5 | BC22: ='補正（太陽光）指定１'!BC22 -> 1.5 | BD22: ='補正（太陽光）指定１'!BD22 -> 3.9 | BE22: ='補正（太陽光）指定１'!BE22 -> 1.6 | BF22: ='補正（太陽光）指定１'!BF22 -> 2.3 | BH22: 2 | BI22: 東北 | BJ22: ='補正（太陽光）指定１'!BJ22 -> 3.1 | BK22: ='補正（太陽光）指定１'!BK22 -> 16.7 | BL22: ='補正（太陽光）指定１'!BL22 -> 20.2 | BM22: ='補正（太陽光）指定１'!BM22 -> 20.2 | BN22: ='補正（太陽光）指定１'!BN22 -> 25.3 | BO22: ='補正（太陽光）指定１'!BO22 -> 16 | BP22: ='補正（太陽光）指定１'!BP22 -> 10.7 | BQ22: ='補正（太陽光）指定１'!BQ22 -> 1.2 | BR22: ='補正（太陽光）指定１'!BR22 -> 1.5 | BS22: ='補正（太陽光）指定１'!BS22 -> 3.9 | BT22: ='補正（太陽光）指定１'!BT22 -> 1.6 | BU22: ='補正（太陽光）指定１'!BU22 -> 2.2 | BW22: 2 | BX22: 東北 | BY22: =IFERROR(BY8*(1-BD64),BY8) -> 3.6 | CA22: 2 | CB22: 東北 | CC22: =IFERROR(CC8*(1-BD64),CC8) -> 3.6 | CE22: 2 | CF22: 東北 | CG22: =IFERROR(CG8*(1-BD64),CG8) -> 3.4 | CI22: 2 | CJ22: 東北 | CK22: =IFERROR(CK8*(1-BD64),CK8) -> 3.4 | CM22: 2 | CN22: 東北 | CO22: =IFERROR(CO8*(1-BD64),CO8) -> 3.3 | CQ22: 2 | CR22: 東北 | CS22: =IFERROR(CS8*(1-BD64),CS8) -> 3.5 | CU22: 2 | CV22: 東北 | CW22: =IFERROR(CW8*(1-BD64),CW8) -> 3.5 | CY22: 2 | CZ22: 東北 | DA22: =IFERROR(DA8*(1-BD64),DA8) -> 3.5
G23: =G8 -> 4月 | H23: =H8 -> 5月 | I23: 6月 | J23: 7月 | K23: 8月 | L23: 9月 | M23: 10月 | N23: 11月 | O23: 12月 | P23: 1月 | Q23: 2月 | R23: 3月 | S23: =S8 -> 4月 | T23: =T8 -> 5月 | U23: 6月 | V23: 7月 | W23: 8月 | X23: 9月 | Y23: 10月 | Z23: 11月 | AA23: 12月 | AB23: 1月 | AC23: 2月 | AD23: 3月 | AS23: 3 | AT23: 東京 | AU23: ='補正（太陽光）指定１'!AU23 -> 1.5 | AV23: ='補正（太陽光）指定１'!AV23 -> 12.7 | AW23: ='補正（太陽光）指定１'!AW23 -> 15.5 | AX23: ='補正（太陽光）指定１'!AX23 -> 23.2 | AY23: ='補正（太陽光）指定１'!AY23 -> 25.9 | AZ23: ='補正（太陽光）指定１'!AZ23 -> 15.6 | BA23: ='補正（太陽光）指定１'!BA23 -> 7.8 | BB23: ='補正（太陽光）指定１'!BB23 -> 0.5 | BC23: ='補正（太陽光）指定１'!BC23 -> 0.9 | BD23: ='補正（太陽光）指定１'!BD23 -> 2.4 | BE23: ='補正（太陽光）指定１'!BE23 -> 0.9 | BF23: ='補正（太陽光）指定１'!BF23 -> 0.9 | BH23: 3 | BI23: 東京 | BJ23: ='補正（太陽光）指定１'!BJ23 -> 1.4 | BK23: ='補正（太陽光）指定１'!BK23 -> 12.2 | BL23: ='補正（太陽光）指定１'!BL23 -> 14.9 | BM23: ='補正（太陽光）指定１'!BM23 -> 22.4 | BN23: ='補正（太陽光）指定１'!BN23 -> 25.1 | BO23: ='補正（太陽光）指定１'!BO23 -> 15.4 | BP23: ='補正（太陽光）指定１'!BP23 -> 7 | BQ23: ='補正（太陽光）指定１'!BQ23 -> 0.4 | BR23: ='補正（太陽光）指定１'!BR23 -> 0.9 | BS23: ='補正（太陽光）指定１'!BS23 -> 2.3 | BT23: ='補正（太陽光）指定１'!BT23 -> 0.9 | BU23: ='補正（太陽光）指定１'!BU23 -> 0.9 | BW23: 3 | BX23: 東京 | CA23: 3 | CB23: 東京 | CE23: 3 | CF23: 東京 | CI23: 3 | CJ23: 東京 | CM23: 3 | CN23: 東京 | CQ23: 3 | CR23: 東京 | CU23: 3 | CV23: 東京 | CY23: 3 | CZ23: 東京
